Workbook

Sheet Расчет (hidden)
A1: Кредит (займ) по ЦЖЗ
A2: Номер процентного периода | B2: Кол-во дней в процентном периоде | C2: Последняя дата процентного периода | D2: ООД на начало периода | E2: Платеж по кредиту (займу) | F2: Начисленные проценты по основному долгу | G2: Уплаченные проценты по основному долгу | H2: Аморти-зация основного долга | I2: ООД на конец периода | J2: Плановая накопленная процентная задолженность на начало периода | K2: Начисленные проценты по накопленной процентной задолжен-ности | L2: Уплаченные проценты по накоплен-ной процентной задолжен-ности | M2: Рост (+) / погашение (-) задолженности | N2: Плановая накопленная процентная задолжен-ность на конец периода
A3: 1 | B3: 2 | C3: 3 | D3: 4 | E3: 5 | F3: 6 | G3: 7 | H3: 8 | I3: 9 | J3: 10 | K3: 11 | L3: 12 | M3: 13 | N3: 14
A4: 1 | B4: 14 | C4: 2016-08-31 | D4: 2600000 | E4: 0 | F4: 11099.02 | I4: 2600000 | J4: 0 | K4: 0 | N4: 0 | Z4: =IF(M4>0,0,-M4) -> 0
A5: 2 | B5: 30 | C5: 2016-09-30 | D5: 2600000 | E5: 39403.02 | F5: 22718.03 | G5: 33817.05 | H5: 5585.97 | I5: 2594414.03 | J5: 0 | K5: 0 | L5: 0 | M5: 0 | N5: 0 | Z5: 0
A6: 3 | B6: 31 | C6: 2016-10-31 | D6: 2594414.03 | E6: 28304 | F6: 23424.87 | G6: 23424.87 | H6: 4879.13 | I6: 2589534.9 | J6: 0 | K6: 0 | L6: 0 | M6: 0 | N6: 0 | Z6: 0
A7: 4 | B7: 30 | C7: 2016-11-30 | D7: 2589534.9 | E7: 28304 | F7: 22626.59 | G7: 22626.59 | H7: 5677.41 | I7: 2583857.49 | J7: 0 | K7: 0 | L7: 0 | M7: 0 | N7: 0 | Z7: 0
A8: 5 | B8: 31 | C8: 2016-12-31 | D8: 2583857.49 | E8: 28304 | F8: 23329.55 | G8: 23329.55 | H8: 4974.45 | I8: 2578883.04 | J8: 0 | K8: 0 | L8: 0 | M8: 0 | N8: 0 | Z8: 0
A9: 6 | B9: 31 | C9: 2017-01-31 | D9: 2578883.04 | E9: 28304 | F9: 20588.67 | G9: 20588.67 | H9: 7715.33 | I9: 2571167.71 | J9: 0 | K9: 0 | L9: 0 | M9: 0 | N9: 0 | Z9: 0
A10: 7 | B10: 28 | C10: 2017-02-28 | D10: 2571167.71 | E10: 28304 | F10: 18540.58 | G10: 18540.58 | H10: 9763.42 | I10: 2561404.29 | J10: 0 | K10: 0 | L10: 0 | M10: 0 | N10: 0 | Z10: 0
A11: 8 | B11: 31 | C11: 2017-03-31 | D11: 2561404.29 | E11: 28304 | F11: 20449.13 | G11: 20449.13 | H11: 7854.87 | I11: 2553549.42 | J11: 0 | K11: 0 | L11: 0 | M11: 0 | N11: 0 | Z11: 0
A12: 9 | B12: 30 | C12: 2017-04-30 | D12: 2553549.42 | E12: 28304 | F12: 19728.79 | G12: 19728.79 | H12: 8575.21 | I12: 2544974.21 | J12: 0 | K12: 0 | L12: 0 | M12: 0 | N12: 0 | Z12: 0
A13: 10 | B13: 31 | C13: 2017-05-31 | D13: 2544974.21 | E13: 28304 | F13: 20317.96 | G13: 20317.96 | H13: 7986.04 | I13: 2536988.17 | J13: 0 | K13: 0 | L13: 0 | M13: 0 | N13: 0 | Z13: 0
A14: 11 | B14: 30 | C14: 2017-06-30 | D14: 2536988.17 | E14: 28304 | F14: 19600.84 | G14: 19600.84 | H14: 8703.16 | I14: 2528285.01 | J14: 0 | K14: 0 | L14: 0 | M14: 0 | N14: 0 | Z14: 0
A15: 12 | B15: 31 | C15: 2017-07-31 | D15: 2528285.01 | E15: 28304 | F15: 20184.72 | G15: 20184.72 | H15: 8119.28 | I15: 2520165.73 | J15: 0 | K15: 0 | L15: 0 | M15: 0 | N15: 0 | Z15: 0
A16: 13 | B16: 31 | C16: 2017-08-31 | D16: 2520165.73 | E16: 28304 | F16: 20119.9 | G16: 20119.9 | H16: 8184.1 | I16: 2511981.63 | J16: 0 | K16: 0 | L16: 0 | M16: 0 | N16: 0 | Z16: 0
A17: 14 | B17: 30 | C17: 2017-09-30 | D17: 2511981.63 | E17: 28304 | F17: 19407.64 | G17: 19407.64 | H17: 8896.36 | I17: 2503085.27 | J17: 0 | K17: 0 | L17: 0 | M17: 0 | N17: 0 | Z17: 0
A18: 15 | B18: 31 | C18: 2017-10-31 | D18: 2503085.27 | E18: 28304 | F18: 19983.54 | G18: 19983.54 | H18: 8320.46 | I18: 2494764.81 | J18: 0 | K18: 0 | L18: 0 | M18: 0 | N18: 0 | Z18: 0
A19: 16 | B19: 30 | C19: 2017-11-30 | D19: 2494764.81 | E19: 28304 | F19: 19274.62 | G19: 19274.62 | H19: 9029.38 | I19: 2485735.43 | J19: 0 | K19: 0 | L19: 0 | M19: 0 | N19: 0 | Z19: 0
A20: 17 | B20: 31 | C20: 2017-12-31 | D20: 2485735.43 | E20: 28304 | F20: 19845.02 | G20: 19845.02 | H20: 8458.98 | I20: 2477276.45 | J20: 0 | K20: 0 | L20: 0 | M20: 0 | N20: 0 | Z20: 0
A21: 18 | B21: 31 | C21: 2018-01-31 | D21: 2477276.45 | E21: 28304 | F21: 19777.49 | G21: 19777.49 | H21: 8526.51 | I21: 2468749.94 | J21: 0 | K21: 0 | L21: 0 | M21: 0 | N21: 0 | Z21: 0
A22: 19 | B22: 28 | C22: 2018-02-28 | D22: 2468749.94 | E22: 28304 | F22: 17802.05 | G22: 17802.05 | H22: 10501.95 | I22: 2458247.99 | J22: 0 | K22: 0 | L22: 0 | M22: 0 | N22: 0 | Z22: 0
A23: 20 | B23: 31 | C23: 2018-03-31 | D23: 2458247.99 | E23: 28304 | F23: 19625.57 | G23: 19625.57 | H23: 8678.43 | I23: 2449569.56 | J23: 0 | K23: 0 | L23: 0 | M23: 0 | N23: 0 | Z23: 0
A24: 21 | B24: 30 | C24: 2018-04-30 | D24: 2449569.56 | E24: 28304 | F24: 18925.44 | G24: 18925.44 | H24: 9378.56 | I24: 2440191 | J24: 0 | K24: 0 | L24: 0 | M24: 0 | N24: 0 | Z24: 0
A25: 22 | B25: 31 | C25: 2018-05-31 | D25: 2440191 | E25: 28304 | F25: 19481.42 | G25: 19481.42 | H25: 8822.58 | I25: 2431368.42 | J25: 0 | K25: 0 | L25: 0 | M25: 0 | N25: 0 | Z25: 0
A26: 23 | B26: 30 | C26: 2018-06-30 | D26: 2431368.42 | E26: 28304 | F26: 18784.82 | G26: 18784.82 | H26: 9519.18 | I26: 2421849.24 | J26: 0 | K26: 0 | L26: 0 | M26: 0 | N26: 0 | Z26: 0
A27: 24 | B27: 31 | C27: 2018-07-31 | D27: 2421849.24 | E27: 28304 | F27: 19334.98 | G27: 19334.98 | H27: 8969.02 | I27: 2412880.22 | J27: 0 | K27: 0 | L27: 0 | M27: 0 | N27: 0 | Z27: 0
A28: 25 | B28: 31 | C28: 2018-08-31 | D28: 2412880.22 | E28: 28304 | F28: 19263.38 | G28: 19263.38 | H28: 9040.62 | I28: 2403839.6 | J28: 0 | K28: 0 | L28: 0 | M28: 0 | N28: 0 | Z28: 0
A29: 26 | B29: 30 | C29: 2018-09-30 | D29: 2403839.6 | E29: 28304 | F29: 18572.13 | G29: 18572.13 | H29: 9731.87 | I29: 2394107.73 | J29: 0 | K29: 0 | L29: 0 | M29: 0 | N29: 0 | Z29: 0
A30: 27 | B30: 31 | C30: 2018-10-31 | D30: 2394107.73 | E30: 28304 | F30: 19113.51 | G30: 19113.51 | H30: 9190.49 | I30: 2384917.24 | J30: 0 | K30: 0 | L30: 0 | M30: 0 | N30: 0 | Z30: 0
A31: 28 | B31: 30 | C31: 2018-11-30 | D31: 2384917.24 | E31: 28304 | F31: 18425.94 | G31: 18425.94 | H31: 9878.06 | I31: 2375039.18 | J31: 0 | K31: 0 | L31: 0 | M31: 0 | N31: 0 | Z31: 0
A32: 29 | B32: 31 | C32: 2018-12-31 | D32: 2375039.18 | E32: 28304 | F32: 18961.27 | G32: 18961.27 | H32: 9342.73 | I32: 2365696.45 | J32: 0 | K32: 0 | L32: 0 | M32: 0 | N32: 0 | Z32: 0
A33: 30 | B33: 31 | C33: 2019-01-31 | D33: 2365696.45 | E33: 28304 | F33: 18886.68 | G33: 18886.68 | H33: 9417.32 | I33: 2356279.13 | J33: 0 | K33: 0 | L33: 0 | M33: 0 | N33: 0 | Z33: 0
A34: 31 | B34: 28 | C34: 2019-02-28 | D34: 2356279.13 | E34: 28304 | F34: 16991.03 | G34: 16991.03 | H34: 11312.97 | I34: 2344966.16 | J34: 0 | K34: 0 | L34: 0 | M34: 0 | N34: 0 | Z34: 0
A35: 32 | B35: 31 | C35: 2019-03-31 | D35: 2344966.16 | E35: 28304 | F35: 18721.18 | G35: 18721.18 | H35: 9582.82 | I35: 2335383.34 | J35: 0 | K35: 0 | L35: 0 | M35: 0 | N35: 0 | Z35: 0
A36: 33 | B36: 30 | C36: 2019-04-30 | D36: 2335383.34 | E36: 28304 | F36: 18043.24 | G36: 18043.24 | H36: 10260.76 | I36: 2325122.58 | J36: 0 | K36: 0 | L36: 0 | M36: 0 | N36: 0 | Z36: 0
A37: 34 | B37: 31 | C37: 2019-05-31 | D37: 2325122.58 | E37: 28304 | F37: 18562.76 | G37: 18562.76 | H37: 9741.24 | I37: 2315381.34 | J37: 0 | K37: 0 | L37: 0 | M37: 0 | N37: 0 | Z37: 0
A38: 35 | B38: 30 | C38: 2019-06-30 | D38: 2315381.34 | E38: 28304 | F38: 17888.7 | G38: 17888.7 | H38: 10415.3 | I38: 2304966.04 | J38: 0 | K38: 0 | L38: 0 | M38: 0 | N38: 0 | Z38: 0
A39: 36 | B39: 31 | C39: 2019-07-31 | D39: 2304966.04 | E39: 28304 | F39: 18401.84 | G39: 18401.84 | H39: 9902.16 | I39: 2295063.88 | J39: 0 | K39: 0 | L39: 0 | M39: 0 | N39: 0 | Z39: 0
A40: 37 | B40: 31 | C40: 2019-08-31 | D40: 2295063.88 | E40: 28304 | F40: 18322.78 | G40: 18322.78 | H40: 9981.22 | I40: 2285082.66 | J40: 0 | K40: 0 | L40: 0 | M40: 0 | N40: 0 | Z40: 0
A41: 38 | B41: 30 | C41: 2019-09-30 | D41: 2285082.66 | E41: 28304 | F41: 17654.61 | G41: 17654.61 | H41: 10649.39 | I41: 2274433.27 | J41: 0 | K41: 0 | L41: 0 | M41: 0 | N41: 0 | Z41: 0
A42: 39 | B42: 31 | C42: 2019-10-31 | D42: 2274433.27 | E42: 28304 | F42: 18158.08 | G42: 18158.08 | H42: 10145.92 | I42: 2264287.35 | J42: 0 | K42: 0 | L42: 0 | M42: 0 | N42: 0 | Z42: 0
A43: 40 | B43: 30 | C43: 2019-11-30 | D43: 2264287.35 | E43: 28304 | F43: 17493.95 | G43: 17493.95 | H43: 10810.05 | I43: 2253477.3 | J43: 0 | K43: 0 | L43: 0 | M43: 0 | N43: 0 | Z43: 0
A44: 41 | B44: 31 | C44: 2019-12-31 | D44: 2253477.3 | E44: 28304 | F44: 17990.77 | G44: 17990.77 | H44: 10313.23 | I44: 2243164.07 | J44: 0 | K44: 0 | L44: 0 | M44: 0 | N44: 0 | Z44: 0
A45: 42 | B45: 31 | C45: 2020-01-31 | D45: 2243164.07 | E45: 28304 | F45: 17859.51 | G45: 17859.51 | H45: 10444.49 | I45: 2232719.58 | J45: 0 | K45: 0 | L45: 0 | M45: 0 | N45: 0 | Z45: 0
A46: 43 | B46: 29 | C46: 2020-02-29 | D46: 2232719.58 | E46: 28304 | F46: 16629.49 | G46: 16629.49 | H46: 11674.51 | I46: 2221045.07 | J46: 0 | K46: 0 | L46: 0 | M46: 0 | N46: 0 | Z46: 0
A47: 44 | B47: 31 | C47: 2020-03-31 | D47: 2221045.07 | E47: 28304 | F47: 17683.4 | G47: 17683.4 | H47: 10620.6 | I47: 2210424.47 | J47: 0 | K47: 0 | L47: 0 | M47: 0 | N47: 0 | Z47: 0
A48: 45 | B48: 30 | C48: 2020-04-30 | D48: 2210424.47 | E48: 28304 | F48: 17031.14 | G48: 17031.14 | H48: 11272.86 | I48: 2199151.61 | J48: 0 | K48: 0 | L48: 0 | M48: 0 | N48: 0 | Z48: 0
A49: 46 | B49: 31 | C49: 2020-05-31 | D49: 2199151.61 | E49: 28304 | F49: 17509.09 | G49: 17509.09 | H49: 10794.91 | I49: 2188356.7 | J49: 0 | K49: 0 | L49: 0 | M49: 0 | N49: 0 | Z49: 0
A50: 47 | B50: 30 | C50: 2020-06-30 | D50: 2188356.7 | E50: 28304 | F50: 16861.11 | G50: 16861.11 | H50: 11442.89 | I50: 2176913.81 | J50: 0 | K50: 0 | L50: 0 | M50: 0 | N50: 0 | Z50: 0
A51: 48 | B51: 31 | C51: 2020-07-31 | D51: 2176913.81 | E51: 28304 | F51: 17332.04 | G51: 17332.04 | H51: 10971.96 | I51: 2165941.85 | J51: 0 | K51: 0 | L51: 0 | M51: 0 | N51: 0 | Z51: 0
A52: 49 | B52: 31 | C52: 2020-08-31 | D52: 2165941.85 | E52: 28304 | F52: 17244.68 | G52: 17244.68 | H52: 11059.32 | I52: 2154882.53 | J52: 0 | K52: 0 | L52: 0 | M52: 0 | N52: 0 | Z52: 0
A53: 50 | B53: 30 | C53: 2020-09-30 | D53: 2154882.53 | E53: 28304 | F53: 16603.19 | G53: 16603.19 | H53: 11700.81 | I53: 2143181.72 | J53: 0 | K53: 0 | L53: 0 | M53: 0 | N53: 0 | Z53: 0
A54: 51 | B54: 31 | C54: 2020-10-31 | D54: 2143181.72 | E54: 28304 | F54: 17063.47 | G54: 17063.47 | H54: 11240.53 | I54: 2131941.19 | J54: 0 | K54: 0 | L54: 0 | M54: 0 | N54: 0 | Z54: 0
A55: 52 | B55: 30 | C55: 2020-11-30 | D55: 2131941.19 | E55: 28304 | F55: 16426.43 | G55: 16426.43 | H55: 11877.57 | I55: 2120063.62 | J55: 0 | K55: 0 | L55: 0 | M55: 0 | N55: 0 | Z55: 0
A56: 53 | B56: 31 | C56: 2020-12-31 | D56: 2120063.62 | E56: 28304 | F56: 16879.41 | G56: 16879.41 | H56: 11424.59 | I56: 2108639.03 | J56: 0 | K56: 0 | L56: 0 | M56: 0 | N56: 0 | Z56: 0
A57: 54 | B57: 31 | C57: 2021-01-31 | D57: 2108639.03 | E57: 28304 | F57: 16834.45 | G57: 16834.45 | H57: 11469.55 | I57: 2097169.48 | J57: 0 | K57: 0 | L57: 0 | M57: 0 | N57: 0 | Z57: 0
A58: 55 | B58: 28 | C58: 2021-02-28 | D58: 2097169.48 | E58: 28304 | F58: 15122.6 | G58: 15122.6 | H58: 13181.4 | I58: 2083988.08 | J58: 0 | K58: 0 | L58: 0 | M58: 0 | N58: 0 | Z58: 0
A59: 56 | B59: 31 | C59: 2021-03-31 | D59: 2083988.08 | E59: 28304 | F59: 16637.65 | G59: 16637.65 | H59: 11666.35 | I59: 2072321.73 | J59: 0 | K59: 0 | L59: 0 | M59: 0 | N59: 0 | Z59: 0
A60: 57 | B60: 30 | C60: 2021-04-30 | D60: 2072321.73 | E60: 28304 | F60: 16010.81 | G60: 16010.81 | H60: 12293.19 | I60: 2060028.54 | J60: 0 | K60: 0 | L60: 0 | M60: 0 | N60: 0 | Z60: 0
A61: 58 | B61: 31 | C61: 2021-05-31 | D61: 2060028.54 | E61: 28304 | F61: 16446.36 | G61: 16446.36 | H61: 11857.64 | I61: 2048170.9 | J61: 0 | K61: 0 | L61: 0 | M61: 0 | N61: 0 | Z61: 0
A62: 59 | B62: 30 | C62: 2021-06-30 | D62: 2048170.9 | E62: 28304 | F62: 15824.22 | G62: 15824.22 | H62: 12479.78 | I62: 2035691.12 | J62: 0 | K62: 0 | L62: 0 | M62: 0 | N62: 0 | Z62: 0
A63: 60 | B63: 31 | C63: 2021-07-31 | D63: 2035691.12 | E63: 28304 | F63: 16252.07 | G63: 16252.07 | H63: 12051.93 | I63: 2023639.19 | J63: 0 | K63: 0 | L63: 0 | M63: 0 | N63: 0 | Z63: 0
A64: 61 | B64: 31 | C64: 2021-08-31 | D64: 2023639.19 | E64: 28304 | F64: 16155.85 | G64: 16155.85 | H64: 12148.15 | I64: 2011491.04 | J64: 0 | K64: 0 | L64: 0 | M64: 0 | N64: 0 | Z64: 0
A65: 62 | B65: 30 | C65: 2021-09-30 | D65: 2011491.04 | E65: 28304 | F65: 15540.83 | G65: 15540.83 | H65: 12763.17 | I65: 1998727.87 | J65: 0 | K65: 0 | L65: 0 | M65: 0 | N65: 0 | Z65: 0
A66: 63 | B66: 31 | C66: 2021-10-31 | D66: 1998727.87 | E66: 28304 | F66: 15956.97 | G66: 15956.97 | H66: 12347.03 | I66: 1986380.84 | J66: 0 | K66: 0 | L66: 0 | M66: 0 | N66: 0 | Z66: 0
A67: 64 | B67: 30 | C67: 2021-11-30 | D67: 1986380.84 | E67: 28304 | F67: 15346.83 | G67: 15346.83 | H67: 12957.17 | I67: 1973423.67 | J67: 0 | K67: 0 | L67: 0 | M67: 0 | N67: 0 | Z67: 0
A68: 65 | B68: 31 | C68: 2021-12-31 | D68: 1973423.67 | E68: 28304 | F68: 15754.95 | G68: 15754.95 | H68: 12549.05 | I68: 1960874.62 | J68: 0 | K68: 0 | L68: 0 | M68: 0 | N68: 0 | Z68: =IF(M68>0,0,-M68) -> 0
A69: 66 | B69: 31 | C69: 2022-01-31 | D69: 1960874.62 | E69: 28304 | F69: 15654.76 | G69: 15654.76 | H69: 12649.24 | I69: 1948225.38 | J69: 0 | K69: 0 | L69: 0 | M69: 0 | N69: 0 | Z69: 0
A70: 67 | B70: 28 | C70: 2022-02-28 | D70: 1948225.38 | E70: 28304 | F70: 14048.57 | G70: 14048.57 | H70: 14255.43 | I70: 1933969.95 | J70: 0 | K70: 0 | L70: 0 | M70: 0 | N70: 0 | Z70: 0
A71: 68 | B71: 31 | C71: 2022-03-31 | D71: 1933969.95 | E71: 28304 | F71: 15439.97 | G71: 15439.97 | H71: 12864.03 | I71: 1921105.92 | J71: 0 | K71: 0 | L71: 0 | M71: 0 | N71: 0 | Z71: 0
A72: 69 | B72: 30 | C72: 2022-04-30 | D72: 1921105.92 | E72: 28304 | F72: 14842.52 | G72: 14842.52 | H72: 13461.48 | I72: 1907644.44 | J72: 0 | K72: 0 | L72: 0 | M72: 0 | N72: 0 | Z72: 0
A73: 70 | B73: 31 | C73: 2022-05-31 | D73: 1907644.44 | E73: 28304 | F73: 15229.8 | G73: 15229.8 | H73: 13074.2 | I73: 1894570.24 | J73: 0 | K73: 0 | L73: 0 | M73: 0 | N73: 0 | Z73: 0
A74: 71 | B74: 30 | C74: 2022-06-30 | D74: 1894570.24 | E74: 28304 | F74: 14637.5 | G74: 14637.5 | H74: 13666.5 | I74: 1880903.74 | J74: 0 | K74: 0 | L74: 0 | M74: 0 | N74: 0 | Z74: 0
A75: 72 | B75: 31 | C75: 2022-07-31 | D75: 1880903.74 | E75: 28304 | F75: 15016.31 | G75: 15016.31 | H75: 13287.69 | I75: 1867616.05 | J75: 0 | K75: 0 | L75: 0 | M75: 0 | N75: 0 | Z75: 0
A76: 73 | B76: 31 | C76: 2022-08-31 | D76: 1867616.05 | E76: 28304 | F76: 14910.23 | G76: 14910.23 | H76: 13393.77 | I76: 1854222.28 | J76: 0 | K76: 0 | L76: 0 | M76: 0 | N76: 0 | Z76: 0
A77: 74 | B77: 30 | C77: 2022-09-30 | D77: 1854222.28 | E77: 28304 | F77: 14325.77 | G77: 14325.77 | H77: 13978.23 | I77: 1840244.05 | J77: 0 | K77: 0 | L77: 0 | M77: 0 | N77: 0 | Z77: 0
A78: 75 | B78: 31 | C78: 2022-10-31 | D78: 1840244.05 | E78: 28304 | F78: 14691.7 | G78: 14691.7 | H78: 13612.3 | I78: 1826631.75 | J78: 0 | K78: 0 | L78: 0 | M78: 0 | N78: 0 | Z78: 0
A79: 76 | B79: 30 | C79: 2022-11-30 | D79: 1826631.75 | E79: 28304 | F79: 14112.61 | G79: 14112.61 | H79: 14191.39 | I79: 1812440.36 | J79: 0 | K79: 0 | L79: 0 | M79: 0 | N79: 0 | Z79: 0
A80: 77 | B80: 31 | C80: 2022-12-31 | D80: 1812440.36 | E80: 28304 | F80: 14469.73 | G80: 14469.73 | H80: 13834.27 | I80: 1798606.09 | J80: 0 | K80: 0 | L80: 0 | M80: 0 | N80: 0 | Z80: 0
A81: 78 | B81: 31 | C81: 2023-01-31 | D81: 1798606.09 | E81: 28304 | F81: 14359.28 | G81: 14359.28 | H81: 13944.72 | I81: 1784661.37 | J81: 0 | K81: 0 | L81: 0 | M81: 0 | N81: 0 | Z81: 0
A82: 79 | B82: 28 | C82: 2023-02-28 | D82: 1784661.37 | E82: 28304 | F82: 12869.12 | G82: 12869.12 | H82: 15434.88 | I82: 1769226.49 | J82: 0 | K82: 0 | L82: 0 | M82: 0 | N82: 0 | Z82: 0
A83: 80 | B83: 31 | C83: 2023-03-31 | D83: 1769226.49 | E83: 28304 | F83: 14124.73 | G83: 14124.73 | H83: 14179.27 | I83: 1755047.22 | J83: 0 | K83: 0 | L83: 0 | M83: 0 | N83: 0 | Z83: 0
A84: 81 | B84: 30 | C84: 2023-04-30 | D84: 1755047.22 | E84: 28304 | F84: 13559.54 | G84: 13559.54 | H84: 14744.46 | I84: 1740302.76 | J84: 0 | K84: 0 | L84: 0 | M84: 0 | N84: 0 | Z84: 0
A85: 82 | B85: 31 | C85: 2023-05-31 | D85: 1740302.76 | E85: 28304 | F85: 13893.81 | G85: 13893.81 | H85: 14410.19 | I85: 1725892.57 | J85: 0 | K85: 0 | L85: 0 | M85: 0 | N85: 0 | Z85: 0
A86: 83 | B86: 30 | C86: 2023-06-30 | D86: 1725892.57 | E86: 28304 | F86: 13334.29 | G86: 13334.29 | H86: 14969.71 | I86: 1710922.86 | J86: 0 | K86: 0 | L86: 0 | M86: 0 | N86: 0 | Z86: 0
A87: 84 | B87: 31 | C87: 2023-07-31 | D87: 1710922.86 | E87: 28304 | F87: 13659.26 | G87: 13659.26 | H87: 14644.74 | I87: 1696278.12 | J87: 0 | K87: 0 | L87: 0 | M87: 0 | N87: 0 | Z87: 0
A88: 85 | B88: 31 | C88: 2023-08-31 | D88: 1696278.12 | E88: 28304 | F88: 13542.34 | G88: 13542.34 | H88: 14761.66 | I88: 1681516.46 | J88: 0 | K88: 0 | L88: 0 | M88: 0 | N88: 0 | Z88: 0
A89: 86 | B89: 30 | C89: 2023-09-30 | D89: 1681516.46 | E89: 28304 | F89: 12991.44 | G89: 12991.44 | H89: 15312.56 | I89: 1666203.9 | J89: 0 | K89: 0 | L89: 0 | M89: 0 | N89: 0 | Z89: 0
A90: 87 | B90: 31 | C90: 2023-10-31 | D90: 1666203.9 | E90: 28304 | F90: 13302.24 | G90: 13302.24 | H90: 15001.76 | I90: 1651202.14 | J90: 0 | K90: 0 | L90: 0 | M90: 0 | N90: 0 | Z90: 0
A91: 88 | B91: 30 | C91: 2023-11-30 | D91: 1651202.14 | E91: 28304 | F91: 12757.23 | G91: 12757.23 | H91: 15546.77 | I91: 1635655.37 | J91: 0 | K91: 0 | L91: 0 | M91: 0 | N91: 0 | Z91: 0
A92: 89 | B92: 31 | C92: 2023-12-31 | D92: 1635655.37 | E92: 28304 | F92: 13058.36 | G92: 13058.36 | H92: 15245.64 | I92: 1620409.73 | J92: 0 | K92: 0 | L92: 0 | M92: 0 | N92: 0 | Z92: 0
A93: 90 | B93: 31 | C93: 2024-01-31 | D93: 1620409.73 | E93: 28304 | F93: 12901.29 | G93: 12901.29 | H93: 15402.71 | I93: 1605007.02 | J93: 0 | K93: 0 | L93: 0 | M93: 0 | N93: 0 | Z93: 0
A94: 91 | B94: 29 | C94: 2024-02-29 | D94: 1605007.02 | E94: 28304 | F94: 11954.23 | G94: 11954.23 | H94: 16349.77 | I94: 1588657.25 | J94: 0 | K94: 0 | L94: 0 | M94: 0 | N94: 0 | Z94: 0
A95: 92 | B95: 31 | C95: 2024-03-31 | D95: 1588657.25 | E95: 28304 | F95: 12648.49 | G95: 12648.49 | H95: 15655.51 | I95: 1573001.74 | J95: 0 | K95: 0 | L95: 0 | M95: 0 | N95: 0 | Z95: 0
A96: 93 | B96: 30 | C96: 2024-04-30 | D96: 1573001.74 | E96: 28304 | F96: 12119.85 | G96: 12119.85 | H96: 16184.15 | I96: 1556817.59 | J96: 0 | K96: 0 | L96: 0 | M96: 0 | N96: 0 | Z96: 0
A97: 94 | B97: 31 | C97: 2024-05-31 | D97: 1556817.59 | E97: 28304 | F97: 12394.99 | G97: 12394.99 | H97: 15909.01 | I97: 1540908.58 | J97: 0 | K97: 0 | L97: 0 | M97: 0 | N97: 0 | Z97: 0
A98: 95 | B98: 30 | C98: 2024-06-30 | D98: 1540908.58 | E98: 28304 | F98: 11872.57 | G98: 11872.57 | H98: 16431.43 | I98: 1524477.15 | J98: 0 | K98: 0 | L98: 0 | M98: 0 | N98: 0 | Z98: 0
A99: 96 | B99: 31 | C99: 2024-07-31 | D99: 1524477.15 | E99: 28304 | F99: 12137.5 | G99: 12137.5 | H99: 16166.5 | I99: 1508310.65 | J99: 0 | K99: 0 | L99: 0 | M99: 0 | N99: 0 | Z99: 0
A100: 97 | B100: 31 | C100: 2024-08-31 | D100: 1508310.65 | E100: 28304 | F100: 12008.79 | G100: 12008.79 | H100: 16295.21 | I100: 1492015.44 | J100: 0 | K100: 0 | L100: 0 | M100: 0 | N100: 0 | Z100: 0
A101: 98 | B101: 30 | C101: 2024-09-30 | D101: 1492015.44 | E101: 28304 | F101: 11495.86 | G101: 11495.86 | H101: 16808.14 | I101: 1475207.3 | J101: 0 | K101: 0 | L101: 0 | M101: 0 | N101: 0 | Z101: 0
A102: 99 | B102: 31 | C102: 2024-10-31 | D102: 1475207.3 | E102: 28304 | F102: 11745.23 | G102: 11745.23 | H102: 16558.77 | I102: 1458648.53 | J102: 0 | K102: 0 | L102: 0 | M102: 0 | N102: 0 | Z102: 0
A103: 100 | B103: 30 | C103: 2024-11-30 | D103: 1458648.53 | E103: 28304 | F103: 11238.77 | G103: 11238.77 | H103: 17065.23 | I103: 1441583.3 | J103: 0 | K103: 0 | L103: 0 | M103: 0 | N103: 0 | Z103: 0
A104: 101 | B104: 31 | C104: 2024-12-31 | D104: 1441583.3 | E104: 28304 | F104: 11477.52 | G104: 11477.52 | H104: 16826.48 | I104: 1424756.82 | J104: 0 | K104: 0 | L104: 0 | M104: 0 | N104: 0 | Z104: 0
A105: 102 | B105: 31 | C105: 2025-01-31 | D105: 1424756.82 | E105: 28304 | F105: 11374.63 | G105: 11374.63 | H105: 16929.37 | I105: 1407827.45 | J105: 0 | K105: 0 | L105: 0 | M105: 0 | N105: 0 | Z105: 0
A106: 103 | B106: 28 | C106: 2025-02-28 | D106: 1407827.45 | E106: 28304 | F106: 10151.79 | G106: 10151.79 | H106: 18152.21 | I106: 1389675.24 | J106: 0 | K106: 0 | L106: 0 | M106: 0 | N106: 0 | Z106: 0
A107: 104 | B107: 31 | C107: 2025-03-31 | D107: 1389675.24 | E107: 28304 | F107: 11094.56 | G107: 11094.56 | H107: 17209.44 | I107: 1372465.8 | J107: 0 | K107: 0 | L107: 0 | M107: 0 | N107: 0 | Z107: 0
A108: 105 | B108: 30 | C108: 2025-04-30 | D108: 1372465.8 | E108: 28304 | F108: 10603.71 | G108: 10603.71 | H108: 17700.29 | I108: 1354765.51 | J108: 0 | K108: 0 | L108: 0 | M108: 0 | N108: 0 | Z108: 0
A109: 106 | B109: 31 | C109: 2025-05-31 | D109: 1354765.51 | E109: 28304 | F109: 10815.85 | G109: 10815.85 | H109: 17488.15 | I109: 1337277.36 | J109: 0 | K109: 0 | L109: 0 | M109: 0 | N109: 0 | Z109: 0
A110: 107 | B110: 30 | C110: 2025-06-30 | D110: 1337277.36 | E110: 28304 | F110: 10331.84 | G110: 10331.84 | H110: 17972.16 | I110: 1319305.2 | J110: 0 | K110: 0 | L110: 0 | M110: 0 | N110: 0 | Z110: 0
A111: 108 | B111: 31 | C111: 2025-07-31 | D111: 1319305.2 | E111: 28304 | F111: 10532.75 | G111: 10532.75 | H111: 17771.25 | I111: 1301533.95 | J111: 0 | K111: 0 | L111: 0 | M111: 0 | N111: 0 | Z111: 0
A112: 109 | B112: 31 | C112: 2025-08-31 | D112: 1301533.95 | E112: 28304 | F112: 10390.88 | G112: 10390.88 | H112: 17913.12 | I112: 1283620.83 | J112: 0 | K112: 0 | L112: 0 | M112: 0 | N112: 0 | Z112: 0
A113: 110 | B113: 30 | C113: 2025-09-30 | D113: 1283620.83 | E113: 28304 | F113: 9917.29 | G113: 9917.29 | H113: 18386.71 | I113: 1265234.12 | J113: 0 | K113: 0 | L113: 0 | M113: 0 | N113: 0 | Z113: 0
A114: 111 | B114: 31 | C114: 2025-10-31 | D114: 1265234.12 | E114: 28304 | F114: 10101.07 | G114: 10101.07 | H114: 18202.93 | I114: 1247031.19 | J114: 0 | K114: 0 | L114: 0 | M114: 0 | N114: 0 | Z114: 0
A115: 112 | B115: 30 | C115: 2025-11-30 | D115: 1247031.19 | E115: 28304 | F115: 9634.6 | G115: 9634.6 | H115: 18669.4 | I115: 1228361.79 | J115: 0 | K115: 0 | L115: 0 | M115: 0 | N115: 0 | Z115: 0
A116: 113 | B116: 31 | C116: 2025-12-31 | D116: 1228361.79 | E116: 28304 | F116: 9806.7 | G116: 9806.7 | H116: 18497.3 | I116: 1209864.49 | J116: 0 | K116: 0 | L116: 0 | M116: 0 | N116: 0 | Z116: 0
A117: 114 | B117: 31 | C117: 2026-01-31 | D117: 1209864.49 | E117: 28304 | F117: 9659.03 | G117: 9659.03 | H117: 18644.97 | I117: 1191219.52 | J117: 0 | K117: 0 | L117: 0 | M117: 0 | N117: 0 | Z117: 0
A118: 115 | B118: 28 | C118: 2026-02-28 | D118: 1191219.52 | E118: 28304 | F118: 8589.84 | G118: 8589.84 | H118: 19714.16 | I118: 1171505.36 | J118: 0 | K118: 0 | L118: 0 | M118: 0 | N118: 0 | Z118: 0
A119: 116 | B119: 31 | C119: 2026-03-31 | D119: 1171505.36 | E119: 28304 | F119: 9352.79 | G119: 9352.79 | H119: 18951.21 | I119: 1152554.15 | J119: 0 | K119: 0 | L119: 0 | M119: 0 | N119: 0 | Z119: 0
A120: 117 | B120: 30 | C120: 2026-04-30 | D120: 1152554.15 | E120: 28304 | F120: 8904.66 | G120: 8904.66 | H120: 19399.34 | I120: 1133154.81 | J120: 0 | K120: 0 | L120: 0 | M120: 0 | N120: 0 | Z120: 0
A121: 118 | B121: 31 | C121: 2026-05-31 | D121: 1133154.81 | E121: 28304 | F121: 9046.61 | G121: 9046.61 | H121: 19257.39 | I121: 1113897.42 | J121: 0 | K121: 0 | L121: 0 | M121: 0 | N121: 0 | Z121: 0
A122: 119 | B122: 30 | C122: 2026-06-30 | D122: 1113897.42 | E122: 28304 | F122: 8606 | G122: 8606 | H122: 19698 | I122: 1094199.42 | J122: 0 | K122: 0 | L122: 0 | M122: 0 | N122: 0 | Z122: 0
A123: 120 | B123: 31 | C123: 2026-07-31 | D123: 1094199.42 | E123: 28304 | F123: 8735.61 | G123: 8735.61 | H123: 19568.39 | I123: 1074631.03 | J123: 0 | K123: 0 | L123: 0 | M123: 0 | N123: 0 | Z123: 0
A124: 121 | B124: 31 | C124: 2026-08-31 | D124: 1074631.03 | E124: 28304 | F124: 8579.38 | G124: 8579.38 | H124: 19724.62 | I124: 1054906.41 | J124: 0 | K124: 0 | L124: 0 | M124: 0 | N124: 0 | Z124: 0
A125: 122 | B125: 30 | C125: 2026-09-30 | D125: 1054906.41 | E125: 28304 | F125: 8150.24 | G125: 8150.24 | H125: 20153.76 | I125: 1034752.65 | J125: 0 | K125: 0 | L125: 0 | M125: 0 | N125: 0 | Z125: 0
A126: 123 | B126: 31 | C126: 2026-10-31 | D126: 1034752.65 | E126: 28304 | F126: 8261.01 | G126: 8261.01 | H126: 20042.99 | I126: 1014709.66 | J126: 0 | K126: 0 | L126: 0 | M126: 0 | N126: 0 | Z126: 0
A127: 124 | B127: 30 | C127: 2026-11-30 | D127: 1014709.66 | E127: 28304 | F127: 7839.67 | G127: 7839.67 | H127: 20464.33 | I127: 994245.33 | J127: 0 | K127: 0 | L127: 0 | M127: 0 | N127: 0 | Z127: 0
A128: 125 | B128: 31 | C128: 2026-12-31 | D128: 994245.33 | E128: 28304 | F128: 7937.62 | G128: 7937.62 | H128: 20366.38 | I128: 973878.95 | J128: 0 | K128: 0 | L128: 0 | M128: 0 | N128: 0 | Z128: 0
A129: 126 | B129: 31 | C129: 2027-01-31 | D129: 973878.95 | E129: 28304 | F129: 7775.02 | G129: 7775.02 | H129: 20528.98 | I129: 953349.97 | J129: 0 | K129: 0 | L129: 0 | M129: 0 | N129: 0 | Z129: 0
A130: 127 | B130: 28 | C130: 2027-02-28 | D130: 953349.97 | E130: 28304 | F130: 6874.57 | G130: 6874.57 | H130: 21429.43 | I130: 931920.54 | J130: 0 | K130: 0 | L130: 0 | M130: 0 | N130: 0 | Z130: 0
A131: 128 | B131: 31 | C131: 2027-03-31 | D131: 931920.54 | E131: 28304 | F131: 7440.05 | G131: 7440.05 | H131: 20863.95 | I131: 911056.59 | J131: 0 | K131: 0 | L131: 0 | M131: 0 | N131: 0 | Z131: 0
A132: 129 | B132: 30 | C132: 2027-04-30 | D132: 911056.59 | E132: 28304 | F132: 7038.85 | G132: 7038.85 | H132: 21265.15 | I132: 889791.44 | J132: 0 | K132: 0 | L132: 0 | M132: 0 | N132: 0 | Z132: =IF(M132>0,0,-M132) -> 0
A133: 130 | B133: 31 | C133: 2027-05-31 | D133: 889791.44 | E133: 28304 | F133: 7103.7 | G133: 7103.7 | H133: 21200.3 | I133: 868591.14 | J133: 0 | K133: 0 | L133: 0 | M133: 0 | N133: 0 | Z133: 0
A134: 131 | B134: 30 | C134: 2027-06-30 | D134: 868591.14 | E134: 28304 | F134: 6710.76 | G134: 6710.76 | H134: 21593.24 | I134: 846997.9 | J134: 0 | K134: 0 | L134: 0 | M134: 0 | N134: 0 | Z134: 0
A135: 132 | B135: 31 | C135: 2027-07-31 | D135: 846997.9 | E135: 28304 | F135: 6762.06 | G135: 6762.06 | H135: 21541.94 | I135: 825455.96 | J135: 0 | K135: 0 | L135: 0 | M135: 0 | N135: 0 | Z135: 0
A136: 133 | B136: 31 | C136: 2027-08-31 | D136: 825455.96 | E136: 28304 | F136: 6590.08 | G136: 6590.08 | H136: 21713.92 | I136: 803742.04 | J136: 0 | K136: 0 | L136: 0 | M136: 0 | N136: 0 | Z136: 0
A137: 134 | B137: 30 | C137: 2027-09-30 | D137: 803742.04 | E137: 28304 | F137: 6209.73 | G137: 6209.73 | H137: 22094.27 | I137: 781647.77 | J137: 0 | K137: 0 | L137: 0 | M137: 0 | N137: 0 | Z137: 0
A138: 135 | B138: 31 | C138: 2027-10-31 | D138: 781647.77 | E138: 28304 | F138: 6240.33 | G138: 6240.33 | H138: 22063.67 | I138: 759584.1 | J138: 0 | K138: 0 | L138: 0 | M138: 0 | N138: 0 | Z138: 0
A139: 136 | B139: 30 | C139: 2027-11-30 | D139: 759584.1 | E139: 28304 | F139: 5868.57 | G139: 5868.57 | H139: 22435.43 | I139: 737148.67 | J139: 0 | K139: 0 | L139: 0 | M139: 0 | N139: 0 | Z139: 0
A140: 137 | B140: 31 | C140: 2027-12-31 | D140: 737148.67 | E140: 28304 | F140: 5885.07 | G140: 5885.07 | H140: 22418.93 | I140: 714729.74 | J140: 0 | K140: 0 | L140: 0 | M140: 0 | N140: 0 | Z140: 0
A141: 138 | B141: 31 | C141: 2028-01-31 | D141: 714729.74 | E141: 28304 | F141: 5690.5 | G141: 5690.5 | H141: 22613.5 | I141: 692116.24 | J141: 0 | K141: 0 | L141: 0 | M141: 0 | N141: 0 | Z141: 0
A142: 139 | B142: 29 | C142: 2028-02-29 | D142: 692116.24 | E142: 28304 | F142: 5154.94 | G142: 5154.94 | H142: 23149.06 | I142: 668967.18 | J142: 0 | K142: 0 | L142: 0 | M142: 0 | N142: 0 | Z142: 0
A143: 140 | B143: 31 | C143: 2028-03-31 | D143: 668967.18 | E143: 28304 | F143: 5326.15 | G143: 5326.15 | H143: 22977.85 | I143: 645989.33 | J143: 0 | K143: 0 | L143: 0 | M143: 0 | N143: 0 | Z143: 0
A144: 141 | B144: 30 | C144: 2028-04-30 | D144: 645989.33 | E144: 28304 | F144: 4977.29 | G144: 4977.29 | H144: 23326.71 | I144: 622662.62 | J144: 0 | K144: 0 | L144: 0 | M144: 0 | N144: 0 | Z144: 0
A145: 142 | B145: 31 | C145: 2028-05-31 | D145: 622662.62 | E145: 28304 | F145: 4957.48 | G145: 4957.48 | H145: 23346.52 | I145: 599316.1 | J145: 0 | K145: 0 | L145: 0 | M145: 0 | N145: 0 | Z145: 0
A146: 143 | B146: 30 | C146: 2028-06-30 | D146: 599316.1 | E146: 28304 | F146: 4617.68 | G146: 4617.68 | H146: 23686.32 | I146: 575629.78 | J146: 0 | K146: 0 | L146: 0 | M146: 0 | N146: 0 | Z146: 0
A147: 144 | B147: 31 | C147: 2028-07-31 | D147: 575629.78 | E147: 28304 | F147: 4583.02 | G147: 4583.02 | H147: 23720.98 | I147: 551908.8 | J147: 0 | K147: 0 | L147: 0 | M147: 0 | N147: 0 | Z147: 0
A148: 145 | B148: 31 | C148: 2028-08-31 | D148: 551908.8 | E148: 28304 | F148: 4394.16 | G148: 4394.16 | H148: 23909.84 | I148: 527998.96 | J148: 0 | K148: 0 | L148: 0 | M148: 0 | N148: 0 | Z148: 0
A149: 146 | B149: 30 | C149: 2028-09-30 | D149: 527998.96 | E149: 28304 | F149: 4068.19 | G149: 4068.19 | H149: 24235.81 | I149: 503763.15 | J149: 0 | K149: 0 | L149: 0 | M149: 0 | N149: 0 | Z149: 0
A150: 147 | B150: 31 | C150: 2028-10-31 | D150: 503763.15 | E150: 28304 | F150: 4010.84 | G150: 4010.84 | H150: 24293.16 | I150: 479469.99 | J150: 0 | K150: 0 | L150: 0 | M150: 0 | N150: 0 | Z150: 0
A151: 148 | B151: 30 | C151: 2028-11-30 | D151: 479469.99 | E151: 28304 | F151: 3694.28 | G151: 3694.28 | H151: 24609.72 | I151: 454860.27 | J151: 0 | K151: 0 | L151: 0 | M151: 0 | N151: 0 | Z151: 0
A152: 149 | B152: 31 | C152: 2028-12-31 | D152: 454860.27 | E152: 28304 | F152: 3621.48 | G152: 3621.48 | H152: 24682.52 | I152: 430177.75 | J152: 0 | K152: 0 | L152: 0 | M152: 0 | N152: 0 | Z152: 0
A153: 150 | B153: 31 | C153: 2029-01-31 | D153: 430177.75 | E153: 28304 | F153: 3434.35 | G153: 3434.35 | H153: 24869.65 | I153: 405308.1 | J153: 0 | K153: 0 | L153: 0 | M153: 0 | N153: 0 | Z153: 0
A154: 151 | B154: 28 | C154: 2029-02-28 | D154: 405308.1 | E154: 28304 | F154: 2922.66 | G154: 2922.66 | H154: 25381.34 | I154: 379926.76 | J154: 0 | K154: 0 | L154: 0 | M154: 0 | N154: 0 | Z154: 0
A155: 152 | B155: 31 | C155: 2029-03-31 | D155: 379926.76 | E155: 28304 | F155: 3033.17 | G155: 3033.17 | H155: 25270.83 | I155: 354655.93 | J155: 0 | K155: 0 | L155: 0 | M155: 0 | N155: 0 | Z155: 0
A156: 153 | B156: 30 | C156: 2029-04-30 | D156: 354655.93 | E156: 28304 | F156: 2740.08 | G156: 2740.08 | H156: 25563.92 | I156: 329092.01 | J156: 0 | K156: 0 | L156: 0 | M156: 0 | N156: 0 | Z156: 0
A157: 154 | B157: 31 | C157: 2029-05-31 | D157: 329092.01 | E157: 28304 | F157: 2627.33 | G157: 2627.33 | H157: 25676.67 | I157: 303415.34 | J157: 0 | K157: 0 | L157: 0 | M157: 0 | N157: 0 | Z157: 0
A158: 155 | B158: 30 | C158: 2029-06-30 | D158: 303415.34 | E158: 28304 | F158: 2344.2 | G158: 2344.2 | H158: 25959.8 | I158: 277455.54 | J158: 0 | K158: 0 | L158: 0 | M158: 0 | N158: 0 | Z158: 0
A159: 156 | B159: 31 | C159: 2029-07-31 | D159: 277455.54 | E159: 28304 | F159: 2215.08 | G159: 2215.08 | H159: 26088.92 | I159: 251366.62 | J159: 0 | K159: 0 | L159: 0 | M159: 0 | N159: 0 | Z159: 0
A160: 157 | B160: 31 | C160: 2029-08-31 | D160: 251366.62 | E160: 28304 | F160: 2006.8 | G160: 2006.8 | H160: 26297.2 | I160: 225069.42 | J160: 0 | K160: 0 | L160: 0 | M160: 0 | N160: 0 | Z160: 0
A161: 158 | B161: 30 | C161: 2029-09-30 | D161: 225069.42 | E161: 28304 | F161: 1738.89 | G161: 1738.89 | H161: 26565.11 | I161: 198504.31 | J161: 0 | K161: 0 | L161: 0 | M161: 0 | N161: 0 | Z161: 0
A162: 159 | B162: 31 | C162: 2029-10-31 | D162: 198504.31 | E162: 28304 | F162: 1584.77 | G162: 1584.77 | H162: 26719.23 | I162: 171785.08 | J162: 0 | K162: 0 | L162: 0 | M162: 0 | N162: 0 | Z162: 0
A163: 160 | B163: 30 | C163: 2029-11-30 | D163: 171785.08 | E163: 28304 | F163: 1327.22 | G163: 1327.22 | H163: 26976.78 | I163: 144808.3 | J163: 0 | K163: 0 | L163: 0 | M163: 0 | N163: 0 | Z163: 0
A164: 161 | B164: 31 | C164: 2029-12-31 | D164: 144808.3 | E164: 28304 | F164: 1156.09 | G164: 1156.09 | H164: 27147.91 | I164: 117660.39 | J164: 0 | K164: 0 | L164: 0 | M164: 0 | N164: 0 | Z164: 0
A165: 162 | B165: 31 | C165: 2030-01-31 | D165: 117660.39 | E165: 28304 | F165: 939.35 | G165: 939.35 | H165: 27364.65 | I165: 90295.74 | J165: 0 | K165: 0 | L165: 0 | M165: 0 | N165: 0 | Z165: 0
A166: 163 | B166: 28 | C166: 2030-02-28 | D166: 90295.74 | E166: 28304 | F166: 651.12 | G166: 651.12 | H166: 27652.88 | I166: 62642.86 | J166: 0 | K166: 0 | L166: 0 | M166: 0 | N166: 0 | Z166: 0
A167: 164 | B167: 31 | C167: 2030-03-31 | D167: 62642.86 | E167: 28304 | F167: 500.11 | G167: 500.11 | H167: 27803.89 | I167: 34838.97 | J167: 0 | K167: 0 | L167: 0 | M167: 0 | N167: 0 | Z167: 0
A168: 165 | B168: 30 | C168: 2030-04-30 | D168: 34838.97 | E168: 28304 | F168: 269.17 | G168: 269.17 | H168: 28034.83 | I168: 6804.14 | J168: 0 | K168: 0 | L168: 0 | M168: 0 | N168: 0 | Z168: 0
A169: 166 | B169: 31 | C169: 2030-05-31 | D169: 6804.14 | E169: 6858.46 | F169: 54.32 | G169: 54.32 | H169: 6804.14 | I169: 0 | J169: 0 | K169: 0 | L169: 0 | M169: 0 | N169: 0 | Z169: 0
Z170: 0
Z171: 0
Z172: 0
Z173: 0
Z174: 0
Z175: 0
Z176: 0
Z177: 0
Z178: 0
Z179: 0
Z180: 0
Z181: 0
Z182: 0
Z183: 0
Z184: 0
Z185: 0
Z186: 0
Z187: 0
Z188: 0
Z189: 0
Z190: 0
Z191: 0
Z192: 0
Z193: 0
Z194: 0
Z195: 0
Z196: =IF(M196>0,0,-M196) -> 0
Z197: 0
Z198: 0
Z199: 0
Z200: 0
... 204 more rows

Sheet Калькулятор_от дохода
M3: Версия 1.31.
M6: ПРЕДВАРИТЕЛЬНЫЙ РАСЧЕТ ПАРАМЕТРОВ КРЕДИТОВАНИЯ
M12: Продукт | P12: Перекредитование | V12: =IF(P12=$M$121,"Заявки до 30.12.2016","") -> 
M14: Опции
M16: Материнский капитал | N16: =IF(P16="да",'Справочники и промежут.расчет'!$J157,"") ->  | P16: НЕТ | R16: Размер материнского капитала | V16: 453026
M18: Справка о доходах по форме кредитора | N18: =IF(P18="да",'Справочники и промежут.расчет'!$J158,"") ->  | P18: НЕТ
M20: Переменная ставка | N20: =IF(P20="да",'Справочники и промежут.расчет'!$J156,"") ->  | P20: НЕТ | T20: Дата выдачи | V20: 2018-03-01
M22: Апартаменты | N22: =IF(P22="да",'Справочники и промежут.расчет'!$J159,"") ->  | P22: НЕТ | T22: Строительство апартаментов завершено | V22: ДА
M24: Легкая ипотека | N24: =IF(P24="да",'Справочники и промежут.расчет'!$J161,"") ->  | P24: НЕТ
M26: Вычет из ставки от контрагента | N26: =IF(P26="да",'Справочники и промежут.расчет'!$J160,"") ->  | P26: НЕТ | T26: размер вычета, п.п.
M28: Регион предмета ипотеки | P28: Нижегородская область | V28: =VLOOKUP(P28,'Справочники и промежут.расчет'!$B$24:$D$106,3,FALSE) -> 
M30: Доходы заемщиков: | P30: Заемщик 1: | R30: Заемщик 2: | T30: Заемщик 3: | V30: Заемщик 4:
M32: Вид дохода | P32: Работа по найму | R32: Работа по найму | T32: Работа по найму | V32: Работа по найму
M34: Средний доход за 6 месяцев за вычетом налогов | P34: 70000 | R34: 0 | T34: 0 | V34: 0
M36: Обязательства заемщика:
M37: Алименты | P37: 11000 | R37: 0 | T37: 0 | V37: 0
M39: Ежемесячные платежи по текущим кредитным обязательствам заемщика, с оставшимся сроком исполнения более 3 месяцев | R39: 0 | T39: 0 | V39: 0
M41: Лимит по имеющимся кредитным картам (вне зависимости от факта его использования) | P41: 0 | R41: 0 | T41: 0 | V41: 0
M43: Возраст заемщика, полных лет | P43: 0 | R43: 0 | T43: 0 | V43: 0
M45: Общее количество несовершеннолетних детей всех заемщиков, за исключением детей, содержание которых обеспечено алиментами | P45: 1
M47: Социальная категория заемщика | P47: НЕТ
M49: Личное страхование заемщика | P49: ДА
M51: Первоначальный взнос, % | N51: =IF(P51<'Справочники и промежут.расчет'!$M$82,"малый взнос","") ->  | P51: 0.5
M53: Cумма кредита, руб. | N53: =IF($N$62<>$R$135,"не учитывается в расчете",IF($P$53>'Справочники и промежут.расчет'!$Q$118,"превышение суммы",IF($P$53<'Справочники и промежут.расчет'!$I$126,"сумма меньше предельной",""))) ->  | P53: 1000000
M55: Сумма платежа, руб. | N55: =IF($N$62<>$R$137,"не учитывается в расчете","") -> не учитывается в расчете | P55: 0
M57: Срок кредита, мес. | P57: 228
M59: Стоимость жилья, руб. | N59: =IF($N$62<>$R$136,"не учитывается в расчете","") -> не учитывается в расчете | P59: 2500000
P61: Предварительные параметры кредитования
M62: Выбор параметра расчета | N62: По сумме кредита
M64: Срок кредита (первоначальный), мес. | N64: ='Расчет по доходу заемщика'!$E$41 -> 228 | P64: ='Расчет по доходу заемщика'!$F$41 -> 180 | R64: ='Расчет по доходу заемщика'!$G$41 -> 240 | T64: ='Расчет по доходу заемщика'!$H$41 -> 300 | V64: ='Расчет по доходу заемщика'!I41 -> 360
M65: Срок кредита (расчетный), мес. | N65: =IF($P$20="нет",$N$64,График_польз.срок!$D$6) -> 228 | P65: =IF($P$20="нет",$P$64,График_180!$D$6) -> 180 | R65: =IF($P$20="нет",$R$64,График_240!$D$6) -> 240 | T65: =IF($P$20="нет",$T$64,График_300!$D$6) -> 300 | V65: =IF($P$20="нет",$V$64,График_360!$D$6) -> 360
M66: =IF(N62=R134,"Максимальная сумма кредита","Сумма кредита") -> Сумма кредита | N66: =IF($N$62=$R$135,'Расчет по доходу заемщика'!$E$51,IF($N$62=$R$136,'Расчет по доходу заемщика'!$E$61,IF($N$62=$R$134,'Расчет по доходу заемщика'!$E$42,'Расчет по доходу заемщика'!$E$76))) -> 1000000 | P66: =IF($N$62=$R$135,'Расчет по доходу заемщика'!$F$51,IF($N$62=$R$136,'Расчет по доходу заемщика'!$F$61,IF($N$62=$R$134,'Расчет по доходу заемщика'!$F$42,'Расчет по доходу заемщика'!$F$76))) -> 1000000 | R66: =IF($N$62=$R$135,'Расчет по доходу заемщика'!$G$51,IF($N$62=$R$136,'Расчет по доходу заемщика'!$G$61,IF($N$62=$R$134,'Расчет по доходу заемщика'!$G$42,'Расчет по доходу заемщика'!$G$76))) -> 1000000 | T66: =IF($N$62=$R$135,'Расчет по доходу заемщика'!$H$51,IF($N$62=$R$136,'Расчет по доходу заемщика'!$H$61,IF($N$62=$R$134,'Расчет по доходу заемщика'!$H$42,'Расчет по доходу заемщика'!$H$76))) -> 1000000 | V66: =IF($N$62=$R$135,'Расчет по доходу заемщика'!$I$51,IF($N$62=$R$136,'Расчет по доходу заемщика'!$I$61,IF($N$62=$R$134,'Расчет по доходу заемщика'!$I$42,'Расчет по доходу заемщика'!$I$76))) -> 1000000
M67: Сумма первоначального взноса | N67: =IF($N$62=$R$135,'Расчет по доходу заемщика'!$E$53,IF($N$62=$R$136,'Расчет по доходу заемщика'!$E$63,IF($N$62=$R$134,'Расчет по доходу заемщика'!$E$43,'Расчет по доходу заемщика'!$E$77))) -> 1000000 | P67: =IF($N$62=$R$135,'Расчет по доходу заемщика'!$F$53,IF($N$62=$R$136,'Расчет по доходу заемщика'!$F$63,IF($N$62=$R$134,'Расчет по доходу заемщика'!$F$43,'Расчет по доходу заемщика'!$F$77))) -> 1000000 | R67: =IF($N$62=$R$135,'Расчет по доходу заемщика'!$G$53,IF($N$62=$R$136,'Расчет по доходу заемщика'!$G$63,IF($N$62=$R$134,'Расчет по доходу заемщика'!$G$43,'Расчет по доходу заемщика'!$G$77))) -> 1000000 | T67: =IF($N$62=$R$135,'Расчет по доходу заемщика'!$H$53,IF($N$62=$R$136,'Расчет по доходу заемщика'!$H$63,IF($N$62=$R$134,'Расчет по доходу заемщика'!$H$43,'Расчет по доходу заемщика'!$H$77))) -> 1000000 | V67: =IF($N$62=$R$135,'Расчет по доходу заемщика'!$I$53,IF($N$62=$R$136,'Расчет по доходу заемщика'!$I$63,IF($N$62=$R$134,'Расчет по доходу заемщика'!$I$43,'Расчет по доходу заемщика'!$I$77))) -> 1000000
M68: Стоимость жилья | N68: =IF($N$62=$R$135,'Расчет по доходу заемщика'!$E$54,IF($N$62=$R$136,'Расчет по доходу заемщика'!$E$64,IF($N$62=$R$134,'Расчет по доходу заемщика'!$E$44,'Расчет по доходу заемщика'!$E$78))) -> 2000000 | P68: =IF($N$62=$R$135,'Расчет по доходу заемщика'!$F$54,IF($N$62=$R$136,'Расчет по доходу заемщика'!$F$64,IF($N$62=$R$134,'Расчет по доходу заемщика'!$F$44,'Расчет по доходу заемщика'!$F$78))) -> 2000000 | R68: =IF($N$62=$R$135,'Расчет по доходу заемщика'!$G$54,IF($N$62=$R$136,'Расчет по доходу заемщика'!$G$64,IF($N$62=$R$134,'Расчет по доходу заемщика'!$G$44,'Расчет по доходу заемщика'!$G$78))) -> 2000000 | T68: =IF($N$62=$R$135,'Расчет по доходу заемщика'!$H$54,IF($N$62=$R$136,'Расчет по доходу заемщика'!$H$64,IF($N$62=$R$134,'Расчет по доходу заемщика'!$H$44,'Расчет по доходу заемщика'!$H$78))) -> 2000000 | V68: =IF($N$62=$R$135,'Расчет по доходу заемщика'!$I$54,IF($N$62=$R$136,'Расчет по доходу заемщика'!$I$64,IF($N$62=$R$134,'Расчет по доходу заемщика'!$I$44,'Расчет по доходу заемщика'!$I$78))) -> 2000000
M69: =IF($P$20="да","Переменная ставка","Фиксированная ставка") -> Фиксированная ставка | N69: =IF($P$20="да",График_польз.срок!I12,'Расчет по доходу заемщика'!$E$28) -> 0.09 | P69: =IF($P$20="да",График_180!I12,'Расчет по доходу заемщика'!$E$28) -> 0.09 | R69: =IF($P$20="да",График_240!I12,'Расчет по доходу заемщика'!$E$28) -> 0.09 | T69: =IF($P$20="да",График_300!I12,'Расчет по доходу заемщика'!$E$28) -> 0.09 | V69: =IF($P$20="да",График_360!I12,'Расчет по доходу заемщика'!$E$28) -> 0.09
M70: =IF($P$12=$M$120,"ставка повышается на 4,0 п.п. и, соответственно, платеж до подтверждения целевого использования займа","") -> 
M71: в т.ч. вычет из ставки по соц.категории | N71: =IF($P$20="да",0,'Справочники и промежут.расчет'!$I$67) -> 0 | P71: =IF($P$20="да",0,'Справочники и промежут.расчет'!$I$67) -> 0 | R71: =IF($P$20="да",0,'Справочники и промежут.расчет'!$I$67) -> 0 | T71: =IF($P$20="да",0,'Справочники и промежут.расчет'!$I$67) -> 0 | V71: =IF($P$20="да",0,'Справочники и промежут.расчет'!$I$67) -> 0
M72: Аннуитетный платеж по графику | N72: =IF($N$62=$R$135,'Расчет по доходу заемщика'!$E$56,IF($N$62=$R$136,'Расчет по доходу заемщика'!$E$66,IF($N$62=$R$134,'Расчет по доходу заемщика'!$E$46,'Расчет по доходу заемщика'!$E$80))) -> 9200 | P72: =IF($N$62=$R$135,'Расчет по доходу заемщика'!$F$56,IF($N$62=$R$136,'Расчет по доходу заемщика'!$F$66,IF($N$62=$R$134,'Расчет по доходу заемщика'!$F$46,'Расчет по доходу заемщика'!$F$80))) -> 10197 | R72: =IF($N$62=$R$135,'Расчет по доходу заемщика'!$G$56,IF($N$62=$R$136,'Расчет по доходу заемщика'!$G$66,IF($N$62=$R$134,'Расчет по доходу заемщика'!$G$46,'Расчет по доходу заемщика'!$G$80))) -> 9025 | T72: =IF($N$62=$R$135,'Расчет по доходу заемщика'!$H$56,IF($N$62=$R$136,'Расчет по доходу заемщика'!$H$66,IF($N$62=$R$134,'Расчет по доходу заемщика'!$H$46,'Расчет по доходу заемщика'!$H$80))) -> 8408 | V72: =IF($N$62=$R$135,'Расчет по доходу заемщика'!$I$56,IF($N$62=$R$136,'Расчет по доходу заемщика'!$I$66,IF($N$62=$R$134,'Расчет по доходу заемщика'!$I$46,'Расчет по доходу заемщика'!$I$80))) -> 8056
M73: Платеж после получения МСК | N73: =IF($N$62=$R$135,'Расчет по доходу заемщика'!$E$57,IF($N$62=$R$136,'Расчет по доходу заемщика'!$E$67,IF($N$62=$R$134,'Расчет по доходу заемщика'!$E$47,'Расчет по доходу заемщика'!$E$81))) -> 9200 | P73: =IF($N$62=$R$135,'Расчет по доходу заемщика'!$F$57,IF($N$62=$R$136,'Расчет по доходу заемщика'!$F$67,IF($N$62=$R$134,'Расчет по доходу заемщика'!$F$47,'Расчет по доходу заемщика'!$F$81))) -> 10197 | R73: =IF($N$62=$R$135,'Расчет по доходу заемщика'!$G$57,IF($N$62=$R$136,'Расчет по доходу заемщика'!$G$67,IF($N$62=$R$134,'Расчет по доходу заемщика'!$G$47,'Расчет по доходу заемщика'!$G$81))) -> 9025 | T73: =IF($N$62=$R$135,'Расчет по доходу заемщика'!$H$57,IF($N$62=$R$136,'Расчет по доходу заемщика'!$H$67,IF($N$62=$R$134,'Расчет по доходу заемщика'!$H$47,'Расчет по доходу заемщика'!$H$81))) -> 8408 | V73: =IF($N$62=$R$135,'Расчет по доходу заемщика'!$I$57,IF($N$62=$R$136,'Расчет по доходу заемщика'!$I$67,IF($N$62=$R$134,'Расчет по доходу заемщика'!$I$47,'Расчет по доходу заемщика'!$I$81))) -> 8056
M74: Максимальный платеж | N74: =IF($N$62=$R$137,$P$55,'Расчет по доходу заемщика'!$E$23) -> 31000 | P74: =IF($N$62=$R$137,$P$55,'Расчет по доходу заемщика'!$E$23) -> 31000 | R74: =IF($N$62=$R$137,$P$55,'Расчет по доходу заемщика'!$E$23) -> 31000 | T74: =IF($N$62=$R$137,$P$55,'Расчет по доходу заемщика'!$E$23) -> 31000 | V74: =IF($N$62=$R$137,$P$55,'Расчет по доходу заемщика'!$E$23) -> 31000
M75: ="Прогноз переплата за весь срок"&IF(P16="да"," при погашении долга на сумму МСК","") -> Прогноз переплата за весь срок | N75: =IF($P$20="нет",IF($N$62=$R$135,'Расчет по доходу заемщика'!$E$55,IF($N$62=$R$136,'Расчет по доходу заемщика'!$E$65,IF($N$62=$R$134,'Расчет по доходу заемщика'!$E$45,'Расчет по доходу заемщика'!$E$79))),График_польз.срок!$D$8) -> 1097600 | P75: =IF($P$20="нет",IF($N$62=$R$135,'Расчет по доходу заемщика'!$F$55,IF($N$62=$R$136,'Расчет по доходу заемщика'!$F$65,IF($N$62=$R$134,'Расчет по доходу заемщика'!$F$45,'Расчет по доходу заемщика'!$F$79))),График_180!$D$8) -> 835460 | R75: =IF($P$20="нет",IF($N$62=$R$135,'Расчет по доходу заемщика'!$G$55,IF($N$62=$R$136,'Расчет по доходу заемщика'!$G$65,IF($N$62=$R$134,'Расчет по доходу заемщика'!$G$45,'Расчет по доходу заемщика'!$G$79))),График_240!$D$8) -> 1166000 | T75: =IF($P$20="нет",IF($N$62=$R$135,'Расчет по доходу заемщика'!$H$55,IF($N$62=$R$136,'Расчет по доходу заемщика'!$H$65,IF($N$62=$R$134,'Расчет по доходу заемщика'!$G$45,'Расчет по доходу заемщика'!$G$79))),График_300!$D$8) -> 1522400 | V75: =IF($P$20="нет",IF($N$62=$R$135,'Расчет по доходу заемщика'!$I$55,IF($N$62=$R$136,'Расчет по доходу заемщика'!$I$65,IF($N$62=$R$134,'Расчет по доходу заемщика'!$I$45,'Расчет по доходу заемщика'!$I$79))),График_360!$D$8) -> 1900160
M115: Ипотечный продукт | P115: Классификация кредитной истории | R115: Выпадающий список (да/нет) | V115: Работа по найму | Z115: Вариант работы
M116: Приобретение готового жилья | P116: Положительная | R116: ДА | V116: Предприниматель | Z116: Рефинансирование | AB116: Агентская технология
M117: Приобретение жилья на этапе строительства | P117: Неопределенная | R117: НЕТ | V117: Владелец компании | AB117: Рефинансирование
M118: Семейная ипотека с гос.поддержкой
M119: Перекредитование
M120: Целевой кредит под залог имеющейся квартиры
M123: Прожиточный минимум в регионе
M124: Алтайский край | N124: 9542 | R124: Основания для вычетов к ставке
M125: Амурская область | N125: 12176 | R125: НЕТ
M126: Архангельская область | N126: 12377 | R126: З ребенка в семье
M127: Астраханская область | N127: 9741 | R127: Программа ЖРС
M128: Белгородская область | N128: 8837 | R128: Квартира в ДФО
M129: Брянская область | N129: 9916 | R129: Квартира в Байкальском регионе
M130: Владимирская область | N130: 10070 | R130: Квартира АИЖК
M131: Волгоградская область | N131: 9858 | R131: =IF($Z$116=$AB$116,"Социальная ипотека Московской области","") -> 
M132: Вологодская область | N132: 11192
M133: Воронежская область | N133: 8960 | R133: Параметр расчета
M134: г.Москва | N134: 17642 | R134: По доходу заемщика
M135: г.Санкт-Петербург | N135: 11659 | R135: По сумме кредита
M136: Еврейская авт.область | N136: 13402 | R136: По стоимости жилья
M137: Забайкальский край | N137: 11103 | R137: По максимальному платежу
M138: Ивановская область | N138: 10378
M139: Иркутская область | N139: 10506
M140: Кабардино-Балкарская Республика | N140: 11169
M141: Калининградская область | N141: 10922
L142: TRUE | M142: Калужская область | N142: 10387
L143: FALSE | M143: Камчатский край | N143: 20394
M144: Карачаево-Черкесская Республика | N144: 9535
M145: Кемеровская область | N145: 9531
M146: Кировская область | N146: 9943
M147: Костромская область | N147: 10270
M148: Краснодарский край | N148: 10685
M149: Красноярский край | N149: 11787
M150: Курганская область | N150: 10069
M151: Курская область | N151: 9254
M152: Ленинградская область | N152: 9908
M153: Липецкая область | N153: 9050
M154: Магаданская область | N154: 18983
M155: Московская область | N155: 12495
M156: Мурманская область | N156: 14632
M157: Ненецкий авт.округ | N157: 21642
M158: Нижегородская область | N158: 9630
M159: Новгородская область | N159: 10851
M160: Новосибирская область | N160: 11233
M161: Омская область | N161: 9222
M162: Оренбургская область | N162: 9007
M163: Орловская область | N163: 9694
M164: Пензенская область | N164: 9182
M165: Пермский край | N165: 10278
M166: Приморский край | N166: 13223
M167: Псковская область | N167: 11234
M168: Республика Адыгея | N168: 9458
M169: Республика Алтай | N169: 9890
M170: Республика Башкортостан | N170: 9142
M171: Республика Бурятия | N171: 9967
M172: Республика Дагестан | N172: 9562
M173: Республика Ингушетия | N173: 9246
M174: Республика Калмыкия | N174: 8899
M175: Республика Карелия | N175: 13389
M176: Республика Коми | N176: 12914
M177: Республика Марий Эл | N177: 9535
M178: Республика Мордовия | N178: 8659
M179: Республика Саха (Якутия) | N179: 17388
M180: Республика Северная Осетия - Алания | N180: 9464
M181: Республика Татарстан | N181: 8848
M182: Республика Тыва | N182: 9991
M183: Республика Хакасия | N183: 9647
M184: Ростовская область | N184: 10232
M185: Рязанская область | N185: 9614
M186: Самарская область | N186: 10691
M187: Саратовская область | N187: 9153
M188: Сахалинская область | N188: 14637
M189: Свердловская область | N189: 10653
M190: Смоленская область | N190: 10516
M191: Ставропольский край | N191: 8997
M192: Тамбовская область | N192: 9116
M193: Тверская область | N193: 10579
M194: Томская область | N194: 10997
M195: Тульская область | N195: 9897
M196: Тюменская область | N196: 10674
M197: Удмуртская Республика | N197: 9075
M198: Ульяновская область | N198: 9900
M199: Хабаровский край | N199: 13799
M200: Ханты-Мансийский авт.округ - Югра | N200: 15427
M201: Челябинская область | N201: 9945
M202: Чеченская Республика | N202: 10080
M203: Чувашская Республика | N203: 8931
M204: Чукотский авт.округ | N204: 20157
M205: Ямало-Ненецкий авт.округ | N205: 16603
M206: Ярославская область | N206: 10004

Sheet Параметры (hidden)
B2: Ипотечный калькулятор "Переменная ставка"
D4: ФИО
D6: Договор №
D8: Дата договора
D12: Расчетные параметры
D14: Дата выдачи кредита (займа) | H14: 2016-08-01
C18: Расчет платежей
D20: Размер кредита (займа) | H20: 900000 | J20: руб.
D22: Срок кредита (займа) для указания в КД/ДЗ | H22: 360 | J22: мес.
D24: Фактический срок кредита (займа) | H24: 166 | J24: мес.
D26: Наличие личного страхования | H26: Да
D28: Справка о доходах по форме кредитора | H28: Нет
D30: Ставка для расчета размера платежа (ставка базового ипотечного продукта с фиксированной ставкой при аналогичных условиях (цель кредитования, сумма, срок, наличие/отсутствие личного страхования, коэффициент К/З) | H30: 0.11
D31: ВНИМАНИЕ!!! при отсутствии личного страхования на дату выдачи кредита/займа необходимо самостоятельно указать корректный размер ставки (с учетом надбавки) в вышеуказанном поле
D36: Номер периода: 166, остаток задолженности: 0 руб.
H39: 166

Sheet Печать (hidden)
A1: ГРАФИК ЕЖЕМЕСЯЧНЫХ ПЛАТЕЖЕЙ ПО КРЕДИТУ (ЗАЙМУ) с опцией "Переменная ставка"
D3: ФИО заемщика
D4: Договор №
D5: Дата договора
D6: Сумма кредита (займа) | H6: =SubsCredSumm -> 900000 | J6: руб.
D7: Дата выдачи кредита (займа) | H7: =GiveDate -> 2016-08-01
D8: Процентная ставка на момент выдачи | H8: 0.1066 | J8: годовых
D9: Срок кредита (займа) | H9: =Параметры!H22 -> 360 | J9: мес.
D11: Расчетная дата | H11: ???
D12: Нак. взнос в 2016 году | H12: 0 | J12: руб.
D13: Размер ежемесячного платежа | H13: 28304 | J13: руб.
A15: Процентный период | B15: Последняя дата процентного периода | C15: Количес-тво дней в процент-ном периоде | D15: Процентная ставка | E15: Ожидаемый задолженность на начало периода, руб. | G15: Ежемесяч-ный платеж | H15: Начисление % на ОД, руб. | I15: Погашение %, руб. | J15: Погашение | L15: Накопленные проценты за период, руб. | M15: Ожидаемый задолженность на конец периода, руб.
E16: Ожидаемый ОСЗ | F16: Плановая НПЗ | J16: ОД, руб. | K16: НПЗ, руб. | M16: Ожидаемый ОСЗ | N16: Плановая НПЗ | O16: Всего
A17: 1 | B17: 2 | C17: 3 | D17: 4 | E17: 5 | F17: 6 | G17: 7 | H17: 8 | I17: 9 | J17: 10 | K17: 11 | L17: 12 | M17: 13 | N17: 14 | O17: 15
A18: 1 | B18: 2016-08-31 | C18: 14 | D18: 0.1116 | E18: 2600000 | F18: 0 | G18: 0 | H18: 11099.02 | I18: 0 | K18: 0 | L18: 0 | M18: 2600000 | N18: 0 | O18: 2600000
A19: 2 | B19: 2016-09-30 | C19: 30 | D19: 0.1066 | E19: 2600000 | F19: 0 | G19: 39403.02 | H19: 22718.03 | I19: 33817.05 | J19: 5585.97 | K19: 0 | L19: 0 | M19: 2594414.03 | N19: 0 | O19: 2594414.03
A20: 3 | B20: 2016-10-31 | C20: 31 | D20: 0.1066 | E20: 2594414.03 | F20: 0 | G20: 28304 | H20: 23424.87 | I20: 23424.87 | J20: 4879.13 | K20: 0 | L20: 0 | M20: 2589534.9 | N20: 0 | O20: 2589534.9
A21: 4 | B21: 2016-11-30 | C21: 30 | D21: 0.1066 | E21: 2589534.9 | F21: 0 | G21: 28304 | H21: 22626.59 | I21: 22626.59 | J21: 5677.41 | K21: 0 | L21: 0 | M21: 2583857.49 | N21: 0 | O21: 2583857.49
A22: 5 | B22: 2016-12-31 | C22: 31 | D22: 0.1066 | E22: 2583857.49 | F22: 0 | G22: 28304 | H22: 23329.55 | I22: 23329.55 | J22: 4974.45 | K22: 0 | L22: 0 | M22: 2578883.04 | N22: 0 | O22: 2578883.04
A23: 6 | B23: 2017-01-31 | C23: 31 | D23: 0.094 | E23: 2578883.04 | F23: 0 | G23: 28304 | H23: 20588.67 | I23: 20588.67 | J23: 7715.33 | K23: 0 | L23: 0 | M23: 2571167.71 | N23: 0 | O23: 2571167.71
A24: 7 | B24: 2017-02-28 | C24: 28 | D24: 0.094 | E24: 2571167.71 | F24: 0 | G24: 28304 | H24: 18540.58 | I24: 18540.58 | J24: 9763.42 | K24: 0 | L24: 0 | M24: 2561404.29 | N24: 0 | O24: 2561404.29
A25: 8 | B25: 2017-03-31 | C25: 31 | D25: 0.094 | E25: 2561404.29 | F25: 0 | G25: 28304 | H25: 20449.13 | I25: 20449.13 | J25: 7854.87 | K25: 0 | L25: 0 | M25: 2553549.42 | N25: 0 | O25: 2553549.42
A26: 9 | B26: 2017-04-30 | C26: 30 | D26: 0.094 | E26: 2553549.42 | F26: 0 | G26: 28304 | H26: 19728.79 | I26: 19728.79 | J26: 8575.21 | K26: 0 | L26: 0 | M26: 2544974.21 | N26: 0 | O26: 2544974.21
A27: 10 | B27: 2017-05-31 | C27: 31 | D27: 0.094 | E27: 2544974.21 | F27: 0 | G27: 28304 | H27: 20317.96 | I27: 20317.96 | J27: 7986.04 | K27: 0 | L27: 0 | M27: 2536988.17 | N27: 0 | O27: 2536988.17
A28: 11 | B28: 2017-06-30 | C28: 30 | D28: 0.094 | E28: 2536988.17 | F28: 0 | G28: 28304 | H28: 19600.84 | I28: 19600.84 | J28: 8703.16 | K28: 0 | L28: 0 | M28: 2528285.01 | N28: 0 | O28: 2528285.01
A29: 12 | B29: 2017-07-31 | C29: 31 | D29: 0.094 | E29: 2528285.01 | F29: 0 | G29: 28304 | H29: 20184.72 | I29: 20184.72 | J29: 8119.28 | K29: 0 | L29: 0 | M29: 2520165.73 | N29: 0 | O29: 2520165.73
A30: 13 | B30: 2017-08-31 | C30: 31 | D30: 0.094 | E30: 2520165.73 | F30: 0 | G30: 28304 | H30: 20119.9 | I30: 20119.9 | J30: 8184.1 | K30: 0 | L30: 0 | M30: 2511981.63 | N30: 0 | O30: 2511981.63
A31: 14 | B31: 2017-09-30 | C31: 30 | D31: 0.094 | E31: 2511981.63 | F31: 0 | G31: 28304 | H31: 19407.64 | I31: 19407.64 | J31: 8896.36 | K31: 0 | L31: 0 | M31: 2503085.27 | N31: 0 | O31: 2503085.27
A32: 15 | B32: 2017-10-31 | C32: 31 | D32: 0.094 | E32: 2503085.27 | F32: 0 | G32: 28304 | H32: 19983.54 | I32: 19983.54 | J32: 8320.46 | K32: 0 | L32: 0 | M32: 2494764.81 | N32: 0 | O32: 2494764.81
A33: 16 | B33: 2017-11-30 | C33: 30 | D33: 0.094 | E33: 2494764.81 | F33: 0 | G33: 28304 | H33: 19274.62 | I33: 19274.62 | J33: 9029.38 | K33: 0 | L33: 0 | M33: 2485735.43 | N33: 0 | O33: 2485735.43
A34: 17 | B34: 2017-12-31 | C34: 31 | D34: 0.094 | E34: 2485735.43 | F34: 0 | G34: 28304 | H34: 19845.02 | I34: 19845.02 | J34: 8458.98 | K34: 0 | L34: 0 | M34: 2477276.45 | N34: 0 | O34: 2477276.45
A35: 18 | B35: 2018-01-31 | C35: 31 | D35: 0.094 | E35: 2477276.45 | F35: 0 | G35: 28304 | H35: 19777.49 | I35: 19777.49 | J35: 8526.51 | K35: 0 | L35: 0 | M35: 2468749.94 | N35: 0 | O35: 2468749.94
A36: 19 | B36: 2018-02-28 | C36: 28 | D36: 0.094 | E36: 2468749.94 | F36: 0 | G36: 28304 | H36: 17802.05 | I36: 17802.05 | J36: 10501.95 | K36: 0 | L36: 0 | M36: 2458247.99 | N36: 0 | O36: 2458247.99
A37: 20 | B37: 2018-03-31 | C37: 31 | D37: 0.094 | E37: 2458247.99 | F37: 0 | G37: 28304 | H37: 19625.57 | I37: 19625.57 | J37: 8678.43 | K37: 0 | L37: 0 | M37: 2449569.56 | N37: 0 | O37: 2449569.56
A38: 21 | B38: 2018-04-30 | C38: 30 | D38: 0.094 | E38: 2449569.56 | F38: 0 | G38: 28304 | H38: 18925.44 | I38: 18925.44 | J38: 9378.56 | K38: 0 | L38: 0 | M38: 2440191 | N38: 0 | O38: 2440191
A39: 22 | B39: 2018-05-31 | C39: 31 | D39: 0.094 | E39: 2440191 | F39: 0 | G39: 28304 | H39: 19481.42 | I39: 19481.42 | J39: 8822.58 | K39: 0 | L39: 0 | M39: 2431368.42 | N39: 0 | O39: 2431368.42
A40: 23 | B40: 2018-06-30 | C40: 30 | D40: 0.094 | E40: 2431368.42 | F40: 0 | G40: 28304 | H40: 18784.82 | I40: 18784.82 | J40: 9519.18 | K40: 0 | L40: 0 | M40: 2421849.24 | N40: 0 | O40: 2421849.24
A41: 24 | B41: 2018-07-31 | C41: 31 | D41: 0.094 | E41: 2421849.24 | F41: 0 | G41: 28304 | H41: 19334.98 | I41: 19334.98 | J41: 8969.02 | K41: 0 | L41: 0 | M41: 2412880.22 | N41: 0 | O41: 2412880.22
A42: 25 | B42: 2018-08-31 | C42: 31 | D42: 0.094 | E42: 2412880.22 | F42: 0 | G42: 28304 | H42: 19263.38 | I42: 19263.38 | J42: 9040.62 | K42: 0 | L42: 0 | M42: 2403839.6 | N42: 0 | O42: 2403839.6
A43: 26 | B43: 2018-09-30 | C43: 30 | D43: 0.094 | E43: 2403839.6 | F43: 0 | G43: 28304 | H43: 18572.13 | I43: 18572.13 | J43: 9731.87 | K43: 0 | L43: 0 | M43: 2394107.73 | N43: 0 | O43: 2394107.73
A44: 27 | B44: 2018-10-31 | C44: 31 | D44: 0.094 | E44: 2394107.73 | F44: 0 | G44: 28304 | H44: 19113.51 | I44: 19113.51 | J44: 9190.49 | K44: 0 | L44: 0 | M44: 2384917.24 | N44: 0 | O44: 2384917.24
A45: 28 | B45: 2018-11-30 | C45: 30 | D45: 0.094 | E45: 2384917.24 | F45: 0 | G45: 28304 | H45: 18425.94 | I45: 18425.94 | J45: 9878.06 | K45: 0 | L45: 0 | M45: 2375039.18 | N45: 0 | O45: 2375039.18
A46: 29 | B46: 2018-12-31 | C46: 31 | D46: 0.094 | E46: 2375039.18 | F46: 0 | G46: 28304 | H46: 18961.27 | I46: 18961.27 | J46: 9342.73 | K46: 0 | L46: 0 | M46: 2365696.45 | N46: 0 | O46: 2365696.45
A47: 30 | B47: 2019-01-31 | C47: 31 | D47: 0.094 | E47: 2365696.45 | F47: 0 | G47: 28304 | H47: 18886.68 | I47: 18886.68 | J47: 9417.32 | K47: 0 | L47: 0 | M47: 2356279.13 | N47: 0 | O47: 2356279.13
A48: 31 | B48: 2019-02-28 | C48: 28 | D48: 0.094 | E48: 2356279.13 | F48: 0 | G48: 28304 | H48: 16991.03 | I48: 16991.03 | J48: 11312.97 | K48: 0 | L48: 0 | M48: 2344966.16 | N48: 0 | O48: 2344966.16
A49: 32 | B49: 2019-03-31 | C49: 31 | D49: 0.094 | E49: 2344966.16 | F49: 0 | G49: 28304 | H49: 18721.18 | I49: 18721.18 | J49: 9582.82 | K49: 0 | L49: 0 | M49: 2335383.34 | N49: 0 | O49: 2335383.34
A50: 33 | B50: 2019-04-30 | C50: 30 | D50: 0.094 | E50: 2335383.34 | F50: 0 | G50: 28304 | H50: 18043.24 | I50: 18043.24 | J50: 10260.76 | K50: 0 | L50: 0 | M50: 2325122.58 | N50: 0 | O50: 2325122.58
A51: 34 | B51: 2019-05-31 | C51: 31 | D51: 0.094 | E51: 2325122.58 | F51: 0 | G51: 28304 | H51: 18562.76 | I51: 18562.76 | J51: 9741.24 | K51: 0 | L51: 0 | M51: 2315381.34 | N51: 0 | O51: 2315381.34
A52: 35 | B52: 2019-06-30 | C52: 30 | D52: 0.094 | E52: 2315381.34 | F52: 0 | G52: 28304 | H52: 17888.7 | I52: 17888.7 | J52: 10415.3 | K52: 0 | L52: 0 | M52: 2304966.04 | N52: 0 | O52: 2304966.04
A53: 36 | B53: 2019-07-31 | C53: 31 | D53: 0.094 | E53: 2304966.04 | F53: 0 | G53: 28304 | H53: 18401.84 | I53: 18401.84 | J53: 9902.16 | K53: 0 | L53: 0 | M53: 2295063.88 | N53: 0 | O53: 2295063.88
A54: 37 | B54: 2019-08-31 | C54: 31 | D54: 0.094 | E54: 2295063.88 | F54: 0 | G54: 28304 | H54: 18322.78 | I54: 18322.78 | J54: 9981.22 | K54: 0 | L54: 0 | M54: 2285082.66 | N54: 0 | O54: 2285082.66
A55: 38 | B55: 2019-09-30 | C55: 30 | D55: 0.094 | E55: 2285082.66 | F55: 0 | G55: 28304 | H55: 17654.61 | I55: 17654.61 | J55: 10649.39 | K55: 0 | L55: 0 | M55: 2274433.27 | N55: 0 | O55: 2274433.27
A56: 39 | B56: 2019-10-31 | C56: 31 | D56: 0.094 | E56: 2274433.27 | F56: 0 | G56: 28304 | H56: 18158.08 | I56: 18158.08 | J56: 10145.92 | K56: 0 | L56: 0 | M56: 2264287.35 | N56: 0 | O56: 2264287.35
A57: 40 | B57: 2019-11-30 | C57: 30 | D57: 0.094 | E57: 2264287.35 | F57: 0 | G57: 28304 | H57: 17493.95 | I57: 17493.95 | J57: 10810.05 | K57: 0 | L57: 0 | M57: 2253477.3 | N57: 0 | O57: 2253477.3
A58: 41 | B58: 2019-12-31 | C58: 31 | D58: 0.094 | E58: 2253477.3 | F58: 0 | G58: 28304 | H58: 17990.77 | I58: 17990.77 | J58: 10313.23 | K58: 0 | L58: 0 | M58: 2243164.07 | N58: 0 | O58: 2243164.07
A59: 42 | B59: 2020-01-31 | C59: 31 | D59: 0.094 | E59: 2243164.07 | F59: 0 | G59: 28304 | H59: 17859.51 | I59: 17859.51 | J59: 10444.49 | K59: 0 | L59: 0 | M59: 2232719.58 | N59: 0 | O59: 2232719.58
A60: 43 | B60: 2020-02-29 | C60: 29 | D60: 0.094 | E60: 2232719.58 | F60: 0 | G60: 28304 | H60: 16629.49 | I60: 16629.49 | J60: 11674.51 | K60: 0 | L60: 0 | M60: 2221045.07 | N60: 0 | O60: 2221045.07
A61: 44 | B61: 2020-03-31 | C61: 31 | D61: 0.094 | E61: 2221045.07 | F61: 0 | G61: 28304 | H61: 17683.4 | I61: 17683.4 | J61: 10620.6 | K61: 0 | L61: 0 | M61: 2210424.47 | N61: 0 | O61: 2210424.47
A62: 45 | B62: 2020-04-30 | C62: 30 | D62: 0.094 | E62: 2210424.47 | F62: 0 | G62: 28304 | H62: 17031.14 | I62: 17031.14 | J62: 11272.86 | K62: 0 | L62: 0 | M62: 2199151.61 | N62: 0 | O62: 2199151.61
A63: 46 | B63: 2020-05-31 | C63: 31 | D63: 0.094 | E63: 2199151.61 | F63: 0 | G63: 28304 | H63: 17509.09 | I63: 17509.09 | J63: 10794.91 | K63: 0 | L63: 0 | M63: 2188356.7 | N63: 0 | O63: 2188356.7
A64: 47 | B64: 2020-06-30 | C64: 30 | D64: 0.094 | E64: 2188356.7 | F64: 0 | G64: 28304 | H64: 16861.11 | I64: 16861.11 | J64: 11442.89 | K64: 0 | L64: 0 | M64: 2176913.81 | N64: 0 | O64: 2176913.81
A65: 48 | B65: 2020-07-31 | C65: 31 | D65: 0.094 | E65: 2176913.81 | F65: 0 | G65: 28304 | H65: 17332.04 | I65: 17332.04 | J65: 10971.96 | K65: 0 | L65: 0 | M65: 2165941.85 | N65: 0 | O65: 2165941.85
A66: 49 | B66: 2020-08-31 | C66: 31 | D66: 0.094 | E66: 2165941.85 | F66: 0 | G66: 28304 | H66: 17244.68 | I66: 17244.68 | J66: 11059.32 | K66: 0 | L66: 0 | M66: 2154882.53 | N66: 0 | O66: 2154882.53
A67: 50 | B67: 2020-09-30 | C67: 30 | D67: 0.094 | E67: 2154882.53 | F67: 0 | G67: 28304 | H67: 16603.19 | I67: 16603.19 | J67: 11700.81 | K67: 0 | L67: 0 | M67: 2143181.72 | N67: 0 | O67: 2143181.72
A68: 51 | B68: 2020-10-31 | C68: 31 | D68: 0.094 | E68: 2143181.72 | F68: 0 | G68: 28304 | H68: 17063.47 | I68: 17063.47 | J68: 11240.53 | K68: 0 | L68: 0 | M68: 2131941.19 | N68: 0 | O68: 2131941.19
A69: 52 | B69: 2020-11-30 | C69: 30 | D69: 0.094 | E69: 2131941.19 | F69: 0 | G69: 28304 | H69: 16426.43 | I69: 16426.43 | J69: 11877.57 | K69: 0 | L69: 0 | M69: 2120063.62 | N69: 0 | O69: 2120063.62
A70: 53 | B70: 2020-12-31 | C70: 31 | D70: 0.094 | E70: 2120063.62 | F70: 0 | G70: 28304 | H70: 16879.41 | I70: 16879.41 | J70: 11424.59 | K70: 0 | L70: 0 | M70: 2108639.03 | N70: 0 | O70: 2108639.03
A71: 54 | B71: 2021-01-31 | C71: 31 | D71: 0.094 | E71: 2108639.03 | F71: 0 | G71: 28304 | H71: 16834.45 | I71: 16834.45 | J71: 11469.55 | K71: 0 | L71: 0 | M71: 2097169.48 | N71: 0 | O71: 2097169.48
A72: 55 | B72: 2021-02-28 | C72: 28 | D72: 0.094 | E72: 2097169.48 | F72: 0 | G72: 28304 | H72: 15122.6 | I72: 15122.6 | J72: 13181.4 | K72: 0 | L72: 0 | M72: 2083988.08 | N72: 0 | O72: 2083988.08
A73: 56 | B73: 2021-03-31 | C73: 31 | D73: 0.094 | E73: 2083988.08 | F73: 0 | G73: 28304 | H73: 16637.65 | I73: 16637.65 | J73: 11666.35 | K73: 0 | L73: 0 | M73: 2072321.73 | N73: 0 | O73: 2072321.73
A74: 57 | B74: 2021-04-30 | C74: 30 | D74: 0.094 | E74: 2072321.73 | F74: 0 | G74: 28304 | H74: 16010.81 | I74: 16010.81 | J74: 12293.19 | K74: 0 | L74: 0 | M74: 2060028.54 | N74: 0 | O74: 2060028.54
A75: 58 | B75: 2021-05-31 | C75: 31 | D75: 0.094 | E75: 2060028.54 | F75: 0 | G75: 28304 | H75: 16446.36 | I75: 16446.36 | J75: 11857.64 | K75: 0 | L75: 0 | M75: 2048170.9 | N75: 0 | O75: 2048170.9
A76: 59 | B76: 2021-06-30 | C76: 30 | D76: 0.094 | E76: 2048170.9 | F76: 0 | G76: 28304 | H76: 15824.22 | I76: 15824.22 | J76: 12479.78 | K76: 0 | L76: 0 | M76: 2035691.12 | N76: 0 | O76: 2035691.12
A77: 60 | B77: 2021-07-31 | C77: 31 | D77: 0.094 | E77: 2035691.12 | F77: 0 | G77: 28304 | H77: 16252.07 | I77: 16252.07 | J77: 12051.93 | K77: 0 | L77: 0 | M77: 2023639.19 | N77: 0 | O77: 2023639.19
A78: 61 | B78: 2021-08-31 | C78: 31 | D78: 0.094 | E78: 2023639.19 | F78: 0 | G78: 28304 | H78: 16155.85 | I78: 16155.85 | J78: 12148.15 | K78: 0 | L78: 0 | M78: 2011491.04 | N78: 0 | O78: 2011491.04
A79: 62 | B79: 2021-09-30 | C79: 30 | D79: 0.094 | E79: 2011491.04 | F79: 0 | G79: 28304 | H79: 15540.83 | I79: 15540.83 | J79: 12763.17 | K79: 0 | L79: 0 | M79: 1998727.87 | N79: 0 | O79: 1998727.87
A80: 63 | B80: 2021-10-31 | C80: 31 | D80: 0.094 | E80: 1998727.87 | F80: 0 | G80: 28304 | H80: 15956.97 | I80: 15956.97 | J80: 12347.03 | K80: 0 | L80: 0 | M80: 1986380.84 | N80: 0 | O80: 1986380.84
A81: 64 | B81: 2021-11-30 | C81: 30 | D81: 0.094 | E81: 1986380.84 | F81: 0 | G81: 28304 | H81: 15346.83 | I81: 15346.83 | J81: 12957.17 | K81: 0 | L81: 0 | M81: 1973423.67 | N81: 0 | O81: 1973423.67
A82: 65 | B82: 2021-12-31 | C82: 31 | D82: 0.094 | E82: 1973423.67 | F82: 0 | G82: 28304 | H82: 15754.95 | I82: 15754.95 | J82: 12549.05 | K82: 0 | L82: 0 | M82: 1960874.62 | N82: 0 | O82: 1960874.62
A83: 66 | B83: 2022-01-31 | C83: 31 | D83: 0.094 | E83: 1960874.62 | F83: 0 | G83: 28304 | H83: 15654.76 | I83: 15654.76 | J83: 12649.24 | K83: 0 | L83: 0 | M83: 1948225.38 | N83: 0 | O83: 1948225.38
A84: 67 | B84: 2022-02-28 | C84: 28 | D84: 0.094 | E84: 1948225.38 | F84: 0 | G84: 28304 | H84: 14048.57 | I84: 14048.57 | J84: 14255.43 | K84: 0 | L84: 0 | M84: 1933969.95 | N84: 0 | O84: 1933969.95
A85: 68 | B85: 2022-03-31 | C85: 31 | D85: 0.094 | E85: 1933969.95 | F85: 0 | G85: 28304 | H85: 15439.97 | I85: 15439.97 | J85: 12864.03 | K85: 0 | L85: 0 | M85: 1921105.92 | N85: 0 | O85: 1921105.92
A86: 69 | B86: 2022-04-30 | C86: 30 | D86: 0.094 | E86: 1921105.92 | F86: 0 | G86: 28304 | H86: 14842.52 | I86: 14842.52 | J86: 13461.48 | K86: 0 | L86: 0 | M86: 1907644.44 | N86: 0 | O86: 1907644.44
A87: 70 | B87: 2022-05-31 | C87: 31 | D87: 0.094 | E87: 1907644.44 | F87: 0 | G87: 28304 | H87: 15229.8 | I87: 15229.8 | J87: 13074.2 | K87: 0 | L87: 0 | M87: 1894570.24 | N87: 0 | O87: 1894570.24
A88: 71 | B88: 2022-06-30 | C88: 30 | D88: 0.094 | E88: 1894570.24 | F88: 0 | G88: 28304 | H88: 14637.5 | I88: 14637.5 | J88: 13666.5 | K88: 0 | L88: 0 | M88: 1880903.74 | N88: 0 | O88: 1880903.74
A89: 72 | B89: 2022-07-31 | C89: 31 | D89: 0.094 | E89: 1880903.74 | F89: 0 | G89: 28304 | H89: 15016.31 | I89: 15016.31 | J89: 13287.69 | K89: 0 | L89: 0 | M89: 1867616.05 | N89: 0 | O89: 1867616.05
A90: 73 | B90: 2022-08-31 | C90: 31 | D90: 0.094 | E90: 1867616.05 | F90: 0 | G90: 28304 | H90: 14910.23 | I90: 14910.23 | J90: 13393.77 | K90: 0 | L90: 0 | M90: 1854222.28 | N90: 0 | O90: 1854222.28
A91: 74 | B91: 2022-09-30 | C91: 30 | D91: 0.094 | E91: 1854222.28 | F91: 0 | G91: 28304 | H91: 14325.77 | I91: 14325.77 | J91: 13978.23 | K91: 0 | L91: 0 | M91: 1840244.05 | N91: 0 | O91: 1840244.05
A92: 75 | B92: 2022-10-31 | C92: 31 | D92: 0.094 | E92: 1840244.05 | F92: 0 | G92: 28304 | H92: 14691.7 | I92: 14691.7 | J92: 13612.3 | K92: 0 | L92: 0 | M92: 1826631.75 | N92: 0 | O92: 1826631.75
A93: 76 | B93: 2022-11-30 | C93: 30 | D93: 0.094 | E93: 1826631.75 | F93: 0 | G93: 28304 | H93: 14112.61 | I93: 14112.61 | J93: 14191.39 | K93: 0 | L93: 0 | M93: 1812440.36 | N93: 0 | O93: 1812440.36
A94: 77 | B94: 2022-12-31 | C94: 31 | D94: 0.094 | E94: 1812440.36 | F94: 0 | G94: 28304 | H94: 14469.73 | I94: 14469.73 | J94: 13834.27 | K94: 0 | L94: 0 | M94: 1798606.09 | N94: 0 | O94: 1798606.09
A95: 78 | B95: 2023-01-31 | C95: 31 | D95: 0.094 | E95: 1798606.09 | F95: 0 | G95: 28304 | H95: 14359.28 | I95: 14359.28 | J95: 13944.72 | K95: 0 | L95: 0 | M95: 1784661.37 | N95: 0 | O95: 1784661.37
A96: 79 | B96: 2023-02-28 | C96: 28 | D96: 0.094 | E96: 1784661.37 | F96: 0 | G96: 28304 | H96: 12869.12 | I96: 12869.12 | J96: 15434.88 | K96: 0 | L96: 0 | M96: 1769226.49 | N96: 0 | O96: 1769226.49
A97: 80 | B97: 2023-03-31 | C97: 31 | D97: 0.094 | E97: 1769226.49 | F97: 0 | G97: 28304 | H97: 14124.73 | I97: 14124.73 | J97: 14179.27 | K97: 0 | L97: 0 | M97: 1755047.22 | N97: 0 | O97: 1755047.22
A98: 81 | B98: 2023-04-30 | C98: 30 | D98: 0.094 | E98: 1755047.22 | F98: 0 | G98: 28304 | H98: 13559.54 | I98: 13559.54 | J98: 14744.46 | K98: 0 | L98: 0 | M98: 1740302.76 | N98: 0 | O98: 1740302.76
A99: 82 | B99: 2023-05-31 | C99: 31 | D99: 0.094 | E99: 1740302.76 | F99: 0 | G99: 28304 | H99: 13893.81 | I99: 13893.81 | J99: 14410.19 | K99: 0 | L99: 0 | M99: 1725892.57 | N99: 0 | O99: 1725892.57
A100: 83 | B100: 2023-06-30 | C100: 30 | D100: 0.094 | E100: 1725892.57 | F100: 0 | G100: 28304 | H100: 13334.29 | I100: 13334.29 | J100: 14969.71 | K100: 0 | L100: 0 | M100: 1710922.86 | N100: 0 | O100: 1710922.86
A101: 84 | B101: 2023-07-31 | C101: 31 | D101: 0.094 | E101: 1710922.86 | F101: 0 | G101: 28304 | H101: 13659.26 | I101: 13659.26 | J101: 14644.74 | K101: 0 | L101: 0 | M101: 1696278.12 | N101: 0 | O101: 1696278.12
A102: 85 | B102: 2023-08-31 | C102: 31 | D102: 0.094 | E102: 1696278.12 | F102: 0 | G102: 28304 | H102: 13542.34 | I102: 13542.34 | J102: 14761.66 | K102: 0 | L102: 0 | M102: 1681516.46 | N102: 0 | O102: 1681516.46
A103: 86 | B103: 2023-09-30 | C103: 30 | D103: 0.094 | E103: 1681516.46 | F103: 0 | G103: 28304 | H103: 12991.44 | I103: 12991.44 | J103: 15312.56 | K103: 0 | L103: 0 | M103: 1666203.9 | N103: 0 | O103: 1666203.9
A104: 87 | B104: 2023-10-31 | C104: 31 | D104: 0.094 | E104: 1666203.9 | F104: 0 | G104: 28304 | H104: 13302.24 | I104: 13302.24 | J104: 15001.76 | K104: 0 | L104: 0 | M104: 1651202.14 | N104: 0 | O104: 1651202.14
A105: 88 | B105: 2023-11-30 | C105: 30 | D105: 0.094 | E105: 1651202.14 | F105: 0 | G105: 28304 | H105: 12757.23 | I105: 12757.23 | J105: 15546.77 | K105: 0 | L105: 0 | M105: 1635655.37 | N105: 0 | O105: 1635655.37
A106: 89 | B106: 2023-12-31 | C106: 31 | D106: 0.094 | E106: 1635655.37 | F106: 0 | G106: 28304 | H106: 13058.36 | I106: 13058.36 | J106: 15245.64 | K106: 0 | L106: 0 | M106: 1620409.73 | N106: 0 | O106: 1620409.73
A107: 90 | B107: 2024-01-31 | C107: 31 | D107: 0.094 | E107: 1620409.73 | F107: 0 | G107: 28304 | H107: 12901.29 | I107: 12901.29 | J107: 15402.71 | K107: 0 | L107: 0 | M107: 1605007.02 | N107: 0 | O107: 1605007.02
A108: 91 | B108: 2024-02-29 | C108: 29 | D108: 0.094 | E108: 1605007.02 | F108: 0 | G108: 28304 | H108: 11954.23 | I108: 11954.23 | J108: 16349.77 | K108: 0 | L108: 0 | M108: 1588657.25 | N108: 0 | O108: 1588657.25
A109: 92 | B109: 2024-03-31 | C109: 31 | D109: 0.094 | E109: 1588657.25 | F109: 0 | G109: 28304 | H109: 12648.49 | I109: 12648.49 | J109: 15655.51 | K109: 0 | L109: 0 | M109: 1573001.74 | N109: 0 | O109: 1573001.74
A110: 93 | B110: 2024-04-30 | C110: 30 | D110: 0.094 | E110: 1573001.74 | F110: 0 | G110: 28304 | H110: 12119.85 | I110: 12119.85 | J110: 16184.15 | K110: 0 | L110: 0 | M110: 1556817.59 | N110: 0 | O110: 1556817.59
A111: 94 | B111: 2024-05-31 | C111: 31 | D111: 0.094 | E111: 1556817.59 | F111: 0 | G111: 28304 | H111: 12394.99 | I111: 12394.99 | J111: 15909.01 | K111: 0 | L111: 0 | M111: 1540908.58 | N111: 0 | O111: 1540908.58
A112: 95 | B112: 2024-06-30 | C112: 30 | D112: 0.094 | E112: 1540908.58 | F112: 0 | G112: 28304 | H112: 11872.57 | I112: 11872.57 | J112: 16431.43 | K112: 0 | L112: 0 | M112: 1524477.15 | N112: 0 | O112: 1524477.15
A113: 96 | B113: 2024-07-31 | C113: 31 | D113: 0.094 | E113: 1524477.15 | F113: 0 | G113: 28304 | H113: 12137.5 | I113: 12137.5 | J113: 16166.5 | K113: 0 | L113: 0 | M113: 1508310.65 | N113: 0 | O113: 1508310.65
A114: 97 | B114: 2024-08-31 | C114: 31 | D114: 0.094 | E114: 1508310.65 | F114: 0 | G114: 28304 | H114: 12008.79 | I114: 12008.79 | J114: 16295.21 | K114: 0 | L114: 0 | M114: 1492015.44 | N114: 0 | O114: 1492015.44
A115: 98 | B115: 2024-09-30 | C115: 30 | D115: 0.094 | E115: 1492015.44 | F115: 0 | G115: 28304 | H115: 11495.86 | I115: 11495.86 | J115: 16808.14 | K115: 0 | L115: 0 | M115: 1475207.3 | N115: 0 | O115: 1475207.3
A116: 99 | B116: 2024-10-31 | C116: 31 | D116: 0.094 | E116: 1475207.3 | F116: 0 | G116: 28304 | H116: 11745.23 | I116: 11745.23 | J116: 16558.77 | K116: 0 | L116: 0 | M116: 1458648.53 | N116: 0 | O116: 1458648.53
A117: 100 | B117: 2024-11-30 | C117: 30 | D117: 0.094 | E117: 1458648.53 | F117: 0 | G117: 28304 | H117: 11238.77 | I117: 11238.77 | J117: 17065.23 | K117: 0 | L117: 0 | M117: 1441583.3 | N117: 0 | O117: 1441583.3
A118: 101 | B118: 2024-12-31 | C118: 31 | D118: 0.094 | E118: 1441583.3 | F118: 0 | G118: 28304 | H118: 11477.52 | I118: 11477.52 | J118: 16826.48 | K118: 0 | L118: 0 | M118: 1424756.82 | N118: 0 | O118: 1424756.82
A119: 102 | B119: 2025-01-31 | C119: 31 | D119: 0.094 | E119: 1424756.82 | F119: 0 | G119: 28304 | H119: 11374.63 | I119: 11374.63 | J119: 16929.37 | K119: 0 | L119: 0 | M119: 1407827.45 | N119: 0 | O119: 1407827.45
A120: 103 | B120: 2025-02-28 | C120: 28 | D120: 0.094 | E120: 1407827.45 | F120: 0 | G120: 28304 | H120: 10151.79 | I120: 10151.79 | J120: 18152.21 | K120: 0 | L120: 0 | M120: 1389675.24 | N120: 0 | O120: 1389675.24
A121: 104 | B121: 2025-03-31 | C121: 31 | D121: 0.094 | E121: 1389675.24 | F121: 0 | G121: 28304 | H121: 11094.56 | I121: 11094.56 | J121: 17209.44 | K121: 0 | L121: 0 | M121: 1372465.8 | N121: 0 | O121: 1372465.8
A122: 105 | B122: 2025-04-30 | C122: 30 | D122: 0.094 | E122: 1372465.8 | F122: 0 | G122: 28304 | H122: 10603.71 | I122: 10603.71 | J122: 17700.29 | K122: 0 | L122: 0 | M122: 1354765.51 | N122: 0 | O122: 1354765.51
A123: 106 | B123: 2025-05-31 | C123: 31 | D123: 0.094 | E123: 1354765.51 | F123: 0 | G123: 28304 | H123: 10815.85 | I123: 10815.85 | J123: 17488.15 | K123: 0 | L123: 0 | M123: 1337277.36 | N123: 0 | O123: 1337277.36
A124: 107 | B124: 2025-06-30 | C124: 30 | D124: 0.094 | E124: 1337277.36 | F124: 0 | G124: 28304 | H124: 10331.84 | I124: 10331.84 | J124: 17972.16 | K124: 0 | L124: 0 | M124: 1319305.2 | N124: 0 | O124: 1319305.2
A125: 108 | B125: 2025-07-31 | C125: 31 | D125: 0.094 | E125: 1319305.2 | F125: 0 | G125: 28304 | H125: 10532.75 | I125: 10532.75 | J125: 17771.25 | K125: 0 | L125: 0 | M125: 1301533.95 | N125: 0 | O125: 1301533.95
A126: 109 | B126: 2025-08-31 | C126: 31 | D126: 0.094 | E126: 1301533.95 | F126: 0 | G126: 28304 | H126: 10390.88 | I126: 10390.88 | J126: 17913.12 | K126: 0 | L126: 0 | M126: 1283620.83 | N126: 0 | O126: 1283620.83
A127: 110 | B127: 2025-09-30 | C127: 30 | D127: 0.094 | E127: 1283620.83 | F127: 0 | G127: 28304 | H127: 9917.29 | I127: 9917.29 | J127: 18386.71 | K127: 0 | L127: 0 | M127: 1265234.12 | N127: 0 | O127: 1265234.12
A128: 111 | B128: 2025-10-31 | C128: 31 | D128: 0.094 | E128: 1265234.12 | F128: 0 | G128: 28304 | H128: 10101.07 | I128: 10101.07 | J128: 18202.93 | K128: 0 | L128: 0 | M128: 1247031.19 | N128: 0 | O128: 1247031.19
A129: 112 | B129: 2025-11-30 | C129: 30 | D129: 0.094 | E129: 1247031.19 | F129: 0 | G129: 28304 | H129: 9634.6 | I129: 9634.6 | J129: 18669.4 | K129: 0 | L129: 0 | M129: 1228361.79 | N129: 0 | O129: 1228361.79
A130: 113 | B130: 2025-12-31 | C130: 31 | D130: 0.094 | E130: 1228361.79 | F130: 0 | G130: 28304 | H130: 9806.7 | I130: 9806.7 | J130: 18497.3 | K130: 0 | L130: 0 | M130: 1209864.49 | N130: 0 | O130: 1209864.49
A131: 114 | B131: 2026-01-31 | C131: 31 | D131: 0.094 | E131: 1209864.49 | F131: 0 | G131: 28304 | H131: 9659.03 | I131: 9659.03 | J131: 18644.97 | K131: 0 | L131: 0 | M131: 1191219.52 | N131: 0 | O131: 1191219.52
A132: 115 | B132: 2026-02-28 | C132: 28 | D132: 0.094 | E132: 1191219.52 | F132: 0 | G132: 28304 | H132: 8589.84 | I132: 8589.84 | J132: 19714.16 | K132: 0 | L132: 0 | M132: 1171505.36 | N132: 0 | O132: 1171505.36
A133: 116 | B133: 2026-03-31 | C133: 31 | D133: 0.094 | E133: 1171505.36 | F133: 0 | G133: 28304 | H133: 9352.79 | I133: 9352.79 | J133: 18951.21 | K133: 0 | L133: 0 | M133: 1152554.15 | N133: 0 | O133: 1152554.15
A134: 117 | B134: 2026-04-30 | C134: 30 | D134: 0.094 | E134: 1152554.15 | F134: 0 | G134: 28304 | H134: 8904.66 | I134: 8904.66 | J134: 19399.34 | K134: 0 | L134: 0 | M134: 1133154.81 | N134: 0 | O134: 1133154.81
A135: 118 | B135: 2026-05-31 | C135: 31 | D135: 0.094 | E135: 1133154.81 | F135: 0 | G135: 28304 | H135: 9046.61 | I135: 9046.61 | J135: 19257.39 | K135: 0 | L135: 0 | M135: 1113897.42 | N135: 0 | O135: 1113897.42
A136: 119 | B136: 2026-06-30 | C136: 30 | D136: 0.094 | E136: 1113897.42 | F136: 0 | G136: 28304 | H136: 8606 | I136: 8606 | J136: 19698 | K136: 0 | L136: 0 | M136: 1094199.42 | N136: 0 | O136: 1094199.42
A137: 120 | B137: 2026-07-31 | C137: 31 | D137: 0.094 | E137: 1094199.42 | F137: 0 | G137: 28304 | H137: 8735.61 | I137: 8735.61 | J137: 19568.39 | K137: 0 | L137: 0 | M137: 1074631.03 | N137: 0 | O137: 1074631.03
A138: 121 | B138: 2026-08-31 | C138: 31 | D138: 0.094 | E138: 1074631.03 | F138: 0 | G138: 28304 | H138: 8579.38 | I138: 8579.38 | J138: 19724.62 | K138: 0 | L138: 0 | M138: 1054906.41 | N138: 0 | O138: 1054906.41
A139: 122 | B139: 2026-09-30 | C139: 30 | D139: 0.094 | E139: 1054906.41 | F139: 0 | G139: 28304 | H139: 8150.24 | I139: 8150.24 | J139: 20153.76 | K139: 0 | L139: 0 | M139: 1034752.65 | N139: 0 | O139: 1034752.65
A140: 123 | B140: 2026-10-31 | C140: 31 | D140: 0.094 | E140: 1034752.65 | F140: 0 | G140: 28304 | H140: 8261.01 | I140: 8261.01 | J140: 20042.99 | K140: 0 | L140: 0 | M140: 1014709.66 | N140: 0 | O140: 1014709.66
A141: 124 | B141: 2026-11-30 | C141: 30 | D141: 0.094 | E141: 1014709.66 | F141: 0 | G141: 28304 | H141: 7839.67 | I141: 7839.67 | J141: 20464.33 | K141: 0 | L141: 0 | M141: 994245.33 | N141: 0 | O141: 994245.33
A142: 125 | B142: 2026-12-31 | C142: 31 | D142: 0.094 | E142: 994245.33 | F142: 0 | G142: 28304 | H142: 7937.62 | I142: 7937.62 | J142: 20366.38 | K142: 0 | L142: 0 | M142: 973878.95 | N142: 0 | O142: 973878.95
A143: 126 | B143: 2027-01-31 | C143: 31 | D143: 0.094 | E143: 973878.95 | F143: 0 | G143: 28304 | H143: 7775.02 | I143: 7775.02 | J143: 20528.98 | K143: 0 | L143: 0 | M143: 953349.97 | N143: 0 | O143: 953349.97
A144: 127 | B144: 2027-02-28 | C144: 28 | D144: 0.094 | E144: 953349.97 | F144: 0 | G144: 28304 | H144: 6874.57 | I144: 6874.57 | J144: 21429.43 | K144: 0 | L144: 0 | M144: 931920.54 | N144: 0 | O144: 931920.54
A145: 128 | B145: 2027-03-31 | C145: 31 | D145: 0.094 | E145: 931920.54 | F145: 0 | G145: 28304 | H145: 7440.05 | I145: 7440.05 | J145: 20863.95 | K145: 0 | L145: 0 | M145: 911056.59 | N145: 0 | O145: 911056.59
A146: 129 | B146: 2027-04-30 | C146: 30 | D146: 0.094 | E146: 911056.59 | F146: 0 | G146: 28304 | H146: 7038.85 | I146: 7038.85 | J146: 21265.15 | K146: 0 | L146: 0 | M146: 889791.44 | N146: 0 | O146: 889791.44
A147: 130 | B147: 2027-05-31 | C147: 31 | D147: 0.094 | E147: 889791.44 | F147: 0 | G147: 28304 | H147: 7103.7 | I147: 7103.7 | J147: 21200.3 | K147: 0 | L147: 0 | M147: 868591.14 | N147: 0 | O147: 868591.14
A148: 131 | B148: 2027-06-30 | C148: 30 | D148: 0.094 | E148: 868591.14 | F148: 0 | G148: 28304 | H148: 6710.76 | I148: 6710.76 | J148: 21593.24 | K148: 0 | L148: 0 | M148: 846997.9 | N148: 0 | O148: 846997.9
A149: 132 | B149: 2027-07-31 | C149: 31 | D149: 0.094 | E149: 846997.9 | F149: 0 | G149: 28304 | H149: 6762.06 | I149: 6762.06 | J149: 21541.94 | K149: 0 | L149: 0 | M149: 825455.96 | N149: 0 | O149: 825455.96
A150: 133 | B150: 2027-08-31 | C150: 31 | D150: 0.094 | E150: 825455.96 | F150: 0 | G150: 28304 | H150: 6590.08 | I150: 6590.08 | J150: 21713.92 | K150: 0 | L150: 0 | M150: 803742.04 | N150: 0 | O150: 803742.04
A151: 134 | B151: 2027-09-30 | C151: 30 | D151: 0.094 | E151: 803742.04 | F151: 0 | G151: 28304 | H151: 6209.73 | I151: 6209.73 | J151: 22094.27 | K151: 0 | L151: 0 | M151: 781647.77 | N151: 0 | O151: 781647.77
A152: 135 | B152: 2027-10-31 | C152: 31 | D152: 0.094 | E152: 781647.77 | F152: 0 | G152: 28304 | H152: 6240.33 | I152: 6240.33 | J152: 22063.67 | K152: 0 | L152: 0 | M152: 759584.1 | N152: 0 | O152: 759584.1
A153: 136 | B153: 2027-11-30 | C153: 30 | D153: 0.094 | E153: 759584.1 | F153: 0 | G153: 28304 | H153: 5868.57 | I153: 5868.57 | J153: 22435.43 | K153: 0 | L153: 0 | M153: 737148.67 | N153: 0 | O153: 737148.67
A154: 137 | B154: 2027-12-31 | C154: 31 | D154: 0.094 | E154: 737148.67 | F154: 0 | G154: 28304 | H154: 5885.07 | I154: 5885.07 | J154: 22418.93 | K154: 0 | L154: 0 | M154: 714729.74 | N154: 0 | O154: 714729.74
A155: 138 | B155: 2028-01-31 | C155: 31 | D155: 0.094 | E155: 714729.74 | F155: 0 | G155: 28304 | H155: 5690.5 | I155: 5690.5 | J155: 22613.5 | K155: 0 | L155: 0 | M155: 692116.24 | N155: 0 | O155: 692116.24
A156: 139 | B156: 2028-02-29 | C156: 29 | D156: 0.094 | E156: 692116.24 | F156: 0 | G156: 28304 | H156: 5154.94 | I156: 5154.94 | J156: 23149.06 | K156: 0 | L156: 0 | M156: 668967.18 | N156: 0 | O156: 668967.18
A157: 140 | B157: 2028-03-31 | C157: 31 | D157: 0.094 | E157: 668967.18 | F157: 0 | G157: 28304 | H157: 5326.15 | I157: 5326.15 | J157: 22977.85 | K157: 0 | L157: 0 | M157: 645989.33 | N157: 0 | O157: 645989.33
A158: 141 | B158: 2028-04-30 | C158: 30 | D158: 0.094 | E158: 645989.33 | F158: 0 | G158: 28304 | H158: 4977.29 | I158: 4977.29 | J158: 23326.71 | K158: 0 | L158: 0 | M158: 622662.62 | N158: 0 | O158: 622662.62
A159: 142 | B159: 2028-05-31 | C159: 31 | D159: 0.094 | E159: 622662.62 | F159: 0 | G159: 28304 | H159: 4957.48 | I159: 4957.48 | J159: 23346.52 | K159: 0 | L159: 0 | M159: 599316.1 | N159: 0 | O159: 599316.1
A160: 143 | B160: 2028-06-30 | C160: 30 | D160: 0.094 | E160: 599316.1 | F160: 0 | G160: 28304 | H160: 4617.68 | I160: 4617.68 | J160: 23686.32 | K160: 0 | L160: 0 | M160: 575629.78 | N160: 0 | O160: 575629.78
A161: 144 | B161: 2028-07-31 | C161: 31 | D161: 0.094 | E161: 575629.78 | F161: 0 | G161: 28304 | H161: 4583.02 | I161: 4583.02 | J161: 23720.98 | K161: 0 | L161: 0 | M161: 551908.8 | N161: 0 | O161: 551908.8
A162: 145 | B162: 2028-08-31 | C162: 31 | D162: 0.094 | E162: 551908.8 | F162: 0 | G162: 28304 | H162: 4394.16 | I162: 4394.16 | J162: 23909.84 | K162: 0 | L162: 0 | M162: 527998.96 | N162: 0 | O162: 527998.96
A163: 146 | B163: 2028-09-30 | C163: 30 | D163: 0.094 | E163: 527998.96 | F163: 0 | G163: 28304 | H163: 4068.19 | I163: 4068.19 | J163: 24235.81 | K163: 0 | L163: 0 | M163: 503763.15 | N163: 0 | O163: 503763.15
A164: 147 | B164: 2028-10-31 | C164: 31 | D164: 0.094 | E164: 503763.15 | F164: 0 | G164: 28304 | H164: 4010.84 | I164: 4010.84 | J164: 24293.16 | K164: 0 | L164: 0 | M164: 479469.99 | N164: 0 | O164: 479469.99
A165: 148 | B165: 2028-11-30 | C165: 30 | D165: 0.094 | E165: 479469.99 | F165: 0 | G165: 28304 | H165: 3694.28 | I165: 3694.28 | J165: 24609.72 | K165: 0 | L165: 0 | M165: 454860.27 | N165: 0 | O165: 454860.27
A166: 149 | B166: 2028-12-31 | C166: 31 | D166: 0.094 | E166: 454860.27 | F166: 0 | G166: 28304 | H166: 3621.48 | I166: 3621.48 | J166: 24682.52 | K166: 0 | L166: 0 | M166: 430177.75 | N166: 0 | O166: 430177.75
A167: 150 | B167: 2029-01-31 | C167: 31 | D167: 0.094 | E167: 430177.75 | F167: 0 | G167: 28304 | H167: 3434.35 | I167: 3434.35 | J167: 24869.65 | K167: 0 | L167: 0 | M167: 405308.1 | N167: 0 | O167: 405308.1
A168: 151 | B168: 2029-02-28 | C168: 28 | D168: 0.094 | E168: 405308.1 | F168: 0 | G168: 28304 | H168: 2922.66 | I168: 2922.66 | J168: 25381.34 | K168: 0 | L168: 0 | M168: 379926.76 | N168: 0 | O168: 379926.76
A169: 152 | B169: 2029-03-31 | C169: 31 | D169: 0.094 | E169: 379926.76 | F169: 0 | G169: 28304 | H169: 3033.17 | I169: 3033.17 | J169: 25270.83 | K169: 0 | L169: 0 | M169: 354655.93 | N169: 0 | O169: 354655.93
A170: 153 | B170: 2029-04-30 | C170: 30 | D170: 0.094 | E170: 354655.93 | F170: 0 | G170: 28304 | H170: 2740.08 | I170: 2740.08 | J170: 25563.92 | K170: 0 | L170: 0 | M170: 329092.01 | N170: 0 | O170: 329092.01
A171: 154 | B171: 2029-05-31 | C171: 31 | D171: 0.094 | E171: 329092.01 | F171: 0 | G171: 28304 | H171: 2627.33 | I171: 2627.33 | J171: 25676.67 | K171: 0 | L171: 0 | M171: 303415.34 | N171: 0 | O171: 303415.34
A172: 155 | B172: 2029-06-30 | C172: 30 | D172: 0.094 | E172: 303415.34 | F172: 0 | G172: 28304 | H172: 2344.2 | I172: 2344.2 | J172: 25959.8 | K172: 0 | L172: 0 | M172: 277455.54 | N172: 0 | O172: 277455.54
A173: 156 | B173: 2029-07-31 | C173: 31 | D173: 0.094 | E173: 277455.54 | F173: 0 | G173: 28304 | H173: 2215.08 | I173: 2215.08 | J173: 26088.92 | K173: 0 | L173: 0 | M173: 251366.62 | N173: 0 | O173: 251366.62
A174: 157 | B174: 2029-08-31 | C174: 31 | D174: 0.094 | E174: 251366.62 | F174: 0 | G174: 28304 | H174: 2006.8 | I174: 2006.8 | J174: 26297.2 | K174: 0 | L174: 0 | M174: 225069.42 | N174: 0 | O174: 225069.42
A175: 158 | B175: 2029-09-30 | C175: 30 | D175: 0.094 | E175: 225069.42 | F175: 0 | G175: 28304 | H175: 1738.89 | I175: 1738.89 | J175: 26565.11 | K175: 0 | L175: 0 | M175: 198504.31 | N175: 0 | O175: 198504.31
A176: 159 | B176: 2029-10-31 | C176: 31 | D176: 0.094 | E176: 198504.31 | F176: 0 | G176: 28304 | H176: 1584.77 | I176: 1584.77 | J176: 26719.23 | K176: 0 | L176: 0 | M176: 171785.08 | N176: 0 | O176: 171785.08
A177: 160 | B177: 2029-11-30 | C177: 30 | D177: 0.094 | E177: 171785.08 | F177: 0 | G177: 28304 | H177: 1327.22 | I177: 1327.22 | J177: 26976.78 | K177: 0 | L177: 0 | M177: 144808.3 | N177: 0 | O177: 144808.3
A178: 161 | B178: 2029-12-31 | C178: 31 | D178: 0.094 | E178: 144808.3 | F178: 0 | G178: 28304 | H178: 1156.09 | I178: 1156.09 | J178: 27147.91 | K178: 0 | L178: 0 | M178: 117660.39 | N178: 0 | O178: 117660.39
A179: 162 | B179: 2030-01-31 | C179: 31 | D179: 0.094 | E179: 117660.39 | F179: 0 | G179: 28304 | H179: 939.35 | I179: 939.35 | J179: 27364.65 | K179: 0 | L179: 0 | M179: 90295.74 | N179: 0 | O179: 90295.74
A180: 163 | B180: 2030-02-28 | C180: 28 | D180: 0.094 | E180: 90295.74 | F180: 0 | G180: 28304 | H180: 651.12 | I180: 651.12 | J180: 27652.88 | K180: 0 | L180: 0 | M180: 62642.86 | N180: 0 | O180: 62642.86
A181: 164 | B181: 2030-03-31 | C181: 31 | D181: 0.094 | E181: 62642.86 | F181: 0 | G181: 28304 | H181: 500.11 | I181: 500.11 | J181: 27803.89 | K181: 0 | L181: 0 | M181: 34838.97 | N181: 0 | O181: 34838.97
A182: 165 | B182: 2030-04-30 | C182: 30 | D182: 0.094 | E182: 34838.97 | F182: 0 | G182: 28304 | H182: 269.17 | I182: 269.17 | J182: 28034.83 | K182: 0 | L182: 0 | M182: 6804.14 | N182: 0 | O182: 6804.14
A183: 166 | B183: 2030-05-31 | C183: 31 | D183: 0.094 | E183: 6804.14 | F183: 0 | G183: 6858.46 | H183: 54.32 | I183: 54.32 | J183: 6804.14 | K183: 0 | L183: 0 | M183: 0 | N183: 0 | O183: 0
B185: От Кредитующей организации ____________________________________ (подпись, ФИО уполномоченного лица Кредитующей организации)
B187: Настоящий График ежемесячных платежей получил:
B189: От Заемщика _________________________________________________ (подпись, ФИО Заемщика или уполномоченного лица Заемщика)
B191: Дата __________________________

Sheet Расчет по доходу заемщика (hidden)
C2: Ипотечный продукт | E2: ='Калькулятор_от дохода'!$P$12 -> Перекредитование
C3: Регион предмета ипотеки | E3: ='Калькулятор_от дохода'!$P$28 -> Нижегородская область
C5: Доходы заемщика: | E5: Заемщик 1: | F5: Заемщик 2: | G5: Заемщик 3: | H5: Заемщик 4:
C6: Средний доход заемщика за последние 6 мес. за вычетом налоговых отчислений, руб. | E6: ='Калькулятор_от дохода'!P34 -> 70000 | F6: ='Калькулятор_от дохода'!R34 -> 0 | G6: ='Калькулятор_от дохода'!T34 -> 0 | H6: ='Калькулятор_от дохода'!V34 -> 0
C7: Обязательства заемщика:
C8: Алименты, руб. | E8: ='Калькулятор_от дохода'!P37 -> 11000 | F8: ='Калькулятор_от дохода'!R37 -> 0 | G8: ='Калькулятор_от дохода'!T37 -> 0 | H8: ='Калькулятор_от дохода'!V37 -> 0
C9: Ежемесячные платежи по текущим кредитным обязательствам, с оставшимся сроком исполнения более 3 месяцев, руб. | E9: ='Калькулятор_от дохода'!P39 -> 0 | F9: ='Калькулятор_от дохода'!R39 -> 0 | G9: ='Калькулятор_от дохода'!T39 -> 0 | H9: ='Калькулятор_от дохода'!U39 -> 0
C10: Лимит по кредитным картам (вне зависимости от факта его использования), руб. | E10: ='Калькулятор_от дохода'!P41 -> 0 | F10: ='Калькулятор_от дохода'!R41 -> 0 | G10: ='Калькулятор_от дохода'!T41 -> 0 | H10: ='Калькулятор_от дохода'!V41 -> 0
C11: Расходы по кредитным картам, принимаемые в расчет, руб. | E11: =E10*'Справочники и промежут.расчет'!$D$8 -> 0 | F11: =F10*'Справочники и промежут.расчет'!$D$8 -> 0 | G11: =G10*'Справочники и промежут.расчет'!$D$8 -> 0 | H11: =H10*'Справочники и промежут.расчет'!$D$8 -> 0
C12: Классификация кредитной истории заемщика
C13: возраст заемщика | E13: ='Калькулятор_от дохода'!P43 -> 0 | F13: ='Калькулятор_от дохода'!R43 -> 0 | G13: ='Калькулятор_от дохода'!T43 -> 0 | H13: ='Калькулятор_от дохода'!V43 -> 0
C15: Совокупный доход заемщиков, руб. | E15: =SUM(E6:H6) -> 70000
C16: Совокупные обязательства заещиков, руб. | E16: =SUM(E8:H9)+SUM(E11:H11) -> 11000
C17: Общее количество заемщиков, чьи доходы принимаются в расчет | E17: =COUNTIF(E6:H6,">0") -> 1
C18: Общее количество несовершеннолетних детей всех заемщиков для расчета | E18: =IF('Калькулятор_от дохода'!$P$28="Чеченская республика",MIN('Калькулятор_от дохода'!P45,2),'Калькулятор_от дохода'!P45) -> 1
C20: Прожиточный минимум в регионе Предмета ипотеки | E20: =VLOOKUP(E3,'Справочники и промежут.расчет'!$B$24:$C$106,2,0) -> 9630
C21: Максимальный платеж с учетом ограничения по ПМ | E21: =MAX($E$15-$E$16-$E$18*'Справочники и промежут.расчет'!$I$134*$E$20-$E$17*$E$20,0) -> 46962.5
C22: Максимальный платежей заемщиков без учета ПМ | E22: =MAX(E15*'Справочники и промежут.расчет'!$B$11-E16,0) -> 31000
C23: Максимальный платеж по ипотечному кредиту | E23: =MIN(E21,E22) -> 31000
C24: Максимальный срок кредита, лет | E24: =MAX(MIN('Справочники и промежут.расчет'!$I$131-MAX($E$13:$H$13),'Справочники и промежут.расчет'!$I$129),0) -> 30
C25: Основания для применения вычетов к ставке | E25: ='Калькулятор_от дохода'!P47 -> НЕТ
C26: Личное страхование заемщика | E26: ='Калькулятор_от дохода'!P49 -> ДА
C27: Первоначальный взнос, % | E27: ='Калькулятор_от дохода'!$P$51 -> 0.5
C28: Ставка | E28: ='Справочники и промежут.расчет'!$I$70 -> 0.09
C29: Расчет
C30: Максимальная сумма кредита по платежу | E30: =-PV($E$28/12,'Справочники и промежут.расчет'!$I$129*12-2,$E$23) -> 3848513.12
C31: Максимальная сумма кредита по продукту | E31: ='Справочники и промежут.расчет'!$J$123 -> 10000000
C32: Максимальная сумма кредита с учетом МСК по К/З | E32: =IF(AND(E27<0.2,'Калькулятор_от дохода'!$P$16="да"),'Калькулятор_от дохода'!$V$16/(1-0.8/(1-$E$27)),100000000000000) -> 100000000000000
C33: Максимальная сумма кредита +сумма МСК | E33: =E30+IF('Калькулятор_от дохода'!$P$16="да",'Калькулятор_от дохода'!$V$16,0) -> 3848513.12
C34: Максимальная сумма кредита с опцией МСК | E34: =MIN(E32,E33) -> 3848513.12
E35: =E37-E36 -> 0 | F35: =F37-F36 -> 0 | G35: 0 | H35: 0 | I35: 0
C36: сумма кредита после погашения на сумму МСК | E36: =E37-IF('Калькулятор_от дохода'!$P$16="да",'Калькулятор_от дохода'!$V$16,0) -> 3369641.682 | F36: =F37-IF('Калькулятор_от дохода'!$P$16="да",'Калькулятор_от дохода'!$V$16,0) -> 3040181.031 | G36: =G37-IF('Калькулятор_от дохода'!$P$16="да",'Калькулятор_от дохода'!$V$16,0) -> 3435137.287 | H36: =H37-IF('Калькулятор_от дохода'!$P$16="да",'Калькулятор_от дохода'!$V$16,0) -> 3687395.729 | I36: =I37-IF('Калькулятор_от дохода'!$P$16="да",'Калькулятор_от дохода'!$V$16,0) -> 3848513.12
C37: Расчет максимальной суммы кредита по платежу для различных сроков | E37: =-PV($E$28/12,E$41-2,$E$23)/'Справочники и промежут.расчет'!$J$136+IF('Калькулятор_от дохода'!$P$16="да",'Калькулятор_от дохода'!$V$16,0) -> 3369641.682 | F37: =-PV($E$28/12,F$41-2,$E$23)/'Справочники и промежут.расчет'!$J$136+IF('Калькулятор_от дохода'!$P$16="да",'Калькулятор_от дохода'!$V$16,0) -> 3040181.031 | G37: =-PV($E$28/12,G$41-2,$E$23)/'Справочники и промежут.расчет'!$J$136+IF('Калькулятор_от дохода'!$P$16="да",'Калькулятор_от дохода'!$V$16,0) -> 3435137.287 | H37: =-PV($E$28/12,H$41-2,$E$23)/'Справочники и промежут.расчет'!$J$136+IF('Калькулятор_от дохода'!$P$16="да",'Калькулятор_от дохода'!$V$16,0) -> 3687395.729 | I37: =-PV($E$28/12,I$41-2,$E$23)/'Справочники и промежут.расчет'!$J$136+IF('Калькулятор_от дохода'!$P$16="да",'Калькулятор_от дохода'!$V$16,0) -> 3848513.12
C39: по доходу | E39: месяцев
C40: плановый | E40: ='Калькулятор_от дохода'!$P$57 -> 228 | F40: 180 | G40: 240 | H40: 300 | I40: 360
C41: расчетный | E41: =IF($E$24*12-E40>=0,E40,0) -> 228 | F41: =IF($E$24*12-F40>=0,F40,0) -> 180 | G41: =IF($E$24*12-G40>=0,G40,0) -> 240 | H41: =IF($E$24*12-H40>=0,H40,0) -> 300 | I41: =IF($E$24*12-I40>=0,I40,0) -> 360
C42: Максимальная сумма кредита | E42: =IF(MIN(E37,$E$31,$E$32)<'Справочники и промежут.расчет'!$I$126,0,MIN(E37,$E$31,$E$32)) -> 3369641.682 | F42: =IF(MIN(F37,$E$31,$E$32)<'Справочники и промежут.расчет'!$I$126,0,MIN(F37,$E$31,$E$32)) -> 3040181.031 | G42: =IF(MIN(G37,$E$31,$E$32)<'Справочники и промежут.расчет'!$I$126,0,MIN(G37,$E$31,$E$32)) -> 3435137.287 | H42: =IF(MIN(H37,$E$31,$E$32)<'Справочники и промежут.расчет'!$I$126,0,MIN(H37,$E$31,$E$32)) -> 3687395.729 | I42: =IF(MIN(I37,$E$31,$E$32)<'Справочники и промежут.расчет'!$I$126,0,MIN(I37,$E$31,$E$32)) -> 3848513.12
C43: Сумма Первоначального взноса | E43: =E42/(1-$E$27)*$E$27 -> 3369641.682 | F43: =F42/(1-$E$27)*$E$27 -> 3040181.031 | G43: 3435137.287 | H43: 3687395.729 | I43: 3848513.12
C44: Стоимость жилья | E44: =E42+E43 -> 6739283.365 | F44: 6080362.063 | G44: 6870274.575 | H44: 7374791.459 | I44: 7697026.24
C45: Переплата | E45: =E47*E41-E42 -> 3698586.318 | F45: =F47*F41-F42 -> 2539998.969 | G45: 4005102.713 | H45: 5612904.271 | I45: 7311846.88
C46: Ежемесячный платеж с учетом огр.суммы кредита | E46: =CEILING(-PMT($E$28/12,E$41-2,E$42)*'Справочники и промежут.расчет'!$J$136,1) -> 31001 | F46: =CEILING(-PMT($E$28/12,F41-2,F42)*'Справочники и промежут.расчет'!$J$136,1) -> 31001 | G46: =CEILING(-PMT($E$28/12,G41-2,G42)*'Справочники и промежут.расчет'!$J$136,1) -> 31001 | H46: =CEILING(-PMT($E$28/12,H41-2,H42)*'Справочники и промежут.расчет'!$J$136,1) -> 31001 | I46: =CEILING(-PMT($E$28/12,I41-2,I42)*'Справочники и промежут.расчет'!$J$136,1) -> 31001
C47: Платеж после погашения кредита на сумму МСК | E47: =CEILING(-PMT($E$28/12,E$41-2,E$42-IF('Калькулятор_от дохода'!$P$16="да",'Калькулятор_от дохода'!$V$16,0))*'Справочники и промежут.расчет'!$J$136,1) -> 31001 | F47: =CEILING(-PMT($E$28/12,F$41-2,F$42-IF('Калькулятор_от дохода'!$P$16="да",'Калькулятор_от дохода'!$V$16,0))*'Справочники и промежут.расчет'!$J$136,1) -> 31001 | G47: =CEILING(-PMT($E$28/12,G$41-2,G$42-IF('Калькулятор_от дохода'!$P$16="да",'Калькулятор_от дохода'!$V$16,0))*'Справочники и промежут.расчет'!$J$136,1) -> 31001 | H47: =CEILING(-PMT($E$28/12,H$41-2,H$42-IF('Калькулятор_от дохода'!$P$16="да",'Калькулятор_от дохода'!$V$16,0))*'Справочники и промежут.расчет'!$J$136,1) -> 31001 | I47: =CEILING(-PMT($E$28/12,I$41-2,I$42-IF('Калькулятор_от дохода'!$P$16="да",'Калькулятор_от дохода'!$V$16,0))*'Справочники и промежут.расчет'!$J$136,1) -> 31001
C49: По сумме кредита | E49: месяцев
C50: расчетный | E50: =$E$41 -> 228 | F50: =F41 -> 180 | G50: =G41 -> 240 | H50: 300 | I50: 360
C51: запрашиваемая сумма кредита | E51: =MIN('Калькулятор_от дохода'!$P$53,E42) -> 1000000 | F51: =MIN('Калькулятор_от дохода'!$P$53,F42) -> 1000000 | G51: =MIN('Калькулятор_от дохода'!$P$53,G42) -> 1000000 | H51: =MIN('Калькулятор_от дохода'!$P$53,H42) -> 1000000 | I51: =MIN('Калькулятор_от дохода'!$P$53,I42) -> 1000000
C52: сумма кредита после погашения МСК | E52: =MAX(E51-IF('Калькулятор_от дохода'!$P$16="да",'Калькулятор_от дохода'!$V$16,0),0) -> 1000000 | F52: =MAX(F51-IF('Калькулятор_от дохода'!$P$16="да",'Калькулятор_от дохода'!$V$16,0),0) -> 1000000 | G52: =MAX(G51-IF('Калькулятор_от дохода'!$P$16="да",'Калькулятор_от дохода'!$V$16,0),0) -> 1000000 | H52: =MAX(H51-IF('Калькулятор_от дохода'!$P$16="да",'Калькулятор_от дохода'!$V$16,0),0) -> 1000000 | I52: =MAX(I51-IF('Калькулятор_от дохода'!$P$16="да",'Калькулятор_от дохода'!$V$16,0),0) -> 1000000
C53: Сумма Первоначального взноса | E53: =E51/(1-$E$27)*$E$27 -> 1000000 | F53: 1000000 | G53: 1000000 | H53: 1000000 | I53: 1000000
C54: Стоимость жилья | E54: =E53+E51 -> 2000000 | F54: 2000000 | G54: 2000000 | H54: 2000000 | I54: 2000000
C55: Переплата | E55: =MAX(E57*E50-E52,0) -> 1097600 | F55: =MAX(F57*F50-F52,0) -> 835460 | G55: 1166000 | H55: 1522400 | I55: 1900160
C56: Ежемесячный платеж с учетом огр.суммы кредита | E56: =CEILING(-PMT($E$28/12,E$50-2,E$51)*'Справочники и промежут.расчет'!$J$136,1) -> 9200 | F56: =CEILING(-PMT($E$28/12,F50-2,F51)*'Справочники и промежут.расчет'!$J$136,1) -> 10197 | G56: =CEILING(-PMT($E$28/12,G50-2,G51)*'Справочники и промежут.расчет'!$J$136,1) -> 9025 | H56: =CEILING(-PMT($E$28/12,H50-2,H51)*'Справочники и промежут.расчет'!$J$136,1) -> 8408 | I56: =CEILING(-PMT($E$28/12,I50-2,I51)*'Справочники и промежут.расчет'!$J$136,1) -> 8056
C57: Платеж после погашения кредита на сумму МСК | E57: =MAX(CEILING(-PMT($E$28/12,E$50-2,E$52)*'Справочники и промежут.расчет'!$J$136,1),0) -> 9200 | F57: =MAX(CEILING(-PMT($E$28/12,F$50-2,F$52)*'Справочники и промежут.расчет'!$J$136,1),0) -> 10197 | G57: =MAX(CEILING(-PMT($E$28/12,G$50-2,G$52)*'Справочники и промежут.расчет'!$J$136,1),0) -> 9025 | H57: =MAX(CEILING(-PMT($E$28/12,H$50-2,H$52)*'Справочники и промежут.расчет'!$J$136,1),0) -> 8408 | I57: =MAX(CEILING(-PMT($E$28/12,I$50-2,I$52)*'Справочники и промежут.расчет'!$J$136,1),0) -> 8056
C59: По стоимости жилья | E59: месяцев
C60: расчетный | E60: =$E$41 -> 228 | F60: =F41 -> 180 | G60: =G41 -> 240 | H60: 300 | I60: 360
C61: сумма кредита | E61: =IF(E64-E63>E42,0,E64-E63) -> 1250000 | F61: =IF(F64-F63>F42,0,F64-F63) -> 1250000 | G61: =IF(G64-G63>G42,0,G64-G63) -> 1250000 | H61: 1250000 | I61: 1250000
C62: сумма кредита после погашения МСК | E62: =MAX(E61-IF('Калькулятор_от дохода'!$P$16="да",'Калькулятор_от дохода'!$V$16,0),0) -> 1250000 | F62: =MAX(F61-IF('Калькулятор_от дохода'!$P$16="да",'Калькулятор_от дохода'!$V$16,0),0) -> 1250000 | G62: =MAX(G61-IF('Калькулятор_от дохода'!$P$16="да",'Калькулятор_от дохода'!$V$16,0),0) -> 1250000 | H62: =MAX(H61-IF('Калькулятор_от дохода'!$P$16="да",'Калькулятор_от дохода'!$V$16,0),0) -> 1250000 | I62: =MAX(I61-IF('Калькулятор_от дохода'!$P$16="да",'Калькулятор_от дохода'!$V$16,0),0) -> 1250000
C63: Сумма Первоначального взноса | E63: =E64*'Калькулятор_от дохода'!$P$51 -> 1250000 | F63: =F64*'Калькулятор_от дохода'!$P$51 -> 1250000 | G63: =G64*'Калькулятор_от дохода'!$P$51 -> 1250000 | H63: =H64*'Калькулятор_от дохода'!$P$51 -> 1250000 | I63: =I64*'Калькулятор_от дохода'!$P$51 -> 1250000
C64: Стоимость жилья | E64: ='Калькулятор_от дохода'!$P$59 -> 2500000 | F64: ='Калькулятор_от дохода'!$P$59 -> 2500000 | G64: ='Калькулятор_от дохода'!$P$59 -> 2500000 | H64: ='Калькулятор_от дохода'!$P$59 -> 2500000 | I64: ='Калькулятор_от дохода'!$P$59 -> 2500000
C65: Переплата | E65: =MAX(E67*E60-E62,0) -> 1372000 | F65: =MAX(F67*F60-F62,0) -> 1044280 | G65: 1457440 | H65: 1902700 | I65: 2374840
C66: Ежемесячный платеж с учетом огр.суммы кредита | E66: =CEILING(-PMT($E$28/12,E$60-2,E$61)*'Справочники и промежут.расчет'!$J$136,1) -> 11500 | F66: =CEILING(-PMT($E$28/12,F60-2,F61)*'Справочники и промежут.расчет'!$J$136,1) -> 12746 | G66: =CEILING(-PMT($E$28/12,G60-2,G61)*'Справочники и промежут.расчет'!$J$136,1) -> 11281 | H66: =CEILING(-PMT($E$28/12,H60-2,H61)*'Справочники и промежут.расчет'!$J$136,1) -> 10509 | I66: =CEILING(-PMT($E$28/12,I60-2,I61)*'Справочники и промежут.расчет'!$J$136,1) -> 10069
C67: Платеж после погашения кредита на сумму МСК | E67: =MAX(CEILING(-PMT($E$28/12,E$60-2,E$62)*'Справочники и промежут.расчет'!$J$136,1),0) -> 11500 | F67: =MAX(CEILING(-PMT($E$28/12,F$60-2,F$62)*'Справочники и промежут.расчет'!$J$136,1),0) -> 12746 | G67: =MAX(CEILING(-PMT($E$28/12,G$60-2,G$62)*'Справочники и промежут.расчет'!$J$136,1),0) -> 11281 | H67: =MAX(CEILING(-PMT($E$28/12,H$60-2,H$62)*'Справочники и промежут.расчет'!$J$136,1),0) -> 10509 | I67: =MAX(CEILING(-PMT($E$28/12,I$60-2,I$62)*'Справочники и промежут.расчет'!$J$136,1),0) -> 10069
C70: сумма кредита после погашения на сумму МСК | E70: =E71-IF('Калькулятор_от дохода'!$P$16="да",'Калькулятор_от дохода'!$V$16,0) -> 0 | F70: =F71-IF('Калькулятор_от дохода'!$P$16="да",'Калькулятор_от дохода'!$V$16,0) -> 0 | G70: =G71-IF('Калькулятор_от дохода'!$P$16="да",'Калькулятор_от дохода'!$V$16,0) -> 0 | H70: =H71-IF('Калькулятор_от дохода'!$P$16="да",'Калькулятор_от дохода'!$V$16,0) -> 0 | I70: =I71-IF('Калькулятор_от дохода'!$P$16="да",'Калькулятор_от дохода'!$V$16,0) -> 0
C71: Расчет максимальной суммы кредита по платежу для различных сроков | E71: =-PV($E$28/12,E$41-2,$E$82)/'Справочники и промежут.расчет'!$J$136+IF('Калькулятор_от дохода'!$P$16="да",'Калькулятор_от дохода'!$V$16,0) -> 0 | F71: =-PV($E$28/12,F$41-2,$E$82)/'Справочники и промежут.расчет'!$J$136+IF('Калькулятор_от дохода'!$P$16="да",'Калькулятор_от дохода'!$V$16,0) -> 0 | G71: =-PV($E$28/12,G$41-2,$E$82)/'Справочники и промежут.расчет'!$J$136+IF('Калькулятор_от дохода'!$P$16="да",'Калькулятор_от дохода'!$V$16,0) -> 0 | H71: =-PV($E$28/12,H$41-2,$E$82)/'Справочники и промежут.расчет'!$J$136+IF('Калькулятор_от дохода'!$P$16="да",'Калькулятор_от дохода'!$V$16,0) -> 0 | I71: =-PV($E$28/12,I$41-2,$E$82)/'Справочники и промежут.расчет'!$J$136+IF('Калькулятор_от дохода'!$P$16="да",'Калькулятор_от дохода'!$V$16,0) -> 0
C73: по доходу | E73: месяцев
C74: плановый | E74: ='Калькулятор_от дохода'!$P$57 -> 228 | F74: 180 | G74: 240 | H74: 300 | I74: 360
C75: расчетный | E75: =IF($E$24*12-E74>=0,E74,0) -> 228 | F75: =IF($E$24*12-F74>=0,F74,0) -> 180 | G75: =IF($E$24*12-G74>=0,G74,0) -> 240 | H75: =IF($E$24*12-H74>=0,H74,0) -> 300 | I75: =IF($E$24*12-I74>=0,I74,0) -> 360
C76: Максимальная сумма кредита | E76: =IF(MIN(E71,$E$31,$E$32)<'Справочники и промежут.расчет'!$I$126,0,MIN(E71,$E$31,$E$32)) -> 0 | F76: =IF(MIN(F71,$E$31,$E$32)<'Справочники и промежут.расчет'!$I$126,0,MIN(F71,$E$31,$E$32)) -> 0 | G76: =IF(MIN(G71,$E$31,$E$32)<'Справочники и промежут.расчет'!$I$126,0,MIN(G71,$E$31,$E$32)) -> 0 | H76: =IF(MIN(H71,$E$31,$E$32)<'Справочники и промежут.расчет'!$I$126,0,MIN(H71,$E$31,$E$32)) -> 0 | I76: =IF(MIN(I71,$E$31,$E$32)<'Справочники и промежут.расчет'!$I$126,0,MIN(I71,$E$31,$E$32)) -> 0
C77: Сумма Первоначального взноса | E77: =E76/(1-$E$27)*$E$27 -> 0 | F77: =F76/(1-$E$27)*$E$27 -> 0 | G77: 0 | H77: 0 | I77: 0
C78: Стоимость жилья | E78: =E76+E77 -> 0 | F78: 0 | G78: 0 | H78: 0 | I78: 0
C79: Переплата | E79: =E81*E75-E76 -> 0 | F79: =F81*F75-F76 -> 0 | G79: 0 | H79: 0 | I79: 0
C80: Ежемесячный платеж с учетом огр.суммы кредита | E80: =CEILING(-PMT($E$28/12,E$75-2,E$76)*'Справочники и промежут.расчет'!$J$136,1) -> 0 | F80: =CEILING(-PMT($E$28/12,F$75-2,F$76)*'Справочники и промежут.расчет'!$J$136,1) -> 0 | G80: =CEILING(-PMT($E$28/12,G$75-2,G$76)*'Справочники и промежут.расчет'!$J$136,1) -> 0 | H80: =CEILING(-PMT($E$28/12,H$75-2,H$76)*'Справочники и промежут.расчет'!$J$136,1) -> 0 | I80: =CEILING(-PMT($E$28/12,I$75-2,I$76)*'Справочники и промежут.расчет'!$J$136,1) -> 0
C81: Платеж после погашения кредита на сумму МСК | E81: =CEILING(-PMT($E$28/12,E$75-2,E$76-IF('Калькулятор_от дохода'!$P$16="да",'Калькулятор_от дохода'!$V$16,0))*'Справочники и промежут.расчет'!$J$136,1) -> 0 | F81: =CEILING(-PMT($E$28/12,F$75-2,F$76-IF('Калькулятор_от дохода'!$P$16="да",'Калькулятор_от дохода'!$V$16,0))*'Справочники и промежут.расчет'!$J$136,1) -> 0 | G81: =CEILING(-PMT($E$28/12,G$75-2,G$76-IF('Калькулятор_от дохода'!$P$16="да",'Калькулятор_от дохода'!$V$16,0))*'Справочники и промежут.расчет'!$J$136,1) -> 0 | H81: =CEILING(-PMT($E$28/12,H$75-2,H$76-IF('Калькулятор_от дохода'!$P$16="да",'Калькулятор_от дохода'!$V$16,0))*'Справочники и промежут.расчет'!$J$136,1) -> 0 | I81: =CEILING(-PMT($E$28/12,I$75-2,I$76-IF('Калькулятор_от дохода'!$P$16="да",'Калькулятор_от дохода'!$V$16,0))*'Справочники и промежут.расчет'!$J$136,1) -> 0
C82: максимальный платеж | E82: ='Калькулятор_от дохода'!$P$55 -> 0 | F82: ='Калькулятор_от дохода'!$P$55 -> 0 | G82: ='Калькулятор_от дохода'!$P$55 -> 0 | H82: ='Калькулятор_от дохода'!$P$55 -> 0 | I82: ='Калькулятор_от дохода'!$P$55 -> 0

Sheet Справочники и промежут.расчет (hidden)
A2: 1 | B2: Ипотечный продукт | C2: 2 | D2: Классификация кредитной истории
B3: Приобретение готового жилья | D3: Положительная
B4: Приобретение жилья на этапе строительства | D4: Неопределенная
B5: Семейная ипотека с гос.поддержкой
B6: Целевой кредит под залог имеющейся квартиры
B7: Перекредитование | C7: 3 | D7: Норма учета в расходах лимита по кредитным картам
D8: 0.08
A10: 4 | B10: Значение коэффициентов О/Д
B11: 0.6
A16: 5 | B16: Расчет максимального О/Д для каждого заемщика | H16: 5.1. | I16: Конвертер названия регионов
C17: Заемщик1 | D17: Заемщик2 | E17: Заемщик3 | F17: Заемщик4 | I17: г.Москва | J17: Москва
B18: Регион | C18: =IFERROR(VLOOKUP('Расчет по доходу заемщика'!$E$3,$I$17:$J$20,2,0),'Расчет по доходу заемщика'!$E$3) -> Нижегородская область | D18: =IFERROR(VLOOKUP('Расчет по доходу заемщика'!$E$3,$I$17:$J$20,2,0),'Расчет по доходу заемщика'!$E$3) -> Нижегородская область | E18: =IFERROR(VLOOKUP('Расчет по доходу заемщика'!$E$3,$I$17:$J$20,2,0),'Расчет по доходу заемщика'!$E$3) -> Нижегородская область | F18: =IFERROR(VLOOKUP('Расчет по доходу заемщика'!$E$3,$I$17:$J$20,2,0),'Расчет по доходу заемщика'!$E$3) -> Нижегородская область | I18: г.Санкт-Петербург | J18: С.Петербург
B19: доход | C19: ='Расчет по доходу заемщика'!E6 -> 70000 | D19: ='Расчет по доходу заемщика'!F6 -> 0 | E19: ='Расчет по доходу заемщика'!G6 -> 0 | F19: ='Расчет по доходу заемщика'!H6 -> 0 | I19: Московская область | J19: МО
B20: кредитная история | C20: 0.6 | D20: 0.6 | E20: 0.6 | F20: 0.6 | I20: Ленинградская область | J20: ЛО
B21: максимальный О/Д | C21: 0.6 | D21: 0.6 | E21: 0.6 | F21: 0.6
A23: 6 | B23: Прожиточный минимум в регионе | H23: 7 | I23: Основания для вычетов из ставки
B24: Алтайский край | C24: 9542 | I24: НЕТ
B25: Амурская область | C25: 12176 | D25: Выбрать соц. категорию: Квартира в ДФО | I25: З ребенка в семье
B26: Архангельская область | C26: 12377 | I26: Программа ЖРС
B27: Астраханская область | C27: 9741 | I27: ОПК
B28: Белгородская область | C28: 8837 | I28: Квартира в ДФО
B29: Брянская область | C29: 9916 | I29: Квартира АИЖК
B30: Владимирская область | C30: 10070 | I30: Социальная ипотека Московской области
B31: Волгоградская область | C31: 9858
B32: Вологодская область | C32: 11192 | H32: 8 | I32: Основания для надбавки к ставке
B33: Воронежская область | C33: 8960 | I33: ДА
B34: г.Москва | C34: 17642 | I34: НЕТ
B35: г.Санкт-Петербург | C35: 11659
B36: Еврейская авт.область | C36: 13402 | D36: Выбрать соц. категорию: Квартира в ДФО
B37: Забайкальский край | C37: 11103 | D37: Выбрать соц.категорию: Квартира в Байкальском регионе | H37: 9 | I37: Таблица ставок
B38: Ивановская область | C38: 10378 | I38: К/З | J38: Приобретение готового жилья | K38: Приобретение жилья на этапе строительства | L38: Семейная ипотека с гос.поддержкой | M38: Перекредитование | N38: Целевой кредит под залог имеющейся квартиры
B39: Иркутская область | C39: 10506 | D39: Выбрать соц.категорию: Квартира в Байкальском регионе | I39: 0.9 | J39: 0.0975 | K39: 0.095 | L39: - | M39: 0.095 | N39: =J39+4% -> 0.1375
B40: Кабардино-Балкарская Республика | C40: 11169 | I40: 0.8 | J40: 0.0975 | K40: 0.095 | L40: 0.06 | M40: 0.095 | N40: =J40+4% -> 0.1375
B41: Калининградская область | C41: 10922 | I41: 0.7 | J41: 0.095 | K41: 0.0925 | L41: 0.06 | M41: 0.0925 | N41: 0.135
B42: Калужская область | C42: 10387 | I42: 0.5 | J42: 0.0925 | K42: 0.09 | L42: 0.06 | M42: 0.09 | N42: 0.1325
B43: Камчатский край | C43: 20394 | D43: Выбрать соц. категорию: Квартира в ДФО | I43: Вычеты 1
B44: Карачаево-Черкесская Республика | C44: 9535 | I44: НЕТ | J44: 0 | K44: 0 | L44: 0 | M44: 0 | N44: 0
B45: Кемеровская область | C45: 9531 | I45: =I25 -> З ребенка в семье | J45: 0 | K45: 0.0025 | L45: 0 | M45: 0 | N45: 0
B46: Кировская область | C46: 9943 | I46: =I26 -> Программа ЖРС | J46: 0 | K46: 0.0025 | L46: 0 | M46: 0 | N46: 0
B47: Костромская область | C47: 10270 | I47: =I27 -> ОПК | J47: 0 | K47: 0 | L47: 0 | M47: 0 | N47: 0
B48: Краснодарский край | C48: 10685 | I48: =I28 -> Квартира в ДФО | J48: 0 | K48: 0.0025 | L48: 0 | M48: 0 | N48: 0
B49: Красноярский край | C49: 11787 | I49: Квартира в Байкальском регионе | J49: 0 | K49: 0.0025 | L49: 0 | M49: 0 | N49: 0
B50: Курганская область | C50: 10069 | I50: =I29 -> Квартира АИЖК | J50: 0.02
B51: Курская область | C51: 9254 | I51: =I30 -> Социальная ипотека Московской области | J51: 0.0025 | K51: 0.0025 | L51: 0 | M51: 0 | N51: 0
B52: Ленинградская область | C52: 9908 | I52: Вычет 2:
B53: Липецкая область | C53: 9050 | H53: 9.1. | I53: ДА | J53: ='Калькулятор_от дохода'!$V$26/100 -> 0 | K53: ='Калькулятор_от дохода'!$V$26/100 -> 0 | L53: ='Калькулятор_от дохода'!$V$26/100 -> 0 | M53: ='Калькулятор_от дохода'!$V$26/100 -> 0 | N53: ='Калькулятор_от дохода'!$V$26/100 -> 0
B54: Магаданская область | C54: 18983 | D54: Выбрать соц. категорию: Квартира в ДФО | I54: НЕТ | J54: 0 | K54: 0 | L54: 0 | M54: 0 | N54: 0
B55: Московская область | C55: 12495 | I55: Надбавки
B56: Мурманская область | C56: 14632 | I56: нет страховки | J56: 0.007 | K56: 0.007 | L56: 0 | M56: 0.007 | N56: 0.007
B57: Ненецкий авт.округ | C57: 21642 | I57: "Справка по форме кредитора" | J57: 0.005 | K57: 0.005 | L57: 0 | M57: 0.005 | N57: 0.005
B58: Нижегородская область | C58: 9630 | I58: Легкая ипотека | J58: 0.005 | K58: 0.005 | L58: 0 | M58: 0.005 | N58: 0
B59: Новгородская область | C59: 10851 | H59: 9.2.
B60: Новосибирская область | C60: 11233 | I60: Расчет базовой ставки
B61: Омская область | C61: 9222 | I61: Продукт | J61: К/З | K61: Базовая ставка | L61: Строка К/З | M61: Столбец продукт
B62: Оренбургская область | C62: 9007 | I62: ='Расчет по доходу заемщика'!$E$2 -> Перекредитование | J62: =1-'Расчет по доходу заемщика'!$E$27 -> 0.5 | K62: =IF(I66=I30,INDEX(J39:N42,L62,M62),INDEX(J39:N42,L62,M62)) -> 0.09 | L62: =MATCH(J62,I39:I42,-1) -> 4 | M62: =MATCH(I62,J38:N38,0) -> 4
B63: Орловская область | C63: 9694
B64: Пензенская область | C64: 9182 | I64: Расчет надбавки и вычетов
B65: Пермский край | C65: 10278 | I65: Вычет 1 | J65: Зарплатный проект | K65: Положит КИ | L65: К/З>70 | M65: Право на вычет | N65: Вычет 2 | O65: К/З | P65: Надбавка (есть/нет ЛС) | Q65: Надбавка Серый доход | R65: Надбавка "Легкая ипотека"
B66: Приморский край | C66: 13223 | D66: Выбрать соц. категорию: Квартира в ДФО | I66: ='Расчет по доходу заемщика'!E25 -> НЕТ | J66: 0 | K66: 0 | L66: =IF(AND(O66>0.7,O66<=0.8),1,0) -> 0 | M66: ='Калькулятор_от дохода'!$P$26 -> НЕТ | O66: =J62 -> 0.5 | P66: ='Расчет по доходу заемщика'!E26 -> ДА | Q66: ='Калькулятор_от дохода'!$P$18 -> НЕТ | R66: ='Калькулятор_от дохода'!P24 -> НЕТ
B67: Псковская область | C67: 11234 | H67: 9.3. | I67: =IFERROR(INDEX($J$44:$N$51,MATCH(I66,$I$44:$I$51,0),MATCH($I$62,$J$38:$N$38,0)),0) -> 0 | N67: =INDEX($J$53:$N$54,MATCH(M66,$I$53:$I$54,0),MATCH(I62,$J$38:$N$38,0)) -> 0 | P67: =IF('Расчет по доходу заемщика'!$E$2=$B$5,0,IF(P66=I33,0,J56)) -> 0 | Q67: =IF(Q66="да",INDEX(J57:N57,1,MATCH(I62,J38:N38,0)),0) -> 0 | R67: =IF(R66="да",INDEX(J58:N58,1,MATCH(I62,J38:N38,0)),0) -> 0
B68: Республика Адыгея | C68: 9458
B69: Республика Алтай | C69: 9890 | I69: Расчет итоговой ставки
B70: Республика Башкортостан | C70: 9142 | H70: 10 | I70: =K62-I67-N67+P67+Q67+R67 -> 0.09
B71: Республика Бурятия | C71: 9967 | D71: Выбрать соц.категорию: Квартира в Байкальском регионе
B72: Республика Дагестан | C72: 9562 | I72: Ограничения по ПВ | J72: Материнский капитал
B73: Республика Ингушетия | C73: 9246 | I73: Продукт | J73: МК | K73: ПС | L73: СТ | M73: АП | N73: Бизнес | O73: Легкая ипотека
B74: Республика Калмыкия | C74: 8899 | I74: =B3 -> Приобретение готового жилья | J74: 0.1 | K74: 0.3 | L74: 0.2 | M74: 0.3 | N74: 0.5 | O74: 0.5
B75: Республика Карелия | C75: 13389 | I75: =B4 -> Приобретение жилья на этапе строительства | J75: 0.1 | K75: 0.3 | L75: 0.2 | M75: 0.2 | N75: 0.5 | O75: 0.5
B76: Республика Коми | C76: 12914 | I76: =B5 -> Семейная ипотека с гос.поддержкой | J76: 0.2 | K76: 0.3 | L76: 0.2 | M76: 0.2 | N76: 0.5 | O76: 0.5
B77: Республика Марий Эл | C77: 9535 | I77: =B6 -> Целевой кредит под залог имеющейся квартиры | J77: 0.4 | K77: 0.4 | L77: 0.4 | M77: 0.4 | N77: 0.5 | O77: 0.5
B78: Республика Мордовия | C78: 8659 | I78: =B7 -> Перекредитование | J78: 0.2 | K78: 0.3 | L78: 0.2 | M78: =IF('Калькулятор_от дохода'!$V$22="нет",20%,30%) -> 0.3 | N78: 0.5 | O78: 0.5
B79: Республика Саха (Якутия) | C79: 17388 | D79: Выбрать соц. категорию: Квартира в ДФО
B80: Республика Северная Осетия - Алания | C80: 9464 | I80: Расчет ограчения по К/З
B81: Республика Татарстан | C81: 8848 | I81: Продукт | J81: Главная опция | K81: строка | L81: столбец | M81: Минимальный ПВ
B82: Республика Тыва | C82: 9991 | I82: ='Калькулятор_от дохода'!P12 -> Перекредитование | J82: =IF(I141="Работа по найму",IF('Калькулятор_от дохода'!$P$24="ДА","Легкая ипотека",IF('Калькулятор_от дохода'!$P$20="ДА","ПС",IF('Калькулятор_от дохода'!$P$16="ДА","МК",IF('Калькулятор_от дохода'!$P$22="ДА","АП","СТ")))),N73) -> СТ | K82: =MATCH($I$82,$I$74:$I$78,0) -> 5 | L82: =MATCH($J$82,$J$73:$O$73,0) -> 3 | M82: =INDEX(J74:O78,K82,L82) -> 0.2
B83: Республика Хакасия | C83: 9647
B84: Ростовская область | C84: 10232
B85: Рязанская область | C85: 9614
B86: Самарская область | C86: 10691 | H86: 11
B87: Саратовская область | C87: 9153
B88: Сахалинская область | C88: 14637 | D88: Выбрать соц. категорию: Квартира в ДФО
B89: Свердловская область | C89: 10653 | I89: Ограничение по максимальной сумме кредита для Продукта "Ипотека с гос.поддержкой"
B90: Смоленская область | C90: 10516 | I90: Москва, МО, ЛО, С.Петербург | J90: 8000000
B91: Ставропольский край | C91: 8997 | I91: иные регионы | J91: 3000000
B92: Тамбовская область | C92: 9116
B93: Тверская область | C93: 10579 | H93: 11.1.
B94: Томская область | C94: 10997
B95: Тульская область | C95: 9897 | I95: Ограничение по максимальной сумме кредита для иных продуктов
B96: Тюменская область | C96: 10674 | J96: Массив: Москва | O96: Массив: Иное | T96: Массив: ЛО
B97: Удмуртская Республика | C97: 9075 | J97: 0.5001 | K97: 0.6001 | L97: 0.7001 | M97: 0.8001 | N97: 0.9001 | O97: 0.5001 | P97: 0.6001 | Q97: 0.7001 | R97: 0.8001 | S97: 0.9001 | T97: 0.5001 | U97: 0.6001 | V97: 0.7001 | W97: 0.8001 | X97: 0.9001
B98: Ульяновская область | C98: 9900 | I98: =B3 -> Приобретение готового жилья | J98: 20000000 | K98: 20000000 | L98: 20000000 | M98: 20000000 | N98: 20000000 | O98: 10000000 | P98: 10000000 | Q98: 10000000 | R98: 10000000 | S98: 10000000 | T98: 10000000 | U98: 10000000 | V98: 10000000 | W98: 10000000 | X98: 10000000
B99: Хабаровский край | C99: 13799 | D99: Выбрать соц. категорию: Квартира в ДФО | I99: =B4 -> Приобретение жилья на этапе строительства | J99: 20000000 | K99: 20000000 | L99: 20000000 | M99: 20000000 | N99: 20000000 | O99: 10000000 | P99: 10000000 | Q99: 10000000 | R99: 10000000 | S99: 10000000 | T99: 10000000 | U99: 10000000 | V99: 10000000 | W99: 10000000 | X99: 10000000
B100: Ханты-Мансийский авт.округ - Югра | C100: 15427 | I100: =B5 -> Семейная ипотека с гос.поддержкой | J100: 8000000 | K100: 8000000 | L100: 8000000 | M100: 8000000 | N100: 8000000 | O100: 3000000 | P100: 3000000 | Q100: 3000000 | R100: 3000000 | S100: 3000000 | T100: 8000000 | U100: 8000000 | V100: 8000000 | W100: 8000000 | X100: 8000000
B101: Челябинская область | C101: 9945 | I101: =B6 -> Целевой кредит под залог имеющейся квартиры | J101: 20000000 | K101: 20000000 | L101: 20000000 | M101: 20000000 | N101: 20000000 | O101: 10000000 | P101: 10000000 | Q101: 10000000 | R101: 10000000 | S101: 10000000 | T101: 10000000 | U101: 10000000 | V101: 10000000 | W101: 10000000 | X101: 10000000
B102: Чеченская Республика | C102: 10080 | I102: =B7 -> Перекредитование | J102: 20000000 | K102: 20000000 | L102: 20000000 | M102: 20000000 | N102: 20000000 | O102: 10000000 | P102: 10000000 | Q102: 10000000 | R102: 10000000 | S102: 10000000 | T102: 10000000 | U102: 10000000 | V102: 10000000 | W102: 10000000 | X102: 10000000
B103: Чувашская Республика | C103: 8931
B104: Чукотский авт.округ | C104: 20157 | D104: Выбрать соц. категорию: Квартира в ДФО
B105: Ямало-Ненецкий авт.округ | C105: 16603
B106: Ярославская область | C106: 10004
H107: 11.2.
I110: Расчет ограчения максимальной суммы кредита для продукта "Ипотека с гос.поддержкой"
I111: Регион | J111: Максимальная сумма
I112: =IFERROR(VLOOKUP('Расчет по доходу заемщика'!$E$3,'Справочники и промежут.расчет'!$I$17:$J$20,2,0),'Расчет по доходу заемщика'!$E$3) -> Нижегородская область | J112: =IF(OR(I112="Москва",I112="МО",I112="С.Петербург",I112="ЛО"),J90,J91) -> 3000000
H113: 11.3.
I116: Расчет ограчения максимальной суммы кредита для иных продуктов
I117: Регион | J117: Продукт | L117: К/З | M117: Массив | N117: строка | O117: столбец | Q117: Максимальная сумма
H118: 11.4. | I118: =IFERROR(VLOOKUP('Расчет по доходу заемщика'!$E$3,'Справочники и промежут.расчет'!$I$17:$J$20,2,0),"Иное") -> Иное | J118: ='Расчет по доходу заемщика'!$E$2 -> Перекредитование | L118: =1-'Расчет по доходу заемщика'!$E$27 -> 0.5 | M118: =IF(OR($I$118=$J$18,$I$118=$J$19,$I$118=$J$17),"Москва",IF($I$118=$J$20,"ЛО","Иное")) -> Иное | N118: =MATCH($J$118,$I$98:$I$104,0) -> 5 | O118: =IFERROR(MATCH($L$118,$J$97:$N$97),0)+1 -> 1 | Q118: =INDEX(IF(M118="ЛО",ЛО,IF(M118="Москва",Москва,Иное)),N118,O118) -> 10000000
I121: Органичение максимальной суммы кредита по продукту
H122: 12 | I122: Продукт | J122: Сумма
I123: ='Расчет по доходу заемщика'!$E$2 -> Перекредитование | J123: =IF($I$123=$B$5,$J$112,$Q$118) -> 10000000
H125: 13 | I125: Минимальная сумма кредита
I126: 500000
H127: 14
I128: Максимальный срок кредита, лет
I129: 30
H130: 15 | I130: Максимальный возраст заемщика на дату окончания срока кредита, лет
I131: 65
I133: Коэффициент учета ПМ на 1 несовершеннолетнего ребенка
H134: 16 | I134: 0.25
I136: Коэффициент платежа для опции | J136: =IF(AND('Калькулятор_от дохода'!$P$20="да",OR('Калькулятор_от дохода'!$P$12=$B$4,'Калькулятор_от дохода'!$P$12=$B$7,'Калькулятор_от дохода'!$P$12=$B$3)),I138,J138) -> 1
I137: переменная ставка | J137: стандартный продукт
I138: 0.95 | J138: 1
H140: 17 | I140: Вид дохода
I141: =IF(AND('Калькулятор_от дохода'!$P$32='Калькулятор_от дохода'!$V$115,'Калькулятор_от дохода'!$R$32='Калькулятор_от дохода'!$V$115,'Калькулятор_от дохода'!$T$32='Калькулятор_от дохода'!$V$115,'Калькулятор_от дохода'!$V$32='Калькулятор_от дохода'!$V$115),'Калькулятор_от дохода'!V115,"Иное") -> Работа по найму
H144: 18 | I144: Сочетание отдельных продуктов и опций
J145: Приобретение готового жилья | K145: Приобретение жилья на этапе строительства | L145: Семейная ипотека с гос.поддержкой | M145: Перекредитование | N145: Целевой кредит под залог имеющейся квартиры | O145: Военная ипотека
I146: Переменая ставка | J146: 1 | K146: 1 | L146: -1 | M146: 1 | N146: -1 | O146: -1
I147: Мат.капитал | J147: 1 | K147: 1 | L147: -1 | M147: -1 | N147: -1 | O147: -1
I148: Справка о доходах по форме кредитора | J148: 1 | K148: 1 | L148: 1 | M148: 1 | N148: 1 | O148: -1
I149: Аппартаменты | J149: 1 | K149: 1 | L149: -1 | M149: 1 | N149: -1 | O149: -1
I150: Вычет от контрагента | J150: 1 | K150: 1 | L150: -1 | M150: 1 | N150: 1 | O150: 1
I151: Легкая ипотека | J151: 1 | K151: 1 | L151: 1 | M151: 1 | N151: -1 | O151: -1
H153: 18.1 | I153: Проверка сочетаемости продукта и опции | K153: выбранный продукт | L153: выбор опции
J154: решение о возможности применения | K154: ='Калькулятор_от дохода'!$P$12 -> Перекредитование | L154: Переменая ставка | M154: Мат.капитал | N154: Справка о доходах по форме кредитора | O154: Аппартаменты | P154: Вычет от контрагента | Q154: Легкая ипотека
L155: ='Калькулятор_от дохода'!$P$20 -> НЕТ | M155: ='Калькулятор_от дохода'!$P$16 -> НЕТ | N155: ='Калькулятор_от дохода'!$P$18 -> НЕТ | O155: ='Калькулятор_от дохода'!$P$22 -> НЕТ | P155: ='Калькулятор_от дохода'!$P$26 -> НЕТ | Q155: ='Калькулятор_от дохода'!P24 -> НЕТ
I156: Переменая ставка | J156: =IF(COUNTIF(K156:Q156,"<"&"0")>0,"!","") ->  | K156: =HLOOKUP($K$154,$J$145:$O$151,2,0) -> 1 | L156: =HLOOKUP(L$154,$J$163:$O$169,2,0)*IF(L$155="нет",0,1) -> 0 | M156: 0 | N156: 0 | O156: 0 | P156: 0 | Q156: 0
I157: Мат.капитал | J157: =IF(COUNTIF(K157:Q157,"<"&"0")>0,"!","") -> ! | K157: =HLOOKUP($K$154,$J$145:$O$151,3,0) -> -1 | L157: =HLOOKUP(L$154,$J$163:$O$169,3,0)*IF(L$155="нет",0,1) -> 0 | M157: 0 | N157: 0 | O157: 0 | P157: 0 | Q157: 0
I158: Справка о доходах по форме кредитора | K158: =HLOOKUP($K$154,$J$145:$O$151,4,0) -> 1 | L158: =HLOOKUP(L$154,$J$163:$O$169,4,0)*IF(L$155="нет",0,1) -> 0 | M158: 0 | N158: 0 | O158: 0 | P158: 0 | Q158: 0
I159: Аппартаменты | K159: =HLOOKUP($K$154,$J$145:$O$151,5,0) -> 1 | L159: =HLOOKUP(L$154,$J$163:$O$169,5,0)*IF(L$155="нет",0,1) -> 0 | M159: 0 | N159: 0 | O159: 0 | P159: 0 | Q159: 0
I160: Вычет от контрагента | K160: =HLOOKUP($K$154,$J$145:$O$151,6,0) -> 1 | L160: =HLOOKUP(L$154,$J$163:$O$169,6,0)*IF(L$155="нет",0,1) -> 0 | M160: =HLOOKUP(M$154,$J$163:$O$169,6,0)*IF(M$155="нет",0,1) -> 0 | N160: =HLOOKUP(N$154,$J$163:$O$169,6,0)*IF(N$155="нет",0,1) -> 0 | O160: =HLOOKUP(O$154,$J$163:$O$169,6,0)*IF(O$155="нет",0,1) -> 0 | P160: =HLOOKUP(P$154,$J$163:$O$169,6,0)*IF(P$155="нет",0,1) -> 0 | Q160: =HLOOKUP(Q$154,$J$163:$O$169,6,0)*IF(Q$155="нет",0,1) -> 0
I161: Легкая ипотека | J161: =IF(COUNTIF(K161:Q161,"<"&"0")>0,"!","") ->  | K161: =HLOOKUP($K$154,$J$145:$O$151,7,0) -> 1 | L161: =HLOOKUP(L$154,$J$163:$O$169,7,0)*IF(L$155="нет",0,1) -> 0 | M161: 0 | N161: 0 | O161: 0 | P161: 0 | Q161: 0
H162: 19 | I162: Сочетение опций между собой
J163: Переменая ставка | K163: Мат.капитал | L163: Справка о доходах по форме кредитора | M163: Аппартаменты | N163: Вычет от контрагента | O163: Легкая ипотека
I164: Переменая ставка | J164: 1 | K164: -1 | L164: 1 | M164: -1 | N164: -1 | O164: 1
I165: Мат.капитал | J165: -1 | K165: 1 | L165: 1 | M165: -1 | N165: 1 | O165: -1
I166: Справка о доходах по форме кредитора | J166: 1 | K166: 1 | L166: 1 | M166: 1 | N166: 1 | O166: -1
I167: Аппартаменты | J167: -1 | K167: -1 | L167: 1 | M167: 1 | N167: 1 | O167: -1
I168: Вычет от контрагента | J168: -1 | K168: 1 | L168: 1 | M168: 1 | N168: 1 | O168: 1
I169: Легкая ипотека | J169: 1 | K169: -1 | L169: -1 | M169: -1 | N169: 1 | O169: 1

Sheet График_польз.срок (hidden)
B2: Параметр | D2: Значение
B3: Сумма кредита | D3: ='Калькулятор_от дохода'!$N$66 -> 1000000
B4: Первоначальный срок, мес. | D4: ='Расчет по доходу заемщика'!$E$41 -> 228
B5: Ежемесячный платеж | D5: ='Калькулятор_от дохода'!$N$72 -> 9200
B6: Расчетный период полного погашения | D6: =MATCH(0,K12:K372,0)-1 -> 228
B7: остаток долга на конец срока кредита | D7: =VLOOKUP(D4+1,$F$12:$L$263,4) -> 0.099
B8: Переплата | D8: =SUM($J$12:$J$311)-D3 -> 1313723.154 | M8: График платежей
B9: дата выдачи | D9: ='Калькулятор_от дохода'!$V$20 -> 2018-03-01
G10: Последняя дата процентного периода | H10: Кол-во дней в процентном периоде | I10: Ставка для расчетов | J10: Ежемесячный платеж | K10: Общий долг на начало | L10: Остаток кредита на начало | M10: Накопленные %% на начало | N10: Начислено за месяц | O10: Погашение кредита | P10: Погашение текущих % | Q10: Погашение накопленных %% | R10: Формирование накопленных %% | S10: Остаток кредита на конец периода | T10: Накопленные %% на конец периода
F11: 1 | G11: 2 | H11: 3 | I11: 2 | J11: 3 | K11: 4 | L11: 5 | M11: 6 | N11: 7 | O11: 8 | P11: 9 | Q11: 10 | R11: 11 | S11: 12 | T11: 13
F12: 1 | G12: =EOMONTH($D$9,F12-1) -> 2018-03-31 | H12: =G12-D9 -> 30 | I12: =VLOOKUP(G12,'Прогноз переменной ставки'!$B$5:$E$304,4,1) -> 0.0698 | J12: =IF(F12=$D$4,K12+N12,MIN($D$5,K12+N12)) -> 9200 | K12: =L12+M12 -> 1000000 | L12: =D3 -> 1000000 | M12: 0 | N12: =L12*I12/365.25*H12 -> 5733.059548 | O12: =MIN(J12-Q12-P12,L12) -> 3466.940452 | P12: =MIN(J12-Q12,N12) -> 5733.059548 | Q12: =MIN(J12,M12) -> 0 | R12: =MAX(N12-P12,0) -> 0 | S12: =L12-O12 -> 996533.0595 | T12: =M12+R12-Q12 -> 0
F13: 2 | G13: =EOMONTH($D$9,F13-1) -> 2018-04-30 | H13: =G13-G12 -> 30 | I13: =VLOOKUP(G13,'Прогноз переменной ставки'!$B$5:$E$304,4,1) -> 0.0698 | J13: =IF(F13=$D$4,K13+N13,MIN($D$5,K13+N13)) -> 9200 | K13: =L13+M13 -> 996533.0595 | L13: =S12 -> 996533.0595 | M13: =T12 -> 0 | N13: =L13*I13/365.25*H13 -> 5713.183372 | O13: 3486.816628 | P13: 5713.183372 | Q13: 0 | R13: =MAX(N13-P13,0) -> 0 | S13: 993046.2429 | T13: 0
F14: 3 | G14: 2018-05-31 | H14: =G14-G13 -> 31 | I14: =VLOOKUP(G14,'Прогноз переменной ставки'!$B$5:$E$304,4,1) -> 0.0698 | J14: 9200 | K14: 993046.2429 | L14: =S13 -> 993046.2429 | M14: 0 | N14: 5882.966353 | O14: 3317.033647 | P14: 5882.966353 | Q14: 0 | R14: =MAX(N14-P14,0) -> 0 | S14: 989729.2093 | T14: 0
F15: 4 | G15: 2018-06-30 | H15: 30 | I15: =VLOOKUP(G15,'Прогноз переменной ставки'!$B$5:$E$304,4,1) -> 0.0698 | J15: 9200 | K15: 989729.2093 | L15: 989729.2093 | M15: 0 | N15: 5674.176493 | O15: 3525.823507 | P15: 5674.176493 | Q15: 0 | R15: 0 | S15: 986203.3858 | T15: 0
F16: 5 | G16: 2018-07-31 | H16: 31 | I16: =VLOOKUP(G16,'Прогноз переменной ставки'!$B$5:$E$304,4,1) -> 0.0698 | J16: 9200 | K16: 986203.3858 | L16: 986203.3858 | M16: 0 | N16: 5842.428162 | O16: 3357.571838 | P16: 5842.428162 | Q16: 0 | R16: 0 | S16: 982845.8139 | T16: 0
F17: 6 | G17: 2018-08-31 | H17: 31 | I17: =VLOOKUP(G17,'Прогноз переменной ставки'!$B$5:$E$304,4,1) -> 0.0698 | J17: 9200 | K17: 982845.8139 | L17: 982845.8139 | M17: 0 | N17: 5822.537364 | O17: 3377.462636 | P17: 5822.537364 | Q17: 0 | R17: 0 | S17: 979468.3513 | T17: 0
F18: 7 | G18: 2018-09-30 | H18: 30 | I18: =VLOOKUP(G18,'Прогноз переменной ставки'!$B$5:$E$304,4,1) -> 0.0698 | J18: 9200 | K18: 979468.3513 | L18: =S17 -> 979468.3513 | M18: =T17 -> 0 | N18: 5615.350384 | O18: 3584.649616 | P18: 5615.350384 | Q18: 0 | R18: =MAX(N18-P18,0) -> 0 | S18: 975883.7017 | T18: 0
F19: 8 | G19: 2018-10-31 | H19: 31 | I19: =VLOOKUP(G19,'Прогноз переменной ставки'!$B$5:$E$304,4,1) -> 0.0698 | J19: 9200 | K19: 975883.7017 | L19: =S18 -> 975883.7017 | M19: =T18 -> 0 | N19: 5781.292686 | O19: 3418.707314 | P19: 5781.292686 | Q19: 0 | R19: 0 | S19: 972464.9944 | T19: 0
F20: 9 | G20: 2018-11-30 | H20: 30 | I20: =VLOOKUP(G20,'Прогноз переменной ставки'!$B$5:$E$304,4,1) -> 0.0698 | J20: 9200 | K20: 972464.9944 | L20: 972464.9944 | M20: 0 | N20: 5575.199721 | O20: 3624.800279 | P20: 5575.199721 | Q20: 0 | R20: 0 | S20: 968840.1941 | T20: 0
F21: 10 | G21: 2018-12-31 | H21: 31 | I21: =VLOOKUP(G21,'Прогноз переменной ставки'!$B$5:$E$304,4,1) -> 0.0698 | J21: 9200 | K21: 968840.1941 | L21: 968840.1941 | M21: 0 | N21: 5739.56581 | O21: 3460.43419 | P21: 5739.56581 | Q21: 0 | R21: 0 | S21: 965379.7599 | T21: 0
F22: 11 | G22: 2019-01-31 | H22: 31 | I22: =VLOOKUP(G22,'Прогноз переменной ставки'!$B$5:$E$304,4,1) -> 0.099 | J22: 9200 | K22: 965379.7599 | L22: 965379.7599 | M22: 0 | N22: 8111.568742 | O22: 1088.431258 | P22: 8111.568742 | Q22: 0 | R22: 0 | S22: 964291.3286 | T22: 0
F23: 12 | G23: 2019-02-28 | H23: 28 | I23: =VLOOKUP(G23,'Прогноз переменной ставки'!$B$5:$E$304,4,1) -> 0.099 | J23: 9200 | K23: 964291.3286 | L23: 964291.3286 | M23: 0 | N23: 7318.317763 | O23: 1881.682237 | P23: 7318.317763 | Q23: 0 | R23: 0 | S23: 962409.6464 | T23: 0
F24: 13 | G24: 2019-03-31 | H24: 31 | I24: =VLOOKUP(G24,'Прогноз переменной ставки'!$B$5:$E$304,4,1) -> 0.099 | J24: 9200 | K24: 962409.6464 | L24: =S23 -> 962409.6464 | M24: =T23 -> 0 | N24: 8086.61247 | O24: 1113.38753 | P24: 8086.61247 | Q24: 0 | R24: 0 | S24: 961296.2589 | T24: 0
F25: 14 | G25: 2019-04-30 | H25: 30 | I25: =VLOOKUP(G25,'Прогноз переменной ставки'!$B$5:$E$304,4,1) -> 0.099 | J25: 9200 | K25: 961296.2589 | L25: 961296.2589 | M25: 0 | N25: 7816.700585 | O25: 1383.299415 | P25: 7816.700585 | Q25: 0 | R25: 0 | S25: 959912.9595 | T25: 0
F26: 15 | G26: 2019-05-31 | H26: 31 | I26: =VLOOKUP(G26,'Прогноз переменной ставки'!$B$5:$E$304,4,1) -> 0.099 | J26: 9200 | K26: 959912.9595 | L26: 959912.9595 | M26: 0 | N26: 8065.634148 | O26: 1134.365852 | P26: 8065.634148 | Q26: 0 | R26: 0 | S26: 958778.5936 | T26: 0
F27: 16 | G27: 2019-06-30 | H27: 30 | I27: =VLOOKUP(G27,'Прогноз переменной ставки'!$B$5:$E$304,4,1) -> 0.099 | J27: 9200 | K27: 958778.5936 | L27: 958778.5936 | M27: 0 | N27: 7796.2284 | O27: 1403.7716 | P27: 7796.2284 | Q27: 0 | R27: 0 | S27: 957374.822 | T27: 0
F28: 17 | G28: 2019-07-31 | H28: 31 | I28: =VLOOKUP(G28,'Прогноз переменной ставки'!$B$5:$E$304,4,1) -> 0.099 | J28: 9200 | K28: 957374.822 | L28: 957374.822 | M28: 0 | N28: 8044.307539 | O28: 1155.692461 | P28: 8044.307539 | Q28: 0 | R28: 0 | S28: 956219.1295 | T28: 0
F29: 18 | G29: 2019-08-31 | H29: 31 | I29: =VLOOKUP(G29,'Прогноз переменной ставки'!$B$5:$E$304,4,1) -> 0.099 | J29: 9200 | K29: 956219.1295 | L29: 956219.1295 | M29: 0 | N29: 8034.596875 | O29: 1165.403125 | P29: 8034.596875 | Q29: 0 | R29: 0 | S29: 955053.7264 | T29: 0
F30: 19 | G30: 2019-09-30 | H30: 30 | I30: =VLOOKUP(G30,'Прогноз переменной ставки'!$B$5:$E$304,4,1) -> 0.099 | J30: 9200 | K30: 955053.7264 | L30: 955053.7264 | M30: 0 | N30: 7765.939952 | O30: 1434.060048 | P30: 7765.939952 | Q30: 0 | R30: 0 | S30: 953619.6664 | T30: 0
F31: 20 | G31: 2019-10-31 | H31: 31 | I31: =VLOOKUP(G31,'Прогноз переменной ставки'!$B$5:$E$304,4,1) -> 0.099 | J31: 9200 | K31: 953619.6664 | L31: 953619.6664 | M31: 0 | N31: 8012.754979 | O31: 1187.245021 | P31: 8012.754979 | Q31: 0 | R31: 0 | S31: 952432.4213 | T31: 0
F32: 21 | G32: 2019-11-30 | H32: 30 | I32: =VLOOKUP(G32,'Прогноз переменной ставки'!$B$5:$E$304,4,1) -> 0.099 | J32: 9200 | K32: 952432.4213 | L32: 952432.4213 | M32: 0 | N32: 7744.625028 | O32: 1455.374972 | P32: 7744.625028 | Q32: 0 | R32: 0 | S32: 950977.0464 | T32: 0
F33: 22 | G33: 2019-12-31 | H33: 31 | I33: =VLOOKUP(G33,'Прогноз переменной ставки'!$B$5:$E$304,4,1) -> 0.099 | J33: 9200 | K33: 950977.0464 | L33: 950977.0464 | M33: 0 | N33: 7990.550459 | O33: 1209.449541 | P33: 7990.550459 | Q33: 0 | R33: 0 | S33: 949767.5968 | T33: 0
F34: 23 | G34: 2020-01-31 | H34: 31 | I34: =VLOOKUP(G34,'Прогноз переменной ставки'!$B$5:$E$304,4,1) -> 0.099 | J34: 9200 | K34: 949767.5968 | L34: 949767.5968 | M34: 0 | N34: 7980.388103 | O34: 1219.611897 | P34: 7980.388103 | Q34: 0 | R34: 0 | S34: 948547.9849 | T34: 0
F35: 24 | G35: 2020-02-29 | H35: 29 | I35: =VLOOKUP(G35,'Прогноз переменной ставки'!$B$5:$E$304,4,1) -> 0.099 | J35: 9200 | K35: 948547.9849 | L35: 948547.9849 | M35: 0 | N35: 7455.937754 | O35: 1744.062246 | P35: 7455.937754 | Q35: 0 | R35: 0 | S35: 946803.9227 | T35: 0
F36: 25 | G36: 2020-03-31 | H36: 31 | I36: =VLOOKUP(G36,'Прогноз переменной ставки'!$B$5:$E$304,4,1) -> 0.099 | J36: 9200 | K36: 946803.9227 | L36: 946803.9227 | M36: 0 | N36: 7955.485938 | O36: 1244.514062 | P36: 7955.485938 | Q36: 0 | R36: 0 | S36: 945559.4086 | T36: 0
F37: 26 | G37: 2020-04-30 | H37: 30 | I37: =VLOOKUP(G37,'Прогноз переменной ставки'!$B$5:$E$304,4,1) -> 0.099 | J37: 9200 | K37: 945559.4086 | L37: 945559.4086 | M37: 0 | N37: 7688.737696 | O37: 1511.262304 | P37: 7688.737696 | Q37: 0 | R37: 0 | S37: 944048.1463 | T37: 0
F38: 27 | G38: 2020-05-31 | H38: 31 | I38: =VLOOKUP(G38,'Прогноз переменной ставки'!$B$5:$E$304,4,1) -> 0.099 | J38: 9200 | K38: 944048.1463 | L38: 944048.1463 | M38: 0 | N38: 7932.330626 | O38: 1267.669374 | P38: 7932.330626 | Q38: 0 | R38: 0 | S38: 942780.477 | T38: 0
F39: 28 | G39: 2020-06-30 | H39: 30 | I39: =VLOOKUP(G39,'Прогноз переменной ставки'!$B$5:$E$304,4,1) -> 0.099 | J39: 9200 | K39: 942780.477 | L39: 942780.477 | M39: 0 | N39: 7666.141045 | O39: 1533.858955 | P39: 7666.141045 | Q39: 0 | R39: 0 | S39: 941246.618 | T39: 0
F40: 29 | G40: 2020-07-31 | H40: 31 | I40: =VLOOKUP(G40,'Прогноз переменной ставки'!$B$5:$E$304,4,1) -> 0.099 | J40: 9200 | K40: 941246.618 | L40: 941246.618 | M40: 0 | N40: 7908.790885 | O40: 1291.209115 | P40: 7908.790885 | Q40: 0 | R40: 0 | S40: 939955.4089 | T40: 0
F41: 30 | G41: 2020-08-31 | H41: 31 | I41: =VLOOKUP(G41,'Прогноз переменной ставки'!$B$5:$E$304,4,1) -> 0.099 | J41: 9200 | K41: 939955.4089 | L41: 939955.4089 | M41: 0 | N41: 7897.941546 | O41: 1302.058454 | P41: 7897.941546 | Q41: 0 | R41: 0 | S41: 938653.3504 | T41: 0
F42: 31 | G42: 2020-09-30 | H42: 30 | I42: =VLOOKUP(G42,'Прогноз переменной ставки'!$B$5:$E$304,4,1) -> 0.099 | J42: 9200 | K42: 938653.3504 | L42: 938653.3504 | M42: 0 | N42: 7632.581659 | O42: 1567.418341 | P42: 7632.581659 | Q42: 0 | R42: 0 | S42: 937085.9321 | T42: 0
F43: 32 | G43: 2020-10-31 | H43: 31 | I43: =VLOOKUP(G43,'Прогноз переменной ставки'!$B$5:$E$304,4,1) -> 0.099 | J43: 9200 | K43: 937085.9321 | L43: 937085.9321 | M43: 0 | N43: 7873.830871 | O43: 1326.169129 | P43: 7873.830871 | Q43: 0 | R43: 0 | S43: 935759.763 | T43: 0
F44: 33 | G44: 2020-11-30 | H44: 30 | I44: =VLOOKUP(G44,'Прогноз переменной ставки'!$B$5:$E$304,4,1) -> 0.099 | J44: 9200 | K44: 935759.763 | L44: 935759.763 | M44: 0 | N44: 7609.052693 | O44: 1590.947307 | P44: 7609.052693 | Q44: 0 | R44: 0 | S44: 934168.8157 | T44: 0
F45: 34 | G45: 2020-12-31 | H45: 31 | I45: =VLOOKUP(G45,'Прогноз переменной ставки'!$B$5:$E$304,4,1) -> 0.099 | J45: 9200 | K45: 934168.8157 | L45: 934168.8157 | M45: 0 | N45: 7849.319905 | O45: 1350.680095 | P45: 7849.319905 | Q45: 0 | R45: 0 | S45: 932818.1356 | T45: 0
F46: 35 | G46: 2021-01-31 | H46: 31 | I46: =VLOOKUP(G46,'Прогноз переменной ставки'!$B$5:$E$304,4,1) -> 0.099 | J46: 9200 | K46: 932818.1356 | L46: 932818.1356 | M46: 0 | N46: 7837.970864 | O46: 1362.029136 | P46: 7837.970864 | Q46: 0 | R46: 0 | S46: 931456.1064 | T46: 0
F47: 36 | G47: 2021-02-28 | H47: 28 | I47: =VLOOKUP(G47,'Прогноз переменной ставки'!$B$5:$E$304,4,1) -> 0.099 | J47: 9200 | K47: 931456.1064 | L47: 931456.1064 | M47: 0 | N47: 7069.120676 | O47: 2130.879324 | P47: 7069.120676 | Q47: 0 | R47: 0 | S47: 929325.2271 | T47: 0
F48: 37 | G48: 2021-03-31 | H48: 31 | I48: =VLOOKUP(G48,'Прогноз переменной ставки'!$B$5:$E$304,4,1) -> 0.099 | J48: 9200 | K48: 929325.2271 | L48: 929325.2271 | M48: 0 | N48: 7808.621826 | O48: 1391.378174 | P48: 7808.621826 | Q48: 0 | R48: 0 | S48: 927933.8489 | T48: 0
F49: 38 | G49: 2021-04-30 | H49: 30 | I49: =VLOOKUP(G49,'Прогноз переменной ставки'!$B$5:$E$304,4,1) -> 0.099 | J49: 9200 | K49: 927933.8489 | L49: 927933.8489 | M49: 0 | N49: 7545.416923 | O49: 1654.583077 | P49: 7545.416923 | Q49: 0 | R49: 0 | S49: 926279.2658 | T49: 0
F50: 39 | G50: 2021-05-31 | H50: 31 | I50: =VLOOKUP(G50,'Прогноз переменной ставки'!$B$5:$E$304,4,1) -> 0.099 | J50: 9200 | K50: 926279.2658 | L50: 926279.2658 | M50: 0 | N50: 7783.028246 | O50: 1416.971754 | P50: 7783.028246 | Q50: 0 | R50: 0 | S50: 924862.2941 | T50: 0
F51: 40 | G51: 2021-06-30 | H51: 30 | I51: =VLOOKUP(G51,'Прогноз переменной ставки'!$B$5:$E$304,4,1) -> 0.099 | J51: 9200 | K51: 924862.2941 | L51: 924862.2941 | M51: 0 | N51: 7520.440831 | O51: 1679.559169 | P51: 7520.440831 | Q51: 0 | R51: 0 | S51: 923182.7349 | T51: 0
F52: 41 | G52: 2021-07-31 | H52: 31 | I52: =VLOOKUP(G52,'Прогноз переменной ставки'!$B$5:$E$304,4,1) -> 0.099 | J52: 9200 | K52: 923182.7349 | L52: 923182.7349 | M52: 0 | N52: 7757.009756 | O52: 1442.990244 | P52: 7757.009756 | Q52: 0 | R52: 0 | S52: 921739.7447 | T52: 0
F53: 42 | G53: 2021-08-31 | H53: 31 | I53: =VLOOKUP(G53,'Прогноз переменной ставки'!$B$5:$E$304,4,1) -> 0.099 | J53: 9200 | K53: 921739.7447 | L53: 921739.7447 | M53: 0 | N53: 7744.885083 | O53: 1455.114917 | P53: 7744.885083 | Q53: 0 | R53: 0 | S53: 920284.6298 | T53: 0
F54: 43 | G54: 2021-09-30 | H54: 30 | I54: =VLOOKUP(G54,'Прогноз переменной ставки'!$B$5:$E$304,4,1) -> 0.099 | J54: 9200 | K54: 920284.6298 | L54: 920284.6298 | M54: 0 | N54: 7483.217934 | O54: 1716.782066 | P54: 7483.217934 | Q54: 0 | R54: 0 | S54: 918567.8477 | T54: 0
F55: 44 | G55: 2021-10-31 | H55: 31 | I55: =VLOOKUP(G55,'Прогноз переменной ставки'!$B$5:$E$304,4,1) -> 0.099 | J55: 9200 | K55: 918567.8477 | L55: 918567.8477 | M55: 0 | N55: 7718.233332 | O55: 1481.766668 | P55: 7718.233332 | Q55: 0 | R55: 0 | S55: 917086.081 | T55: 0
F56: 45 | G56: 2021-11-30 | H56: 30 | I56: =VLOOKUP(G56,'Прогноз переменной ставки'!$B$5:$E$304,4,1) -> 0.099 | J56: 9200 | K56: 917086.081 | L56: 917086.081 | M56: 0 | N56: 7457.209201 | O56: 1742.790799 | P56: 7457.209201 | Q56: 0 | R56: 0 | S56: 915343.2902 | T56: 0
F57: 46 | G57: 2021-12-31 | H57: 31 | I57: =VLOOKUP(G57,'Прогноз переменной ставки'!$B$5:$E$304,4,1) -> 0.099 | J57: 9200 | K57: 915343.2902 | L57: 915343.2902 | M57: 0 | N57: 7691.139104 | O57: 1508.860896 | P57: 7691.139104 | Q57: 0 | R57: 0 | S57: 913834.4293 | T57: 0
F58: 47 | G58: 2022-01-31 | H58: 31 | I58: =VLOOKUP(G58,'Прогноз переменной ставки'!$B$5:$E$304,4,1) -> 0.099 | J58: 9200 | K58: 913834.4293 | L58: 913834.4293 | M58: 0 | N58: 7678.460954 | O58: 1521.539046 | P58: 7678.460954 | Q58: 0 | R58: 0 | S58: 912312.8903 | T58: 0
F59: 48 | G59: 2022-02-28 | H59: 28 | I59: =VLOOKUP(G59,'Прогноз переменной ставки'!$B$5:$E$304,4,1) -> 0.099 | J59: 9200 | K59: 912312.8903 | L59: 912312.8903 | M59: 0 | N59: 6923.836638 | O59: 2276.163362 | P59: 6923.836638 | Q59: 0 | R59: 0 | S59: 910036.7269 | T59: 0
F60: 49 | G60: 2022-03-31 | H60: 31 | I60: =VLOOKUP(G60,'Прогноз переменной ставки'!$B$5:$E$304,4,1) -> 0.099 | J60: 9200 | K60: 910036.7269 | L60: 910036.7269 | M60: 0 | N60: 7646.550896 | O60: 1553.449104 | P60: 7646.550896 | Q60: 0 | R60: 0 | S60: 908483.2778 | T60: 0
F61: 50 | G61: 2022-04-30 | H61: 30 | I61: =VLOOKUP(G61,'Прогноз переменной ставки'!$B$5:$E$304,4,1) -> 0.099 | J61: 9200 | K61: 908483.2778 | L61: 908483.2778 | M61: 0 | N61: 7387.256222 | O61: 1812.743778 | P61: 7387.256222 | Q61: 0 | R61: 0 | S61: 906670.534 | T61: 0
F62: 51 | G62: 2022-05-31 | H62: 31 | I62: =VLOOKUP(G62,'Прогноз переменной ставки'!$B$5:$E$304,4,1) -> 0.099 | J62: 9200 | K62: 906670.534 | L62: 906670.534 | M62: 0 | N62: 7618.266582 | O62: 1581.733418 | P62: 7618.266582 | Q62: 0 | R62: 0 | S62: 905088.8006 | T62: 0
F63: 52 | G63: 2022-06-30 | H63: 30 | I63: =VLOOKUP(G63,'Прогноз переменной ставки'!$B$5:$E$304,4,1) -> 0.099 | J63: 9200 | K63: 905088.8006 | L63: 905088.8006 | M63: 0 | N63: 7359.654313 | O63: 1840.345687 | P63: 7359.654313 | Q63: 0 | R63: 0 | S63: 903248.4549 | T63: 0
F64: 53 | G64: 2022-07-31 | H64: 31 | I64: =VLOOKUP(G64,'Прогноз переменной ставки'!$B$5:$E$304,4,1) -> 0.099 | J64: 9200 | K64: 903248.4549 | L64: 903248.4549 | M64: 0 | N64: 7589.512685 | O64: 1610.487315 | P64: 7589.512685 | Q64: 0 | R64: 0 | S64: 901637.9676 | T64: 0
F65: 54 | G65: 2022-08-31 | H65: 31 | I65: =VLOOKUP(G65,'Прогноз переменной ставки'!$B$5:$E$304,4,1) -> 0.099 | J65: 9200 | K65: 901637.9676 | L65: 901637.9676 | M65: 0 | N65: 7575.980623 | O65: 1624.019377 | P65: 7575.980623 | Q65: 0 | R65: 0 | S65: 900013.9482 | T65: 0
F66: 55 | G66: 2022-09-30 | H66: 30 | I66: =VLOOKUP(G66,'Прогноз переменной ставки'!$B$5:$E$304,4,1) -> 0.099 | J66: 9200 | K66: 900013.9482 | L66: 900013.9482 | M66: 0 | N66: 7318.388573 | O66: 1881.611427 | P66: 7318.388573 | Q66: 0 | R66: 0 | S66: 898132.3368 | T66: 0
F67: 56 | G67: 2022-10-31 | H67: 31 | I67: =VLOOKUP(G67,'Прогноз переменной ставки'!$B$5:$E$304,4,1) -> 0.099 | J67: 9200 | K67: 898132.3368 | L67: 898132.3368 | M67: 0 | N67: 7546.524686 | O67: 1653.475314 | P67: 7546.524686 | Q67: 0 | R67: 0 | S67: 896478.8615 | T67: 0
F68: 57 | G68: 2022-11-30 | H68: 30 | I68: =VLOOKUP(G68,'Прогноз переменной ставки'!$B$5:$E$304,4,1) -> 0.099 | J68: 9200 | K68: 896478.8615 | L68: 896478.8615 | M68: 0 | N68: 7289.643309 | O68: 1910.356691 | P68: 7289.643309 | Q68: 0 | R68: 0 | S68: 894568.5048 | T68: 0
F69: 58 | G69: 2022-12-31 | H69: 31 | I69: =VLOOKUP(G69,'Прогноз переменной ставки'!$B$5:$E$304,4,1) -> 0.099 | J69: 9200 | K69: 894568.5048 | L69: 894568.5048 | M69: 0 | N69: 7516.579716 | O69: 1683.420284 | P69: 7516.579716 | Q69: 0 | R69: 0 | S69: 892885.0845 | T69: 0
F70: 59 | G70: 2023-01-31 | H70: 31 | I70: =VLOOKUP(G70,'Прогноз переменной ставки'!$B$5:$E$304,4,1) -> 0.099 | J70: 9200 | K70: 892885.0845 | L70: 892885.0845 | M70: 0 | N70: 7502.434838 | O70: 1697.565162 | P70: 7502.434838 | Q70: 0 | R70: 0 | S70: 891187.5194 | T70: 0
F71: 60 | G71: 2023-02-28 | H71: 28 | I71: =VLOOKUP(G71,'Прогноз переменной ставки'!$B$5:$E$304,4,1) -> 0.099 | J71: 9200 | K71: 891187.5194 | L71: 891187.5194 | M71: 0 | N71: 6763.509387 | O71: 2436.490613 | P71: 6763.509387 | Q71: 0 | R71: 0 | S71: 888751.0288 | T71: 0
F72: 61 | G72: 2023-03-31 | H72: 31 | I72: =VLOOKUP(G72,'Прогноз переменной ставки'!$B$5:$E$304,4,1) -> 0.099 | J72: 9200 | K72: 888751.0288 | L72: 888751.0288 | M72: 0 | N72: 7467.698582 | O72: 1732.301418 | P72: 7467.698582 | Q72: 0 | R72: 0 | S72: 887018.7273 | T72: 0
F73: 62 | G73: 2023-04-30 | H73: 30 | I73: =VLOOKUP(G73,'Прогноз переменной ставки'!$B$5:$E$304,4,1) -> 0.099 | J73: 9200 | K73: 887018.7273 | L73: 887018.7273 | M73: 0 | N73: 7212.719015 | O73: 1987.280985 | P73: 7212.719015 | Q73: 0 | R73: 0 | S73: 885031.4464 | T73: 0
F74: 63 | G74: 2023-05-31 | H74: 31 | I74: =VLOOKUP(G74,'Прогноз переменной ставки'!$B$5:$E$304,4,1) -> 0.099 | J74: 9200 | K74: 885031.4464 | L74: 885031.4464 | M74: 0 | N74: 7436.444925 | O74: 1763.555075 | P74: 7436.444925 | Q74: 0 | R74: 0 | S74: 883267.8913 | T74: 0
F75: 64 | G75: 2023-06-30 | H75: 30 | I75: =VLOOKUP(G75,'Прогноз переменной ставки'!$B$5:$E$304,4,1) -> 0.099 | J75: 9200 | K75: 883267.8913 | L75: 883267.8913 | M75: 0 | N75: 7182.219403 | O75: 2017.780597 | P75: 7182.219403 | Q75: 0 | R75: 0 | S75: 881250.1107 | T75: 0
F76: 65 | G76: 2023-07-31 | H76: 31 | I76: =VLOOKUP(G76,'Прогноз переменной ставки'!$B$5:$E$304,4,1) -> 0.099 | J76: 9200 | K76: 881250.1107 | L76: 881250.1107 | M76: 0 | N76: 7404.672388 | O76: =MIN(J76-Q76-P76,L76) -> 1795.327612 | P76: =MIN(J76-Q76,N76) -> 7404.672388 | Q76: =MIN(J76,M76) -> 0 | R76: 0 | S76: =L76-O76 -> 879454.7831 | T76: =M76+R76-Q76 -> 0
F77: 66 | G77: =EOMONTH($D$9,F77-1) -> 2023-08-31 | H77: 31 | I77: =VLOOKUP(G77,'Прогноз переменной ставки'!$B$5:$E$304,4,1) -> 0.099 | J77: =IF(F77=$D$4,K77+N77,MIN($D$5,K77+N77)) -> 9200 | K77: =L77+M77 -> 879454.7831 | L77: 879454.7831 | M77: 0 | N77: =L77*I77/365.25*H77 -> 7389.587212 | O77: 1810.412788 | P77: 7389.587212 | Q77: 0 | R77: 0 | S77: 877644.3703 | T77: 0
F78: 67 | G78: 2023-09-30 | H78: =G78-G77 -> 30 | I78: =VLOOKUP(G78,'Прогноз переменной ставки'!$B$5:$E$304,4,1) -> 0.099 | J78: 9200 | K78: 877644.3703 | L78: =S77 -> 877644.3703 | M78: 0 | N78: 7136.49221 | O78: 2063.50779 | P78: 7136.49221 | Q78: 0 | R78: =MAX(N78-P78,0) -> 0 | S78: 875580.8625 | T78: 0
F79: 68 | G79: 2023-10-31 | H79: 31 | I79: =VLOOKUP(G79,'Прогноз переменной ставки'!$B$5:$E$304,4,1) -> 0.099 | J79: 9200 | K79: 875580.8625 | L79: 875580.8625 | M79: 0 | N79: 7357.036734 | O79: 1842.963266 | P79: 7357.036734 | Q79: 0 | R79: 0 | S79: 873737.8992 | T79: 0
F80: 69 | G80: 2023-11-30 | H80: 30 | I80: =VLOOKUP(G80,'Прогноз переменной ставки'!$B$5:$E$304,4,1) -> 0.099 | J80: 9200 | K80: 873737.8992 | L80: 873737.8992 | M80: 0 | N80: 7104.727066 | O80: 2095.272934 | P80: 7104.727066 | Q80: 0 | R80: 0 | S80: 871642.6263 | T80: 0
F81: 70 | G81: 2023-12-31 | H81: 31 | I81: =VLOOKUP(G81,'Прогноз переменной ставки'!$B$5:$E$304,4,1) -> 0.099 | J81: 9200 | K81: 871642.6263 | L81: 871642.6263 | M81: 0 | N81: 7323.945846 | O81: 1876.054154 | P81: 7323.945846 | Q81: 0 | R81: 0 | S81: 869766.5721 | T81: 0
F82: 71 | G82: 2024-01-31 | H82: 31 | I82: =VLOOKUP(G82,'Прогноз переменной ставки'!$B$5:$E$304,4,1) -> 0.099 | J82: 9200 | K82: 869766.5721 | L82: 869766.5721 | M82: 0 | N82: 7308.182368 | O82: 1891.817632 | P82: 7308.182368 | Q82: 0 | R82: 0 | S82: 867874.7545 | T82: 0
F83: 72 | G83: 2024-02-29 | H83: 29 | I83: =VLOOKUP(G83,'Прогноз переменной ставки'!$B$5:$E$304,4,1) -> 0.099 | J83: 9200 | K83: 867874.7545 | L83: 867874.7545 | M83: 0 | N83: 6821.816345 | O83: 2378.183655 | P83: 6821.816345 | Q83: 0 | R83: 0 | S83: 865496.5708 | T83: 0
F84: 73 | G84: 2024-03-31 | H84: 31 | I84: =VLOOKUP(G84,'Прогноз переменной ставки'!$B$5:$E$304,4,1) -> 0.099 | J84: 9200 | K84: 865496.5708 | L84: 865496.5708 | M84: 0 | N84: 7272.303836 | O84: 1927.696164 | P84: 7272.303836 | Q84: 0 | R84: 0 | S84: 863568.8747 | T84: 0
F85: 74 | G85: 2024-04-30 | H85: 30 | I85: =VLOOKUP(G85,'Прогноз переменной ставки'!$B$5:$E$304,4,1) -> 0.099 | J85: 9200 | K85: 863568.8747 | L85: 863568.8747 | M85: 0 | N85: 7022.038488 | O85: 2177.961512 | P85: 7022.038488 | Q85: 0 | R85: 0 | S85: 861390.9132 | T85: 0
F86: 75 | G86: 2024-05-31 | H86: 31 | I86: =VLOOKUP(G86,'Прогноз переменной ставки'!$B$5:$E$304,4,1) -> 0.099 | J86: 9200 | K86: 861390.9132 | L86: 861390.9132 | M86: 0 | N86: 7237.806194 | O86: 1962.193806 | P86: 7237.806194 | Q86: 0 | R86: 0 | S86: 859428.7194 | T86: 0
F87: 76 | G87: 2024-06-30 | H87: 30 | I87: =VLOOKUP(G87,'Прогноз переменной ставки'!$B$5:$E$304,4,1) -> 0.099 | J87: 9200 | K87: 859428.7194 | L87: 859428.7194 | M87: 0 | N87: 6988.37316 | O87: 2211.62684 | P87: 6988.37316 | Q87: 0 | R87: 0 | S87: 857217.0925 | T87: 0
F88: 77 | G88: 2024-07-31 | H88: 31 | I88: =VLOOKUP(G88,'Прогноз переменной ставки'!$B$5:$E$304,4,1) -> 0.099 | J88: 9200 | K88: 857217.0925 | L88: 857217.0925 | M88: 0 | N88: 7202.735816 | O88: 1997.264184 | P88: 7202.735816 | Q88: 0 | R88: 0 | S88: 855219.8283 | T88: 0
F89: 78 | G89: 2024-08-31 | H89: 31 | I89: =VLOOKUP(G89,'Прогноз переменной ставки'!$B$5:$E$304,4,1) -> 0.099 | J89: 9200 | K89: 855219.8283 | L89: 855219.8283 | M89: 0 | N89: 7185.953876 | O89: 2014.046124 | P89: 7185.953876 | Q89: 0 | R89: 0 | S89: 853205.7822 | T89: 0
F90: 79 | G90: 2024-09-30 | H90: 30 | I90: =VLOOKUP(G90,'Прогноз переменной ставки'!$B$5:$E$304,4,1) -> 0.099 | J90: 9200 | K90: 853205.7822 | L90: 853205.7822 | M90: 0 | N90: 6937.771864 | O90: 2262.228136 | P90: 6937.771864 | Q90: 0 | R90: 0 | S90: 850943.5541 | T90: 0
F91: 80 | G91: 2024-10-31 | H91: 31 | I91: =VLOOKUP(G91,'Прогноз переменной ставки'!$B$5:$E$304,4,1) -> 0.099 | J91: 9200 | K91: 850943.5541 | L91: 850943.5541 | M91: 0 | N91: 7150.022635 | O91: 2049.977365 | P91: 7150.022635 | Q91: 0 | R91: 0 | S91: 848893.5767 | T91: 0
F92: 81 | G92: 2024-11-30 | H92: 30 | I92: =VLOOKUP(G92,'Прогноз переменной ставки'!$B$5:$E$304,4,1) -> 0.099 | J92: 9200 | K92: 848893.5767 | L92: 848893.5767 | M92: 0 | N92: 6902.707523 | O92: 2297.292477 | P92: 6902.707523 | Q92: 0 | R92: 0 | S92: 846596.2842 | T92: 0
F93: 82 | G93: 2024-12-31 | H93: 31 | I93: =VLOOKUP(G93,'Прогноз переменной ставки'!$B$5:$E$304,4,1) -> 0.099 | J93: 9200 | K93: 846596.2842 | L93: 846596.2842 | M93: 0 | N93: 7113.494856 | O93: 2086.505144 | P93: 7113.494856 | Q93: 0 | R93: 0 | S93: 844509.7791 | T93: 0
F94: 83 | G94: 2025-01-31 | H94: 31 | I94: =VLOOKUP(G94,'Прогноз переменной ставки'!$B$5:$E$304,4,1) -> 0.099 | J94: 9200 | K94: 844509.7791 | L94: 844509.7791 | M94: 0 | N94: 7095.963072 | O94: 2104.036928 | P94: 7095.963072 | Q94: 0 | R94: 0 | S94: 842405.7422 | T94: 0
F95: 84 | G95: 2025-02-28 | H95: 28 | I95: =VLOOKUP(G95,'Прогноз переменной ставки'!$B$5:$E$304,4,1) -> 0.099 | J95: 9200 | K95: 842405.7422 | L95: 842405.7422 | M95: 0 | N95: 6393.288754 | O95: 2806.711246 | P95: 6393.288754 | Q95: 0 | R95: 0 | S95: 839599.0309 | T95: 0
F96: 85 | G96: 2025-03-31 | H96: 31 | I96: =VLOOKUP(G96,'Прогноз переменной ставки'!$B$5:$E$304,4,1) -> 0.099 | J96: 9200 | K96: 839599.0309 | L96: 839599.0309 | M96: 0 | N96: 7054.700687 | O96: 2145.299313 | P96: 7054.700687 | Q96: 0 | R96: 0 | S96: 837453.7316 | T96: 0
F97: 86 | G97: 2025-04-30 | H97: 30 | I97: =VLOOKUP(G97,'Прогноз переменной ставки'!$B$5:$E$304,4,1) -> 0.099 | J97: 9200 | K97: 837453.7316 | L97: 837453.7316 | M97: 0 | N97: 6809.685374 | O97: 2390.314626 | P97: 6809.685374 | Q97: 0 | R97: 0 | S97: 835063.417 | T97: 0
F98: 87 | G98: 2025-05-31 | H98: 31 | I98: =VLOOKUP(G98,'Прогноз переменной ставки'!$B$5:$E$304,4,1) -> 0.099 | J98: 9200 | K98: 835063.417 | L98: 835063.417 | M98: 0 | N98: 7016.590354 | O98: 2183.409646 | P98: 7016.590354 | Q98: 0 | R98: 0 | S98: 832880.0073 | T98: 0
F99: 88 | G99: 2025-06-30 | H99: 30 | I99: =VLOOKUP(G99,'Прогноз переменной ставки'!$B$5:$E$304,4,1) -> 0.099 | J99: 9200 | K99: 832880.0073 | L99: 832880.0073 | M99: 0 | N99: 6772.494516 | O99: 2427.505484 | P99: 6772.494516 | Q99: 0 | R99: 0 | S99: 830452.5019 | T99: 0
F100: 89 | G100: 2025-07-31 | H100: 31 | I100: =VLOOKUP(G100,'Прогноз переменной ставки'!$B$5:$E$304,4,1) -> 0.099 | J100: 9200 | K100: 830452.5019 | L100: 830452.5019 | M100: 0 | N100: 6977.847305 | O100: 2222.152695 | P100: 6977.847305 | Q100: 0 | R100: 0 | S100: 828230.3492 | T100: 0
F101: 90 | G101: 2025-08-31 | H101: 31 | I101: =VLOOKUP(G101,'Прогноз переменной ставки'!$B$5:$E$304,4,1) -> 0.099 | J101: 9200 | K101: 828230.3492 | L101: 828230.3492 | M101: 0 | N101: 6959.175747 | O101: 2240.824253 | P101: 6959.175747 | Q101: 0 | R101: 0 | S101: 825989.5249 | T101: 0
F102: 91 | G102: 2025-09-30 | H102: 30 | I102: =VLOOKUP(G102,'Прогноз переменной ставки'!$B$5:$E$304,4,1) -> 0.099 | J102: 9200 | K102: 825989.5249 | L102: 825989.5249 | M102: 0 | N102: 6716.465131 | O102: 2483.534869 | P102: 6716.465131 | Q102: 0 | R102: 0 | S102: 823505.99 | T102: 0
F103: 92 | G103: 2025-10-31 | H103: 31 | I103: =VLOOKUP(G103,'Прогноз переменной ставки'!$B$5:$E$304,4,1) -> 0.099 | J103: 9200 | K103: 823505.99 | L103: 823505.99 | M103: 0 | N103: 6919.479489 | O103: 2280.520511 | P103: 6919.479489 | Q103: 0 | R103: 0 | S103: 821225.4695 | T103: 0
F104: 93 | G104: 2025-11-30 | H104: 30 | I104: =VLOOKUP(G104,'Прогноз переменной ставки'!$B$5:$E$304,4,1) -> 0.099 | J104: 9200 | K104: 821225.4695 | L104: 821225.4695 | M104: 0 | N104: 6677.726611 | O104: 2522.273389 | P104: 6677.726611 | Q104: 0 | R104: 0 | S104: 818703.1961 | T104: 0
F105: 94 | G105: 2025-12-31 | H105: 31 | I105: =VLOOKUP(G105,'Прогноз переменной ставки'!$B$5:$E$304,4,1) -> 0.099 | J105: 9200 | K105: 818703.1961 | L105: 818703.1961 | M105: 0 | N105: 6879.124186 | O105: 2320.875814 | P105: 6879.124186 | Q105: 0 | R105: 0 | S105: 816382.3203 | T105: 0
F106: 95 | G106: 2026-01-31 | H106: 31 | I106: =VLOOKUP(G106,'Прогноз переменной ставки'!$B$5:$E$304,4,1) -> 0.099 | J106: 9200 | K106: 816382.3203 | L106: 816382.3203 | M106: 0 | N106: 6859.62311 | O106: 2340.37689 | P106: 6859.62311 | Q106: 0 | R106: 0 | S106: 814041.9434 | T106: 0
F107: 96 | G107: 2026-02-28 | H107: 28 | I107: =VLOOKUP(G107,'Прогноз переменной ставки'!$B$5:$E$304,4,1) -> 0.099 | J107: 9200 | K107: 814041.9434 | L107: 814041.9434 | M107: 0 | N107: 6178.026741 | O107: 3021.973259 | P107: 6178.026741 | Q107: 0 | R107: 0 | S107: 811019.9702 | T107: 0
F108: 97 | G108: 2026-03-31 | H108: 31 | I108: =VLOOKUP(G108,'Прогноз переменной ставки'!$B$5:$E$304,4,1) -> 0.099 | J108: 9200 | K108: 811019.9702 | L108: 811019.9702 | M108: 0 | N108: 6814.566156 | O108: 2385.433844 | P108: 6814.566156 | Q108: 0 | R108: 0 | S108: 808634.5363 | T108: 0
F109: 98 | G109: 2026-04-30 | H109: 30 | I109: =VLOOKUP(G109,'Прогноз переменной ставки'!$B$5:$E$304,4,1) -> 0.099 | J109: 9200 | K109: 808634.5363 | L109: 808634.5363 | M109: 0 | N109: 6575.344484 | O109: 2624.655516 | P109: 6575.344484 | Q109: 0 | R109: 0 | S109: 806009.8808 | T109: 0
F110: 99 | G110: 2026-05-31 | H110: 31 | I110: =VLOOKUP(G110,'Прогноз переменной ставки'!$B$5:$E$304,4,1) -> 0.099 | J110: 9200 | K110: 806009.8808 | L110: 806009.8808 | M110: 0 | N110: 6772.46906 | O110: 2427.53094 | P110: 6772.46906 | Q110: 0 | R110: 0 | S110: 803582.3499 | T110: 0
F111: 100 | G111: 2026-06-30 | H111: 30 | I111: =VLOOKUP(G111,'Прогноз переменной ставки'!$B$5:$E$304,4,1) -> 0.099 | J111: 9200 | K111: 803582.3499 | L111: 803582.3499 | M111: 0 | N111: 6534.26305 | O111: 2665.73695 | P111: 6534.26305 | Q111: 0 | R111: 0 | S111: 800916.6129 | T111: 0
F112: 101 | G112: 2026-07-31 | H112: 31 | I112: =VLOOKUP(G112,'Прогноз переменной ставки'!$B$5:$E$304,4,1) -> 0.099 | J112: 9200 | K112: 800916.6129 | L112: 800916.6129 | M112: 0 | N112: 6729.67306 | O112: 2470.32694 | P112: 6729.67306 | Q112: 0 | R112: 0 | S112: 798446.286 | T112: 0
F113: 102 | G113: 2026-08-31 | H113: 31 | I113: =VLOOKUP(G113,'Прогноз переменной ставки'!$B$5:$E$304,4,1) -> 0.099 | J113: 9200 | K113: 798446.286 | L113: 798446.286 | M113: 0 | N113: 6708.916226 | O113: 2491.083774 | P113: 6708.916226 | Q113: 0 | R113: 0 | S113: 795955.2022 | T113: 0
F114: 103 | G114: 2026-09-30 | H114: 30 | I114: =VLOOKUP(G114,'Прогноз переменной ставки'!$B$5:$E$304,4,1) -> 0.099 | J114: 9200 | K114: 795955.2022 | L114: 795955.2022 | M114: 0 | N114: 6472.243533 | O114: 2727.756467 | P114: 6472.243533 | Q114: 0 | R114: 0 | S114: 793227.4457 | T114: 0
F115: 104 | G115: 2026-10-31 | H115: 31 | I115: =VLOOKUP(G115,'Прогноз переменной ставки'!$B$5:$E$304,4,1) -> 0.099 | J115: 9200 | K115: 793227.4457 | L115: 793227.4457 | M115: 0 | N115: 6665.065109 | O115: 2534.934891 | P115: 6665.065109 | Q115: 0 | R115: 0 | S115: 790692.5109 | T115: 0
F116: 105 | G116: 2026-11-30 | H116: 30 | I116: =VLOOKUP(G116,'Прогноз переменной ставки'!$B$5:$E$304,4,1) -> 0.099 | J116: 9200 | K116: 790692.5109 | L116: 790692.5109 | M116: 0 | N116: 6429.450396 | O116: 2770.549604 | P116: 6429.450396 | Q116: 0 | R116: 0 | S116: 787921.9612 | T116: 0
F117: 106 | G117: 2026-12-31 | H117: 31 | I117: =VLOOKUP(G117,'Прогноз переменной ставки'!$B$5:$E$304,4,1) -> 0.099 | J117: 9200 | K117: 787921.9612 | L117: 787921.9612 | M117: 0 | N117: 6620.485966 | O117: 2579.514034 | P117: 6620.485966 | Q117: 0 | R117: 0 | S117: 785342.4472 | T117: 0
F118: 107 | G118: 2027-01-31 | H118: 31 | I118: =VLOOKUP(G118,'Прогноз переменной ставки'!$B$5:$E$304,4,1) -> 0.099 | J118: 9200 | K118: 785342.4472 | L118: 785342.4472 | M118: 0 | N118: 6598.811692 | O118: 2601.188308 | P118: 6598.811692 | Q118: 0 | R118: 0 | S118: 782741.2589 | T118: 0
F119: 108 | G119: 2027-02-28 | H119: 28 | I119: =VLOOKUP(G119,'Прогноз переменной ставки'!$B$5:$E$304,4,1) -> 0.099 | J119: 9200 | K119: 782741.2589 | L119: 782741.2589 | M119: 0 | N119: 5940.475755 | O119: 3259.524245 | P119: 5940.475755 | Q119: 0 | R119: 0 | S119: 779481.7347 | T119: 0
F120: 109 | G120: 2027-03-31 | H120: 31 | I120: =VLOOKUP(G120,'Прогноз переменной ставки'!$B$5:$E$304,4,1) -> 0.099 | J120: 9200 | K120: 779481.7347 | L120: 779481.7347 | M120: 0 | N120: 6549.567265 | O120: 2650.432735 | P120: 6549.567265 | Q120: 0 | R120: 0 | S120: 776831.3019 | T120: 0
F121: 110 | G121: 2027-04-30 | H121: 30 | I121: =VLOOKUP(G121,'Прогноз переменной ставки'!$B$5:$E$304,4,1) -> 0.099 | J121: 9200 | K121: 776831.3019 | L121: 776831.3019 | M121: 0 | N121: 6316.739129 | O121: 2883.260871 | P121: 6316.739129 | Q121: 0 | R121: 0 | S121: 773948.0411 | T121: 0
F122: 111 | G122: 2027-05-31 | H122: 31 | I122: =VLOOKUP(G122,'Прогноз переменной ставки'!$B$5:$E$304,4,1) -> 0.099 | J122: 9200 | K122: 773948.0411 | L122: 773948.0411 | M122: 0 | N122: 6503.070604 | O122: 2696.929396 | P122: 6503.070604 | Q122: 0 | R122: 0 | S122: 771251.1117 | T122: 0
F123: 112 | G123: 2027-06-30 | H123: 30 | I123: =VLOOKUP(G123,'Прогноз переменной ставки'!$B$5:$E$304,4,1) -> 0.099 | J123: 9200 | K123: 771251.1117 | L123: 771251.1117 | M123: 0 | N123: 6271.364276 | O123: 2928.635724 | P123: 6271.364276 | Q123: 0 | R123: 0 | S123: 768322.4759 | T123: 0
F124: 113 | G124: 2027-07-31 | H124: 31 | I124: =VLOOKUP(G124,'Прогноз переменной ставки'!$B$5:$E$304,4,1) -> 0.099 | J124: 9200 | K124: 768322.4759 | L124: 768322.4759 | M124: 0 | N124: 6455.801995 | O124: 2744.198005 | P124: 6455.801995 | Q124: 0 | R124: 0 | S124: 765578.2779 | T124: 0
F125: 114 | G125: 2027-08-31 | H125: 31 | I125: =VLOOKUP(G125,'Прогноз переменной ставки'!$B$5:$E$304,4,1) -> 0.099 | J125: 9200 | K125: 765578.2779 | L125: 765578.2779 | M125: 0 | N125: 6432.74397 | O125: 2767.25603 | P125: 6432.74397 | Q125: 0 | R125: 0 | S125: 762811.0219 | T125: 0
F126: 115 | G126: 2027-09-30 | H126: 30 | I126: =VLOOKUP(G126,'Прогноз переменной ставки'!$B$5:$E$304,4,1) -> 0.099 | J126: 9200 | K126: 762811.0219 | L126: 762811.0219 | M126: 0 | N126: 6202.734388 | O126: 2997.265612 | P126: 6202.734388 | Q126: 0 | R126: 0 | S126: 759813.7563 | T126: 0
F127: 116 | G127: 2027-10-31 | H127: 31 | I127: =VLOOKUP(G127,'Прогноз переменной ставки'!$B$5:$E$304,4,1) -> 0.099 | J127: 9200 | K127: 759813.7563 | L127: 759813.7563 | M127: 0 | N127: 6384.307784 | O127: 2815.692216 | P127: 6384.307784 | Q127: 0 | R127: 0 | S127: 756998.0641 | T127: 0
F128: 117 | G128: 2027-11-30 | H128: 30 | I128: =VLOOKUP(G128,'Прогноз переменной ставки'!$B$5:$E$304,4,1) -> 0.099 | J128: 9200 | K128: 756998.0641 | L128: 756998.0641 | M128: 0 | N128: 6155.466804 | O128: 3044.533196 | P128: 6155.466804 | Q128: 0 | R128: 0 | S128: 753953.5309 | T128: 0
F129: 118 | G129: 2027-12-31 | H129: 31 | I129: =VLOOKUP(G129,'Прогноз переменной ставки'!$B$5:$E$304,4,1) -> 0.099 | J129: 9200 | K129: 753953.5309 | L129: 753953.5309 | M129: 0 | N129: 6335.06745 | O129: 2864.93255 | P129: 6335.06745 | Q129: 0 | R129: 0 | S129: 751088.5983 | T129: 0
F130: 119 | G130: 2028-01-31 | H130: 31 | I130: =VLOOKUP(G130,'Прогноз переменной ставки'!$B$5:$E$304,4,1) -> 0.099 | J130: 9200 | K130: 751088.5983 | L130: 751088.5983 | M130: 0 | N130: 6310.994958 | O130: 2889.005042 | P130: 6310.994958 | Q130: 0 | R130: 0 | S130: 748199.5933 | T130: 0
F131: 120 | G131: 2028-02-29 | H131: 29 | I131: =VLOOKUP(G131,'Прогноз переменной ставки'!$B$5:$E$304,4,1) -> 0.099 | J131: 9200 | K131: 748199.5933 | L131: 748199.5933 | M131: 0 | N131: 5881.125345 | O131: 3318.874655 | P131: 5881.125345 | Q131: 0 | R131: 0 | S131: 744880.7186 | T131: 0
F132: 121 | G132: 2028-03-31 | H132: 31 | I132: =VLOOKUP(G132,'Прогноз переменной ставки'!$B$5:$E$304,4,1) -> 0.099 | J132: 9200 | K132: 744880.7186 | L132: 744880.7186 | M132: 0 | N132: 6258.833472 | O132: 2941.166528 | P132: 6258.833472 | Q132: 0 | R132: 0 | S132: 741939.5521 | T132: 0
F133: 122 | G133: 2028-04-30 | H133: 30 | I133: =VLOOKUP(G133,'Прогноз переменной ставки'!$B$5:$E$304,4,1) -> 0.099 | J133: 9200 | K133: 741939.5521 | L133: 741939.5521 | M133: 0 | N133: 6033.019767 | O133: 3166.980233 | P133: 6033.019767 | Q133: 0 | R133: 0 | S133: 738772.5719 | T133: 0
F134: 123 | G134: 2028-05-31 | H134: 31 | I134: =VLOOKUP(G134,'Прогноз переменной ставки'!$B$5:$E$304,4,1) -> 0.099 | J134: 9200 | K134: 738772.5719 | L134: 738772.5719 | M134: 0 | N134: 6207.509988 | O134: 2992.490012 | P134: 6207.509988 | Q134: 0 | R134: 0 | S134: 735780.0819 | T134: 0
F135: 124 | G135: 2028-06-30 | H135: 30 | I135: =VLOOKUP(G135,'Прогноз переменной ставки'!$B$5:$E$304,4,1) -> 0.099 | J135: 9200 | K135: 735780.0819 | L135: 735780.0819 | M135: 0 | N135: 5982.934546 | O135: 3217.065454 | P135: 5982.934546 | Q135: 0 | R135: 0 | S135: 732563.0164 | T135: 0
F136: 125 | G136: 2028-07-31 | H136: 31 | I136: =VLOOKUP(G136,'Прогноз переменной ставки'!$B$5:$E$304,4,1) -> 0.099 | J136: 9200 | K136: 732563.0164 | L136: 732563.0164 | M136: 0 | N136: 6155.334421 | O136: 3044.665579 | P136: 6155.334421 | Q136: 0 | R136: 0 | S136: 729518.3508 | T136: 0
F137: 126 | G137: 2028-08-31 | H137: 31 | I137: =VLOOKUP(G137,'Прогноз переменной ставки'!$B$5:$E$304,4,1) -> 0.099 | J137: 9200 | K137: 729518.3508 | L137: 729518.3508 | M137: 0 | N137: 6129.751728 | O137: 3070.248272 | P137: 6129.751728 | Q137: 0 | R137: 0 | S137: 726448.1025 | T137: 0
F138: 127 | G138: 2028-09-30 | H138: 30 | I138: =VLOOKUP(G138,'Прогноз переменной ставки'!$B$5:$E$304,4,1) -> 0.099 | J138: 9200 | K138: 726448.1025 | L138: 726448.1025 | M138: 0 | N138: 5907.052333 | O138: 3292.947667 | P138: 5907.052333 | Q138: 0 | R138: 0 | S138: 723155.1549 | T138: 0
F139: 128 | G139: 2028-10-31 | H139: 31 | I139: =VLOOKUP(G139,'Прогноз переменной ставки'!$B$5:$E$304,4,1) -> 0.099 | J139: 9200 | K139: 723155.1549 | L139: 723155.1549 | M139: 0 | N139: 6076.285203 | O139: 3123.714797 | P139: 6076.285203 | Q139: 0 | R139: 0 | S139: 720031.4401 | T139: 0
F140: 129 | G140: 2028-11-30 | H140: 30 | I140: =VLOOKUP(G140,'Прогноз переменной ставки'!$B$5:$E$304,4,1) -> 0.099 | J140: 9200 | K140: 720031.4401 | L140: 720031.4401 | M140: 0 | N140: 5854.875776 | O140: =MIN(J140-Q140-P140,L140) -> 3345.124224 | P140: =MIN(J140-Q140,N140) -> 5854.875776 | Q140: =MIN(J140,M140) -> 0 | R140: 0 | S140: =L140-O140 -> 716686.3159 | T140: =M140+R140-Q140 -> 0
F141: 130 | G141: =EOMONTH($D$9,F141-1) -> 2028-12-31 | H141: 31 | I141: =VLOOKUP(G141,'Прогноз переменной ставки'!$B$5:$E$304,4,1) -> 0.099 | J141: =IF(F141=$D$4,K141+N141,MIN($D$5,K141+N141)) -> 9200 | K141: =L141+M141 -> 716686.3159 | L141: 716686.3159 | M141: 0 | N141: =L141*I141/365.25*H141 -> 6021.931015 | O141: 3178.068985 | P141: 6021.931015 | Q141: 0 | R141: 0 | S141: 713508.2469 | T141: 0
F142: 131 | G142: 2029-01-31 | H142: =G142-G141 -> 31 | I142: =VLOOKUP(G142,'Прогноз переменной ставки'!$B$5:$E$304,4,1) -> 0.099 | J142: 9200 | K142: 713508.2469 | L142: =S141 -> 713508.2469 | M142: 0 | N142: 5995.227405 | O142: 3204.772595 | P142: 5995.227405 | Q142: 0 | R142: =MAX(N142-P142,0) -> 0 | S142: 710303.4743 | T142: 0
F143: 132 | G143: 2029-02-28 | H143: 28 | I143: =VLOOKUP(G143,'Прогноз переменной ставки'!$B$5:$E$304,4,1) -> 0.099 | J143: 9200 | K143: 710303.4743 | L143: 710303.4743 | M143: 0 | N143: 5390.722055 | O143: 3809.277945 | P143: 5390.722055 | Q143: 0 | R143: 0 | S143: 706494.1963 | T143: 0
F144: 133 | G144: 2029-03-31 | H144: 31 | I144: =VLOOKUP(G144,'Прогноз переменной ставки'!$B$5:$E$304,4,1) -> 0.099 | J144: 9200 | K144: 706494.1963 | L144: 706494.1963 | M144: 0 | N144: 5936.292097 | O144: 3263.707903 | P144: 5936.292097 | Q144: 0 | R144: 0 | S144: 703230.4884 | T144: 0
F145: 134 | G145: 2029-04-30 | H145: 30 | I145: =VLOOKUP(G145,'Прогноз переменной ставки'!$B$5:$E$304,4,1) -> 0.099 | J145: 9200 | K145: 703230.4884 | L145: 703230.4884 | M145: 0 | N145: 5718.260234 | O145: 3481.739766 | P145: 5718.260234 | Q145: 0 | R145: 0 | S145: 699748.7487 | T145: 0
F146: 135 | G146: 2029-05-31 | H146: 31 | I146: =VLOOKUP(G146,'Прогноз переменной ставки'!$B$5:$E$304,4,1) -> 0.099 | J146: 9200 | K146: 699748.7487 | L146: 699748.7487 | M146: 0 | N146: 5879.613716 | O146: 3320.386284 | P146: 5879.613716 | Q146: 0 | R146: 0 | S146: 696428.3624 | T146: 0
F147: 136 | G147: 2029-06-30 | H147: 30 | I147: =VLOOKUP(G147,'Прогноз переменной ставки'!$B$5:$E$304,4,1) -> 0.099 | J147: 9200 | K147: 696428.3624 | L147: 696428.3624 | M147: 0 | N147: 5662.949312 | O147: 3537.050688 | P147: 5662.949312 | Q147: 0 | R147: 0 | S147: 692891.3117 | T147: 0
F148: 137 | G148: 2029-07-31 | H148: 31 | I148: =VLOOKUP(G148,'Прогноз переменной ставки'!$B$5:$E$304,4,1) -> 0.099 | J148: 9200 | K148: 692891.3117 | L148: 692891.3117 | M148: 0 | N148: 5821.994348 | O148: 3378.005652 | P148: 5821.994348 | Q148: 0 | R148: 0 | S148: 689513.306 | T148: 0
F149: 138 | G149: 2029-08-31 | H149: 31 | I149: =VLOOKUP(G149,'Прогноз переменной ставки'!$B$5:$E$304,4,1) -> 0.099 | J149: 9200 | K149: 689513.306 | L149: 689513.306 | M149: 0 | N149: 5793.610777 | O149: 3406.389223 | P149: 5793.610777 | Q149: 0 | R149: 0 | S149: 686106.9168 | T149: 0
F150: 139 | G150: 2029-09-30 | H150: 30 | I150: =VLOOKUP(G150,'Прогноз переменной ставки'!$B$5:$E$304,4,1) -> 0.099 | J150: 9200 | K150: 686106.9168 | L150: 686106.9168 | M150: 0 | N150: 5579.021336 | O150: 3620.978664 | P150: 5579.021336 | Q150: 0 | R150: 0 | S150: 682485.9382 | T150: 0
F151: 140 | G151: 2029-10-31 | H151: 31 | I151: =VLOOKUP(G151,'Прогноз переменной ставки'!$B$5:$E$304,4,1) -> 0.099 | J151: 9200 | K151: 682485.9382 | L151: 682485.9382 | M151: 0 | N151: 5734.563571 | O151: 3465.436429 | P151: 5734.563571 | Q151: 0 | R151: 0 | S151: 679020.5017 | T151: 0
F152: 141 | G152: 2029-11-30 | H152: 30 | I152: =VLOOKUP(G152,'Прогноз переменной ставки'!$B$5:$E$304,4,1) -> 0.099 | J152: 9200 | K152: 679020.5017 | L152: 679020.5017 | M152: 0 | N152: 5521.398741 | O152: 3678.601259 | P152: 5521.398741 | Q152: 0 | R152: 0 | S152: 675341.9005 | T152: 0
F153: 142 | G153: 2029-12-31 | H153: 31 | I153: =VLOOKUP(G153,'Прогноз переменной ставки'!$B$5:$E$304,4,1) -> 0.099 | J153: 9200 | K153: 675341.9005 | L153: 675341.9005 | M153: 0 | N153: 5674.536051 | O153: 3525.463949 | P153: 5674.536051 | Q153: 0 | R153: 0 | S153: 671816.4365 | T153: 0
F154: 143 | G154: 2030-01-31 | H154: 31 | I154: =VLOOKUP(G154,'Прогноз переменной ставки'!$B$5:$E$304,4,1) -> 0.099 | J154: 9200 | K154: 671816.4365 | L154: 671816.4365 | M154: 0 | N154: 5644.913467 | O154: 3555.086533 | P154: 5644.913467 | Q154: 0 | R154: 0 | S154: 668261.35 | T154: 0
F155: 144 | G155: 2030-02-28 | H155: 28 | I155: =VLOOKUP(G155,'Прогноз переменной ставки'!$B$5:$E$304,4,1) -> 0.099 | J155: 9200 | K155: 668261.35 | L155: 668261.35 | M155: 0 | N155: 5071.65082 | O155: 4128.34918 | P155: 5071.65082 | Q155: 0 | R155: 0 | S155: 664133.0008 | T155: 0
F156: 145 | G156: 2030-03-31 | H156: 31 | I156: =VLOOKUP(G156,'Прогноз переменной ставки'!$B$5:$E$304,4,1) -> 0.099 | J156: 9200 | K156: 664133.0008 | L156: 664133.0008 | M156: 0 | N156: 5580.353674 | O156: 3619.646326 | P156: 5580.353674 | Q156: 0 | R156: 0 | S156: 660513.3545 | T156: 0
F157: 146 | G157: 2030-04-30 | H157: 30 | I157: =VLOOKUP(G157,'Прогноз переменной ставки'!$B$5:$E$304,4,1) -> 0.099 | J157: 9200 | K157: 660513.3545 | L157: 660513.3545 | M157: 0 | N157: 5370.909412 | O157: 3829.090588 | P157: 5370.909412 | Q157: 0 | R157: 0 | S157: 656684.2639 | T157: 0
F158: 147 | G158: 2030-05-31 | H158: 31 | I158: =VLOOKUP(G158,'Прогноз переменной ставки'!$B$5:$E$304,4,1) -> 0.099 | J158: 9200 | K158: 656684.2639 | L158: 656684.2639 | M158: 0 | N158: 5517.76593 | O158: 3682.23407 | P158: 5517.76593 | Q158: 0 | R158: 0 | S158: 653002.0298 | T158: 0
F159: 148 | G159: 2030-06-30 | H159: 30 | I159: =VLOOKUP(G159,'Прогноз переменной ставки'!$B$5:$E$304,4,1) -> 0.099 | J159: 9200 | K159: 653002.0298 | L159: 653002.0298 | M159: 0 | N159: 5309.8317 | O159: 3890.1683 | P159: 5309.8317 | Q159: 0 | R159: 0 | S159: 649111.8615 | T159: 0
F160: 149 | G160: 2030-07-31 | H160: 31 | I160: =VLOOKUP(G160,'Прогноз переменной ставки'!$B$5:$E$304,4,1) -> 0.099 | J160: 9200 | K160: 649111.8615 | L160: 649111.8615 | M160: 0 | N160: 5454.139091 | O160: 3745.860909 | P160: 5454.139091 | Q160: 0 | R160: 0 | S160: 645366.0006 | T160: 0
F161: 150 | G161: 2030-08-31 | H161: 31 | I161: =VLOOKUP(G161,'Прогноз переменной ставки'!$B$5:$E$304,4,1) -> 0.099 | J161: 9200 | K161: 645366.0006 | L161: 645366.0006 | M161: 0 | N161: 5422.664629 | O161: 3777.335371 | P161: 5422.664629 | Q161: 0 | R161: 0 | S161: 641588.6652 | T161: 0
F162: 151 | G162: 2030-09-30 | H162: 30 | I162: =VLOOKUP(G162,'Прогноз переменной ставки'!$B$5:$E$304,4,1) -> 0.099 | J162: 9200 | K162: 641588.6652 | L162: 641588.6652 | M162: 0 | N162: 5217.024875 | O162: 3982.975125 | P162: 5217.024875 | Q162: 0 | R162: 0 | S162: 637605.6901 | T162: 0
F163: 152 | G163: 2030-10-31 | H163: 31 | I163: =VLOOKUP(G163,'Прогноз переменной ставки'!$B$5:$E$304,4,1) -> 0.099 | J163: 9200 | K163: 637605.6901 | L163: 637605.6901 | M163: 0 | N163: 5357.458899 | O163: 3842.541101 | P163: 5357.458899 | Q163: 0 | R163: 0 | S163: 633763.149 | T163: 0
F164: 153 | G164: 2030-11-30 | H164: 30 | I164: =VLOOKUP(G164,'Прогноз переменной ставки'!$B$5:$E$304,4,1) -> 0.099 | J164: 9200 | K164: 633763.149 | L164: 633763.149 | M164: 0 | N164: 5153.392341 | O164: 4046.607659 | P164: 5153.392341 | Q164: 0 | R164: 0 | S164: 629716.5414 | T164: 0
F165: 154 | G165: 2030-12-31 | H165: 31 | I165: =VLOOKUP(G165,'Прогноз переменной ставки'!$B$5:$E$304,4,1) -> 0.099 | J165: 9200 | K165: 629716.5414 | L165: 629716.5414 | M165: 0 | N165: 5291.17061 | O165: 3908.82939 | P165: 5291.17061 | Q165: 0 | R165: 0 | S165: 625807.712 | T165: 0
F166: 155 | G166: 2031-01-31 | H166: 31 | I166: =VLOOKUP(G166,'Прогноз переменной ставки'!$B$5:$E$304,4,1) -> 0.099 | J166: 9200 | K166: 625807.712 | L166: 625807.712 | M166: 0 | N166: 5258.326812 | O166: 3941.673188 | P166: 5258.326812 | Q166: 0 | R166: 0 | S166: 621866.0388 | T166: 0
F167: 156 | G167: 2031-02-28 | H167: 28 | I167: =VLOOKUP(G167,'Прогноз переменной ставки'!$B$5:$E$304,4,1) -> 0.099 | J167: 9200 | K167: 621866.0388 | L167: 621866.0388 | M167: 0 | N167: 4719.541847 | O167: 4480.458153 | P167: 4719.541847 | Q167: 0 | R167: 0 | S167: 617385.5806 | T167: 0
F168: 157 | G168: 2031-03-31 | H168: 31 | I168: =VLOOKUP(G168,'Прогноз переменной ставки'!$B$5:$E$304,4,1) -> 0.099 | J168: 9200 | K168: 617385.5806 | L168: 617385.5806 | M168: 0 | N168: 5187.560156 | O168: 4012.439844 | P168: 5187.560156 | Q168: 0 | R168: 0 | S168: 613373.1408 | T168: 0
F169: 158 | G169: 2031-04-30 | H169: 30 | I169: =VLOOKUP(G169,'Прогноз переменной ставки'!$B$5:$E$304,4,1) -> 0.099 | J169: 9200 | K169: 613373.1408 | L169: 613373.1408 | M169: 0 | N169: 4987.592685 | O169: 4212.407315 | P169: 4987.592685 | Q169: 0 | R169: 0 | S169: 609160.7335 | T169: 0
F170: 159 | G170: 2031-05-31 | H170: 31 | I170: =VLOOKUP(G170,'Прогноз переменной ставки'!$B$5:$E$304,4,1) -> 0.099 | J170: 9200 | K170: 609160.7335 | L170: 609160.7335 | M170: 0 | N170: 5118.451173 | O170: 4081.548827 | P170: 5118.451173 | Q170: 0 | R170: 0 | S170: 605079.1846 | T170: 0
F171: 160 | G171: 2031-06-30 | H171: 30 | I171: =VLOOKUP(G171,'Прогноз переменной ставки'!$B$5:$E$304,4,1) -> 0.099 | J171: 9200 | K171: 605079.1846 | L171: 605079.1846 | M171: 0 | N171: 4920.15107 | O171: 4279.84893 | P171: 4920.15107 | Q171: 0 | R171: 0 | S171: 600799.3357 | T171: 0
F172: 161 | G172: 2031-07-31 | H172: 31 | I172: =VLOOKUP(G172,'Прогноз переменной ставки'!$B$5:$E$304,4,1) -> 0.099 | J172: 9200 | K172: 600799.3357 | L172: 600799.3357 | M172: 0 | N172: 5048.194829 | O172: 4151.805171 | P172: 5048.194829 | Q172: 0 | R172: 0 | S172: 596647.5305 | T172: 0
F173: 162 | G173: 2031-08-31 | H173: 31 | I173: =VLOOKUP(G173,'Прогноз переменной ставки'!$B$5:$E$304,4,1) -> 0.099 | J173: 9200 | K173: 596647.5305 | L173: 596647.5305 | M173: 0 | N173: 5013.309435 | O173: 4186.690565 | P173: 5013.309435 | Q173: 0 | R173: 0 | S173: 592460.84 | T173: 0
F174: 163 | G174: 2031-09-30 | H174: 30 | I174: =VLOOKUP(G174,'Прогноз переменной ставки'!$B$5:$E$304,4,1) -> 0.099 | J174: 9200 | K174: 592460.84 | L174: 592460.84 | M174: 0 | N174: 4817.54605 | O174: 4382.45395 | P174: 4817.54605 | Q174: 0 | R174: 0 | S174: 588078.386 | T174: 0
F175: 164 | G175: 2031-10-31 | H175: 31 | I175: =VLOOKUP(G175,'Прогноз переменной ставки'!$B$5:$E$304,4,1) -> 0.099 | J175: 9200 | K175: 588078.386 | L175: 588078.386 | M175: 0 | N175: 4941.307506 | O175: 4258.692494 | P175: 4941.307506 | Q175: 0 | R175: 0 | S175: 583819.6935 | T175: 0
F176: 165 | G176: 2031-11-30 | H176: 30 | I176: =VLOOKUP(G176,'Прогноз переменной ставки'!$B$5:$E$304,4,1) -> 0.099 | J176: 9200 | K176: 583819.6935 | L176: 583819.6935 | M176: 0 | N176: 4747.281286 | O176: 4452.718714 | P176: 4747.281286 | Q176: 0 | R176: 0 | S176: 579366.9748 | T176: 0
F177: 166 | G177: 2031-12-31 | H177: 31 | I177: =VLOOKUP(G177,'Прогноз переменной ставки'!$B$5:$E$304,4,1) -> 0.099 | J177: 9200 | K177: 579366.9748 | L177: 579366.9748 | M177: 0 | N177: 4868.110187 | O177: 4331.889813 | P177: 4868.110187 | Q177: 0 | R177: 0 | S177: 575035.085 | T177: 0
F178: 167 | G178: 2032-01-31 | H178: 31 | I178: =VLOOKUP(G178,'Прогноз переменной ставки'!$B$5:$E$304,4,1) -> 0.099 | J178: 9200 | K178: 575035.085 | L178: 575035.085 | M178: 0 | N178: 4831.711638 | O178: 4368.288362 | P178: 4831.711638 | Q178: 0 | R178: 0 | S178: 570666.7966 | T178: 0
F179: 168 | G179: 2032-02-29 | H179: 29 | I179: =VLOOKUP(G179,'Прогноз переменной ставки'!$B$5:$E$304,4,1) -> 0.099 | J179: 9200 | K179: 570666.7966 | L179: 570666.7966 | M179: 0 | N179: 4485.651946 | O179: 4714.348054 | P179: 4485.651946 | Q179: 0 | R179: 0 | S179: 565952.4486 | T179: 0
F180: 169 | G180: 2032-03-31 | H180: 31 | I180: =VLOOKUP(G180,'Прогноз переменной ставки'!$B$5:$E$304,4,1) -> 0.099 | J180: 9200 | K180: 565952.4486 | L180: 565952.4486 | M180: 0 | N180: 4755.395112 | O180: 4444.604888 | P180: 4755.395112 | Q180: 0 | R180: 0 | S180: 561507.8437 | T180: 0
F181: 170 | G181: 2032-04-30 | H181: 30 | I181: =VLOOKUP(G181,'Прогноз переменной ставки'!$B$5:$E$304,4,1) -> 0.099 | J181: 9200 | K181: 561507.8437 | L181: 561507.8437 | M181: 0 | N181: 4565.854335 | O181: 4634.145665 | P181: 4565.854335 | Q181: 0 | R181: 0 | S181: 556873.698 | T181: 0
F182: 171 | G182: 2032-05-31 | H182: 31 | I182: =VLOOKUP(G182,'Прогноз переменной ставки'!$B$5:$E$304,4,1) -> 0.099 | J182: 9200 | K182: 556873.698 | L182: 556873.698 | M182: 0 | N182: 4679.111237 | O182: 4520.888763 | P182: 4679.111237 | Q182: 0 | R182: 0 | S182: 552352.8093 | T182: 0
F183: 172 | G183: 2032-06-30 | H183: 30 | I183: =VLOOKUP(G183,'Прогноз переменной ставки'!$B$5:$E$304,4,1) -> 0.099 | J183: 9200 | K183: 552352.8093 | L183: 552352.8093 | M183: 0 | N183: 4491.410934 | O183: 4708.589066 | P183: 4491.410934 | Q183: 0 | R183: 0 | S183: 547644.2202 | T183: 0
F184: 173 | G184: 2032-07-31 | H184: 31 | I184: =VLOOKUP(G184,'Прогноз переменной ставки'!$B$5:$E$304,4,1) -> 0.099 | J184: 9200 | K184: 547644.2202 | L184: 547644.2202 | M184: 0 | N184: 4601.560881 | O184: 4598.439119 | P184: 4601.560881 | Q184: 0 | R184: 0 | S184: 543045.7811 | T184: 0
F185: 174 | G185: 2032-08-31 | H185: 31 | I185: =VLOOKUP(G185,'Прогноз переменной ставки'!$B$5:$E$304,4,1) -> 0.099 | J185: 9200 | K185: 543045.7811 | L185: 543045.7811 | M185: 0 | N185: 4562.922662 | O185: 4637.077338 | P185: 4562.922662 | Q185: 0 | R185: 0 | S185: 538408.7038 | T185: 0
F186: 175 | G186: 2032-09-30 | H186: 30 | I186: =VLOOKUP(G186,'Прогноз переменной ставки'!$B$5:$E$304,4,1) -> 0.099 | J186: 9200 | K186: 538408.7038 | L186: 538408.7038 | M186: 0 | N186: 4378.025599 | O186: 4821.974401 | P186: 4378.025599 | Q186: 0 | R186: 0 | S186: 533586.7293 | T186: 0
F187: 176 | G187: 2032-10-31 | H187: 31 | I187: =VLOOKUP(G187,'Прогноз переменной ставки'!$B$5:$E$304,4,1) -> 0.099 | J187: 9200 | K187: 533586.7293 | L187: 533586.7293 | M187: 0 | N187: 4483.443319 | O187: 4716.556681 | P187: 4483.443319 | Q187: 0 | R187: 0 | S187: 528870.1727 | T187: 0
F188: 177 | G188: 2032-11-30 | H188: 30 | I188: =VLOOKUP(G188,'Прогноз переменной ставки'!$B$5:$E$304,4,1) -> 0.099 | J188: 9200 | K188: 528870.1727 | L188: 528870.1727 | M188: 0 | N188: 4300.463827 | O188: 4899.536173 | P188: 4300.463827 | Q188: 0 | R188: 0 | S188: 523970.6365 | T188: 0
F189: 178 | G189: 2032-12-31 | H189: 31 | I189: =VLOOKUP(G189,'Прогноз переменной ставки'!$B$5:$E$304,4,1) -> 0.099 | J189: 9200 | K189: 523970.6365 | L189: 523970.6365 | M189: 0 | N189: 4402.644445 | O189: 4797.355555 | P189: 4402.644445 | Q189: 0 | R189: 0 | S189: 519173.2809 | T189: 0
F190: 179 | G190: 2033-01-31 | H190: 31 | I190: =VLOOKUP(G190,'Прогноз переменной ставки'!$B$5:$E$304,4,1) -> 0.099 | J190: 9200 | K190: 519173.2809 | L190: 519173.2809 | M190: 0 | N190: 4362.334837 | O190: 4837.665163 | P190: 4362.334837 | Q190: 0 | R190: 0 | S190: 514335.6158 | T190: 0
F191: 180 | G191: 2033-02-28 | H191: 28 | I191: =VLOOKUP(G191,'Прогноз переменной ставки'!$B$5:$E$304,4,1) -> 0.099 | J191: 9200 | K191: 514335.6158 | L191: 514335.6158 | M191: 0 | N191: 3903.458801 | O191: 5296.541199 | P191: 3903.458801 | Q191: 0 | R191: 0 | S191: 509039.0746 | T191: 0
F192: 181 | G192: 2033-03-31 | H192: 31 | I192: =VLOOKUP(G192,'Прогноз переменной ставки'!$B$5:$E$304,4,1) -> 0.099 | J192: 9200 | K192: 509039.0746 | L192: 509039.0746 | M192: 0 | N192: 4277.182532 | O192: 4922.817468 | P192: 4277.182532 | Q192: 0 | R192: 0 | S192: 504116.2571 | T192: 0
F193: 182 | G193: 2033-04-30 | H193: 30 | I193: =VLOOKUP(G193,'Прогноз переменной ставки'!$B$5:$E$304,4,1) -> 0.099 | J193: 9200 | K193: 504116.2571 | L193: 504116.2571 | M193: 0 | N193: 4099.179421 | O193: 5100.820579 | P193: 4099.179421 | Q193: 0 | R193: 0 | S193: 499015.4365 | T193: 0
F194: 183 | G194: 2033-05-31 | H194: 31 | I194: =VLOOKUP(G194,'Прогноз переменной ставки'!$B$5:$E$304,4,1) -> 0.099 | J194: 9200 | K194: 499015.4365 | L194: 499015.4365 | M194: 0 | N194: 4192.959274 | O194: 5007.040726 | P194: 4192.959274 | Q194: 0 | R194: 0 | S194: 494008.3958 | T194: 0
F195: 184 | G195: 2033-06-30 | H195: 30 | I195: =VLOOKUP(G195,'Прогноз переменной ставки'!$B$5:$E$304,4,1) -> 0.099 | J195: 9200 | K195: 494008.3958 | L195: 494008.3958 | M195: 0 | N195: 4016.988188 | O195: 5183.011812 | P195: 4016.988188 | Q195: 0 | R195: 0 | S195: 488825.384 | T195: 0
F196: 185 | G196: 2033-07-31 | H196: 31 | I196: =VLOOKUP(G196,'Прогноз переменной ставки'!$B$5:$E$304,4,1) -> 0.099 | J196: 9200 | K196: 488825.384 | L196: 488825.384 | M196: 0 | N196: 4107.337723 | O196: 5092.662277 | P196: 4107.337723 | Q196: 0 | R196: 0 | S196: 483732.7217 | T196: 0
F197: 186 | G197: 2033-08-31 | H197: 31 | I197: =VLOOKUP(G197,'Прогноз переменной ставки'!$B$5:$E$304,4,1) -> 0.099 | J197: 9200 | K197: 483732.7217 | L197: 483732.7217 | M197: 0 | N197: 4064.546812 | O197: 5135.453188 | P197: 4064.546812 | Q197: 0 | R197: 0 | S197: 478597.2685 | T197: 0
F198: 187 | G198: 2033-09-30 | H198: 30 | I198: =VLOOKUP(G198,'Прогноз переменной ставки'!$B$5:$E$304,4,1) -> 0.099 | J198: 9200 | K198: 478597.2685 | L198: 478597.2685 | M198: 0 | N198: 3891.673888 | O198: 5308.326112 | P198: 3891.673888 | Q198: 0 | R198: 0 | S198: 473288.9424 | T198: 0
F199: 188 | G199: 2033-10-31 | H199: 31 | I199: =VLOOKUP(G199,'Прогноз переменной ставки'!$B$5:$E$304,4,1) -> 0.099 | J199: 9200 | K199: 473288.9424 | L199: 473288.9424 | M199: 0 | N199: 3976.793331 | O199: 5223.206669 | P199: 3976.793331 | Q199: 0 | R199: 0 | S199: 468065.7357 | T199: 0
F200: 189 | G200: 2033-11-30 | H200: 30 | I200: =VLOOKUP(G200,'Прогноз переменной ставки'!$B$5:$E$304,4,1) -> 0.099 | J200: 9200 | K200: 468065.7357 | L200: 468065.7357 | M200: 0 | N200: 3806.037605 | O200: 5393.962395 | P200: 3806.037605 | Q200: 0 | R200: 0 | S200: 462671.7734 | T200: 0
F201: 190 | G201: 2033-12-31 | H201: 31 | I201: =VLOOKUP(G201,'Прогноз переменной ставки'!$B$5:$E$304,4,1) -> 0.099 | J201: 9200 | K201: 462671.7734 | L201: 462671.7734 | M201: 0 | N201: 3887.58295 | O201: 5312.41705 | P201: 3887.58295 | Q201: 0 | R201: 0 | S201: 457359.3563 | T201: 0
... 171 more rows

Sheet График_180 (hidden)
B2: Параметр | D2: Значение
B3: Сумма кредита | D3: ='Калькулятор_от дохода'!$P$66 -> 1000000
B4: Первоначальный срок, мес. | D4: ='Расчет по доходу заемщика'!$F$41 -> 180
B5: Ежемесячный платеж | D5: ='Калькулятор_от дохода'!$P$72 -> 10197
B6: Расчетный период полного погашения | D6: =MATCH(0,K12:K263,0)-1 -> 180
B7: остаток долга на конец срока кредита | D7: =VLOOKUP(D4+1,$F$12:$L$263,4) -> 0.099
B8: Переплата | D8: =SUM($J$12:$J$311)-D3 -> 935592.8483 | M8: График платежей
B9: дата выдачи | D9: ='Калькулятор_от дохода'!$V$20 -> 2018-03-01
G10: Последняя дата процентного периода | H10: Кол-во дней в процентном периоде | I10: Ставка для расчетов | J10: Ежемесячный платеж | K10: Общий долг на начало | L10: Остаток кредита на начало | M10: Накопленные %% на начало | N10: Начислено за месяц | O10: Погашение кредита | P10: Погашение текущих % | Q10: Погашение накопленных %% | R10: Формирование накопленных %% | S10: Остаток кредита на конец периода | T10: Накопленные %% на конец периода
F11: 1 | G11: 2 | H11: 3 | I11: 2 | J11: 3 | K11: 4 | L11: 5 | M11: 6 | N11: 7 | O11: 8 | P11: 9 | Q11: 10 | R11: 11 | S11: 12 | T11: 13
F12: 1 | G12: =EOMONTH($D$9,F12-1) -> 2018-03-31 | H12: =G12-D9 -> 30 | I12: =VLOOKUP(G12,'Прогноз переменной ставки'!$B$5:$E$304,4,1) -> 0.0698 | J12: =IF(F12=$D$4,K12+N12,MIN($D$5,K12+N12)) -> 10197 | K12: =L12+M12 -> 1000000 | L12: =D3 -> 1000000 | M12: 0 | N12: =L12*I12/365.25*H12 -> 5733.059548 | O12: =MIN(J12-Q12-P12,L12) -> 4463.940452 | P12: =MIN(J12-Q12,N12) -> 5733.059548 | Q12: =MIN(J12,M12) -> 0 | R12: =MAX(N12-P12,0) -> 0 | S12: =L12-O12 -> 995536.0595 | T12: =M12+R12-Q12 -> 0
F13: 2 | G13: =EOMONTH($D$9,F13-1) -> 2018-04-30 | H13: =G13-G12 -> 30 | I13: =VLOOKUP(G13,'Прогноз переменной ставки'!$B$5:$E$304,4,1) -> 0.0698 | J13: =IF(F13=$D$4,K13+N13,MIN($D$5,K13+N13)) -> 10197 | K13: =L13+M13 -> 995536.0595 | L13: =S12 -> 995536.0595 | M13: =T12 -> 0 | N13: =L13*I13/365.25*H13 -> 5707.467512 | O13: 4489.532488 | P13: 5707.467512 | Q13: 0 | R13: =MAX(N13-P13,0) -> 0 | S13: 991046.5271 | T13: 0
F14: 3 | G14: 2018-05-31 | H14: =G14-G13 -> 31 | I14: =VLOOKUP(G14,'Прогноз переменной ставки'!$B$5:$E$304,4,1) -> 0.0698 | J14: 10197 | K14: 991046.5271 | L14: =S13 -> 991046.5271 | M14: 0 | N14: 5871.119713 | O14: 4325.880287 | P14: 5871.119713 | Q14: 0 | R14: =MAX(N14-P14,0) -> 0 | S14: 986720.6468 | T14: 0
F15: 4 | G15: 2018-06-30 | H15: 30 | I15: =VLOOKUP(G15,'Прогноз переменной ставки'!$B$5:$E$304,4,1) -> 0.0698 | J15: 10197 | K15: 986720.6468 | L15: 986720.6468 | M15: 0 | N15: 5656.928225 | O15: 4540.071775 | P15: 5656.928225 | Q15: 0 | R15: 0 | S15: 982180.575 | T15: 0
F16: 5 | G16: 2018-07-31 | H16: 31 | I16: =VLOOKUP(G16,'Прогноз переменной ставки'!$B$5:$E$304,4,1) -> 0.0698 | J16: 10197 | K16: 982180.575 | L16: 982180.575 | M16: 0 | N16: 5818.596381 | O16: 4378.403619 | P16: 5818.596381 | Q16: 0 | R16: 0 | S16: 977802.1714 | T16: 0
F17: 6 | G17: 2018-08-31 | H17: 31 | I17: =VLOOKUP(G17,'Прогноз переменной ставки'!$B$5:$E$304,4,1) -> 0.0698 | J17: 10197 | K17: 977802.1714 | L17: 977802.1714 | M17: 0 | N17: 5792.658011 | O17: 4404.341989 | P17: 5792.658011 | Q17: 0 | R17: 0 | S17: 973397.8294 | T17: 0
F18: 7 | G18: 2018-09-30 | H18: 30 | I18: =VLOOKUP(G18,'Прогноз переменной ставки'!$B$5:$E$304,4,1) -> 0.0698 | J18: 10197 | K18: 973397.8294 | L18: =S17 -> 973397.8294 | M18: =T17 -> 0 | N18: 5580.54772 | O18: 4616.45228 | P18: 5580.54772 | Q18: 0 | R18: =MAX(N18-P18,0) -> 0 | S18: 968781.3771 | T18: 0
F19: 8 | G19: 2018-10-31 | H19: 31 | I19: =VLOOKUP(G19,'Прогноз переменной ставки'!$B$5:$E$304,4,1) -> 0.0698 | J19: 10197 | K19: 968781.3771 | L19: =S18 -> 968781.3771 | M19: =T18 -> 0 | N19: 5739.217368 | O19: 4457.782632 | P19: 5739.217368 | Q19: 0 | R19: 0 | S19: 964323.5945 | T19: 0
F20: 9 | G20: 2018-11-30 | H20: 30 | I20: =VLOOKUP(G20,'Прогноз переменной ставки'!$B$5:$E$304,4,1) -> 0.0698 | J20: 10197 | K20: 964323.5945 | L20: 964323.5945 | M20: 0 | N20: 5528.524591 | O20: 4668.475409 | P20: 5528.524591 | Q20: 0 | R20: 0 | S20: 959655.1191 | T20: 0
F21: 10 | G21: 2018-12-31 | H21: 31 | I21: =VLOOKUP(G21,'Прогноз переменной ставки'!$B$5:$E$304,4,1) -> 0.0698 | J21: 10197 | K21: 959655.1191 | L21: 959655.1191 | M21: 0 | N21: 5685.151942 | O21: 4511.848058 | P21: 5685.151942 | Q21: 0 | R21: 0 | S21: 955143.271 | T21: 0
F22: 11 | G22: 2019-01-31 | H22: 31 | I22: =VLOOKUP(G22,'Прогноз переменной ставки'!$B$5:$E$304,4,1) -> 0.099 | J22: 10197 | K22: 955143.271 | L22: 955143.271 | M22: 0 | N22: 8025.557012 | O22: 2171.442988 | P22: 8025.557012 | Q22: 0 | R22: 0 | S22: 952971.828 | T22: 0
F23: 12 | G23: 2019-02-28 | H23: 28 | I23: =VLOOKUP(G23,'Прогноз переменной ставки'!$B$5:$E$304,4,1) -> 0.099 | J23: 10197 | K23: 952971.828 | L23: 952971.828 | M23: 0 | N23: 7232.410424 | O23: 2964.589576 | P23: 7232.410424 | Q23: 0 | R23: 0 | S23: 950007.2384 | T23: 0
F24: 13 | G24: 2019-03-31 | H24: 31 | I24: =VLOOKUP(G24,'Прогноз переменной ставки'!$B$5:$E$304,4,1) -> 0.099 | J24: 10197 | K24: 950007.2384 | L24: =S23 -> 950007.2384 | M24: =T23 -> 0 | N24: 7982.401683 | O24: 2214.598317 | P24: 7982.401683 | Q24: 0 | R24: 0 | S24: 947792.6401 | T24: 0
F25: 14 | G25: 2019-04-30 | H25: 30 | I25: =VLOOKUP(G25,'Прогноз переменной ставки'!$B$5:$E$304,4,1) -> 0.099 | J25: 10197 | K25: 947792.6401 | L25: 947792.6401 | M25: 0 | N25: 7706.897033 | O25: 2490.102967 | P25: 7706.897033 | Q25: 0 | R25: 0 | S25: 945302.5372 | T25: 0
F26: 15 | G26: 2019-05-31 | H26: 31 | I26: =VLOOKUP(G26,'Прогноз переменной ставки'!$B$5:$E$304,4,1) -> 0.099 | J26: 10197 | K26: 945302.5372 | L26: 945302.5372 | M26: 0 | N26: 7942.8706 | O26: 2254.1294 | P26: 7942.8706 | Q26: 0 | R26: 0 | S26: 943048.4078 | T26: 0
F27: 16 | G27: 2019-06-30 | H27: 30 | I27: =VLOOKUP(G27,'Прогноз переменной ставки'!$B$5:$E$304,4,1) -> 0.099 | J27: 10197 | K27: 943048.4078 | L27: 943048.4078 | M27: 0 | N27: 7668.319702 | O27: 2528.680298 | P27: 7668.319702 | Q27: 0 | R27: 0 | S27: 940519.7275 | T27: 0
F28: 17 | G28: 2019-07-31 | H28: 31 | I28: =VLOOKUP(G28,'Прогноз переменной ставки'!$B$5:$E$304,4,1) -> 0.099 | J28: 10197 | K28: 940519.7275 | L28: 940519.7275 | M28: 0 | N28: 7902.683213 | O28: 2294.316787 | P28: 7902.683213 | Q28: 0 | R28: 0 | S28: 938225.4107 | T28: 0
F29: 18 | G29: 2019-08-31 | H29: 31 | I29: =VLOOKUP(G29,'Прогноз переменной ставки'!$B$5:$E$304,4,1) -> 0.099 | J29: 10197 | K29: 938225.4107 | L29: 938225.4107 | M29: 0 | N29: 7883.405299 | O29: 2313.594701 | P29: 7883.405299 | Q29: 0 | R29: 0 | S29: 935911.816 | T29: 0
F30: 19 | G30: 2019-09-30 | H30: 30 | I30: =VLOOKUP(G30,'Прогноз переменной ставки'!$B$5:$E$304,4,1) -> 0.099 | J30: 10197 | K30: 935911.816 | L30: 935911.816 | M30: 0 | N30: 7610.289099 | O30: 2586.710901 | P30: 7610.289099 | Q30: 0 | R30: 0 | S30: 933325.1051 | T30: 0
F31: 20 | G31: 2019-10-31 | H31: 31 | I31: =VLOOKUP(G31,'Прогноз переменной ставки'!$B$5:$E$304,4,1) -> 0.099 | J31: 10197 | K31: 933325.1051 | L31: 933325.1051 | M31: 0 | N31: 7842.230657 | O31: 2354.769343 | P31: 7842.230657 | Q31: 0 | R31: 0 | S31: 930970.3357 | T31: 0
F32: 21 | G32: 2019-11-30 | H32: 30 | I32: =VLOOKUP(G32,'Прогноз переменной ставки'!$B$5:$E$304,4,1) -> 0.099 | J32: 10197 | K32: 930970.3357 | L32: 930970.3357 | M32: 0 | N32: 7570.107863 | O32: 2626.892137 | P32: 7570.107863 | Q32: 0 | R32: 0 | S32: 928343.4436 | T32: 0
F33: 22 | G33: 2019-12-31 | H33: 31 | I33: =VLOOKUP(G33,'Прогноз переменной ставки'!$B$5:$E$304,4,1) -> 0.099 | J33: 10197 | K33: 928343.4436 | L33: 928343.4436 | M33: 0 | N33: 7800.372425 | O33: 2396.627575 | P33: 7800.372425 | Q33: 0 | R33: 0 | S33: 925946.816 | T33: 0
F34: 23 | G34: 2020-01-31 | H34: 31 | I34: =VLOOKUP(G34,'Прогноз переменной ставки'!$B$5:$E$304,4,1) -> 0.099 | J34: 10197 | K34: 925946.816 | L34: 925946.816 | M34: 0 | N34: 7780.234848 | O34: 2416.765152 | P34: 7780.234848 | Q34: 0 | R34: 0 | S34: 923530.0509 | T34: 0
F35: 24 | G35: 2020-02-29 | H35: 29 | I35: =VLOOKUP(G35,'Прогноз переменной ставки'!$B$5:$E$304,4,1) -> 0.099 | J35: 10197 | K35: 923530.0509 | L35: 923530.0509 | M35: 0 | N35: 7259.287546 | O35: 2937.712454 | P35: 7259.287546 | Q35: 0 | R35: 0 | S35: 920592.3384 | T35: 0
F36: 25 | G36: 2020-03-31 | H36: 31 | I36: =VLOOKUP(G36,'Прогноз переменной ставки'!$B$5:$E$304,4,1) -> 0.099 | J36: 10197 | K36: 920592.3384 | L36: 920592.3384 | M36: 0 | N36: 7735.244043 | O36: 2461.755957 | P36: 7735.244043 | Q36: 0 | R36: 0 | S36: 918130.5825 | T36: 0
F37: 26 | G37: 2020-04-30 | H37: 30 | I37: =VLOOKUP(G37,'Прогноз переменной ставки'!$B$5:$E$304,4,1) -> 0.099 | J37: 10197 | K37: 918130.5825 | L37: 918130.5825 | M37: 0 | N37: 7465.702477 | O37: 2731.297523 | P37: 7465.702477 | Q37: 0 | R37: 0 | S37: 915399.2849 | T37: 0
F38: 27 | G38: 2020-05-31 | H38: 31 | I38: =VLOOKUP(G38,'Прогноз переменной ставки'!$B$5:$E$304,4,1) -> 0.099 | J38: 10197 | K38: 915399.2849 | L38: 915399.2849 | M38: 0 | N38: 7691.609597 | O38: 2505.390403 | P38: 7691.609597 | Q38: 0 | R38: 0 | S38: 912893.8945 | T38: 0
F39: 28 | G39: 2020-06-30 | H39: 30 | I39: =VLOOKUP(G39,'Прогноз переменной ставки'!$B$5:$E$304,4,1) -> 0.099 | J39: 10197 | K39: 912893.8945 | L39: 912893.8945 | M39: 0 | N39: 7423.120785 | O39: 2773.879215 | P39: 7423.120785 | Q39: 0 | R39: 0 | S39: 910120.0153 | T39: 0
F40: 29 | G40: 2020-07-31 | H40: 31 | I40: =VLOOKUP(G40,'Прогноз переменной ставки'!$B$5:$E$304,4,1) -> 0.099 | J40: 10197 | K40: 910120.0153 | L40: 910120.0153 | M40: 0 | N40: 7647.250724 | O40: 2549.749276 | P40: 7647.250724 | Q40: 0 | R40: 0 | S40: 907570.266 | T40: 0
F41: 30 | G41: 2020-08-31 | H41: 31 | I41: =VLOOKUP(G41,'Прогноз переменной ставки'!$B$5:$E$304,4,1) -> 0.099 | J41: 10197 | K41: 907570.266 | L41: 907570.266 | M41: 0 | N41: 7625.826548 | O41: 2571.173452 | P41: 7625.826548 | Q41: 0 | R41: 0 | S41: 904999.0926 | T41: 0
F42: 31 | G42: 2020-09-30 | H42: 30 | I42: =VLOOKUP(G42,'Прогноз переменной ставки'!$B$5:$E$304,4,1) -> 0.099 | J42: 10197 | K42: 904999.0926 | L42: 904999.0926 | M42: 0 | N42: 7358.92486 | O42: 2838.07514 | P42: 7358.92486 | Q42: 0 | R42: 0 | S42: 902161.0174 | T42: 0
F43: 32 | G43: 2020-10-31 | H43: 31 | I43: =VLOOKUP(G43,'Прогноз переменной ставки'!$B$5:$E$304,4,1) -> 0.099 | J43: 10197 | K43: 902161.0174 | L43: 902161.0174 | M43: 0 | N43: 7580.375531 | O43: 2616.624469 | P43: 7580.375531 | Q43: 0 | R43: 0 | S43: 899544.393 | T43: 0
F44: 33 | G44: 2020-11-30 | H44: 30 | I44: =VLOOKUP(G44,'Прогноз переменной ставки'!$B$5:$E$304,4,1) -> 0.099 | J44: 10197 | K44: 899544.393 | L44: 899544.393 | M44: 0 | N44: 7314.570423 | O44: 2882.429577 | P44: 7314.570423 | Q44: 0 | R44: 0 | S44: 896661.9634 | T44: 0
F45: 34 | G45: 2020-12-31 | H45: 31 | I45: =VLOOKUP(G45,'Прогноз переменной ставки'!$B$5:$E$304,4,1) -> 0.099 | J45: 10197 | K45: 896661.9634 | L45: 896661.9634 | M45: 0 | N45: 7534.169927 | O45: 2662.830073 | P45: 7534.169927 | Q45: 0 | R45: 0 | S45: 893999.1333 | T45: 0
F46: 35 | G46: 2021-01-31 | H46: 31 | I46: =VLOOKUP(G46,'Прогноз переменной ставки'!$B$5:$E$304,4,1) -> 0.099 | J46: 10197 | K46: 893999.1333 | L46: 893999.1333 | M46: 0 | N46: 7511.795593 | O46: 2685.204407 | P46: 7511.795593 | Q46: 0 | R46: 0 | S46: 891313.9289 | T46: 0
F47: 36 | G47: 2021-02-28 | H47: 28 | I47: =VLOOKUP(G47,'Прогноз переменной ставки'!$B$5:$E$304,4,1) -> 0.099 | J47: 10197 | K47: 891313.9289 | L47: 891313.9289 | M47: 0 | N47: 6764.46875 | O47: 3432.53125 | P47: 6764.46875 | Q47: 0 | R47: 0 | S47: 887881.3977 | T47: 0
F48: 37 | G48: 2021-03-31 | H48: 31 | I48: =VLOOKUP(G48,'Прогноз переменной ставки'!$B$5:$E$304,4,1) -> 0.099 | J48: 10197 | K48: 887881.3977 | L48: 887881.3977 | M48: 0 | N48: 7460.391539 | O48: 2736.608461 | P48: 7460.391539 | Q48: 0 | R48: 0 | S48: 885144.7892 | T48: 0
F49: 38 | G49: 2021-04-30 | H49: 30 | I49: =VLOOKUP(G49,'Прогноз переменной ставки'!$B$5:$E$304,4,1) -> 0.099 | J49: 10197 | K49: 885144.7892 | L49: 885144.7892 | M49: 0 | N49: 7197.481243 | O49: 2999.518757 | P49: 7197.481243 | Q49: 0 | R49: 0 | S49: 882145.2705 | T49: 0
F50: 39 | G50: 2021-05-31 | H50: 31 | I50: =VLOOKUP(G50,'Прогноз переменной ставки'!$B$5:$E$304,4,1) -> 0.099 | J50: 10197 | K50: 882145.2705 | L50: 882145.2705 | M50: 0 | N50: 7412.193936 | O50: 2784.806064 | P50: 7412.193936 | Q50: 0 | R50: 0 | S50: 879360.4644 | T50: 0
F51: 40 | G51: 2021-06-30 | H51: 30 | I51: =VLOOKUP(G51,'Прогноз переменной ставки'!$B$5:$E$304,4,1) -> 0.099 | J51: 10197 | K51: 879360.4644 | L51: 879360.4644 | M51: 0 | N51: 7150.446487 | O51: 3046.553513 | P51: 7150.446487 | Q51: 0 | R51: 0 | S51: 876313.9109 | T51: 0
F52: 41 | G52: 2021-07-31 | H52: 31 | I52: =VLOOKUP(G52,'Прогноз переменной ставки'!$B$5:$E$304,4,1) -> 0.099 | J52: 10197 | K52: 876313.9109 | L52: 876313.9109 | M52: 0 | N52: 7363.196146 | O52: 2833.803854 | P52: 7363.196146 | Q52: 0 | R52: 0 | S52: 873480.107 | T52: 0
F53: 42 | G53: 2021-08-31 | H53: 31 | I53: =VLOOKUP(G53,'Прогноз переменной ставки'!$B$5:$E$304,4,1) -> 0.099 | J53: 10197 | K53: 873480.107 | L53: 873480.107 | M53: 0 | N53: 7339.385211 | O53: 2857.614789 | P53: 7339.385211 | Q53: 0 | R53: 0 | S53: 870622.4922 | T53: 0
F54: 43 | G54: 2021-09-30 | H54: 30 | I54: =VLOOKUP(G54,'Прогноз переменной ставки'!$B$5:$E$304,4,1) -> 0.099 | J54: 10197 | K54: 870622.4922 | L54: 870622.4922 | M54: 0 | N54: 7079.394393 | O54: 3117.605607 | P54: 7079.394393 | Q54: 0 | R54: 0 | S54: 867504.8866 | T54: 0
F55: 44 | G55: 2021-10-31 | H55: 31 | I55: =VLOOKUP(G55,'Прогноз переменной ставки'!$B$5:$E$304,4,1) -> 0.099 | J55: 10197 | K55: 867504.8866 | L55: 867504.8866 | M55: 0 | N55: 7289.178637 | O55: 2907.821363 | P55: 7289.178637 | Q55: 0 | R55: 0 | S55: 864597.0653 | T55: 0
F56: 45 | G56: 2021-11-30 | H56: 30 | I56: =VLOOKUP(G56,'Прогноз переменной ставки'!$B$5:$E$304,4,1) -> 0.099 | J56: 10197 | K56: 864597.0653 | L56: 864597.0653 | M56: 0 | N56: 7030.399134 | O56: 3166.600866 | P56: 7030.399134 | Q56: 0 | R56: 0 | S56: 861430.4644 | T56: 0
F57: 46 | G57: 2021-12-31 | H57: 31 | I57: =VLOOKUP(G57,'Прогноз переменной ставки'!$B$5:$E$304,4,1) -> 0.099 | J57: 10197 | K57: 861430.4644 | L57: 861430.4644 | M57: 0 | N57: 7238.138522 | O57: 2958.861478 | P57: 7238.138522 | Q57: 0 | R57: 0 | S57: 858471.6029 | T57: 0
F58: 47 | G58: 2022-01-31 | H58: 31 | I58: =VLOOKUP(G58,'Прогноз переменной ставки'!$B$5:$E$304,4,1) -> 0.099 | J58: 10197 | K58: 858471.6029 | L58: 858471.6029 | M58: 0 | N58: 7213.276795 | O58: 2983.723205 | P58: 7213.276795 | Q58: 0 | R58: 0 | S58: 855487.8797 | T58: 0
F59: 48 | G59: 2022-02-28 | H59: 28 | I59: =VLOOKUP(G59,'Прогноз переменной ставки'!$B$5:$E$304,4,1) -> 0.099 | J59: 10197 | K59: 855487.8797 | L59: 855487.8797 | M59: 0 | N59: 6492.573313 | O59: 3704.426687 | P59: 6492.573313 | Q59: 0 | R59: 0 | S59: 851783.453 | T59: 0
F60: 49 | G60: 2022-03-31 | H60: 31 | I60: =VLOOKUP(G60,'Прогноз переменной ставки'!$B$5:$E$304,4,1) -> 0.099 | J60: 10197 | K60: 851783.453 | L60: 851783.453 | M60: 0 | N60: 7157.079856 | O60: 3039.920144 | P60: 7157.079856 | Q60: 0 | R60: 0 | S60: 848743.5329 | T60: 0
F61: 50 | G61: 2022-04-30 | H61: 30 | I61: =VLOOKUP(G61,'Прогноз переменной ставки'!$B$5:$E$304,4,1) -> 0.099 | J61: 10197 | K61: 848743.5329 | L61: 848743.5329 | M61: 0 | N61: 6901.487454 | O61: 3295.512546 | P61: 6901.487454 | Q61: 0 | R61: 0 | S61: 845448.0203 | T61: 0
F62: 51 | G62: 2022-05-31 | H62: 31 | I62: =VLOOKUP(G62,'Прогноз переменной ставки'!$B$5:$E$304,4,1) -> 0.099 | J62: 10197 | K62: 845448.0203 | L62: 845448.0203 | M62: 0 | N62: 7103.84661 | O62: 3093.15339 | P62: 7103.84661 | Q62: 0 | R62: 0 | S62: 842354.8669 | T62: 0
F63: 52 | G63: 2022-06-30 | H63: 30 | I63: =VLOOKUP(G63,'Прогноз переменной ставки'!$B$5:$E$304,4,1) -> 0.099 | J63: 10197 | K63: 842354.8669 | L63: 842354.8669 | M63: 0 | N63: 6849.538548 | O63: 3347.461452 | P63: 6849.538548 | Q63: 0 | R63: 0 | S63: 839007.4055 | T63: 0
F64: 53 | G64: 2022-07-31 | H64: 31 | I64: =VLOOKUP(G64,'Прогноз переменной ставки'!$B$5:$E$304,4,1) -> 0.099 | J64: 10197 | K64: 839007.4055 | L64: 839007.4055 | M64: 0 | N64: 7049.729576 | O64: 3147.270424 | P64: 7049.729576 | Q64: 0 | R64: 0 | S64: 835860.1351 | T64: 0
F65: 54 | G65: 2022-08-31 | H65: 31 | I65: =VLOOKUP(G65,'Прогноз переменной ставки'!$B$5:$E$304,4,1) -> 0.099 | J65: 10197 | K65: 835860.1351 | L65: 835860.1351 | M65: 0 | N65: 7023.284749 | O65: 3173.715251 | P65: 7023.284749 | Q65: 0 | R65: 0 | S65: 832686.4198 | T65: 0
F66: 55 | G66: 2022-09-30 | H66: 30 | I66: =VLOOKUP(G66,'Прогноз переменной ставки'!$B$5:$E$304,4,1) -> 0.099 | J66: 10197 | K66: 832686.4198 | L66: 832686.4198 | M66: 0 | N66: 6770.920375 | O66: 3426.079625 | P66: 6770.920375 | Q66: 0 | R66: 0 | S66: 829260.3402 | T66: 0
F67: 56 | G67: 2022-10-31 | H67: 31 | I67: =VLOOKUP(G67,'Прогноз переменной ставки'!$B$5:$E$304,4,1) -> 0.099 | J67: 10197 | K67: 829260.3402 | L67: 829260.3402 | M67: 0 | N67: 6967.83021 | O67: 3229.16979 | P67: 6967.83021 | Q67: 0 | R67: 0 | S67: 826031.1704 | T67: 0
F68: 57 | G68: 2022-11-30 | H68: 30 | I68: =VLOOKUP(G68,'Прогноз переменной ставки'!$B$5:$E$304,4,1) -> 0.099 | J68: 10197 | K68: 826031.1704 | L68: 826031.1704 | M68: 0 | N68: 6716.803768 | O68: 3480.196232 | P68: 6716.803768 | Q68: 0 | R68: 0 | S68: 822550.9742 | T68: 0
F69: 58 | G69: 2022-12-31 | H69: 31 | I69: =VLOOKUP(G69,'Прогноз переменной ставки'!$B$5:$E$304,4,1) -> 0.099 | J69: 10197 | K69: 822550.9742 | L69: 822550.9742 | M69: 0 | N69: 6911.455003 | O69: 3285.544997 | P69: 6911.455003 | Q69: 0 | R69: 0 | S69: 819265.4292 | T69: 0
F70: 59 | G70: 2023-01-31 | H70: 31 | I70: =VLOOKUP(G70,'Прогноз переменной ставки'!$B$5:$E$304,4,1) -> 0.099 | J70: 10197 | K70: 819265.4292 | L70: 819265.4292 | M70: 0 | N70: 6883.848329 | O70: 3313.151671 | P70: 6883.848329 | Q70: 0 | R70: 0 | S70: 815952.2775 | T70: 0
F71: 60 | G71: 2023-02-28 | H71: 28 | I71: =VLOOKUP(G71,'Прогноз переменной ставки'!$B$5:$E$304,4,1) -> 0.099 | J71: 10197 | K71: 815952.2775 | L71: 815952.2775 | M71: 0 | N71: 6192.524882 | O71: 4004.475118 | P71: 6192.524882 | Q71: 0 | R71: 0 | S71: 811947.8024 | T71: 0
F72: 61 | G72: 2023-03-31 | H72: 31 | I72: =VLOOKUP(G72,'Прогноз переменной ставки'!$B$5:$E$304,4,1) -> 0.099 | J72: 10197 | K72: 811947.8024 | L72: 811947.8024 | M72: 0 | N72: 6822.362233 | O72: 3374.637767 | P72: 6822.362233 | Q72: 0 | R72: 0 | S72: 808573.1646 | T72: 0
F73: 62 | G73: 2023-04-30 | H73: 30 | I73: =VLOOKUP(G73,'Прогноз переменной ставки'!$B$5:$E$304,4,1) -> 0.099 | J73: 10197 | K73: 808573.1646 | L73: 808573.1646 | M73: 0 | N73: 6574.845445 | O73: 3622.154555 | P73: 6574.845445 | Q73: 0 | R73: 0 | S73: 804951.0101 | T73: 0
F74: 63 | G74: 2023-05-31 | H74: 31 | I74: =VLOOKUP(G74,'Прогноз переменной ставки'!$B$5:$E$304,4,1) -> 0.099 | J74: 10197 | K74: 804951.0101 | L74: 804951.0101 | M74: 0 | N74: 6763.571937 | O74: 3433.428063 | P74: 6763.571937 | Q74: 0 | R74: 0 | S74: 801517.582 | T74: 0
F75: 64 | G75: 2023-06-30 | H75: 30 | I75: =VLOOKUP(G75,'Прогноз переменной ставки'!$B$5:$E$304,4,1) -> 0.099 | J75: 10197 | K75: 801517.582 | L75: 801517.582 | M75: 0 | N75: 6517.473562 | O75: 3679.526438 | P75: 6517.473562 | Q75: 0 | R75: 0 | S75: 797838.0556 | T75: 0
F76: 65 | G76: 2023-07-31 | H76: 31 | I76: =VLOOKUP(G76,'Прогноз переменной ставки'!$B$5:$E$304,4,1) -> 0.099 | J76: 10197 | K76: 797838.0556 | L76: 797838.0556 | M76: 0 | N76: 6703.805592 | O76: =MIN(J76-Q76-P76,L76) -> 3493.194408 | P76: =MIN(J76-Q76,N76) -> 6703.805592 | Q76: =MIN(J76,M76) -> 0 | R76: 0 | S76: =L76-O76 -> 794344.8612 | T76: =M76+R76-Q76 -> 0
F77: 66 | G77: =EOMONTH($D$9,F77-1) -> 2023-08-31 | H77: 31 | I77: =VLOOKUP(G77,'Прогноз переменной ставки'!$B$5:$E$304,4,1) -> 0.099 | J77: =IF(F77=$D$4,K77+N77,MIN($D$5,K77+N77)) -> 10197 | K77: =L77+M77 -> 794344.8612 | L77: 794344.8612 | M77: 0 | N77: =L77*I77/365.25*H77 -> 6674.454152 | O77: 3522.545848 | P77: 6674.454152 | Q77: 0 | R77: 0 | S77: 790822.3153 | T77: 0
F78: 67 | G78: 2023-09-30 | H78: =G78-G77 -> 30 | I78: =VLOOKUP(G78,'Прогноз переменной ставки'!$B$5:$E$304,4,1) -> 0.099 | J78: 10197 | K78: 790822.3153 | L78: =S77 -> 790822.3153 | M78: 0 | N78: 6430.50589 | O78: 3766.49411 | P78: 6430.50589 | Q78: 0 | R78: =MAX(N78-P78,0) -> 0 | S78: 787055.8212 | T78: 0
F79: 68 | G79: 2023-10-31 | H79: 31 | I79: =VLOOKUP(G79,'Прогноз переменной ставки'!$B$5:$E$304,4,1) -> 0.099 | J79: 10197 | K79: 787055.8212 | L79: 787055.8212 | M79: 0 | N79: 6613.208255 | O79: 3583.791745 | P79: 6613.208255 | Q79: 0 | R79: 0 | S79: 783472.0295 | T79: 0
F80: 69 | G80: 2023-11-30 | H80: 30 | I80: =VLOOKUP(G80,'Прогноз переменной ставки'!$B$5:$E$304,4,1) -> 0.099 | J80: 10197 | K80: 783472.0295 | L80: 783472.0295 | M80: 0 | N80: 6370.737652 | O80: 3826.262348 | P80: 6370.737652 | Q80: 0 | R80: 0 | S80: 779645.7671 | T80: 0
F81: 70 | G81: 2023-12-31 | H81: 31 | I81: =VLOOKUP(G81,'Прогноз переменной ставки'!$B$5:$E$304,4,1) -> 0.099 | J81: 10197 | K81: 779645.7671 | L81: 779645.7671 | M81: 0 | N81: 6550.945542 | O81: 3646.054458 | P81: 6550.945542 | Q81: 0 | R81: 0 | S81: 775999.7126 | T81: 0
F82: 71 | G82: 2024-01-31 | H82: 31 | I82: =VLOOKUP(G82,'Прогноз переменной ставки'!$B$5:$E$304,4,1) -> 0.099 | J82: 10197 | K82: 775999.7126 | L82: 775999.7126 | M82: 0 | N82: 6520.309701 | O82: 3676.690299 | P82: 6520.309701 | Q82: 0 | R82: 0 | S82: 772323.0223 | T82: 0
F83: 72 | G83: 2024-02-29 | H83: 29 | I83: =VLOOKUP(G83,'Прогноз переменной ставки'!$B$5:$E$304,4,1) -> 0.099 | J83: 10197 | K83: 772323.0223 | L83: 772323.0223 | M83: 0 | N83: 6070.744414 | O83: 4126.255586 | P83: 6070.744414 | Q83: 0 | R83: 0 | S83: 768196.7668 | T83: 0
F84: 73 | G84: 2024-03-31 | H84: 31 | I84: =VLOOKUP(G84,'Прогноз переменной ставки'!$B$5:$E$304,4,1) -> 0.099 | J84: 10197 | K84: 768196.7668 | L84: 768196.7668 | M84: 0 | N84: 6454.745728 | O84: 3742.254272 | P84: 6454.745728 | Q84: 0 | R84: 0 | S84: 764454.5125 | T84: 0
F85: 74 | G85: 2024-04-30 | H85: 30 | I85: =VLOOKUP(G85,'Прогноз переменной ставки'!$B$5:$E$304,4,1) -> 0.099 | J85: 10197 | K85: 764454.5125 | L85: 764454.5125 | M85: 0 | N85: 6216.098295 | O85: 3980.901705 | P85: 6216.098295 | Q85: 0 | R85: 0 | S85: 760473.6108 | T85: 0
F86: 75 | G86: 2024-05-31 | H86: 31 | I86: =VLOOKUP(G86,'Прогноз переменной ставки'!$B$5:$E$304,4,1) -> 0.099 | J86: 10197 | K86: 760473.6108 | L86: 760473.6108 | M86: 0 | N86: 6389.852188 | O86: 3807.147812 | P86: 6389.852188 | Q86: 0 | R86: 0 | S86: 756666.463 | T86: 0
F87: 76 | G87: 2024-06-30 | H87: 30 | I87: =VLOOKUP(G87,'Прогноз переменной ставки'!$B$5:$E$304,4,1) -> 0.099 | J87: 10197 | K87: 756666.463 | L87: 756666.463 | M87: 0 | N87: 6152.770418 | O87: 4044.229582 | P87: 6152.770418 | Q87: 0 | R87: 0 | S87: 752622.2334 | T87: 0
F88: 77 | G88: 2024-07-31 | H88: 31 | I88: =VLOOKUP(G88,'Прогноз переменной ставки'!$B$5:$E$304,4,1) -> 0.099 | J88: 10197 | K88: 752622.2334 | L88: 752622.2334 | M88: 0 | N88: 6323.881271 | O88: 3873.118729 | P88: 6323.881271 | Q88: 0 | R88: 0 | S88: 748749.1147 | T88: 0
F89: 78 | G89: 2024-08-31 | H89: 31 | I89: =VLOOKUP(G89,'Прогноз переменной ставки'!$B$5:$E$304,4,1) -> 0.099 | J89: 10197 | K89: 748749.1147 | L89: 748749.1147 | M89: 0 | N89: 6291.33753 | O89: 3905.66247 | P89: 6291.33753 | Q89: 0 | R89: 0 | S89: 744843.4522 | T89: 0
F90: 79 | G90: 2024-09-30 | H90: 30 | I90: =VLOOKUP(G90,'Прогноз переменной ставки'!$B$5:$E$304,4,1) -> 0.099 | J90: 10197 | K90: 744843.4522 | L90: 744843.4522 | M90: 0 | N90: 6056.632589 | O90: 4140.367411 | P90: 6056.632589 | Q90: 0 | R90: 0 | S90: 740703.0848 | T90: 0
F91: 80 | G91: 2024-10-31 | H91: 31 | I91: =VLOOKUP(G91,'Прогноз переменной ставки'!$B$5:$E$304,4,1) -> 0.099 | J91: 10197 | K91: 740703.0848 | L91: 740703.0848 | M91: 0 | N91: 6223.731053 | O91: 3973.268947 | P91: 6223.731053 | Q91: 0 | R91: 0 | S91: 736729.8158 | T91: 0
F92: 81 | G92: 2024-11-30 | H92: 30 | I92: =VLOOKUP(G92,'Прогноз переменной ставки'!$B$5:$E$304,4,1) -> 0.099 | J92: 10197 | K92: 736729.8158 | L92: 736729.8158 | M92: 0 | N92: 5990.657229 | O92: 4206.342771 | P92: 5990.657229 | Q92: 0 | R92: 0 | S92: 732523.4731 | T92: 0
F93: 82 | G93: 2024-12-31 | H93: 31 | I93: =VLOOKUP(G93,'Прогноз переменной ставки'!$B$5:$E$304,4,1) -> 0.099 | J93: 10197 | K93: 732523.4731 | L93: 732523.4731 | M93: 0 | N93: 6155.00216 | O93: 4041.99784 | P93: 6155.00216 | Q93: 0 | R93: 0 | S93: 728481.4752 | T93: 0
F94: 83 | G94: 2025-01-31 | H94: 31 | I94: =VLOOKUP(G94,'Прогноз переменной ставки'!$B$5:$E$304,4,1) -> 0.099 | J94: 10197 | K94: 728481.4752 | L94: 728481.4752 | M94: 0 | N94: 6121.039418 | O94: 4075.960582 | P94: 6121.039418 | Q94: 0 | R94: 0 | S94: 724405.5146 | T94: 0
F95: 84 | G95: 2025-02-28 | H95: 28 | I95: =VLOOKUP(G95,'Прогноз переменной ставки'!$B$5:$E$304,4,1) -> 0.099 | J95: 10197 | K95: 724405.5146 | L95: 724405.5146 | M95: 0 | N95: 5497.746986 | O95: 4699.253014 | P95: 5497.746986 | Q95: 0 | R95: 0 | S95: 719706.2616 | T95: 0
F96: 85 | G96: 2025-03-31 | H96: 31 | I96: =VLOOKUP(G96,'Прогноз переменной ставки'!$B$5:$E$304,4,1) -> 0.099 | J96: 10197 | K96: 719706.2616 | L96: 719706.2616 | M96: 0 | N96: 6047.306001 | O96: 4149.693999 | P96: 6047.306001 | Q96: 0 | R96: 0 | S96: 715556.5676 | T96: 0
F97: 86 | G97: 2025-04-30 | H97: 30 | I97: =VLOOKUP(G97,'Прогноз переменной ставки'!$B$5:$E$304,4,1) -> 0.099 | J97: 10197 | K97: 715556.5676 | L97: 715556.5676 | M97: 0 | N97: 5818.488722 | O97: 4378.511278 | P97: 5818.488722 | Q97: 0 | R97: 0 | S97: 711178.0564 | T97: 0
F98: 87 | G98: 2025-05-31 | H98: 31 | I98: =VLOOKUP(G98,'Прогноз переменной ставки'!$B$5:$E$304,4,1) -> 0.099 | J98: 10197 | K98: 711178.0564 | L98: 711178.0564 | M98: 0 | N98: 5975.648063 | O98: 4221.351937 | P98: 5975.648063 | Q98: 0 | R98: 0 | S98: 706956.7044 | T98: 0
F99: 88 | G99: 2025-06-30 | H99: 30 | I99: =VLOOKUP(G99,'Прогноз переменной ставки'!$B$5:$E$304,4,1) -> 0.099 | J99: 10197 | K99: 706956.7044 | L99: 706956.7044 | M99: 0 | N99: 5748.55965 | O99: 4448.44035 | P99: 5748.55965 | Q99: 0 | R99: 0 | S99: 702508.2641 | T99: 0
F100: 89 | G100: 2025-07-31 | H100: 31 | I100: =VLOOKUP(G100,'Прогноз переменной ставки'!$B$5:$E$304,4,1) -> 0.099 | J100: 10197 | K100: 702508.2641 | L100: 702508.2641 | M100: 0 | N100: 5902.800445 | O100: 4294.199555 | P100: 5902.800445 | Q100: 0 | R100: 0 | S100: 698214.0645 | T100: 0
F101: 90 | G101: 2025-08-31 | H101: 31 | I101: =VLOOKUP(G101,'Прогноз переменной ставки'!$B$5:$E$304,4,1) -> 0.099 | J101: 10197 | K101: 698214.0645 | L101: 698214.0645 | M101: 0 | N101: 5866.718587 | O101: 4330.281413 | P101: 5866.718587 | Q101: 0 | R101: 0 | S101: 693883.7831 | T101: 0
F102: 91 | G102: 2025-09-30 | H102: 30 | I102: =VLOOKUP(G102,'Прогноз переменной ставки'!$B$5:$E$304,4,1) -> 0.099 | J102: 10197 | K102: 693883.7831 | L102: 693883.7831 | M102: 0 | N102: 5642.258277 | O102: 4554.741723 | P102: 5642.258277 | Q102: 0 | R102: 0 | S102: 689329.0414 | T102: 0
F103: 92 | G103: 2025-10-31 | H103: 31 | I103: =VLOOKUP(G103,'Прогноз переменной ставки'!$B$5:$E$304,4,1) -> 0.099 | J103: 10197 | K103: 689329.0414 | L103: 689329.0414 | M103: 0 | N103: 5792.0625 | O103: 4404.9375 | P103: 5792.0625 | Q103: 0 | R103: 0 | S103: 684924.1039 | T103: 0
F104: 93 | G104: 2025-11-30 | H104: 30 | I104: =VLOOKUP(G104,'Прогноз переменной ставки'!$B$5:$E$304,4,1) -> 0.099 | J104: 10197 | K104: 684924.1039 | L104: 684924.1039 | M104: 0 | N104: 5569.403391 | O104: 4627.596609 | P104: 5569.403391 | Q104: 0 | R104: 0 | S104: 680296.5073 | T104: 0
F105: 94 | G105: 2025-12-31 | H105: 31 | I105: =VLOOKUP(G105,'Прогноз переменной ставки'!$B$5:$E$304,4,1) -> 0.099 | J105: 10197 | K105: 680296.5073 | L105: 680296.5073 | M105: 0 | N105: 5716.166956 | O105: 4480.833044 | P105: 5716.166956 | Q105: 0 | R105: 0 | S105: 675815.6742 | T105: 0
F106: 95 | G106: 2026-01-31 | H106: 31 | I106: =VLOOKUP(G106,'Прогноз переменной ставки'!$B$5:$E$304,4,1) -> 0.099 | J106: 10197 | K106: 675815.6742 | L106: 675815.6742 | M106: 0 | N106: 5678.516918 | O106: 4518.483082 | P106: 5678.516918 | Q106: 0 | R106: 0 | S106: 671297.1911 | T106: 0
F107: 96 | G107: 2026-02-28 | H107: 28 | I107: =VLOOKUP(G107,'Прогноз переменной ставки'!$B$5:$E$304,4,1) -> 0.099 | J107: 10197 | K107: 671297.1911 | L107: 671297.1911 | M107: 0 | N107: 5094.690798 | O107: 5102.309202 | P107: 5094.690798 | Q107: 0 | R107: 0 | S107: 666194.8819 | T107: 0
F108: 97 | G108: 2026-03-31 | H108: 31 | I108: =VLOOKUP(G108,'Прогноз переменной ставки'!$B$5:$E$304,4,1) -> 0.099 | J108: 10197 | K108: 666194.8819 | L108: 666194.8819 | M108: 0 | N108: 5597.678556 | O108: 4599.321444 | P108: 5597.678556 | Q108: 0 | R108: 0 | S108: 661595.5605 | T108: 0
F109: 98 | G109: 2026-04-30 | H109: 30 | I109: =VLOOKUP(G109,'Прогноз переменной ставки'!$B$5:$E$304,4,1) -> 0.099 | J109: 10197 | K109: 661595.5605 | L109: 661595.5605 | M109: 0 | N109: 5379.70928 | O109: 4817.29072 | P109: 5379.70928 | Q109: 0 | R109: 0 | S109: 656778.2698 | T109: 0
F110: 99 | G110: 2026-05-31 | H110: 31 | I110: =VLOOKUP(G110,'Прогноз переменной ставки'!$B$5:$E$304,4,1) -> 0.099 | J110: 10197 | K110: 656778.2698 | L110: 656778.2698 | M110: 0 | N110: 5518.555811 | O110: 4678.444189 | P110: 5518.555811 | Q110: 0 | R110: 0 | S110: 652099.8256 | T110: 0
F111: 100 | G111: 2026-06-30 | H111: 30 | I111: =VLOOKUP(G111,'Прогноз переменной ставки'!$B$5:$E$304,4,1) -> 0.099 | J111: 10197 | K111: 652099.8256 | L111: 652099.8256 | M111: 0 | N111: 5302.495502 | O111: 4894.504498 | P111: 5302.495502 | Q111: 0 | R111: 0 | S111: 647205.3211 | T111: 0
F112: 101 | G112: 2026-07-31 | H112: 31 | I112: =VLOOKUP(G112,'Прогноз переменной ставки'!$B$5:$E$304,4,1) -> 0.099 | J112: 10197 | K112: 647205.3211 | L112: 647205.3211 | M112: 0 | N112: 5438.119454 | O112: 4758.880546 | P112: 5438.119454 | Q112: 0 | R112: 0 | S112: 642446.4405 | T112: 0
F113: 102 | G113: 2026-08-31 | H113: 31 | I113: =VLOOKUP(G113,'Прогноз переменной ставки'!$B$5:$E$304,4,1) -> 0.099 | J113: 10197 | K113: 642446.4405 | L113: 642446.4405 | M113: 0 | N113: 5398.133131 | O113: 4798.866869 | P113: 5398.133131 | Q113: 0 | R113: 0 | S113: 637647.5737 | T113: 0
F114: 103 | G114: 2026-09-30 | H114: 30 | I114: =VLOOKUP(G114,'Прогноз переменной ставки'!$B$5:$E$304,4,1) -> 0.099 | J114: 10197 | K114: 637647.5737 | L114: 637647.5737 | M114: 0 | N114: 5184.978217 | O114: 5012.021783 | P114: 5184.978217 | Q114: 0 | R114: 0 | S114: 632635.5519 | T114: 0
F115: 104 | G115: 2026-10-31 | H115: 31 | I115: =VLOOKUP(G115,'Прогноз переменной ставки'!$B$5:$E$304,4,1) -> 0.099 | J115: 10197 | K115: 632635.5519 | L115: 632635.5519 | M115: 0 | N115: 5315.697491 | O115: 4881.302509 | P115: 5315.697491 | Q115: 0 | R115: 0 | S115: 627754.2494 | T115: 0
F116: 105 | G116: 2026-11-30 | H116: 30 | I116: =VLOOKUP(G116,'Прогноз переменной ставки'!$B$5:$E$304,4,1) -> 0.099 | J116: 10197 | K116: 627754.2494 | L116: 627754.2494 | M116: 0 | N116: 5104.531473 | O116: 5092.468527 | P116: 5104.531473 | Q116: 0 | R116: 0 | S116: 622661.7809 | T116: 0
F117: 106 | G117: 2026-12-31 | H117: 31 | I117: =VLOOKUP(G117,'Прогноз переменной ставки'!$B$5:$E$304,4,1) -> 0.099 | J117: 10197 | K117: 622661.7809 | L117: 622661.7809 | M117: 0 | N117: 5231.893239 | O117: 4965.106761 | P117: 5231.893239 | Q117: 0 | R117: 0 | S117: 617696.6741 | T117: 0
F118: 107 | G118: 2027-01-31 | H118: 31 | I118: =VLOOKUP(G118,'Прогноз переменной ставки'!$B$5:$E$304,4,1) -> 0.099 | J118: 10197 | K118: 617696.6741 | L118: 617696.6741 | M118: 0 | N118: 5190.174108 | O118: 5006.825892 | P118: 5190.174108 | Q118: 0 | R118: 0 | S118: 612689.8482 | T118: 0
F119: 108 | G119: 2027-02-28 | H119: 28 | I119: =VLOOKUP(G119,'Прогноз переменной ставки'!$B$5:$E$304,4,1) -> 0.099 | J119: 10197 | K119: 612689.8482 | L119: 612689.8482 | M119: 0 | N119: 4649.900778 | O119: 5547.099222 | P119: 4649.900778 | Q119: 0 | R119: 0 | S119: 607142.749 | T119: 0
F120: 109 | G120: 2027-03-31 | H120: 31 | I120: =VLOOKUP(G120,'Прогноз переменной ставки'!$B$5:$E$304,4,1) -> 0.099 | J120: 10197 | K120: 607142.749 | L120: 607142.749 | M120: 0 | N120: 5101.495131 | O120: 5095.504869 | P120: 5101.495131 | Q120: 0 | R120: 0 | S120: 602047.2441 | T120: 0
F121: 110 | G121: 2027-04-30 | H121: 30 | I121: =VLOOKUP(G121,'Прогноз переменной ставки'!$B$5:$E$304,4,1) -> 0.099 | J121: 10197 | K121: 602047.2441 | L121: 602047.2441 | M121: 0 | N121: 4895.497098 | O121: 5301.502902 | P121: 4895.497098 | Q121: 0 | R121: 0 | S121: 596745.7412 | T121: 0
F122: 111 | G122: 2027-05-31 | H122: 31 | I122: =VLOOKUP(G122,'Прогноз переменной ставки'!$B$5:$E$304,4,1) -> 0.099 | J122: 10197 | K122: 596745.7412 | L122: 596745.7412 | M122: 0 | N122: 5014.134647 | O122: 5182.865353 | P122: 5014.134647 | Q122: 0 | R122: 0 | S122: 591562.8759 | T122: 0
F123: 112 | G123: 2027-06-30 | H123: 30 | I123: =VLOOKUP(G123,'Прогноз переменной ставки'!$B$5:$E$304,4,1) -> 0.099 | J123: 10197 | K123: 591562.8759 | L123: 591562.8759 | M123: 0 | N123: 4810.244329 | O123: 5386.755671 | P123: 4810.244329 | Q123: 0 | R123: 0 | S123: 586176.1202 | T123: 0
F124: 113 | G124: 2027-07-31 | H124: 31 | I124: =VLOOKUP(G124,'Прогноз переменной ставки'!$B$5:$E$304,4,1) -> 0.099 | J124: 10197 | K124: 586176.1202 | L124: 586176.1202 | M124: 0 | N124: 4925.323786 | O124: 5271.676214 | P124: 4925.323786 | Q124: 0 | R124: 0 | S124: 580904.444 | T124: 0
F125: 114 | G125: 2027-08-31 | H125: 31 | I125: =VLOOKUP(G125,'Прогноз переменной ставки'!$B$5:$E$304,4,1) -> 0.099 | J125: 10197 | K125: 580904.444 | L125: 580904.444 | M125: 0 | N125: 4881.028716 | O125: 5315.971284 | P125: 4881.028716 | Q125: 0 | R125: 0 | S125: 575588.4727 | T125: 0
F126: 115 | G126: 2027-09-30 | H126: 30 | I126: =VLOOKUP(G126,'Прогноз переменной ставки'!$B$5:$E$304,4,1) -> 0.099 | J126: 10197 | K126: 575588.4727 | L126: 575588.4727 | M126: 0 | N126: 4680.349798 | O126: 5516.650202 | P126: 4680.349798 | Q126: 0 | R126: 0 | S126: 570071.8225 | T126: 0
F127: 116 | G127: 2027-10-31 | H127: 31 | I127: =VLOOKUP(G127,'Прогноз переменной ставки'!$B$5:$E$304,4,1) -> 0.099 | J127: 10197 | K127: 570071.8225 | L127: 570071.8225 | M127: 0 | N127: 4790.008003 | O127: 5406.991997 | P127: 4790.008003 | Q127: 0 | R127: 0 | S127: 564664.8305 | T127: 0
F128: 117 | G128: 2027-11-30 | H128: 30 | I128: =VLOOKUP(G128,'Прогноз переменной ставки'!$B$5:$E$304,4,1) -> 0.099 | J128: 10197 | K128: 564664.8305 | L128: 564664.8305 | M128: 0 | N128: 4591.52511 | O128: 5605.47489 | P128: 4591.52511 | Q128: 0 | R128: 0 | S128: 559059.3556 | T128: 0
F129: 118 | G129: 2027-12-31 | H129: 31 | I129: =VLOOKUP(G129,'Прогноз переменной ставки'!$B$5:$E$304,4,1) -> 0.099 | J129: 10197 | K129: 559059.3556 | L129: 559059.3556 | M129: 0 | N129: 4697.476146 | O129: 5499.523854 | P129: 4697.476146 | Q129: 0 | R129: 0 | S129: 553559.8317 | T129: 0
F130: 119 | G130: 2028-01-31 | H130: 31 | I130: =VLOOKUP(G130,'Прогноз переменной ставки'!$B$5:$E$304,4,1) -> 0.099 | J130: 10197 | K130: 553559.8317 | L130: 553559.8317 | M130: 0 | N130: 4651.266594 | O130: 5545.733406 | P130: 4651.266594 | Q130: 0 | R130: 0 | S130: 548014.0983 | T130: 0
F131: 120 | G131: 2028-02-29 | H131: 29 | I131: =VLOOKUP(G131,'Прогноз переменной ставки'!$B$5:$E$304,4,1) -> 0.099 | J131: 10197 | K131: 548014.0983 | L131: 548014.0983 | M131: 0 | N131: 4307.593364 | O131: 5889.406636 | P131: 4307.593364 | Q131: 0 | R131: 0 | S131: 542124.6917 | T131: 0
F132: 121 | G132: 2028-03-31 | H132: 31 | I132: =VLOOKUP(G132,'Прогноз переменной ставки'!$B$5:$E$304,4,1) -> 0.099 | J132: 10197 | K132: 542124.6917 | L132: 542124.6917 | M132: 0 | N132: 4555.183241 | O132: 5641.816759 | P132: 4555.183241 | Q132: 0 | R132: 0 | S132: 536482.8749 | T132: 0
F133: 122 | G133: 2028-04-30 | H133: 30 | I133: =VLOOKUP(G133,'Прогноз переменной ставки'!$B$5:$E$304,4,1) -> 0.099 | J133: 10197 | K133: 536482.8749 | L133: 536482.8749 | M133: 0 | N133: 4362.365882 | O133: 5834.634118 | P133: 4362.365882 | Q133: 0 | R133: 0 | S133: 530648.2408 | T133: 0
F134: 123 | G134: 2028-05-31 | H134: 31 | I134: =VLOOKUP(G134,'Прогноз переменной ставки'!$B$5:$E$304,4,1) -> 0.099 | J134: 10197 | K134: 530648.2408 | L134: 530648.2408 | M134: 0 | N134: 4458.752775 | O134: 5738.247225 | P134: 4458.752775 | Q134: 0 | R134: 0 | S134: 524909.9936 | T134: 0
F135: 124 | G135: 2028-06-30 | H135: 30 | I135: =VLOOKUP(G135,'Прогноз переменной ставки'!$B$5:$E$304,4,1) -> 0.099 | J135: 10197 | K135: 524909.9936 | L135: 524909.9936 | M135: 0 | N135: 4268.26196 | O135: 5928.73804 | P135: 4268.26196 | Q135: 0 | R135: 0 | S135: 518981.2556 | T135: 0
F136: 125 | G136: 2028-07-31 | H136: 31 | I136: =VLOOKUP(G136,'Прогноз переменной ставки'!$B$5:$E$304,4,1) -> 0.099 | J136: 10197 | K136: 518981.2556 | L136: 518981.2556 | M136: 0 | N136: 4360.721351 | O136: 5836.278649 | P136: 4360.721351 | Q136: 0 | R136: 0 | S136: 513144.9769 | T136: 0
F137: 126 | G137: 2028-08-31 | H137: 31 | I137: =VLOOKUP(G137,'Прогноз переменной ставки'!$B$5:$E$304,4,1) -> 0.099 | J137: 10197 | K137: 513144.9769 | L137: 513144.9769 | M137: 0 | N137: 4311.682229 | O137: 5885.317771 | P137: 4311.682229 | Q137: 0 | R137: 0 | S137: 507259.6591 | T137: 0
F138: 127 | G138: 2028-09-30 | H138: 30 | I138: =VLOOKUP(G138,'Прогноз переменной ставки'!$B$5:$E$304,4,1) -> 0.099 | J138: 10197 | K138: 507259.6591 | L138: 507259.6591 | M138: 0 | N138: 4124.739733 | O138: 6072.260267 | P138: 4124.739733 | Q138: 0 | R138: 0 | S138: 501187.3989 | T138: 0
F139: 128 | G139: 2028-10-31 | H139: 31 | I139: =VLOOKUP(G139,'Прогноз переменной ставки'!$B$5:$E$304,4,1) -> 0.099 | J139: 10197 | K139: 501187.3989 | L139: 501187.3989 | M139: 0 | N139: 4211.209109 | O139: 5985.790891 | P139: 4211.209109 | Q139: 0 | R139: 0 | S139: 495201.608 | T139: 0
F140: 129 | G140: 2028-11-30 | H140: 30 | I140: =VLOOKUP(G140,'Прогноз переменной ставки'!$B$5:$E$304,4,1) -> 0.099 | J140: 10197 | K140: 495201.608 | L140: 495201.608 | M140: 0 | N140: 4026.690693 | O140: =MIN(J140-Q140-P140,L140) -> 6170.309307 | P140: =MIN(J140-Q140,N140) -> 4026.690693 | Q140: =MIN(J140,M140) -> 0 | R140: 0 | S140: =L140-O140 -> 489031.2987 | T140: =M140+R140-Q140 -> 0
F141: 130 | G141: =EOMONTH($D$9,F141-1) -> 2028-12-31 | H141: 31 | I141: =VLOOKUP(G141,'Прогноз переменной ставки'!$B$5:$E$304,4,1) -> 0.099 | J141: =IF(F141=$D$4,K141+N141,MIN($D$5,K141+N141)) -> 10197 | K141: =L141+M141 -> 489031.2987 | L141: 489031.2987 | M141: 0 | N141: =L141*I141/365.25*H141 -> 4109.067914 | O141: 6087.932086 | P141: 4109.067914 | Q141: 0 | R141: 0 | S141: 482943.3666 | T141: 0
F142: 131 | G142: 2029-01-31 | H142: =G142-G141 -> 31 | I142: =VLOOKUP(G142,'Прогноз переменной ставки'!$B$5:$E$304,4,1) -> 0.099 | J142: 10197 | K142: 482943.3666 | L142: =S141 -> 482943.3666 | M142: 0 | N142: 4057.914284 | O142: 6139.085716 | P142: 4057.914284 | Q142: 0 | R142: =MAX(N142-P142,0) -> 0 | S142: 476804.2809 | T142: 0
F143: 132 | G143: 2029-02-28 | H143: 28 | I143: =VLOOKUP(G143,'Прогноз переменной ставки'!$B$5:$E$304,4,1) -> 0.099 | J143: 10197 | K143: 476804.2809 | L143: 476804.2809 | M143: 0 | N143: 3618.621401 | O143: 6578.378599 | P143: 3618.621401 | Q143: 0 | R143: 0 | S143: 470225.9023 | T143: 0
F144: 133 | G144: 2029-03-31 | H144: 31 | I144: =VLOOKUP(G144,'Прогноз переменной ставки'!$B$5:$E$304,4,1) -> 0.099 | J144: 10197 | K144: 470225.9023 | L144: 470225.9023 | M144: 0 | N144: 3951.056247 | O144: 6245.943753 | P144: 3951.056247 | Q144: 0 | R144: 0 | S144: 463979.9585 | T144: 0
F145: 134 | G145: 2029-04-30 | H145: 30 | I145: =VLOOKUP(G145,'Прогноз переменной ставки'!$B$5:$E$304,4,1) -> 0.099 | J145: 10197 | K145: 463979.9585 | L145: 463979.9585 | M145: 0 | N145: 3772.814447 | O145: 6424.185553 | P145: 3772.814447 | Q145: 0 | R145: 0 | S145: 457555.773 | T145: 0
F146: 135 | G146: 2029-05-31 | H146: 31 | I146: =VLOOKUP(G146,'Прогноз переменной ставки'!$B$5:$E$304,4,1) -> 0.099 | J146: 10197 | K146: 457555.773 | L146: 457555.773 | M146: 0 | N146: 3844.59594 | O146: 6352.40406 | P146: 3844.59594 | Q146: 0 | R146: 0 | S146: 451203.3689 | T146: 0
F147: 136 | G147: 2029-06-30 | H147: 30 | I147: =VLOOKUP(G147,'Прогноз переменной ставки'!$B$5:$E$304,4,1) -> 0.099 | J147: 10197 | K147: 451203.3689 | L147: 451203.3689 | M147: 0 | N147: 3668.922671 | O147: 6528.077329 | P147: 3668.922671 | Q147: 0 | R147: 0 | S147: 444675.2916 | T147: 0
F148: 137 | G148: 2029-07-31 | H148: 31 | I148: =VLOOKUP(G148,'Прогноз переменной ставки'!$B$5:$E$304,4,1) -> 0.099 | J148: 10197 | K148: 444675.2916 | L148: 444675.2916 | M148: 0 | N148: 3736.368158 | O148: 6460.631842 | P148: 3736.368158 | Q148: 0 | R148: 0 | S148: 438214.6597 | T148: 0
F149: 138 | G149: 2029-08-31 | H149: 31 | I149: =VLOOKUP(G149,'Прогноз переменной ставки'!$B$5:$E$304,4,1) -> 0.099 | J149: 10197 | K149: 438214.6597 | L149: 438214.6597 | M149: 0 | N149: 3682.082931 | O149: 6514.917069 | P149: 3682.082931 | Q149: 0 | R149: 0 | S149: 431699.7427 | T149: 0
F150: 139 | G150: 2029-09-30 | H150: 30 | I150: =VLOOKUP(G150,'Прогноз переменной ставки'!$B$5:$E$304,4,1) -> 0.099 | J150: 10197 | K150: 431699.7427 | L150: 431699.7427 | M150: 0 | N150: 3510.330556 | O150: 6686.669444 | P150: 3510.330556 | Q150: 0 | R150: 0 | S150: 425013.0732 | T150: 0
F151: 140 | G151: 2029-10-31 | H151: 31 | I151: =VLOOKUP(G151,'Прогноз переменной ставки'!$B$5:$E$304,4,1) -> 0.099 | J151: 10197 | K151: 425013.0732 | L151: 425013.0732 | M151: 0 | N151: 3571.157075 | O151: 6625.842925 | P151: 3571.157075 | Q151: 0 | R151: 0 | S151: 418387.2303 | T151: 0
F152: 141 | G152: 2029-11-30 | H152: 30 | I152: =VLOOKUP(G152,'Прогноз переменной ставки'!$B$5:$E$304,4,1) -> 0.099 | J152: 10197 | K152: 418387.2303 | L152: 418387.2303 | M152: 0 | N152: 3402.080969 | O152: 6794.919031 | P152: 3402.080969 | Q152: 0 | R152: 0 | S152: 411592.3113 | T152: 0
F153: 142 | G153: 2029-12-31 | H153: 31 | I153: =VLOOKUP(G153,'Прогноз переменной ставки'!$B$5:$E$304,4,1) -> 0.099 | J153: 10197 | K153: 411592.3113 | L153: 411592.3113 | M153: 0 | N153: 3458.389605 | O153: 6738.610395 | P153: 3458.389605 | Q153: 0 | R153: 0 | S153: 404853.7009 | T153: 0
F154: 143 | G154: 2030-01-31 | H154: 31 | I154: =VLOOKUP(G154,'Прогноз переменной ставки'!$B$5:$E$304,4,1) -> 0.099 | J154: 10197 | K154: 404853.7009 | L154: 404853.7009 | M154: 0 | N154: 3401.768673 | O154: 6795.231327 | P154: 3401.768673 | Q154: 0 | R154: 0 | S154: 398058.4695 | T154: 0
F155: 144 | G155: 2030-02-28 | H155: 28 | I155: =VLOOKUP(G155,'Прогноз переменной ставки'!$B$5:$E$304,4,1) -> 0.099 | J155: 10197 | K155: 398058.4695 | L155: 398058.4695 | M155: 0 | N155: 3020.994052 | O155: 7176.005948 | P155: 3020.994052 | Q155: 0 | R155: 0 | S155: 390882.4636 | T155: 0
F156: 145 | G156: 2030-03-31 | H156: 31 | I156: =VLOOKUP(G156,'Прогноз переменной ставки'!$B$5:$E$304,4,1) -> 0.099 | J156: 10197 | K156: 390882.4636 | L156: 390882.4636 | M156: 0 | N156: 3284.375854 | O156: 6912.624146 | P156: 3284.375854 | Q156: 0 | R156: 0 | S156: 383969.8395 | T156: 0
F157: 146 | G157: 2030-04-30 | H157: 30 | I157: =VLOOKUP(G157,'Прогноз переменной ставки'!$B$5:$E$304,4,1) -> 0.099 | J157: 10197 | K157: 383969.8395 | L157: 383969.8395 | M157: 0 | N157: 3122.218818 | O157: 7074.781182 | P157: 3122.218818 | Q157: 0 | R157: 0 | S157: 376895.0583 | T157: 0
F158: 147 | G158: 2030-05-31 | H158: 31 | I158: =VLOOKUP(G158,'Прогноз переменной ставки'!$B$5:$E$304,4,1) -> 0.099 | J158: 10197 | K158: 376895.0583 | L158: 376895.0583 | M158: 0 | N158: 3166.847184 | O158: 7030.152816 | P158: 3166.847184 | Q158: 0 | R158: 0 | S158: 369864.9055 | T158: 0
F159: 148 | G159: 2030-06-30 | H159: 30 | I159: =VLOOKUP(G159,'Прогноз переменной ставки'!$B$5:$E$304,4,1) -> 0.099 | J159: 10197 | K159: 369864.9055 | L159: 369864.9055 | M159: 0 | N159: 3007.52572 | O159: 7189.47428 | P159: 3007.52572 | Q159: 0 | R159: 0 | S159: 362675.4312 | T159: 0
F160: 149 | G160: 2030-07-31 | H160: 31 | I160: =VLOOKUP(G160,'Прогноз переменной ставки'!$B$5:$E$304,4,1) -> 0.099 | J160: 10197 | K160: 362675.4312 | L160: 362675.4312 | M160: 0 | N160: 3047.367278 | O160: 7149.632722 | P160: 3047.367278 | Q160: 0 | R160: 0 | S160: 355525.7985 | T160: 0
F161: 150 | G161: 2030-08-31 | H161: 31 | I161: =VLOOKUP(G161,'Прогноз переменной ставки'!$B$5:$E$304,4,1) -> 0.099 | J161: 10197 | K161: 355525.7985 | L161: 355525.7985 | M161: 0 | N161: 2987.292746 | O161: 7209.707254 | P161: 2987.292746 | Q161: 0 | R161: 0 | S161: 348316.0912 | T161: 0
F162: 151 | G162: 2030-09-30 | H162: 30 | I162: =VLOOKUP(G162,'Прогноз переменной ставки'!$B$5:$E$304,4,1) -> 0.099 | J162: 10197 | K162: 348316.0912 | L162: 348316.0912 | M162: 0 | N162: 2832.303329 | O162: 7364.696671 | P162: 2832.303329 | Q162: 0 | R162: 0 | S162: 340951.3945 | T162: 0
F163: 152 | G163: 2030-10-31 | H163: 31 | I163: =VLOOKUP(G163,'Прогноз переменной ставки'!$B$5:$E$304,4,1) -> 0.099 | J163: 10197 | K163: 340951.3945 | L163: 340951.3945 | M163: 0 | N163: 2864.831841 | O163: 7332.168159 | P163: 2864.831841 | Q163: 0 | R163: 0 | S163: 333619.2264 | T163: 0
F164: 153 | G164: 2030-11-30 | H164: 30 | I164: =VLOOKUP(G164,'Прогноз переменной ставки'!$B$5:$E$304,4,1) -> 0.099 | J164: 10197 | K164: 333619.2264 | L164: 333619.2264 | M164: 0 | N164: 2712.796995 | O164: 7484.203005 | P164: 2712.796995 | Q164: 0 | R164: 0 | S164: 326135.0234 | T164: 0
F165: 154 | G165: 2030-12-31 | H165: 31 | I165: =VLOOKUP(G165,'Прогноз переменной ставки'!$B$5:$E$304,4,1) -> 0.099 | J165: 10197 | K165: 326135.0234 | L165: 326135.0234 | M165: 0 | N165: 2740.337814 | O165: 7456.662186 | P165: 2740.337814 | Q165: 0 | R165: 0 | S165: 318678.3612 | T165: 0
F166: 155 | G166: 2031-01-31 | H166: 31 | I166: =VLOOKUP(G166,'Прогноз переменной ставки'!$B$5:$E$304,4,1) -> 0.099 | J166: 10197 | K166: 318678.3612 | L166: 318678.3612 | M166: 0 | N166: 2677.683478 | O166: 7519.316522 | P166: 2677.683478 | Q166: 0 | R166: 0 | S166: 311159.0447 | T166: 0
F167: 156 | G167: 2031-02-28 | H167: 28 | I167: =VLOOKUP(G167,'Прогноз переменной ставки'!$B$5:$E$304,4,1) -> 0.099 | J167: 10197 | K167: 311159.0447 | L167: 311159.0447 | M167: 0 | N167: 2361.486302 | O167: 7835.513698 | P167: 2361.486302 | Q167: 0 | R167: 0 | S167: 303323.531 | T167: 0
F168: 157 | G168: 2031-03-31 | H168: 31 | I168: =VLOOKUP(G168,'Прогноз переменной ставки'!$B$5:$E$304,4,1) -> 0.099 | J168: 10197 | K168: 303323.531 | L168: 303323.531 | M168: 0 | N168: 2548.665069 | O168: 7648.334931 | P168: 2548.665069 | Q168: 0 | R168: 0 | S168: 295675.196 | T168: 0
F169: 158 | G169: 2031-04-30 | H169: 30 | I169: =VLOOKUP(G169,'Прогноз переменной ставки'!$B$5:$E$304,4,1) -> 0.099 | J169: 10197 | K169: 295675.196 | L169: 295675.196 | M169: 0 | N169: 2404.258267 | O169: 7792.741733 | P169: 2404.258267 | Q169: 0 | R169: 0 | S169: 287882.4543 | T169: 0
F170: 159 | G170: 2031-05-31 | H170: 31 | I170: =VLOOKUP(G170,'Прогноз переменной ставки'!$B$5:$E$304,4,1) -> 0.099 | J170: 10197 | K170: 287882.4543 | L170: 287882.4543 | M170: 0 | N170: 2418.921977 | O170: 7778.078023 | P170: 2418.921977 | Q170: 0 | R170: 0 | S170: 280104.3763 | T170: 0
F171: 160 | G171: 2031-06-30 | H171: 30 | I171: =VLOOKUP(G171,'Прогноз переменной ставки'!$B$5:$E$304,4,1) -> 0.099 | J171: 10197 | K171: 280104.3763 | L171: 280104.3763 | M171: 0 | N171: 2277.645442 | O171: 7919.354558 | P171: 2277.645442 | Q171: 0 | R171: 0 | S171: 272185.0217 | T171: 0
F172: 161 | G172: 2031-07-31 | H172: 31 | I172: =VLOOKUP(G172,'Прогноз переменной ставки'!$B$5:$E$304,4,1) -> 0.099 | J172: 10197 | K172: 272185.0217 | L172: 272185.0217 | M172: 0 | N172: 2287.024864 | O172: 7909.975136 | P172: 2287.024864 | Q172: 0 | R172: 0 | S172: 264275.0466 | T172: 0
F173: 162 | G173: 2031-08-31 | H173: 31 | I173: =VLOOKUP(G173,'Прогноз переменной ставки'!$B$5:$E$304,4,1) -> 0.099 | J173: 10197 | K173: 264275.0466 | L173: 264275.0466 | M173: 0 | N173: 2220.561582 | O173: 7976.438418 | P173: 2220.561582 | Q173: 0 | R173: 0 | S173: 256298.6082 | T173: 0
F174: 163 | G174: 2031-09-30 | H174: 30 | I174: =VLOOKUP(G174,'Прогноз переменной ставки'!$B$5:$E$304,4,1) -> 0.099 | J174: 10197 | K174: 256298.6082 | L174: 256298.6082 | M174: 0 | N174: 2084.070818 | O174: 8112.929182 | P174: 2084.070818 | Q174: 0 | R174: 0 | S174: 248185.679 | T174: 0
F175: 164 | G175: 2031-10-31 | H175: 31 | I175: =VLOOKUP(G175,'Прогноз переменной ставки'!$B$5:$E$304,4,1) -> 0.099 | J175: 10197 | K175: 248185.679 | L175: 248185.679 | M175: 0 | N175: 2085.371249 | O175: 8111.628751 | P175: 2085.371249 | Q175: 0 | R175: 0 | S175: 240074.0502 | T175: 0
F176: 165 | G176: 2031-11-30 | H176: 30 | I176: =VLOOKUP(G176,'Прогноз переменной ставки'!$B$5:$E$304,4,1) -> 0.099 | J176: 10197 | K176: 240074.0502 | L176: 240074.0502 | M176: 0 | N176: 1952.142174 | O176: 8244.857826 | P176: 1952.142174 | Q176: 0 | R176: 0 | S176: 231829.1924 | T176: 0
F177: 166 | G177: 2031-12-31 | H177: 31 | I177: =VLOOKUP(G177,'Прогноз переменной ставки'!$B$5:$E$304,4,1) -> 0.099 | J177: 10197 | K177: 231829.1924 | L177: 231829.1924 | M177: 0 | N177: 1947.936459 | O177: 8249.063541 | P177: 1947.936459 | Q177: 0 | R177: 0 | S177: 223580.1289 | T177: 0
F178: 167 | G178: 2032-01-31 | H178: 31 | I178: =VLOOKUP(G178,'Прогноз переменной ставки'!$B$5:$E$304,4,1) -> 0.099 | J178: 10197 | K178: 223580.1289 | L178: 223580.1289 | M178: 0 | N178: 1878.623999 | O178: 8318.376001 | P178: 1878.623999 | Q178: 0 | R178: 0 | S178: 215261.7529 | T178: 0
F179: 168 | G179: 2032-02-29 | H179: 29 | I179: =VLOOKUP(G179,'Прогноз переменной ставки'!$B$5:$E$304,4,1) -> 0.099 | J179: 10197 | K179: 215261.7529 | L179: 215261.7529 | M179: 0 | N179: 1692.03694 | O179: 8504.96306 | P179: 1692.03694 | Q179: 0 | R179: 0 | S179: 206756.7898 | T179: 0
F180: 169 | G180: 2032-03-31 | H180: 31 | I180: =VLOOKUP(G180,'Прогноз переменной ставки'!$B$5:$E$304,4,1) -> 0.099 | J180: 10197 | K180: 206756.7898 | L180: 206756.7898 | M180: 0 | N180: 1737.266497 | O180: 8459.733503 | P180: 1737.266497 | Q180: 0 | R180: 0 | S180: 198297.0563 | T180: 0
F181: 170 | G181: 2032-04-30 | H181: 30 | I181: =VLOOKUP(G181,'Прогноз переменной ставки'!$B$5:$E$304,4,1) -> 0.099 | J181: 10197 | K181: 198297.0563 | L181: 198297.0563 | M181: 0 | N181: 1612.436022 | O181: 8584.563978 | P181: 1612.436022 | Q181: 0 | R181: 0 | S181: 189712.4923 | T181: 0
F182: 171 | G182: 2032-05-31 | H182: 31 | I182: =VLOOKUP(G182,'Прогноз переменной ставки'!$B$5:$E$304,4,1) -> 0.099 | J182: 10197 | K182: 189712.4923 | L182: 189712.4923 | M182: 0 | N182: 1594.052399 | O182: 8602.947601 | P182: 1594.052399 | Q182: 0 | R182: 0 | S182: 181109.5447 | T182: 0
F183: 172 | G183: 2032-06-30 | H183: 30 | I183: =VLOOKUP(G183,'Прогноз переменной ставки'!$B$5:$E$304,4,1) -> 0.099 | J183: 10197 | K183: 181109.5447 | L183: 181109.5447 | M183: 0 | N183: 1472.677201 | O183: 8724.322799 | P183: 1472.677201 | Q183: 0 | R183: 0 | S183: 172385.2219 | T183: 0
F184: 173 | G184: 2032-07-31 | H184: 31 | I184: =VLOOKUP(G184,'Прогноз переменной ставки'!$B$5:$E$304,4,1) -> 0.099 | J184: 10197 | K184: 172385.2219 | L184: 172385.2219 | M184: 0 | N184: 1448.460633 | O184: 8748.539367 | P184: 1448.460633 | Q184: 0 | R184: 0 | S184: 163636.6825 | T184: 0
F185: 174 | G185: 2032-08-31 | H185: 31 | I185: =VLOOKUP(G185,'Прогноз переменной ставки'!$B$5:$E$304,4,1) -> 0.099 | J185: 10197 | K185: 163636.6825 | L185: 163636.6825 | M185: 0 | N185: 1374.951345 | O185: 8822.048655 | P185: 1374.951345 | Q185: 0 | R185: 0 | S185: 154814.6339 | T185: 0
F186: 175 | G186: 2032-09-30 | H186: 30 | I186: =VLOOKUP(G186,'Прогноз переменной ставки'!$B$5:$E$304,4,1) -> 0.099 | J186: 10197 | K186: 154814.6339 | L186: 154814.6339 | M186: 0 | N186: 1258.862321 | O186: 8938.137679 | P186: 1258.862321 | Q186: 0 | R186: 0 | S186: 145876.4962 | T186: 0
F187: 176 | G187: 2032-10-31 | H187: 31 | I187: =VLOOKUP(G187,'Прогноз переменной ставки'!$B$5:$E$304,4,1) -> 0.099 | J187: 10197 | K187: 145876.4962 | L187: 145876.4962 | M187: 0 | N187: 1225.722017 | O187: 8971.277983 | P187: 1225.722017 | Q187: 0 | R187: 0 | S187: 136905.2182 | T187: 0
F188: 177 | G188: 2032-11-30 | H188: 30 | I188: =VLOOKUP(G188,'Прогноз переменной ставки'!$B$5:$E$304,4,1) -> 0.099 | J188: 10197 | K188: 136905.2182 | L188: 136905.2182 | M188: 0 | N188: 1113.233397 | O188: 9083.766603 | P188: 1113.233397 | Q188: 0 | R188: 0 | S188: 127821.4516 | T188: 0
F189: 178 | G189: 2032-12-31 | H189: 31 | I189: =VLOOKUP(G189,'Прогноз переменной ставки'!$B$5:$E$304,4,1) -> 0.099 | J189: 10197 | K189: 127821.4516 | L189: 127821.4516 | M189: 0 | N189: 1074.015154 | O189: 9122.984846 | P189: 1074.015154 | Q189: 0 | R189: 0 | S189: 118698.4668 | T189: 0
F190: 179 | G190: 2033-01-31 | H190: 31 | I190: =VLOOKUP(G190,'Прогноз переменной ставки'!$B$5:$E$304,4,1) -> 0.099 | J190: 10197 | K190: 118698.4668 | L190: 118698.4668 | M190: 0 | N190: 997.3596018 | O190: 9199.640398 | P190: 997.3596018 | Q190: 0 | R190: 0 | S190: 109498.8264 | T190: 0
F191: 180 | G191: 2033-02-28 | H191: 28 | I191: =VLOOKUP(G191,'Прогноз переменной ставки'!$B$5:$E$304,4,1) -> 0.099 | J191: 110329.8483 | K191: 109498.8264 | L191: 109498.8264 | M191: 0 | N191: 831.0218939 | O191: 109498.8264 | P191: 831.0218939 | Q191: 0 | R191: 0 | S191: 0 | T191: 0
F192: 181 | G192: 2033-03-31 | H192: 31 | I192: =VLOOKUP(G192,'Прогноз переменной ставки'!$B$5:$E$304,4,1) -> 0.099 | J192: 0 | K192: 0 | L192: 0 | M192: 0 | N192: 0 | O192: 0 | P192: 0 | Q192: 0 | R192: 0 | S192: 0 | T192: 0
F193: 182 | G193: 2033-04-30 | H193: 30 | I193: =VLOOKUP(G193,'Прогноз переменной ставки'!$B$5:$E$304,4,1) -> 0.099 | J193: 0 | K193: 0 | L193: 0 | M193: 0 | N193: 0 | O193: 0 | P193: 0 | Q193: 0 | R193: 0 | S193: 0 | T193: 0
F194: 183 | G194: 2033-05-31 | H194: 31 | I194: =VLOOKUP(G194,'Прогноз переменной ставки'!$B$5:$E$304,4,1) -> 0.099 | J194: 0 | K194: 0 | L194: 0 | M194: 0 | N194: 0 | O194: 0 | P194: 0 | Q194: 0 | R194: 0 | S194: 0 | T194: 0
F195: 184 | G195: 2033-06-30 | H195: 30 | I195: =VLOOKUP(G195,'Прогноз переменной ставки'!$B$5:$E$304,4,1) -> 0.099 | J195: 0 | K195: 0 | L195: 0 | M195: 0 | N195: 0 | O195: 0 | P195: 0 | Q195: 0 | R195: 0 | S195: 0 | T195: 0
F196: 185 | G196: 2033-07-31 | H196: 31 | I196: =VLOOKUP(G196,'Прогноз переменной ставки'!$B$5:$E$304,4,1) -> 0.099 | J196: 0 | K196: 0 | L196: 0 | M196: 0 | N196: 0 | O196: 0 | P196: 0 | Q196: 0 | R196: 0 | S196: 0 | T196: 0
F197: 186 | G197: 2033-08-31 | H197: 31 | I197: =VLOOKUP(G197,'Прогноз переменной ставки'!$B$5:$E$304,4,1) -> 0.099 | J197: 0 | K197: 0 | L197: 0 | M197: 0 | N197: 0 | O197: 0 | P197: 0 | Q197: 0 | R197: 0 | S197: 0 | T197: 0
F198: 187 | G198: 2033-09-30 | H198: 30 | I198: =VLOOKUP(G198,'Прогноз переменной ставки'!$B$5:$E$304,4,1) -> 0.099 | J198: 0 | K198: 0 | L198: 0 | M198: 0 | N198: 0 | O198: 0 | P198: 0 | Q198: 0 | R198: 0 | S198: 0 | T198: 0
F199: 188 | G199: 2033-10-31 | H199: 31 | I199: =VLOOKUP(G199,'Прогноз переменной ставки'!$B$5:$E$304,4,1) -> 0.099 | J199: 0 | K199: 0 | L199: 0 | M199: 0 | N199: 0 | O199: 0 | P199: 0 | Q199: 0 | R199: 0 | S199: 0 | T199: 0
F200: 189 | G200: 2033-11-30 | H200: 30 | I200: =VLOOKUP(G200,'Прогноз переменной ставки'!$B$5:$E$304,4,1) -> 0.099 | J200: 0 | K200: 0 | L200: 0 | M200: 0 | N200: 0 | O200: 0 | P200: 0 | Q200: 0 | R200: 0 | S200: 0 | T200: 0
F201: 190 | G201: 2033-12-31 | H201: 31 | I201: =VLOOKUP(G201,'Прогноз переменной ставки'!$B$5:$E$304,4,1) -> 0.099 | J201: 0 | K201: 0 | L201: 0 | M201: 0 | N201: 0 | O201: 0 | P201: 0 | Q201: 0 | R201: 0 | S201: 0 | T201: 0
... 110 more rows

Sheet График_240 (hidden)
B2: Параметр | D2: Значение
B3: Сумма кредита | D3: ='Калькулятор_от дохода'!$R$66 -> 1000000
B4: Первоначальный срок, мес. | D4: ='Расчет по доходу заемщика'!$G$41 -> 240
B5: Ежемесячный платеж | D5: ='Калькулятор_от дохода'!$R$72 -> 9025
B6: Расчетный период полного погашения | D6: =MATCH(0,K12:K263,0)-1 -> 240
B7: остаток долга на конец срока кредита | D7: =VLOOKUP(D4+1,$F$12:$L$263,4) -> 0.099
B8: Переплата | D8: =SUM($J$12:$J$311)-D3 -> 1419997.173 | M8: График платежей
B9: дата выдачи | D9: ='Калькулятор_от дохода'!$V$20 -> 2018-03-01
G10: Последняя дата процентного периода | H10: Кол-во дней в процентном периоде | I10: Ставка для расчетов | J10: Ежемесячный платеж | K10: Общий долг на начало | L10: Остаток кредита на начало | M10: Накопленные %% на начало | N10: Начислено за месяц | O10: Погашение кредита | P10: Погашение текущих % | Q10: Погашение накопленных %% | R10: Формирование накопленных %% | S10: Остаток кредита на конец периода | T10: Накопленные %% на конец периода
F11: 1 | G11: 2 | H11: 3 | I11: 2 | J11: 3 | K11: 4 | L11: 5 | M11: 6 | N11: 7 | O11: 8 | P11: 9 | Q11: 10 | R11: 11 | S11: 12 | T11: 13
F12: 1 | G12: =EOMONTH($D$9,F12-1) -> 2018-03-31 | H12: =G12-D9 -> 30 | I12: =VLOOKUP(G12,'Прогноз переменной ставки'!$B$5:$E$304,4,1) -> 0.0698 | J12: =IF(F12=$D$4,K12+N12,MIN($D$5,K12+N12)) -> 9025 | K12: =L12+M12 -> 1000000 | L12: =D3 -> 1000000 | M12: 0 | N12: =L12*I12/365.25*H12 -> 5733.059548 | O12: =MIN(J12-Q12-P12,L12) -> 3291.940452 | P12: =MIN(J12-Q12,N12) -> 5733.059548 | Q12: =MIN(J12,M12) -> 0 | R12: =MAX(N12-P12,0) -> 0 | S12: =L12-O12 -> 996708.0595 | T12: =M12+R12-Q12 -> 0
F13: 2 | G13: =EOMONTH($D$9,F13-1) -> 2018-04-30 | H13: =G13-G12 -> 30 | I13: =VLOOKUP(G13,'Прогноз переменной ставки'!$B$5:$E$304,4,1) -> 0.0698 | J13: =IF(F13=$D$4,K13+N13,MIN($D$5,K13+N13)) -> 9025 | K13: =L13+M13 -> 996708.0595 | L13: =S12 -> 996708.0595 | M13: =T12 -> 0 | N13: =L13*I13/365.25*H13 -> 5714.186658 | O13: 3310.813342 | P13: 5714.186658 | Q13: 0 | R13: =MAX(N13-P13,0) -> 0 | S13: 993397.2462 | T13: 0
F14: 3 | G14: 2018-05-31 | H14: =G14-G13 -> 31 | I14: =VLOOKUP(G14,'Прогноз переменной ставки'!$B$5:$E$304,4,1) -> 0.0698 | J14: 9025 | K14: 993397.2462 | L14: =S13 -> 993397.2462 | M14: 0 | N14: 5885.045753 | O14: 3139.954247 | P14: 5885.045753 | Q14: 0 | R14: =MAX(N14-P14,0) -> 0 | S14: 990257.292 | T14: 0
F15: 4 | G15: 2018-06-30 | H15: 30 | I15: =VLOOKUP(G15,'Прогноз переменной ставки'!$B$5:$E$304,4,1) -> 0.0698 | J15: 9025 | K15: 990257.292 | L15: 990257.292 | M15: 0 | N15: 5677.204023 | O15: 3347.795977 | P15: 5677.204023 | Q15: 0 | R15: 0 | S15: 986909.496 | T15: 0
F16: 5 | G16: 2018-07-31 | H16: 31 | I16: =VLOOKUP(G16,'Прогноз переменной ставки'!$B$5:$E$304,4,1) -> 0.0698 | J16: 9025 | K16: 986909.496 | L16: 986909.496 | M16: 0 | N16: 5846.611273 | O16: 3178.388727 | P16: 5846.611273 | Q16: 0 | R16: 0 | S16: 983731.1073 | T16: 0
F17: 6 | G17: 2018-08-31 | H17: 31 | I17: =VLOOKUP(G17,'Прогноз переменной ставки'!$B$5:$E$304,4,1) -> 0.0698 | J17: 9025 | K17: 983731.1073 | L17: 983731.1073 | M17: 0 | N17: 5827.781985 | O17: 3197.218015 | P17: 5827.781985 | Q17: 0 | R17: 0 | S17: 980533.8892 | T17: 0
F18: 7 | G18: 2018-09-30 | H18: 30 | I18: =VLOOKUP(G18,'Прогноз переменной ставки'!$B$5:$E$304,4,1) -> 0.0698 | J18: 9025 | K18: 980533.8892 | L18: =S17 -> 980533.8892 | M18: =T17 -> 0 | N18: 5621.459176 | O18: 3403.540824 | P18: 5621.459176 | Q18: 0 | R18: =MAX(N18-P18,0) -> 0 | S18: 977130.3484 | T18: 0
F19: 8 | G19: 2018-10-31 | H19: 31 | I19: =VLOOKUP(G19,'Прогноз переменной ставки'!$B$5:$E$304,4,1) -> 0.0698 | J19: 9025 | K19: 977130.3484 | L19: =S18 -> 977130.3484 | M19: =T18 -> 0 | N19: 5788.678023 | O19: 3236.321977 | P19: 5788.678023 | Q19: 0 | R19: 0 | S19: 973894.0264 | T19: 0
F20: 9 | G20: 2018-11-30 | H20: 30 | I20: =VLOOKUP(G20,'Прогноз переменной ставки'!$B$5:$E$304,4,1) -> 0.0698 | J20: 9025 | K20: 973894.0264 | L20: 973894.0264 | M20: 0 | N20: 5583.392447 | O20: 3441.607553 | P20: 5583.392447 | Q20: 0 | R20: 0 | S20: 970452.4189 | T20: 0
F21: 10 | G21: 2018-12-31 | H21: 31 | I21: =VLOOKUP(G21,'Прогноз переменной ставки'!$B$5:$E$304,4,1) -> 0.0698 | J21: 9025 | K21: 970452.4189 | L21: 970452.4189 | M21: 0 | N21: 5749.11689 | O21: 3275.88311 | P21: 5749.11689 | Q21: 0 | R21: 0 | S21: 967176.5358 | T21: 0
F22: 11 | G22: 2019-01-31 | H22: 31 | I22: =VLOOKUP(G22,'Прогноз переменной ставки'!$B$5:$E$304,4,1) -> 0.099 | J22: 9025 | K22: 967176.5358 | L22: 967176.5358 | M22: 0 | N22: 8126.666087 | O22: 898.333913 | P22: 8126.666087 | Q22: 0 | R22: 0 | S22: 966278.2019 | T22: 0
F23: 12 | G23: 2019-02-28 | H23: 28 | I23: =VLOOKUP(G23,'Прогноз переменной ставки'!$B$5:$E$304,4,1) -> 0.099 | J23: 9025 | K23: 966278.2019 | L23: 966278.2019 | M23: 0 | N23: 7333.396785 | O23: 1691.603215 | P23: 7333.396785 | Q23: 0 | R23: 0 | S23: 964586.5986 | T23: 0
F24: 13 | G24: 2019-03-31 | H24: 31 | I24: =VLOOKUP(G24,'Прогноз переменной ставки'!$B$5:$E$304,4,1) -> 0.099 | J24: 9025 | K24: 964586.5986 | L24: =S23 -> 964586.5986 | M24: =T23 -> 0 | N24: 8104.904233 | O24: 920.0957666 | P24: 8104.904233 | Q24: 0 | R24: 0 | S24: 963666.5029 | T24: 0
F25: 14 | G25: 2019-04-30 | H25: 30 | I25: =VLOOKUP(G25,'Прогноз переменной ставки'!$B$5:$E$304,4,1) -> 0.099 | J25: 9025 | K25: 963666.5029 | L25: 963666.5029 | M25: 0 | N25: 7835.974028 | O25: 1189.025972 | P25: 7835.974028 | Q25: 0 | R25: 0 | S25: 962477.4769 | T25: 0
F26: 15 | G26: 2019-05-31 | H26: 31 | I26: =VLOOKUP(G26,'Прогноз переменной ставки'!$B$5:$E$304,4,1) -> 0.099 | J26: 9025 | K26: 962477.4769 | L26: 962477.4769 | M26: 0 | N26: 8087.182414 | O26: 937.8175862 | P26: 8087.182414 | Q26: 0 | R26: 0 | S26: 961539.6593 | T26: 0
F27: 16 | G27: 2019-06-30 | H27: 30 | I27: =VLOOKUP(G27,'Прогноз переменной ставки'!$B$5:$E$304,4,1) -> 0.099 | J27: 9025 | K27: 961539.6593 | L27: 961539.6593 | M27: 0 | N27: 7818.679776 | O27: 1206.320224 | P27: 7818.679776 | Q27: 0 | R27: 0 | S27: 960333.3391 | T27: 0
F28: 17 | G28: 2019-07-31 | H28: 31 | I28: =VLOOKUP(G28,'Прогноз переменной ставки'!$B$5:$E$304,4,1) -> 0.099 | J28: 9025 | K28: 960333.3391 | L28: 960333.3391 | M28: 0 | N28: 8069.166373 | O28: 955.8336271 | P28: 8069.166373 | Q28: 0 | R28: 0 | S28: 959377.5055 | T28: 0
F29: 18 | G29: 2019-08-31 | H29: 31 | I29: =VLOOKUP(G29,'Прогноз переменной ставки'!$B$5:$E$304,4,1) -> 0.099 | J29: 9025 | K29: 959377.5055 | L29: 959377.5055 | M29: 0 | N29: 8061.135015 | O29: 963.8649848 | P29: 8061.135015 | Q29: 0 | R29: 0 | S29: 958413.6405 | T29: 0
F30: 19 | G30: 2019-09-30 | H30: 30 | I30: =VLOOKUP(G30,'Прогноз переменной ставки'!$B$5:$E$304,4,1) -> 0.099 | J30: 9025 | K30: 958413.6405 | L30: 958413.6405 | M30: 0 | N30: 7793.260814 | O30: 1231.739186 | P30: 7793.260814 | Q30: 0 | R30: 0 | S30: 957181.9013 | T30: 0
F31: 20 | G31: 2019-10-31 | H31: 31 | I31: =VLOOKUP(G31,'Прогноз переменной ставки'!$B$5:$E$304,4,1) -> 0.099 | J31: 9025 | K31: 957181.9013 | L31: 957181.9013 | M31: 0 | N31: 8042.68653 | O31: 982.31347 | P31: 8042.68653 | Q31: 0 | R31: 0 | S31: 956199.5878 | T31: 0
F32: 21 | G32: 2019-11-30 | H32: 30 | I32: =VLOOKUP(G32,'Прогноз переменной ставки'!$B$5:$E$304,4,1) -> 0.099 | J32: 9025 | K32: 956199.5878 | L32: 956199.5878 | M32: 0 | N32: 7775.257429 | O32: 1249.742571 | P32: 7775.257429 | Q32: 0 | R32: 0 | S32: 954949.8453 | T32: 0
F33: 22 | G33: 2019-12-31 | H33: 31 | I33: =VLOOKUP(G33,'Прогноз переменной ставки'!$B$5:$E$304,4,1) -> 0.099 | J33: 9025 | K33: 954949.8453 | L33: 954949.8453 | M33: 0 | N33: 8023.931759 | O33: 1001.068241 | P33: 8023.931759 | Q33: 0 | R33: 0 | S33: 953948.777 | T33: 0
F34: 23 | G34: 2020-01-31 | H34: 31 | I34: =VLOOKUP(G34,'Прогноз переменной ставки'!$B$5:$E$304,4,1) -> 0.099 | J34: 9025 | K34: 953948.777 | L34: 953948.777 | M34: 0 | N34: 8015.520319 | O34: 1009.479681 | P34: 8015.520319 | Q34: 0 | R34: 0 | S34: 952939.2973 | T34: 0
F35: 24 | G35: 2020-02-29 | H35: 29 | I35: =VLOOKUP(G35,'Прогноз переменной ставки'!$B$5:$E$304,4,1) -> 0.099 | J35: 9025 | K35: 952939.2973 | L35: 952939.2973 | M35: 0 | N35: 7490.455093 | O35: 1534.544907 | P35: 7490.455093 | Q35: 0 | R35: 0 | S35: 951404.7524 | T35: 0
F36: 25 | G36: 2020-03-31 | H36: 31 | I36: =VLOOKUP(G36,'Прогноз переменной ставки'!$B$5:$E$304,4,1) -> 0.099 | J36: 9025 | K36: 951404.7524 | L36: 951404.7524 | M36: 0 | N36: 7994.144244 | O36: 1030.855756 | P36: 7994.144244 | Q36: 0 | R36: 0 | S36: 950373.8967 | T36: 0
F37: 26 | G37: 2020-04-30 | H37: 30 | I37: =VLOOKUP(G37,'Прогноз переменной ставки'!$B$5:$E$304,4,1) -> 0.099 | J37: 9025 | K37: 950373.8967 | L37: 950373.8967 | M37: 0 | N37: 7727.886306 | O37: 1297.113694 | P37: 7727.886306 | Q37: 0 | R37: 0 | S37: 949076.783 | T37: 0
F38: 27 | G38: 2020-05-31 | H38: 31 | I38: =VLOOKUP(G38,'Прогноз переменной ставки'!$B$5:$E$304,4,1) -> 0.099 | J38: 9025 | K38: 949076.783 | L38: 949076.783 | M38: 0 | N38: 7974.583565 | O38: 1050.416435 | P38: 7974.583565 | Q38: 0 | R38: 0 | S38: 948026.3665 | T38: 0
F39: 28 | G39: 2020-06-30 | H39: 30 | I39: =VLOOKUP(G39,'Прогноз переменной ставки'!$B$5:$E$304,4,1) -> 0.099 | J39: 9025 | K39: 948026.3665 | L39: 948026.3665 | M39: 0 | N39: 7708.79756 | O39: 1316.20244 | P39: 7708.79756 | Q39: 0 | R39: 0 | S39: 946710.1641 | T39: 0
F40: 29 | G40: 2020-07-31 | H40: 31 | I40: =VLOOKUP(G40,'Прогноз переменной ставки'!$B$5:$E$304,4,1) -> 0.099 | J40: 9025 | K40: 946710.1641 | L40: 946710.1641 | M40: 0 | N40: 7954.698135 | O40: 1070.301865 | P40: 7954.698135 | Q40: 0 | R40: 0 | S40: 945639.8622 | T40: 0
F41: 30 | G41: 2020-08-31 | H41: 31 | I41: =VLOOKUP(G41,'Прогноз переменной ставки'!$B$5:$E$304,4,1) -> 0.099 | J41: 9025 | K41: 945639.8622 | L41: 945639.8622 | M41: 0 | N41: 7945.704962 | O41: 1079.295038 | P41: 7945.704962 | Q41: 0 | R41: 0 | S41: 944560.5672 | T41: 0
F42: 31 | G42: 2020-09-30 | H42: 30 | I42: =VLOOKUP(G42,'Прогноз переменной ставки'!$B$5:$E$304,4,1) -> 0.099 | J42: 9025 | K42: 944560.5672 | L42: 944560.5672 | M42: 0 | N42: 7680.6157 | O42: 1344.3843 | P42: 7680.6157 | Q42: 0 | R42: 0 | S42: 943216.1829 | T42: 0
F43: 32 | G43: 2020-10-31 | H43: 31 | I43: =VLOOKUP(G43,'Прогноз переменной ставки'!$B$5:$E$304,4,1) -> 0.099 | J43: 9025 | K43: 943216.1829 | L43: 943216.1829 | M43: 0 | N43: 7925.340083 | O43: 1099.659917 | P43: 7925.340083 | Q43: 0 | R43: 0 | S43: 942116.523 | T43: 0
F44: 33 | G44: 2020-11-30 | H44: 30 | I44: =VLOOKUP(G44,'Прогноз переменной ставки'!$B$5:$E$304,4,1) -> 0.099 | J44: 9025 | K44: 942116.523 | L44: 942116.523 | M44: 0 | N44: 7660.742158 | O44: 1364.257842 | P44: 7660.742158 | Q44: 0 | R44: 0 | S44: 940752.2651 | T44: 0
F45: 34 | G45: 2020-12-31 | H45: 31 | I45: =VLOOKUP(G45,'Прогноз переменной ставки'!$B$5:$E$304,4,1) -> 0.099 | J45: 9025 | K45: 940752.2651 | L45: 940752.2651 | M45: 0 | N45: 7904.637103 | O45: 1120.362897 | P45: 7904.637103 | Q45: 0 | R45: 0 | S45: 939631.9022 | T45: 0
F46: 35 | G46: 2021-01-31 | H46: 31 | I46: =VLOOKUP(G46,'Прогноз переменной ставки'!$B$5:$E$304,4,1) -> 0.099 | J46: 9025 | K46: 939631.9022 | L46: 939631.9022 | M46: 0 | N46: 7895.223294 | O46: 1129.776706 | P46: 7895.223294 | Q46: 0 | R46: 0 | S46: 938502.1255 | T46: 0
F47: 36 | G47: 2021-02-28 | H47: 28 | I47: =VLOOKUP(G47,'Прогноз переменной ставки'!$B$5:$E$304,4,1) -> 0.099 | J47: 9025 | K47: 938502.1255 | L47: 938502.1255 | M47: 0 | N47: 7122.595187 | O47: 1902.404813 | P47: 7122.595187 | Q47: 0 | R47: 0 | S47: 936599.7207 | T47: 0
F48: 37 | G48: 2021-03-31 | H48: 31 | I48: =VLOOKUP(G48,'Прогноз переменной ставки'!$B$5:$E$304,4,1) -> 0.099 | J48: 9025 | K48: 936599.7207 | L48: 936599.7207 | M48: 0 | N48: 7869.745497 | O48: 1155.254503 | P48: 7869.745497 | Q48: 0 | R48: 0 | S48: 935444.4662 | T48: 0
F49: 38 | G49: 2021-04-30 | H49: 30 | I49: =VLOOKUP(G49,'Прогноз переменной ставки'!$B$5:$E$304,4,1) -> 0.099 | J49: 9025 | K49: 935444.4662 | L49: 935444.4662 | M49: 0 | N49: 7606.488883 | O49: 1418.511117 | P49: 7606.488883 | Q49: 0 | R49: 0 | S49: 934025.9551 | T49: 0
F50: 39 | G50: 2021-05-31 | H50: 31 | I50: =VLOOKUP(G50,'Прогноз переменной ставки'!$B$5:$E$304,4,1) -> 0.099 | J50: 9025 | K50: 934025.9551 | L50: 934025.9551 | M50: 0 | N50: 7848.119524 | O50: 1176.880476 | P50: 7848.119524 | Q50: 0 | R50: 0 | S50: 932849.0746 | T50: 0
F51: 40 | G51: 2021-06-30 | H51: 30 | I51: =VLOOKUP(G51,'Прогноз переменной ставки'!$B$5:$E$304,4,1) -> 0.099 | J51: 9025 | K51: 932849.0746 | L51: 932849.0746 | M51: 0 | N51: 7585.384673 | O51: 1439.615327 | P51: 7585.384673 | Q51: 0 | R51: 0 | S51: 931409.4593 | T51: 0
F52: 41 | G52: 2021-07-31 | H52: 31 | I52: =VLOOKUP(G52,'Прогноз переменной ставки'!$B$5:$E$304,4,1) -> 0.099 | J52: 9025 | K52: 931409.4593 | L52: 931409.4593 | M52: 0 | N52: 7826.134512 | O52: 1198.865488 | P52: 7826.134512 | Q52: 0 | R52: 0 | S52: 930210.5938 | T52: 0
F53: 42 | G53: 2021-08-31 | H53: 31 | I53: =VLOOKUP(G53,'Прогноз переменной ставки'!$B$5:$E$304,4,1) -> 0.099 | J53: 9025 | K53: 930210.5938 | L53: 930210.5938 | M53: 0 | N53: 7816.061088 | O53: 1208.938912 | P53: 7816.061088 | Q53: 0 | R53: 0 | S53: 929001.6549 | T53: 0
F54: 43 | G54: 2021-09-30 | H54: 30 | I54: =VLOOKUP(G54,'Прогноз переменной ставки'!$B$5:$E$304,4,1) -> 0.099 | J54: 9025 | K54: 929001.6549 | L54: 929001.6549 | M54: 0 | N54: 7554.099699 | O54: 1470.900301 | P54: 7554.099699 | Q54: 0 | R54: 0 | S54: 927530.7546 | T54: 0
F55: 44 | G55: 2021-10-31 | H55: 31 | I55: =VLOOKUP(G55,'Прогноз переменной ставки'!$B$5:$E$304,4,1) -> 0.099 | J55: 9025 | K55: 927530.7546 | L55: 927530.7546 | M55: 0 | N55: 7793.543835 | O55: 1231.456165 | P55: 7793.543835 | Q55: 0 | R55: 0 | S55: 926299.2984 | T55: 0
F56: 45 | G56: 2021-11-30 | H56: 30 | I56: =VLOOKUP(G56,'Прогноз переменной ставки'!$B$5:$E$304,4,1) -> 0.099 | J56: 9025 | K56: 926299.2984 | L56: 926299.2984 | M56: 0 | N56: 7532.125712 | O56: 1492.874288 | P56: 7532.125712 | Q56: 0 | R56: 0 | S56: 924806.4241 | T56: 0
F57: 46 | G57: 2021-12-31 | H57: 31 | I57: =VLOOKUP(G57,'Прогноз переменной ставки'!$B$5:$E$304,4,1) -> 0.099 | J57: 9025 | K57: 924806.4241 | L57: 924806.4241 | M57: 0 | N57: 7770.652747 | O57: 1254.347253 | P57: 7770.652747 | Q57: 0 | R57: 0 | S57: 923552.0769 | T57: 0
F58: 47 | G58: 2022-01-31 | H58: 31 | I58: =VLOOKUP(G58,'Прогноз переменной ставки'!$B$5:$E$304,4,1) -> 0.099 | J58: 9025 | K58: 923552.0769 | L58: 923552.0769 | M58: 0 | N58: 7760.113139 | O58: 1264.886861 | P58: 7760.113139 | Q58: 0 | R58: 0 | S58: 922287.19 | T58: 0
F59: 48 | G59: 2022-02-28 | H59: 28 | I59: =VLOOKUP(G59,'Прогноз переменной ставки'!$B$5:$E$304,4,1) -> 0.099 | J59: 9025 | K59: 922287.19 | L59: 922287.19 | M59: 0 | N59: 6999.534814 | O59: 2025.465186 | P59: 6999.534814 | Q59: 0 | R59: 0 | S59: 920261.7248 | T59: 0
F60: 49 | G60: 2022-03-31 | H60: 31 | I60: =VLOOKUP(G60,'Прогноз переменной ставки'!$B$5:$E$304,4,1) -> 0.099 | J60: 9025 | K60: 920261.7248 | L60: 920261.7248 | M60: 0 | N60: 7732.466074 | O60: 1292.533926 | P60: 7732.466074 | Q60: 0 | R60: 0 | S60: 918969.1909 | T60: 0
F61: 50 | G61: 2022-04-30 | H61: 30 | I61: =VLOOKUP(G61,'Прогноз переменной ставки'!$B$5:$E$304,4,1) -> 0.099 | J61: 9025 | K61: 918969.1909 | L61: 918969.1909 | M61: 0 | N61: 7472.521552 | O61: 1552.478448 | P61: 7472.521552 | Q61: 0 | R61: 0 | S61: 917416.7125 | T61: 0
F62: 51 | G62: 2022-05-31 | H62: 31 | I62: =VLOOKUP(G62,'Прогноз переменной ставки'!$B$5:$E$304,4,1) -> 0.099 | J62: 9025 | K62: 917416.7125 | L62: 917416.7125 | M62: 0 | N62: 7708.56096 | O62: 1316.43904 | P62: 7708.56096 | Q62: 0 | R62: 0 | S62: 916100.2734 | T62: 0
F63: 52 | G63: 2022-06-30 | H63: 30 | I63: =VLOOKUP(G63,'Прогноз переменной ставки'!$B$5:$E$304,4,1) -> 0.099 | J63: 9025 | K63: 916100.2734 | L63: 916100.2734 | M63: 0 | N63: 7449.193189 | O63: 1575.806811 | P63: 7449.193189 | Q63: 0 | R63: 0 | S63: 914524.4666 | T63: 0
F64: 53 | G64: 2022-07-31 | H64: 31 | I64: =VLOOKUP(G64,'Прогноз переменной ставки'!$B$5:$E$304,4,1) -> 0.099 | J64: 9025 | K64: 914524.4666 | L64: 914524.4666 | M64: 0 | N64: 7684.258968 | O64: 1340.741032 | P64: 7684.258968 | Q64: 0 | R64: 0 | S64: 913183.7256 | T64: 0
F65: 54 | G65: 2022-08-31 | H65: 31 | I65: =VLOOKUP(G65,'Прогноз переменной ставки'!$B$5:$E$304,4,1) -> 0.099 | J65: 9025 | K65: 913183.7256 | L65: 913183.7256 | M65: 0 | N65: 7672.99344 | O65: 1352.00656 | P65: 7672.99344 | Q65: 0 | R65: 0 | S65: 911831.719 | T65: 0
F66: 55 | G66: 2022-09-30 | H66: 30 | I66: =VLOOKUP(G66,'Прогноз переменной ставки'!$B$5:$E$304,4,1) -> 0.099 | J66: 9025 | K66: 911831.719 | L66: 911831.719 | M66: 0 | N66: 7414.483793 | O66: 1610.516207 | P66: 7414.483793 | Q66: 0 | R66: 0 | S66: 910221.2028 | T66: 0
F67: 56 | G67: 2022-10-31 | H67: 31 | I67: =VLOOKUP(G67,'Прогноз переменной ставки'!$B$5:$E$304,4,1) -> 0.099 | J67: 9025 | K67: 910221.2028 | L67: 910221.2028 | M67: 0 | N67: 7648.100949 | O67: 1376.899051 | P67: 7648.100949 | Q67: 0 | R67: 0 | S67: 908844.3038 | T67: 0
F68: 57 | G68: 2022-11-30 | H68: 30 | I68: =VLOOKUP(G68,'Прогноз переменной ставки'!$B$5:$E$304,4,1) -> 0.099 | J68: 9025 | K68: 908844.3038 | L68: 908844.3038 | M68: 0 | N68: 7390.191875 | O68: 1634.808125 | P68: 7390.191875 | Q68: 0 | R68: 0 | S68: 907209.4956 | T68: 0
F69: 58 | G69: 2022-12-31 | H69: 31 | I69: =VLOOKUP(G69,'Прогноз переменной ставки'!$B$5:$E$304,4,1) -> 0.099 | J69: 9025 | K69: 907209.4956 | L69: 907209.4956 | M69: 0 | N69: 7622.795187 | O69: 1402.204813 | P69: 7622.795187 | Q69: 0 | R69: 0 | S69: 905807.2908 | T69: 0
F70: 59 | G70: 2023-01-31 | H70: 31 | I70: =VLOOKUP(G70,'Прогноз переменной ставки'!$B$5:$E$304,4,1) -> 0.099 | J70: 9025 | K70: 905807.2908 | L70: 905807.2908 | M70: 0 | N70: 7611.013212 | O70: 1413.986788 | P70: 7611.013212 | Q70: 0 | R70: 0 | S70: 904393.304 | T70: 0
F71: 60 | G71: 2023-02-28 | H71: 28 | I71: =VLOOKUP(G71,'Прогноз переменной ставки'!$B$5:$E$304,4,1) -> 0.099 | J71: 9025 | K71: 904393.304 | L71: 904393.304 | M71: 0 | N71: 6863.732344 | O71: 2161.267656 | P71: 6863.732344 | Q71: 0 | R71: 0 | S71: 902232.0364 | T71: 0
F72: 61 | G72: 2023-03-31 | H72: 31 | I72: =VLOOKUP(G72,'Прогноз переменной ставки'!$B$5:$E$304,4,1) -> 0.099 | J72: 9025 | K72: 902232.0364 | L72: 902232.0364 | M72: 0 | N72: 7580.972265 | O72: 1444.027735 | P72: 7580.972265 | Q72: 0 | R72: 0 | S72: 900788.0087 | T72: 0
F73: 62 | G73: 2023-04-30 | H73: 30 | I73: =VLOOKUP(G73,'Прогноз переменной ставки'!$B$5:$E$304,4,1) -> 0.099 | J73: 9025 | K73: 900788.0087 | L73: 900788.0087 | M73: 0 | N73: 7324.682781 | O73: 1700.317219 | P73: 7324.682781 | Q73: 0 | R73: 0 | S73: 899087.6914 | T73: 0
F74: 63 | G74: 2023-05-31 | H74: 31 | I74: =VLOOKUP(G74,'Прогноз переменной ставки'!$B$5:$E$304,4,1) -> 0.099 | J74: 9025 | K74: 899087.6914 | L74: 899087.6914 | M74: 0 | N74: 7554.552019 | O74: 1470.447981 | P74: 7554.552019 | Q74: 0 | R74: 0 | S74: 897617.2435 | T74: 0
F75: 64 | G75: 2023-06-30 | H75: 30 | I75: =VLOOKUP(G75,'Прогноз переменной ставки'!$B$5:$E$304,4,1) -> 0.099 | J75: 9025 | K75: 897617.2435 | L75: 897617.2435 | M75: 0 | N75: 7298.899967 | O75: 1726.100033 | P75: 7298.899967 | Q75: 0 | R75: 0 | S75: 895891.1434 | T75: 0
F76: 65 | G76: 2023-07-31 | H76: 31 | I76: =VLOOKUP(G76,'Прогноз переменной ставки'!$B$5:$E$304,4,1) -> 0.099 | J76: 9025 | K76: 895891.1434 | L76: 895891.1434 | M76: 0 | N76: 7527.693139 | O76: =MIN(J76-Q76-P76,L76) -> 1497.306861 | P76: =MIN(J76-Q76,N76) -> 7527.693139 | Q76: =MIN(J76,M76) -> 0 | R76: 0 | S76: =L76-O76 -> 894393.8366 | T76: =M76+R76-Q76 -> 0
F77: 66 | G77: =EOMONTH($D$9,F77-1) -> 2023-08-31 | H77: 31 | I77: =VLOOKUP(G77,'Прогноз переменной ставки'!$B$5:$E$304,4,1) -> 0.099 | J77: =IF(F77=$D$4,K77+N77,MIN($D$5,K77+N77)) -> 9025 | K77: =L77+M77 -> 894393.8366 | L77: 894393.8366 | M77: 0 | N77: =L77*I77/365.25*H77 -> 7515.112072 | O77: 1509.887928 | P77: 7515.112072 | Q77: 0 | R77: 0 | S77: 892883.9486 | T77: 0
F78: 67 | G78: 2023-09-30 | H78: =G78-G77 -> 30 | I78: =VLOOKUP(G78,'Прогноз переменной ставки'!$B$5:$E$304,4,1) -> 0.099 | J78: 9025 | K78: 892883.9486 | L78: =S77 -> 892883.9486 | M78: 0 | N78: 7260.411574 | O78: 1764.588426 | P78: 7260.411574 | Q78: 0 | R78: =MAX(N78-P78,0) -> 0 | S78: 891119.3602 | T78: 0
F79: 68 | G79: 2023-10-31 | H79: 31 | I79: =VLOOKUP(G79,'Прогноз переменной ставки'!$B$5:$E$304,4,1) -> 0.099 | J79: 9025 | K79: 891119.3602 | L79: 891119.3602 | M79: 0 | N79: 7487.598402 | O79: 1537.401598 | P79: 7487.598402 | Q79: 0 | R79: 0 | S79: 889581.9586 | T79: 0
F80: 69 | G80: 2023-11-30 | H80: 30 | I80: =VLOOKUP(G80,'Прогноз переменной ставки'!$B$5:$E$304,4,1) -> 0.099 | J80: 9025 | K80: 889581.9586 | L80: 889581.9586 | M80: 0 | N80: 7233.561717 | O80: 1791.438283 | P80: 7233.561717 | Q80: 0 | R80: 0 | S80: 887790.5203 | T80: 0
F81: 70 | G81: 2023-12-31 | H81: 31 | I81: =VLOOKUP(G81,'Прогноз переменной ставки'!$B$5:$E$304,4,1) -> 0.099 | J81: 9025 | K81: 887790.5203 | L81: 887790.5203 | M81: 0 | N81: 7459.627945 | O81: 1565.372055 | P81: 7459.627945 | Q81: 0 | R81: 0 | S81: 886225.1483 | T81: 0
F82: 71 | G82: 2024-01-31 | H82: 31 | I82: =VLOOKUP(G82,'Прогноз переменной ставки'!$B$5:$E$304,4,1) -> 0.099 | J82: 9025 | K82: 886225.1483 | L82: 886225.1483 | M82: 0 | N82: 7446.474962 | O82: 1578.525038 | P82: 7446.474962 | Q82: 0 | R82: 0 | S82: 884646.6232 | T82: 0
F83: 72 | G83: 2024-02-29 | H83: 29 | I83: =VLOOKUP(G83,'Прогноз переменной ставки'!$B$5:$E$304,4,1) -> 0.099 | J83: 9025 | K83: 884646.6232 | L83: 884646.6232 | M83: 0 | N83: 6953.649433 | O83: 2071.350567 | P83: 6953.649433 | Q83: 0 | R83: 0 | S83: 882575.2727 | T83: 0
F84: 73 | G84: 2024-03-31 | H84: 31 | I84: =VLOOKUP(G84,'Прогноз переменной ставки'!$B$5:$E$304,4,1) -> 0.099 | J84: 9025 | K84: 882575.2727 | L84: 882575.2727 | M84: 0 | N84: 7415.807014 | O84: 1609.192986 | P84: 7415.807014 | Q84: 0 | R84: 0 | S84: 880966.0797 | T84: 0
F85: 74 | G85: 2024-04-30 | H85: 30 | I85: =VLOOKUP(G85,'Прогноз переменной ставки'!$B$5:$E$304,4,1) -> 0.099 | J85: 9025 | K85: 880966.0797 | L85: 880966.0797 | M85: 0 | N85: 7163.502414 | O85: 1861.497586 | P85: 7163.502414 | Q85: 0 | R85: 0 | S85: 879104.5821 | T85: 0
F86: 75 | G86: 2024-05-31 | H86: 31 | I86: =VLOOKUP(G86,'Прогноз переменной ставки'!$B$5:$E$304,4,1) -> 0.099 | J86: 9025 | K86: 879104.5821 | L86: 879104.5821 | M86: 0 | N86: 7386.644661 | O86: 1638.355339 | P86: 7386.644661 | Q86: 0 | R86: 0 | S86: 877466.2268 | T86: 0
F87: 76 | G87: 2024-06-30 | H87: 30 | I87: =VLOOKUP(G87,'Прогноз переменной ставки'!$B$5:$E$304,4,1) -> 0.099 | J87: 9025 | K87: 877466.2268 | L87: 877466.2268 | M87: 0 | N87: 7135.043651 | O87: 1889.956349 | P87: 7135.043651 | Q87: 0 | R87: 0 | S87: 875576.2704 | T87: 0
F88: 77 | G88: 2024-07-31 | H88: 31 | I88: =VLOOKUP(G88,'Прогноз переменной ставки'!$B$5:$E$304,4,1) -> 0.099 | J88: 9025 | K88: 875576.2704 | L88: 875576.2704 | M88: 0 | N88: 7356.998149 | O88: 1668.001851 | P88: 7356.998149 | Q88: 0 | R88: 0 | S88: 873908.2686 | T88: 0
F89: 78 | G89: 2024-08-31 | H89: 31 | I89: =VLOOKUP(G89,'Прогноз переменной ставки'!$B$5:$E$304,4,1) -> 0.099 | J89: 9025 | K89: 873908.2686 | L89: 873908.2686 | M89: 0 | N89: 7342.982823 | O89: 1682.017177 | P89: 7342.982823 | Q89: 0 | R89: 0 | S89: 872226.2514 | T89: 0
F90: 79 | G90: 2024-09-30 | H90: 30 | I90: =VLOOKUP(G90,'Прогноз переменной ставки'!$B$5:$E$304,4,1) -> 0.099 | J90: 9025 | K90: 872226.2514 | L90: 872226.2514 | M90: 0 | N90: 7092.435227 | O90: 1932.564773 | P90: 7092.435227 | Q90: 0 | R90: 0 | S90: 870293.6866 | T90: 0
F91: 80 | G91: 2024-10-31 | H91: 31 | I91: =VLOOKUP(G91,'Прогноз переменной ставки'!$B$5:$E$304,4,1) -> 0.099 | J91: 9025 | K91: 870293.6866 | L91: 870293.6866 | M91: 0 | N91: 7312.611428 | O91: 1712.388572 | P91: 7312.611428 | Q91: 0 | R91: 0 | S91: 868581.298 | T91: 0
F92: 81 | G92: 2024-11-30 | H92: 30 | I92: =VLOOKUP(G92,'Прогноз переменной ставки'!$B$5:$E$304,4,1) -> 0.099 | J92: 9025 | K92: 868581.298 | L92: 868581.298 | M92: 0 | N92: 7062.796592 | O92: 1962.203408 | P92: 7062.796592 | Q92: 0 | R92: 0 | S92: 866619.0946 | T92: 0
F93: 82 | G93: 2024-12-31 | H93: 31 | I93: =VLOOKUP(G93,'Прогноз переменной ставки'!$B$5:$E$304,4,1) -> 0.099 | J93: 9025 | K93: 866619.0946 | L93: 866619.0946 | M93: 0 | N93: 7281.735801 | O93: 1743.264199 | P93: 7281.735801 | Q93: 0 | R93: 0 | S93: 864875.8304 | T93: 0
F94: 83 | G94: 2025-01-31 | H94: 31 | I94: =VLOOKUP(G94,'Прогноз переменной ставки'!$B$5:$E$304,4,1) -> 0.099 | J94: 9025 | K94: 864875.8304 | L94: 864875.8304 | M94: 0 | N94: 7267.088086 | O94: 1757.911914 | P94: 7267.088086 | Q94: 0 | R94: 0 | S94: 863117.9185 | T94: 0
F95: 84 | G95: 2025-02-28 | H95: 28 | I95: =VLOOKUP(G95,'Прогноз переменной ставки'!$B$5:$E$304,4,1) -> 0.099 | J95: 9025 | K95: 863117.9185 | L95: 863117.9185 | M95: 0 | N95: 6550.480137 | O95: 2474.519863 | P95: 6550.480137 | Q95: 0 | R95: 0 | S95: 860643.3987 | T95: 0
F96: 85 | G96: 2025-03-31 | H96: 31 | I96: =VLOOKUP(G96,'Прогноз переменной ставки'!$B$5:$E$304,4,1) -> 0.099 | J96: 9025 | K96: 860643.3987 | L96: 860643.3987 | M96: 0 | N96: 7231.525231 | O96: 1793.474769 | P96: 7231.525231 | Q96: 0 | R96: 0 | S96: 858849.9239 | T96: 0
F97: 86 | G97: 2025-04-30 | H97: 30 | I97: =VLOOKUP(G97,'Прогноз переменной ставки'!$B$5:$E$304,4,1) -> 0.099 | J97: 9025 | K97: 858849.9239 | L97: 858849.9239 | M97: 0 | N97: 6983.666732 | O97: 2041.333268 | P97: 6983.666732 | Q97: 0 | R97: 0 | S97: 856808.5906 | T97: 0
F98: 87 | G98: 2025-05-31 | H98: 31 | I98: =VLOOKUP(G98,'Прогноз переменной ставки'!$B$5:$E$304,4,1) -> 0.099 | J98: 9025 | K98: 856808.5906 | L98: 856808.5906 | M98: 0 | N98: 7199.303394 | O98: 1825.696606 | P98: 7199.303394 | Q98: 0 | R98: 0 | S98: 854982.894 | T98: 0
F99: 88 | G99: 2025-06-30 | H99: 30 | I99: =VLOOKUP(G99,'Прогноз переменной ставки'!$B$5:$E$304,4,1) -> 0.099 | J99: 9025 | K99: 854982.894 | L99: 854982.894 | M99: 0 | N99: 6952.2223 | O99: 2072.7777 | P99: 6952.2223 | Q99: 0 | R99: 0 | S99: 852910.1163 | T99: 0
F100: 89 | G100: 2025-07-31 | H100: 31 | I100: =VLOOKUP(G100,'Прогноз переменной ставки'!$B$5:$E$304,4,1) -> 0.099 | J100: 9025 | K100: 852910.1163 | L100: 852910.1163 | M100: 0 | N100: 7166.546604 | O100: 1858.453396 | P100: 7166.546604 | Q100: 0 | R100: 0 | S100: 851051.6629 | T100: 0
F101: 90 | G101: 2025-08-31 | H101: 31 | I101: =VLOOKUP(G101,'Прогноз переменной ставки'!$B$5:$E$304,4,1) -> 0.099 | J101: 9025 | K101: 851051.6629 | L101: 851051.6629 | M101: 0 | N101: 7150.931016 | O101: 1874.068984 | P101: 7150.931016 | Q101: 0 | R101: 0 | S101: 849177.5939 | T101: 0
F102: 91 | G102: 2025-09-30 | H102: 30 | I102: =VLOOKUP(G102,'Прогноз переменной ставки'!$B$5:$E$304,4,1) -> 0.099 | J102: 9025 | K102: 849177.5939 | L102: 849177.5939 | M102: 0 | N102: 6905.016986 | O102: 2119.983014 | P102: 6905.016986 | Q102: 0 | R102: 0 | S102: 847057.6109 | T102: 0
F103: 92 | G103: 2025-10-31 | H103: 31 | I103: =VLOOKUP(G103,'Прогноз переменной ставки'!$B$5:$E$304,4,1) -> 0.099 | J103: 9025 | K103: 847057.6109 | L103: 847057.6109 | M103: 0 | N103: 7117.371137 | O103: 1907.628863 | P103: 7117.371137 | Q103: 0 | R103: 0 | S103: 845149.9821 | T103: 0
F104: 93 | G104: 2025-11-30 | H104: 30 | I104: =VLOOKUP(G104,'Прогноз переменной ставки'!$B$5:$E$304,4,1) -> 0.099 | J104: 9025 | K104: 845149.9821 | L104: 845149.9821 | M104: 0 | N104: 6872.266795 | O104: 2152.733205 | P104: 6872.266795 | Q104: 0 | R104: 0 | S104: 842997.2488 | T104: 0
F105: 94 | G105: 2025-12-31 | H105: 31 | I105: =VLOOKUP(G105,'Прогноз переменной ставки'!$B$5:$E$304,4,1) -> 0.099 | J105: 9025 | K105: 842997.2488 | L105: 842997.2488 | M105: 0 | N105: 7083.254091 | O105: 1941.745909 | P105: 7083.254091 | Q105: 0 | R105: 0 | S105: 841055.5029 | T105: 0
F106: 95 | G106: 2026-01-31 | H106: 31 | I106: =VLOOKUP(G106,'Прогноз переменной ставки'!$B$5:$E$304,4,1) -> 0.099 | J106: 9025 | K106: 841055.5029 | L106: 841055.5029 | M106: 0 | N106: 7066.938641 | O106: 1958.061359 | P106: 7066.938641 | Q106: 0 | R106: 0 | S106: 839097.4416 | T106: 0
F107: 96 | G107: 2026-02-28 | H107: 28 | I107: =VLOOKUP(G107,'Прогноз переменной ставки'!$B$5:$E$304,4,1) -> 0.099 | J107: 9025 | K107: 839097.4416 | L107: 839097.4416 | M107: 0 | N107: 6368.180994 | O107: 2656.819006 | P107: 6368.180994 | Q107: 0 | R107: 0 | S107: 836440.6226 | T107: 0
F108: 97 | G108: 2026-03-31 | H108: 31 | I108: =VLOOKUP(G108,'Прогноз переменной ставки'!$B$5:$E$304,4,1) -> 0.099 | J108: 9025 | K108: 836440.6226 | L108: 836440.6226 | M108: 0 | N108: 7028.162274 | O108: 1996.837726 | P108: 7028.162274 | Q108: 0 | R108: 0 | S108: 834443.7848 | T108: 0
F109: 98 | G109: 2026-04-30 | H109: 30 | I109: =VLOOKUP(G109,'Прогноз переменной ставки'!$B$5:$E$304,4,1) -> 0.099 | J109: 9025 | K109: 834443.7848 | L109: 834443.7848 | M109: 0 | N109: 6785.210242 | O109: 2239.789758 | P109: 6785.210242 | Q109: 0 | R109: 0 | S109: 832203.9951 | T109: 0
F110: 99 | G110: 2026-05-31 | H110: 31 | I110: =VLOOKUP(G110,'Прогноз переменной ставки'!$B$5:$E$304,4,1) -> 0.099 | J110: 9025 | K110: 832203.9951 | L110: 832203.9951 | M110: 0 | N110: 6992.564164 | O110: 2032.435836 | P110: 6992.564164 | Q110: 0 | R110: 0 | S110: 830171.5593 | T110: 0
F111: 100 | G111: 2026-06-30 | H111: 30 | I111: =VLOOKUP(G111,'Прогноз переменной ставки'!$B$5:$E$304,4,1) -> 0.099 | J111: 9025 | K111: 830171.5593 | L111: 830171.5593 | M111: 0 | N111: 6750.470995 | O111: 2274.529005 | P111: 6750.470995 | Q111: 0 | R111: 0 | S111: 827897.0302 | T111: 0
F112: 101 | G112: 2026-07-31 | H112: 31 | I112: =VLOOKUP(G112,'Прогноз переменной ставки'!$B$5:$E$304,4,1) -> 0.099 | J112: 9025 | K112: 827897.0302 | L112: 827897.0302 | M112: 0 | N112: 6956.375047 | O112: 2068.624953 | P112: 6956.375047 | Q112: 0 | R112: 0 | S112: 825828.4053 | T112: 0
F113: 102 | G113: 2026-08-31 | H113: 31 | I113: =VLOOKUP(G113,'Прогноз переменной ставки'!$B$5:$E$304,4,1) -> 0.099 | J113: 9025 | K113: 825828.4053 | L113: 825828.4053 | M113: 0 | N113: 6938.9935 | O113: 2086.0065 | P113: 6938.9935 | Q113: 0 | R113: 0 | S113: 823742.3988 | T113: 0
F114: 103 | G114: 2026-09-30 | H114: 30 | I114: =VLOOKUP(G114,'Прогноз переменной ставки'!$B$5:$E$304,4,1) -> 0.099 | J114: 9025 | K114: 823742.3988 | L114: 823742.3988 | M114: 0 | N114: 6698.192812 | O114: 2326.807188 | P114: 6698.192812 | Q114: 0 | R114: 0 | S114: 821415.5916 | T114: 0
F115: 104 | G115: 2026-10-31 | H115: 31 | I115: =VLOOKUP(G115,'Прогноз переменной ставки'!$B$5:$E$304,4,1) -> 0.099 | J115: 9025 | K115: 821415.5916 | L115: 821415.5916 | M115: 0 | N115: 6901.914991 | O115: 2123.085009 | P115: 6901.914991 | Q115: 0 | R115: 0 | S115: 819292.5066 | T115: 0
F116: 105 | G116: 2026-11-30 | H116: 30 | I116: =VLOOKUP(G116,'Прогноз переменной ставки'!$B$5:$E$304,4,1) -> 0.099 | J116: 9025 | K116: 819292.5066 | L116: 819292.5066 | M116: 0 | N116: 6662.008883 | O116: 2362.991117 | P116: 6662.008883 | Q116: 0 | R116: 0 | S116: 816929.5155 | T116: 0
F117: 106 | G117: 2026-12-31 | H117: 31 | I117: =VLOOKUP(G117,'Прогноз переменной ставки'!$B$5:$E$304,4,1) -> 0.099 | J117: 9025 | K117: 816929.5155 | L117: 816929.5155 | M117: 0 | N117: 6864.220898 | O117: 2160.779102 | P117: 6864.220898 | Q117: 0 | R117: 0 | S117: 814768.7364 | T117: 0
F118: 107 | G118: 2027-01-31 | H118: 31 | I118: =VLOOKUP(G118,'Прогноз переменной ставки'!$B$5:$E$304,4,1) -> 0.099 | J118: 9025 | K118: 814768.7364 | L118: 814768.7364 | M118: 0 | N118: 6846.065029 | O118: 2178.934971 | P118: 6846.065029 | Q118: 0 | R118: 0 | S118: 812589.8014 | T118: 0
F119: 108 | G119: 2027-02-28 | H119: 28 | I119: =VLOOKUP(G119,'Прогноз переменной ставки'!$B$5:$E$304,4,1) -> 0.099 | J119: 9025 | K119: 812589.8014 | L119: 812589.8014 | M119: 0 | N119: 6167.005967 | O119: 2857.994033 | P119: 6167.005967 | Q119: 0 | R119: 0 | S119: 809731.8074 | T119: 0
F120: 109 | G120: 2027-03-31 | H120: 31 | I120: =VLOOKUP(G120,'Прогноз переменной ставки'!$B$5:$E$304,4,1) -> 0.099 | J120: 9025 | K120: 809731.8074 | L120: 809731.8074 | M120: 0 | N120: 6803.742414 | O120: 2221.257586 | P120: 6803.742414 | Q120: 0 | R120: 0 | S120: 807510.5498 | T120: 0
F121: 110 | G121: 2027-04-30 | H121: 30 | I121: =VLOOKUP(G121,'Прогноз переменной ставки'!$B$5:$E$304,4,1) -> 0.099 | J121: 9025 | K121: 807510.5498 | L121: 807510.5498 | M121: 0 | N121: 6566.204881 | O121: 2458.795119 | P121: 6566.204881 | Q121: 0 | R121: 0 | S121: 805051.7547 | T121: 0
F122: 111 | G122: 2027-05-31 | H122: 31 | I122: =VLOOKUP(G122,'Прогноз переменной ставки'!$B$5:$E$304,4,1) -> 0.099 | J122: 9025 | K122: 805051.7547 | L122: 805051.7547 | M122: 0 | N122: 6764.41844 | O122: 2260.58156 | P122: 6764.41844 | Q122: 0 | R122: 0 | S122: 802791.1731 | T122: 0
F123: 112 | G123: 2027-06-30 | H123: 30 | I123: =VLOOKUP(G123,'Прогноз переменной ставки'!$B$5:$E$304,4,1) -> 0.099 | J123: 9025 | K123: 802791.1731 | L123: 802791.1731 | M123: 0 | N123: 6527.829662 | O123: 2497.170338 | P123: 6527.829662 | Q123: 0 | R123: 0 | S123: 800294.0028 | T123: 0
F124: 113 | G124: 2027-07-31 | H124: 31 | I124: =VLOOKUP(G124,'Прогноз переменной ставки'!$B$5:$E$304,4,1) -> 0.099 | J124: 9025 | K124: 800294.0028 | L124: 800294.0028 | M124: 0 | N124: 6724.4416 | O124: 2300.5584 | P124: 6724.4416 | Q124: 0 | R124: 0 | S124: 797993.4444 | T124: 0
F125: 114 | G125: 2027-08-31 | H125: 31 | I125: =VLOOKUP(G125,'Прогноз переменной ставки'!$B$5:$E$304,4,1) -> 0.099 | J125: 9025 | K125: 797993.4444 | L125: 797993.4444 | M125: 0 | N125: 6705.111241 | O125: 2319.888759 | P125: 6705.111241 | Q125: 0 | R125: 0 | S125: 795673.5556 | T125: 0
F126: 115 | G126: 2027-09-30 | H126: 30 | I126: =VLOOKUP(G126,'Прогноз переменной ставки'!$B$5:$E$304,4,1) -> 0.099 | J126: 9025 | K126: 795673.5556 | L126: 795673.5556 | M126: 0 | N126: 6469.953347 | O126: 2555.046653 | P126: 6469.953347 | Q126: 0 | R126: 0 | S126: 793118.509 | T126: 0
F127: 116 | G127: 2027-10-31 | H127: 31 | I127: =VLOOKUP(G127,'Прогноз переменной ставки'!$B$5:$E$304,4,1) -> 0.099 | J127: 9025 | K127: 793118.509 | L127: 793118.509 | M127: 0 | N127: 6664.149771 | O127: 2360.850229 | P127: 6664.149771 | Q127: 0 | R127: 0 | S127: 790757.6587 | T127: 0
F128: 117 | G128: 2027-11-30 | H128: 30 | I128: =VLOOKUP(G128,'Прогноз переменной ставки'!$B$5:$E$304,4,1) -> 0.099 | J128: 9025 | K128: 790757.6587 | L128: 790757.6587 | M128: 0 | N128: 6429.980141 | O128: 2595.019859 | P128: 6429.980141 | Q128: 0 | R128: 0 | S128: 788162.6389 | T128: 0
F129: 118 | G129: 2027-12-31 | H129: 31 | I129: =VLOOKUP(G129,'Прогноз переменной ставки'!$B$5:$E$304,4,1) -> 0.099 | J129: 9025 | K129: 788162.6389 | L129: 788162.6389 | M129: 0 | N129: 6622.508251 | O129: 2402.491749 | P129: 6622.508251 | Q129: 0 | R129: 0 | S129: 785760.1471 | T129: 0
F130: 119 | G130: 2028-01-31 | H130: 31 | I130: =VLOOKUP(G130,'Прогноз переменной ставки'!$B$5:$E$304,4,1) -> 0.099 | J130: 9025 | K130: 785760.1471 | L130: 785760.1471 | M130: 0 | N130: 6602.3214 | O130: 2422.6786 | P130: 6602.3214 | Q130: 0 | R130: 0 | S130: 783337.4685 | T130: 0
F131: 120 | G131: 2028-02-29 | H131: 29 | I131: =VLOOKUP(G131,'Прогноз переменной ставки'!$B$5:$E$304,4,1) -> 0.099 | J131: 9025 | K131: 783337.4685 | L131: 783337.4685 | M131: 0 | N131: 6157.322032 | O131: 2867.677968 | P131: 6157.322032 | Q131: 0 | R131: 0 | S131: 780469.7906 | T131: 0
F132: 121 | G132: 2028-03-31 | H132: 31 | I132: =VLOOKUP(G132,'Прогноз переменной ставки'!$B$5:$E$304,4,1) -> 0.099 | J132: 9025 | K132: 780469.7906 | L132: 780469.7906 | M132: 0 | N132: 6557.86937 | O132: 2467.13063 | P132: 6557.86937 | Q132: 0 | R132: 0 | S132: 778002.6599 | T132: 0
F133: 122 | G133: 2028-04-30 | H133: 30 | I133: =VLOOKUP(G133,'Прогноз переменной ставки'!$B$5:$E$304,4,1) -> 0.099 | J133: 9025 | K133: 778002.6599 | L133: 778002.6599 | M133: 0 | N133: 6326.263929 | O133: 2698.736071 | P133: 6326.263929 | Q133: 0 | R133: 0 | S133: 775303.9239 | T133: 0
F134: 123 | G134: 2028-05-31 | H134: 31 | I134: =VLOOKUP(G134,'Прогноз переменной ставки'!$B$5:$E$304,4,1) -> 0.099 | J134: 9025 | K134: 775303.9239 | L134: 775303.9239 | M134: 0 | N134: 6514.46336 | O134: 2510.53664 | P134: 6514.46336 | Q134: 0 | R134: 0 | S134: 772793.3872 | T134: 0
F135: 124 | G135: 2028-06-30 | H135: 30 | I135: =VLOOKUP(G135,'Прогноз переменной ставки'!$B$5:$E$304,4,1) -> 0.099 | J135: 9025 | K135: 772793.3872 | L135: 772793.3872 | M135: 0 | N135: 6283.905161 | O135: 2741.094839 | P135: 6283.905161 | Q135: 0 | R135: 0 | S135: 770052.2924 | T135: 0
F136: 125 | G136: 2028-07-31 | H136: 31 | I136: =VLOOKUP(G136,'Прогноз переменной ставки'!$B$5:$E$304,4,1) -> 0.099 | J136: 9025 | K136: 770052.2924 | L136: 770052.2924 | M136: 0 | N136: 6470.336715 | O136: 2554.663285 | P136: 6470.336715 | Q136: 0 | R136: 0 | S136: 767497.6291 | T136: 0
F137: 126 | G137: 2028-08-31 | H137: 31 | I137: =VLOOKUP(G137,'Прогноз переменной ставки'!$B$5:$E$304,4,1) -> 0.099 | J137: 9025 | K137: 767497.6291 | L137: 767497.6291 | M137: 0 | N137: 6448.871249 | O137: 2576.128751 | P137: 6448.871249 | Q137: 0 | R137: 0 | S137: 764921.5003 | T137: 0
F138: 127 | G138: 2028-09-30 | H138: 30 | I138: =VLOOKUP(G138,'Прогноз переменной ставки'!$B$5:$E$304,4,1) -> 0.099 | J138: 9025 | K138: 764921.5003 | L138: 764921.5003 | M138: 0 | N138: 6219.895567 | O138: 2805.104433 | P138: 6219.895567 | Q138: 0 | R138: 0 | S138: 762116.3959 | T138: 0
F139: 128 | G139: 2028-10-31 | H139: 31 | I139: =VLOOKUP(G139,'Прогноз переменной ставки'!$B$5:$E$304,4,1) -> 0.099 | J139: 9025 | K139: 762116.3959 | L139: 762116.3959 | M139: 0 | N139: 6403.655631 | O139: 2621.344369 | P139: 6403.655631 | Q139: 0 | R139: 0 | S139: 759495.0515 | T139: 0
F140: 129 | G140: 2028-11-30 | H140: 30 | I140: =VLOOKUP(G140,'Прогноз переменной ставки'!$B$5:$E$304,4,1) -> 0.099 | J140: 9025 | K140: 759495.0515 | L140: 759495.0515 | M140: 0 | N140: 6175.77085 | O140: =MIN(J140-Q140-P140,L140) -> 2849.22915 | P140: =MIN(J140-Q140,N140) -> 6175.77085 | Q140: =MIN(J140,M140) -> 0 | R140: 0 | S140: =L140-O140 -> 756645.8224 | T140: =M140+R140-Q140 -> 0
F141: 130 | G141: =EOMONTH($D$9,F141-1) -> 2028-12-31 | H141: 31 | I141: =VLOOKUP(G141,'Прогноз переменной ставки'!$B$5:$E$304,4,1) -> 0.099 | J141: =IF(F141=$D$4,K141+N141,MIN($D$5,K141+N141)) -> 9025 | K141: =L141+M141 -> 756645.8224 | L141: 756645.8224 | M141: 0 | N141: =L141*I141/365.25*H141 -> 6357.689333 | O141: 2667.310667 | P141: 6357.689333 | Q141: 0 | R141: 0 | S141: 753978.5117 | T141: 0
F142: 131 | G142: 2029-01-31 | H142: =G142-G141 -> 31 | I142: =VLOOKUP(G142,'Прогноз переменной ставки'!$B$5:$E$304,4,1) -> 0.099 | J142: 9025 | K142: 753978.5117 | L142: =S141 -> 753978.5117 | M142: 0 | N142: 6335.277351 | O142: 2689.722649 | P142: 6335.277351 | Q142: 0 | R142: =MAX(N142-P142,0) -> 0 | S142: 751288.7891 | T142: 0
F143: 132 | G143: 2029-02-28 | H143: 28 | I143: =VLOOKUP(G143,'Прогноз переменной ставки'!$B$5:$E$304,4,1) -> 0.099 | J143: 9025 | K143: 751288.7891 | L143: 751288.7891 | M143: 0 | N143: 5701.772822 | O143: 3323.227178 | P143: 5701.772822 | Q143: 0 | R143: 0 | S143: 747965.5619 | T143: 0
F144: 133 | G144: 2029-03-31 | H144: 31 | I144: =VLOOKUP(G144,'Прогноз переменной ставки'!$B$5:$E$304,4,1) -> 0.099 | J144: 9025 | K144: 747965.5619 | L144: 747965.5619 | M144: 0 | N144: 6284.753756 | O144: 2740.246244 | P144: 6284.753756 | Q144: 0 | R144: 0 | S144: 745225.3157 | T144: 0
F145: 134 | G145: 2029-04-30 | H145: 30 | I145: =VLOOKUP(G145,'Прогноз переменной ставки'!$B$5:$E$304,4,1) -> 0.099 | J145: 9025 | K145: 745225.3157 | L145: 745225.3157 | M145: 0 | N145: 6059.73768 | O145: 2965.26232 | P145: 6059.73768 | Q145: 0 | R145: 0 | S145: 742260.0533 | T145: 0
F146: 135 | G146: 2029-05-31 | H146: 31 | I146: =VLOOKUP(G146,'Прогноз переменной ставки'!$B$5:$E$304,4,1) -> 0.099 | J146: 9025 | K146: 742260.0533 | L146: 742260.0533 | M146: 0 | N146: 6236.813426 | O146: 2788.186574 | P146: 6236.813426 | Q146: 0 | R146: 0 | S146: 739471.8668 | T146: 0
F147: 136 | G147: 2029-06-30 | H147: 30 | I147: =VLOOKUP(G147,'Прогноз переменной ставки'!$B$5:$E$304,4,1) -> 0.099 | J147: 9025 | K147: 739471.8668 | L147: 739471.8668 | M147: 0 | N147: 6012.953988 | O147: 3012.046012 | P147: 6012.953988 | Q147: 0 | R147: 0 | S147: 736459.8207 | T147: 0
F148: 137 | G148: 2029-07-31 | H148: 31 | I148: =VLOOKUP(G148,'Прогноз переменной ставки'!$B$5:$E$304,4,1) -> 0.099 | J148: 9025 | K148: 736459.8207 | L148: 736459.8207 | M148: 0 | N148: 6188.07718 | O148: 2836.92282 | P148: 6188.07718 | Q148: 0 | R148: 0 | S148: 733622.8979 | T148: 0
F149: 138 | G149: 2029-08-31 | H149: 31 | I149: =VLOOKUP(G149,'Прогноз переменной ставки'!$B$5:$E$304,4,1) -> 0.099 | J149: 9025 | K149: 733622.8979 | L149: 733622.8979 | M149: 0 | N149: 6164.240038 | O149: 2860.759962 | P149: 6164.240038 | Q149: 0 | R149: 0 | S149: 730762.138 | T149: 0
F150: 139 | G150: 2029-09-30 | H150: 30 | I150: =VLOOKUP(G150,'Прогноз переменной ставки'!$B$5:$E$304,4,1) -> 0.099 | J150: 9025 | K150: 730762.138 | L150: 730762.138 | M150: 0 | N150: 5942.131553 | O150: 3082.868447 | P150: 5942.131553 | Q150: 0 | R150: 0 | S150: 727679.2695 | T150: 0
F151: 140 | G151: 2029-10-31 | H151: 31 | I151: =VLOOKUP(G151,'Прогноз переменной ставки'!$B$5:$E$304,4,1) -> 0.099 | J151: 9025 | K151: 727679.2695 | L151: 727679.2695 | M151: 0 | N151: 6114.298913 | O151: 2910.701087 | P151: 6114.298913 | Q151: 0 | R151: 0 | S151: 724768.5684 | T151: 0
F152: 141 | G152: 2029-11-30 | H152: 30 | I152: =VLOOKUP(G152,'Прогноз переменной ставки'!$B$5:$E$304,4,1) -> 0.099 | J152: 9025 | K152: 724768.5684 | L152: 724768.5684 | M152: 0 | N152: 5893.395341 | O152: 3131.604659 | P152: 5893.395341 | Q152: 0 | R152: 0 | S152: 721636.9638 | T152: 0
F153: 142 | G153: 2029-12-31 | H153: 31 | I153: =VLOOKUP(G153,'Прогноз переменной ставки'!$B$5:$E$304,4,1) -> 0.099 | J153: 9025 | K153: 721636.9638 | L153: 721636.9638 | M153: 0 | N153: 6063.528657 | O153: 2961.471343 | P153: 6063.528657 | Q153: 0 | R153: 0 | S153: 718675.4924 | T153: 0
F154: 143 | G154: 2030-01-31 | H154: 31 | I154: =VLOOKUP(G154,'Прогноз переменной ставки'!$B$5:$E$304,4,1) -> 0.099 | J154: 9025 | K154: 718675.4924 | L154: 718675.4924 | M154: 0 | N154: 6038.645 | O154: 2986.355 | P154: 6038.645 | Q154: 0 | R154: 0 | S154: 715689.1374 | T154: 0
F155: 144 | G155: 2030-02-28 | H155: 28 | I155: =VLOOKUP(G155,'Прогноз переменной ставки'!$B$5:$E$304,4,1) -> 0.099 | J155: 9025 | K155: 715689.1374 | L155: 715689.1374 | M155: 0 | N155: 5431.595589 | O155: 3593.404411 | P155: 5431.595589 | Q155: 0 | R155: 0 | S155: 712095.733 | T155: 0
F156: 145 | G156: 2030-03-31 | H156: 31 | I156: =VLOOKUP(G156,'Прогноз переменной ставки'!$B$5:$E$304,4,1) -> 0.099 | J156: 9025 | K156: 712095.733 | L156: 712095.733 | M156: 0 | N156: 5983.358808 | O156: 3041.641192 | P156: 5983.358808 | Q156: 0 | R156: 0 | S156: 709054.0918 | T156: 0
F157: 146 | G157: 2030-04-30 | H157: 30 | I157: =VLOOKUP(G157,'Прогноз переменной ставки'!$B$5:$E$304,4,1) -> 0.099 | J157: 9025 | K157: 709054.0918 | L157: 709054.0918 | M157: 0 | N157: 5765.614381 | O157: 3259.385619 | P157: 5765.614381 | Q157: 0 | R157: 0 | S157: 705794.7062 | T157: 0
F158: 147 | G158: 2030-05-31 | H158: 31 | I158: =VLOOKUP(G158,'Прогноз переменной ставки'!$B$5:$E$304,4,1) -> 0.099 | J158: 9025 | K158: 705794.7062 | L158: 705794.7062 | M158: 0 | N158: 5930.414657 | O158: 3094.585343 | P158: 5930.414657 | Q158: 0 | R158: 0 | S158: 702700.1209 | T158: 0
F159: 148 | G159: 2030-06-30 | H159: 30 | I159: =VLOOKUP(G159,'Прогноз переменной ставки'!$B$5:$E$304,4,1) -> 0.099 | J159: 9025 | K159: 702700.1209 | L159: 702700.1209 | M159: 0 | N159: 5713.947595 | O159: 3311.052405 | P159: 5713.947595 | Q159: 0 | R159: 0 | S159: 699389.0685 | T159: 0
F160: 149 | G160: 2030-07-31 | H160: 31 | I160: =VLOOKUP(G160,'Прогноз переменной ставки'!$B$5:$E$304,4,1) -> 0.099 | J160: 9025 | K160: 699389.0685 | L160: 699389.0685 | M160: 0 | N160: 5876.591516 | O160: 3148.408484 | P160: 5876.591516 | Q160: 0 | R160: 0 | S160: 696240.66 | T160: 0
F161: 150 | G161: 2030-08-31 | H161: 31 | I161: =VLOOKUP(G161,'Прогноз переменной ставки'!$B$5:$E$304,4,1) -> 0.099 | J161: 9025 | K161: 696240.66 | L161: 696240.66 | M161: 0 | N161: 5850.137126 | O161: 3174.862874 | P161: 5850.137126 | Q161: 0 | R161: 0 | S161: 693065.7971 | T161: 0
F162: 151 | G162: 2030-09-30 | H162: 30 | I162: =VLOOKUP(G162,'Прогноз переменной ставки'!$B$5:$E$304,4,1) -> 0.099 | J162: 9025 | K162: 693065.7971 | L162: 693065.7971 | M162: 0 | N162: 5635.606892 | O162: 3389.393108 | P162: 5635.606892 | Q162: 0 | R162: 0 | S162: 689676.404 | T162: 0
F163: 152 | G163: 2030-10-31 | H163: 31 | I163: =VLOOKUP(G163,'Прогноз переменной ставки'!$B$5:$E$304,4,1) -> 0.099 | J163: 9025 | K163: 689676.404 | L163: 689676.404 | M163: 0 | N163: 5794.981201 | O163: 3230.018799 | P163: 5794.981201 | Q163: 0 | R163: 0 | S163: 686446.3852 | T163: 0
F164: 153 | G164: 2030-11-30 | H164: 30 | I164: =VLOOKUP(G164,'Прогноз переменной ставки'!$B$5:$E$304,4,1) -> 0.099 | J164: 9025 | K164: 686446.3852 | L164: 686446.3852 | M164: 0 | N164: 5581.781695 | O164: 3443.218305 | P164: 5581.781695 | Q164: 0 | R164: 0 | S164: 683003.1669 | T164: 0
F165: 154 | G165: 2030-12-31 | H165: 31 | I165: =VLOOKUP(G165,'Прогноз переменной ставки'!$B$5:$E$304,4,1) -> 0.099 | J165: 9025 | K165: 683003.1669 | L165: 683003.1669 | M165: 0 | N165: 5738.909567 | O165: 3286.090433 | P165: 5738.909567 | Q165: 0 | R165: 0 | S165: 679717.0765 | T165: 0
F166: 155 | G166: 2031-01-31 | H166: 31 | I166: =VLOOKUP(G166,'Прогноз переменной ставки'!$B$5:$E$304,4,1) -> 0.099 | J166: 9025 | K166: 679717.0765 | L166: 679717.0765 | M166: 0 | N166: 5711.29831 | O166: 3313.70169 | P166: 5711.29831 | Q166: 0 | R166: 0 | S166: 676403.3748 | T166: 0
F167: 156 | G167: 2031-02-28 | H167: 28 | I167: =VLOOKUP(G167,'Прогноз переменной ставки'!$B$5:$E$304,4,1) -> 0.099 | J167: 9025 | K167: 676403.3748 | L167: 676403.3748 | M167: 0 | N167: 5133.443271 | O167: 3891.556729 | P167: 5133.443271 | Q167: 0 | R167: 0 | S167: 672511.818 | T167: 0
F168: 157 | G168: 2031-03-31 | H168: 31 | I168: =VLOOKUP(G168,'Прогноз переменной ставки'!$B$5:$E$304,4,1) -> 0.099 | J168: 9025 | K168: 672511.818 | L168: 672511.818 | M168: 0 | N168: 5650.756385 | O168: 3374.243615 | P168: 5650.756385 | Q168: 0 | R168: 0 | S168: 669137.5744 | T168: 0
F169: 158 | G169: 2031-04-30 | H169: 30 | I169: =VLOOKUP(G169,'Прогноз переменной ставки'!$B$5:$E$304,4,1) -> 0.099 | J169: 9025 | K169: 669137.5744 | L169: 669137.5744 | M169: 0 | N169: 5441.036539 | O169: 3583.963461 | P169: 5441.036539 | Q169: 0 | R169: 0 | S169: 665553.611 | T169: 0
F170: 159 | G170: 2031-05-31 | H170: 31 | I170: =VLOOKUP(G170,'Прогноз переменной ставки'!$B$5:$E$304,4,1) -> 0.099 | J170: 9025 | K170: 665553.611 | L170: 665553.611 | M170: 0 | N170: 5592.2903 | O170: 3432.7097 | P170: 5592.2903 | Q170: 0 | R170: 0 | S170: 662120.9013 | T170: 0
F171: 160 | G171: 2031-06-30 | H171: 30 | I171: =VLOOKUP(G171,'Прогноз переменной ставки'!$B$5:$E$304,4,1) -> 0.099 | J171: 9025 | K171: 662120.9013 | L171: 662120.9013 | M171: 0 | N171: 5383.981045 | O171: 3641.018955 | P171: 5383.981045 | Q171: 0 | R171: 0 | S171: 658479.8823 | T171: 0
F172: 161 | G172: 2031-07-31 | H172: 31 | I172: =VLOOKUP(G172,'Прогноз переменной ставки'!$B$5:$E$304,4,1) -> 0.099 | J172: 9025 | K172: 658479.8823 | L172: 658479.8823 | M172: 0 | N172: 5532.853549 | O172: 3492.146451 | P172: 5532.853549 | Q172: 0 | R172: 0 | S172: 654987.7359 | T172: 0
F173: 162 | G173: 2031-08-31 | H173: 31 | I173: =VLOOKUP(G173,'Прогноз переменной ставки'!$B$5:$E$304,4,1) -> 0.099 | J173: 9025 | K173: 654987.7359 | L173: 654987.7359 | M173: 0 | N173: 5503.510914 | O173: 3521.489086 | P173: 5503.510914 | Q173: 0 | R173: 0 | S173: 651466.2468 | T173: 0
F174: 163 | G174: 2031-09-30 | H174: 30 | I174: =VLOOKUP(G174,'Прогноз переменной ставки'!$B$5:$E$304,4,1) -> 0.099 | J174: 9025 | K174: 651466.2468 | L174: 651466.2468 | M174: 0 | N174: 5297.343608 | O174: 3727.656392 | P174: 5297.343608 | Q174: 0 | R174: 0 | S174: 647738.5904 | T174: 0
F175: 164 | G175: 2031-10-31 | H175: 31 | I175: =VLOOKUP(G175,'Прогноз переменной ставки'!$B$5:$E$304,4,1) -> 0.099 | J175: 9025 | K175: 647738.5904 | L175: 647738.5904 | M175: 0 | N175: 5442.60023 | O175: 3582.39977 | P175: 5442.60023 | Q175: 0 | R175: 0 | S175: 644156.1906 | T175: 0
F176: 165 | G176: 2031-11-30 | H176: 30 | I176: =VLOOKUP(G176,'Прогноз переменной ставки'!$B$5:$E$304,4,1) -> 0.099 | J176: 9025 | K176: 644156.1906 | L176: 644156.1906 | M176: 0 | N176: 5237.902494 | O176: 3787.097506 | P176: 5237.902494 | Q176: 0 | R176: 0 | S176: 640369.0931 | T176: 0
F177: 166 | G177: 2031-12-31 | H177: 31 | I177: =VLOOKUP(G177,'Прогноз переменной ставки'!$B$5:$E$304,4,1) -> 0.099 | J177: 9025 | K177: 640369.0931 | L177: 640369.0931 | M177: 0 | N177: 5380.678294 | O177: 3644.321706 | P177: 5380.678294 | Q177: 0 | R177: 0 | S177: 636724.7714 | T177: 0
F178: 167 | G178: 2032-01-31 | H178: 31 | I178: =VLOOKUP(G178,'Прогноз переменной ставки'!$B$5:$E$304,4,1) -> 0.099 | J178: 9025 | K178: 636724.7714 | L178: 636724.7714 | M178: 0 | N178: 5350.057011 | O178: 3674.942989 | P178: 5350.057011 | Q178: 0 | R178: 0 | S178: 633049.8284 | T178: 0
F179: 168 | G179: 2032-02-29 | H179: 29 | I179: =VLOOKUP(G179,'Прогноз переменной ставки'!$B$5:$E$304,4,1) -> 0.099 | J179: 9025 | K179: 633049.8284 | L179: 633049.8284 | M179: 0 | N179: 4976.005633 | O179: 4048.994367 | P179: 4976.005633 | Q179: 0 | R179: 0 | S179: 629000.834 | T179: 0
F180: 169 | G180: 2032-03-31 | H180: 31 | I180: =VLOOKUP(G180,'Прогноз переменной ставки'!$B$5:$E$304,4,1) -> 0.099 | J180: 9025 | K180: 629000.834 | L180: 629000.834 | M180: 0 | N180: 5285.156905 | O180: 3739.843095 | P180: 5285.156905 | Q180: 0 | R180: 0 | S180: 625260.9909 | T180: 0
F181: 170 | G181: 2032-04-30 | H181: 30 | I181: =VLOOKUP(G181,'Прогноз переменной ставки'!$B$5:$E$304,4,1) -> 0.099 | J181: 9025 | K181: 625260.9909 | L181: 625260.9909 | M181: 0 | N181: 5084.25775 | O181: 3940.74225 | P181: 5084.25775 | Q181: 0 | R181: 0 | S181: 621320.2487 | T181: 0
F182: 171 | G182: 2032-05-31 | H182: 31 | I182: =VLOOKUP(G182,'Прогноз переменной ставки'!$B$5:$E$304,4,1) -> 0.099 | J182: 9025 | K182: 621320.2487 | L182: 621320.2487 | M182: 0 | N182: 5220.621063 | O182: 3804.378937 | P182: 5220.621063 | Q182: 0 | R182: 0 | S182: 617515.8698 | T182: 0
F183: 172 | G183: 2032-06-30 | H183: 30 | I183: =VLOOKUP(G183,'Прогноз переменной ставки'!$B$5:$E$304,4,1) -> 0.099 | J183: 9025 | K183: 617515.8698 | L183: 617515.8698 | M183: 0 | N183: 5021.278941 | O183: 4003.721059 | P183: 5021.278941 | Q183: 0 | R183: 0 | S183: 613512.1487 | T183: 0
F184: 173 | G184: 2032-07-31 | H184: 31 | I184: =VLOOKUP(G184,'Прогноз переменной ставки'!$B$5:$E$304,4,1) -> 0.099 | J184: 9025 | K184: 613512.1487 | L184: 613512.1487 | M184: 0 | N184: 5155.013783 | O184: 3869.986217 | P184: 5155.013783 | Q184: 0 | R184: 0 | S184: 609642.1625 | T184: 0
F185: 174 | G185: 2032-08-31 | H185: 31 | I185: =VLOOKUP(G185,'Прогноз переменной ставки'!$B$5:$E$304,4,1) -> 0.099 | J185: 9025 | K185: 609642.1625 | L185: 609642.1625 | M185: 0 | N185: 5122.496363 | O185: 3902.503637 | P185: 5122.496363 | Q185: 0 | R185: 0 | S185: 605739.6588 | T185: 0
F186: 175 | G186: 2032-09-30 | H186: 30 | I186: =VLOOKUP(G186,'Прогноз переменной ставки'!$B$5:$E$304,4,1) -> 0.099 | J186: 9025 | K186: 605739.6588 | L186: 605739.6588 | M186: 0 | N186: 4925.521661 | O186: 4099.478339 | P186: 4925.521661 | Q186: 0 | R186: 0 | S186: 601640.1805 | T186: 0
F187: 176 | G187: 2032-10-31 | H187: 31 | I187: =VLOOKUP(G187,'Прогноз переменной ставки'!$B$5:$E$304,4,1) -> 0.099 | J187: 9025 | K187: 601640.1805 | L187: 601640.1805 | M187: 0 | N187: 5055.259997 | O187: 3969.740003 | P187: 5055.259997 | Q187: 0 | R187: 0 | S187: 597670.4405 | T187: 0
F188: 177 | G188: 2032-11-30 | H188: 30 | I188: =VLOOKUP(G188,'Прогноз переменной ставки'!$B$5:$E$304,4,1) -> 0.099 | J188: 9025 | K188: 597670.4405 | L188: 597670.4405 | M188: 0 | N188: 4859.907483 | O188: 4165.092517 | P188: 4859.907483 | Q188: 0 | R188: 0 | S188: 593505.348 | T188: 0
F189: 178 | G189: 2032-12-31 | H189: 31 | I189: =VLOOKUP(G189,'Прогноз переменной ставки'!$B$5:$E$304,4,1) -> 0.099 | J189: 9025 | K189: 593505.348 | L189: 593505.348 | M189: 0 | N189: 4986.907359 | O189: 4038.092641 | P189: 4986.907359 | Q189: 0 | R189: 0 | S189: 589467.2553 | T189: 0
F190: 179 | G190: 2033-01-31 | H190: 31 | I190: =VLOOKUP(G190,'Прогноз переменной ставки'!$B$5:$E$304,4,1) -> 0.099 | J190: 9025 | K190: 589467.2553 | L190: 589467.2553 | M190: 0 | N190: 4952.977431 | O190: 4072.022569 | P190: 4952.977431 | Q190: 0 | R190: 0 | S190: 585395.2328 | T190: 0
F191: 180 | G191: 2033-02-28 | H191: 28 | I191: =VLOOKUP(G191,'Прогноз переменной ставки'!$B$5:$E$304,4,1) -> 0.099 | J191: 9025 | K191: 585395.2328 | L191: 585395.2328 | M191: 0 | N191: 4442.753142 | O191: 4582.246858 | P191: 4442.753142 | Q191: 0 | R191: 0 | S191: 580812.9859 | T191: 0
F192: 181 | G192: 2033-03-31 | H192: 31 | I192: =VLOOKUP(G192,'Прогноз переменной ставки'!$B$5:$E$304,4,1) -> 0.099 | J192: 9025 | K192: 580812.9859 | L192: 580812.9859 | M192: 0 | N192: 4880.260243 | O192: 4144.739757 | P192: 4880.260243 | Q192: 0 | R192: 0 | S192: 576668.2462 | T192: 0
F193: 182 | G193: 2033-04-30 | H193: 30 | I193: =VLOOKUP(G193,'Прогноз переменной ставки'!$B$5:$E$304,4,1) -> 0.099 | J193: 9025 | K193: 576668.2462 | L193: 576668.2462 | M193: 0 | N193: 4689.129887 | O193: 4335.870113 | P193: 4689.129887 | Q193: 0 | R193: 0 | S193: 572332.376 | T193: 0
F194: 183 | G194: 2033-05-31 | H194: 31 | I194: =VLOOKUP(G194,'Прогноз переменной ставки'!$B$5:$E$304,4,1) -> 0.099 | J194: 9025 | K194: 572332.376 | L194: 572332.376 | M194: 0 | N194: 4809.002223 | O194: 4215.997777 | P194: 4809.002223 | Q194: 0 | R194: 0 | S194: 568116.3783 | T194: 0
F195: 184 | G195: 2033-06-30 | H195: 30 | I195: =VLOOKUP(G195,'Прогноз переменной ставки'!$B$5:$E$304,4,1) -> 0.099 | J195: 9025 | K195: 568116.3783 | L195: 568116.3783 | M195: 0 | N195: 4619.591084 | O195: 4405.408916 | P195: 4619.591084 | Q195: 0 | R195: 0 | S195: 563710.9694 | T195: 0
F196: 185 | G196: 2033-07-31 | H196: 31 | I196: =VLOOKUP(G196,'Прогноз переменной ставки'!$B$5:$E$304,4,1) -> 0.099 | J196: 9025 | K196: 563710.9694 | L196: 563710.9694 | M196: 0 | N196: 4736.561163 | O196: 4288.438837 | P196: 4736.561163 | Q196: 0 | R196: 0 | S196: 559422.5305 | T196: 0
F197: 186 | G197: 2033-08-31 | H197: 31 | I197: =VLOOKUP(G197,'Прогноз переменной ставки'!$B$5:$E$304,4,1) -> 0.099 | J197: 9025 | K197: 559422.5305 | L197: 559422.5305 | M197: 0 | N197: 4700.52771 | O197: 4324.47229 | P197: 4700.52771 | Q197: 0 | R197: 0 | S197: 555098.0582 | T197: 0
F198: 187 | G198: 2033-09-30 | H198: 30 | I198: =VLOOKUP(G198,'Прогноз переменной ставки'!$B$5:$E$304,4,1) -> 0.099 | J198: 9025 | K198: 555098.0582 | L198: 555098.0582 | M198: 0 | N198: 4513.733697 | O198: 4511.266303 | P198: 4513.733697 | Q198: 0 | R198: 0 | S198: 550586.7919 | T198: 0
F199: 188 | G199: 2033-10-31 | H199: 31 | I199: =VLOOKUP(G199,'Прогноз переменной ставки'!$B$5:$E$304,4,1) -> 0.099 | J199: 9025 | K199: 550586.7919 | L199: 550586.7919 | M199: 0 | N199: 4626.285734 | O199: 4398.714266 | P199: 4626.285734 | Q199: 0 | R199: 0 | S199: 546188.0777 | T199: 0
F200: 189 | G200: 2033-11-30 | H200: 30 | I200: =VLOOKUP(G200,'Прогноз переменной ставки'!$B$5:$E$304,4,1) -> 0.099 | J200: 9025 | K200: 546188.0777 | L200: 546188.0777 | M200: 0 | N200: 4441.282931 | O200: 4583.717069 | P200: 4441.282931 | Q200: 0 | R200: 0 | S200: 541604.3606 | T200: 0
F201: 190 | G201: 2033-12-31 | H201: 31 | I201: =VLOOKUP(G201,'Прогноз переменной ставки'!$B$5:$E$304,4,1) -> 0.099 | J201: 9025 | K201: 541604.3606 | L201: 541604.3606 | M201: 0 | N201: 4550.811178 | O201: 4474.188822 | P201: 4550.811178 | Q201: 0 | R201: 0 | S201: 537130.1718 | T201: 0
... 110 more rows

Sheet График_300 (hidden)
B2: Параметр | D2: Значение
B3: Сумма кредита | D3: ='Калькулятор_от дохода'!$T$66 -> 1000000
B4: Первоначальный срок, мес. | D4: ='Расчет по доходу заемщика'!$H$41 -> 300
B5: Ежемесячный платеж | D5: ='Калькулятор_от дохода'!$T$72 -> 8408
B6: Расчетный период полного погашения | D6: =MATCH(0,K12:K312,0)-1 -> 300
B7: остаток долга на конец срока кредита | D7: =VLOOKUP(D4+1,$F$12:$L$263,4) -> 0.099
B8: Переплата | D8: =SUM($J$12:$J$311)-D3 -> 2045217.562 | M8: График платежей
B9: дата выдачи | D9: ='Калькулятор_от дохода'!$V$20 -> 2018-03-01
G10: Последняя дата процентного периода | H10: Кол-во дней в процентном периоде | I10: Ставка для расчетов | J10: Ежемесячный платеж | K10: Общий долг на начало | L10: Остаток кредита на начало | M10: Накопленные %% на начало | N10: Начислено за месяц | O10: Погашение кредита | P10: Погашение текущих % | Q10: Погашение накопленных %% | R10: Формирование накопленных %% | S10: Остаток кредита на конец периода | T10: Накопленные %% на конец периода
F11: 1 | G11: 2 | H11: 3 | I11: 2 | J11: 3 | K11: 4 | L11: 5 | M11: 6 | N11: 7 | O11: 8 | P11: 9 | Q11: 10 | R11: 11 | S11: 12 | T11: 13
F12: 1 | G12: =EOMONTH($D$9,F12-1) -> 2018-03-31 | H12: =G12-D9 -> 30 | I12: =VLOOKUP(G12,'Прогноз переменной ставки'!$B$5:$E$304,4,1) -> 0.0698 | J12: =IF(F12=$D$4,K12+N12,MIN($D$5,K12+N12)) -> 8408 | K12: =L12+M12 -> 1000000 | L12: =D3 -> 1000000 | M12: 0 | N12: =L12*I12/365.25*H12 -> 5733.059548 | O12: =MIN(J12-Q12-P12,L12) -> 2674.940452 | P12: =MIN(J12-Q12,N12) -> 5733.059548 | Q12: =MIN(J12,M12) -> 0 | R12: =MAX(N12-P12,0) -> 0 | S12: =L12-O12 -> 997325.0595 | T12: =M12+R12-Q12 -> 0
F13: 2 | G13: =EOMONTH($D$9,F13-1) -> 2018-04-30 | H13: =G13-G12 -> 30 | I13: =VLOOKUP(G13,'Прогноз переменной ставки'!$B$5:$E$304,4,1) -> 0.0698 | J13: =IF(F13=$D$4,K13+N13,MIN($D$5,K13+N13)) -> 8408 | K13: =L13+M13 -> 997325.0595 | L13: =S12 -> 997325.0595 | M13: =T12 -> 0 | N13: =L13*I13/365.25*H13 -> 5717.723955 | O13: 2690.276045 | P13: 5717.723955 | Q13: 0 | R13: =MAX(N13-P13,0) -> 0 | S13: 994634.7835 | T13: 0
F14: 3 | G14: 2018-05-31 | H14: =G14-G13 -> 31 | I14: =VLOOKUP(G14,'Прогноз переменной ставки'!$B$5:$E$304,4,1) -> 0.0698 | J14: 8408 | K14: 994634.7835 | L14: =S13 -> 994634.7835 | M14: 0 | N14: 5892.377124 | O14: 2515.622876 | P14: 5892.377124 | Q14: 0 | R14: =MAX(N14-P14,0) -> 0 | S14: 992119.1606 | T14: 0
F15: 4 | G15: 2018-06-30 | H15: 30 | I15: =VLOOKUP(G15,'Прогноз переменной ставки'!$B$5:$E$304,4,1) -> 0.0698 | J15: 8408 | K15: 992119.1606 | L15: 992119.1606 | M15: 0 | N15: 5687.878227 | O15: 2720.121773 | P15: 5687.878227 | Q15: 0 | R15: 0 | S15: 989399.0389 | T15: 0
F16: 5 | G16: 2018-07-31 | H16: 31 | I16: =VLOOKUP(G16,'Прогноз переменной ставки'!$B$5:$E$304,4,1) -> 0.0698 | J16: 8408 | K16: 989399.0389 | L16: 989399.0389 | M16: 0 | N16: 5861.359727 | O16: 2546.640273 | P16: 5861.359727 | Q16: 0 | R16: 0 | S16: 986852.3986 | T16: 0
F17: 6 | G17: 2018-08-31 | H17: 31 | I17: =VLOOKUP(G17,'Прогноз переменной ставки'!$B$5:$E$304,4,1) -> 0.0698 | J17: 8408 | K17: 986852.3986 | L17: 986852.3986 | M17: 0 | N17: 5846.273019 | O17: 2561.726981 | P17: 5846.273019 | Q17: 0 | R17: 0 | S17: 984290.6716 | T17: 0
F18: 7 | G18: 2018-09-30 | H18: 30 | I18: =VLOOKUP(G18,'Прогноз переменной ставки'!$B$5:$E$304,4,1) -> 0.0698 | J18: 8408 | K18: 984290.6716 | L18: =S17 -> 984290.6716 | M18: =T17 -> 0 | N18: 5642.997033 | O18: 2765.002967 | P18: 5642.997033 | Q18: 0 | R18: =MAX(N18-P18,0) -> 0 | S18: 981525.6686 | T18: 0
F19: 8 | G19: 2018-10-31 | H19: 31 | I19: =VLOOKUP(G19,'Прогноз переменной ставки'!$B$5:$E$304,4,1) -> 0.0698 | J19: 8408 | K19: 981525.6686 | L19: =S18 -> 981525.6686 | M19: =T18 -> 0 | N19: 5814.71661 | O19: 2593.28339 | P19: 5814.71661 | Q19: 0 | R19: 0 | S19: 978932.3852 | T19: 0
F20: 9 | G20: 2018-11-30 | H20: 30 | I20: =VLOOKUP(G20,'Прогноз переменной ставки'!$B$5:$E$304,4,1) -> 0.0698 | J20: 8408 | K20: 978932.3852 | L20: 978932.3852 | M20: 0 | N20: 5612.277658 | O20: 2795.722342 | P20: 5612.277658 | Q20: 0 | R20: 0 | S20: 976136.6629 | T20: 0
F21: 10 | G21: 2018-12-31 | H21: 31 | I21: =VLOOKUP(G21,'Прогноз переменной ставки'!$B$5:$E$304,4,1) -> 0.0698 | J21: 8408 | K21: 976136.6629 | L21: 976136.6629 | M21: 0 | N21: 5782.79127 | O21: 2625.20873 | P21: 5782.79127 | Q21: 0 | R21: 0 | S21: 973511.4542 | T21: 0
F22: 11 | G22: 2019-01-31 | H22: 31 | I22: =VLOOKUP(G22,'Прогноз переменной ставки'!$B$5:$E$304,4,1) -> 0.099 | J22: 8408 | K22: 973511.4542 | L22: 973511.4542 | M22: 0 | N22: 8179.895011 | O22: 228.1049888 | P22: 8179.895011 | Q22: 0 | R22: 0 | S22: 973283.3492 | T22: 0
F23: 12 | G23: 2019-02-28 | H23: 28 | I23: =VLOOKUP(G23,'Прогноз переменной ставки'!$B$5:$E$304,4,1) -> 0.099 | J23: 8408 | K23: 973283.3492 | L23: 973283.3492 | M23: 0 | N23: 7386.561106 | O23: 1021.438894 | P23: 7386.561106 | Q23: 0 | R23: 0 | S23: 972261.9103 | T23: 0
F24: 13 | G24: 2019-03-31 | H24: 31 | I24: =VLOOKUP(G24,'Прогноз переменной ставки'!$B$5:$E$304,4,1) -> 0.099 | J24: 8408 | K24: 972261.9103 | L24: =S23 -> 972261.9103 | M24: =T23 -> 0 | N24: 8169.395764 | O24: 238.6042363 | P24: 8169.395764 | Q24: 0 | R24: 0 | S24: 972023.3061 | T24: 0
F25: 14 | G25: 2019-04-30 | H25: 30 | I25: =VLOOKUP(G25,'Прогноз переменной ставки'!$B$5:$E$304,4,1) -> 0.099 | J25: 8408 | K25: 972023.3061 | L25: 972023.3061 | M25: 0 | N25: 7903.926678 | O25: 504.0733225 | P25: 7903.926678 | Q25: 0 | R25: 0 | S25: 971519.2327 | T25: 0
F26: 15 | G26: 2019-05-31 | H26: 31 | I26: =VLOOKUP(G26,'Прогноз переменной ставки'!$B$5:$E$304,4,1) -> 0.099 | J26: 8408 | K26: 971519.2327 | L26: 971519.2327 | M26: 0 | N26: 8163.155442 | O26: 244.8445578 | P26: 8163.155442 | Q26: 0 | R26: 0 | S26: 971274.3882 | T26: 0
F27: 16 | G27: 2019-06-30 | H27: 30 | I27: =VLOOKUP(G27,'Прогноз переменной ставки'!$B$5:$E$304,4,1) -> 0.099 | J27: 8408 | K27: 971274.3882 | L27: 971274.3882 | M27: 0 | N27: 7897.836914 | O27: 510.1630859 | P27: 7897.836914 | Q27: 0 | R27: 0 | S27: 970764.2251 | T27: 0
F28: 17 | G28: 2019-07-31 | H28: 31 | I28: =VLOOKUP(G28,'Прогноз переменной ставки'!$B$5:$E$304,4,1) -> 0.099 | J28: 8408 | K28: 970764.2251 | L28: 970764.2251 | M28: 0 | N28: 8156.811518 | O28: 251.1884824 | P28: 8156.811518 | Q28: 0 | R28: 0 | S28: 970513.0366 | T28: 0
F29: 18 | G29: 2019-08-31 | H29: 31 | I29: =VLOOKUP(G29,'Прогноз переменной ставки'!$B$5:$E$304,4,1) -> 0.099 | J29: 8408 | K29: 970513.0366 | L29: 970513.0366 | M29: 0 | N29: 8154.700915 | O29: 253.2990846 | P29: 8154.700915 | Q29: 0 | R29: 0 | S29: 970259.7375 | T29: 0
F30: 19 | G30: 2019-09-30 | H30: 30 | I30: =VLOOKUP(G30,'Прогноз переменной ставки'!$B$5:$E$304,4,1) -> 0.099 | J30: 8408 | K30: 970259.7375 | L30: 970259.7375 | M30: 0 | N30: 7889.586367 | O30: 518.4136333 | P30: 7889.586367 | Q30: 0 | R30: 0 | S30: 969741.3239 | T30: 0
F31: 20 | G31: 2019-10-31 | H31: 31 | I31: =VLOOKUP(G31,'Прогноз переменной ставки'!$B$5:$E$304,4,1) -> 0.099 | J31: 8408 | K31: 969741.3239 | L31: 969741.3239 | M31: 0 | N31: 8148.216627 | O31: 259.783373 | P31: 8148.216627 | Q31: 0 | R31: 0 | S31: 969481.5405 | T31: 0
F32: 21 | G32: 2019-11-30 | H32: 30 | I32: =VLOOKUP(G32,'Прогноз переменной ставки'!$B$5:$E$304,4,1) -> 0.099 | J32: 8408 | K32: 969481.5405 | L32: 969481.5405 | M32: 0 | N32: 7883.258522 | O32: 524.7414776 | P32: 7883.258522 | Q32: 0 | R32: 0 | S32: 968956.799 | T32: 0
F33: 22 | G33: 2019-12-31 | H33: 31 | I33: =VLOOKUP(G33,'Прогноз переменной ставки'!$B$5:$E$304,4,1) -> 0.099 | J33: 8408 | K33: 968956.799 | L33: 968956.799 | M33: 0 | N33: 8141.624685 | O33: 266.3753149 | P33: 8141.624685 | Q33: 0 | R33: 0 | S33: 968690.4237 | T33: 0
F34: 23 | G34: 2020-01-31 | H34: 31 | I34: =VLOOKUP(G34,'Прогноз переменной ставки'!$B$5:$E$304,4,1) -> 0.099 | J34: 8408 | K34: 968690.4237 | L34: 968690.4237 | M34: 0 | N34: 8139.386476 | O34: 268.6135239 | P34: 8139.386476 | Q34: 0 | R34: 0 | S34: 968421.8102 | T34: 0
F35: 24 | G35: 2020-02-29 | H35: 29 | I35: =VLOOKUP(G35,'Прогноз переменной ставки'!$B$5:$E$304,4,1) -> 0.099 | J35: 8408 | K35: 968421.8102 | L35: 968421.8102 | M35: 0 | N35: 7612.153366 | O35: 795.8466336 | P35: 7612.153366 | Q35: 0 | R35: 0 | S35: 967625.9636 | T35: 0
F36: 25 | G36: 2020-03-31 | H36: 31 | I36: =VLOOKUP(G36,'Прогноз переменной ставки'!$B$5:$E$304,4,1) -> 0.099 | J36: 8408 | K36: 967625.9636 | L36: 967625.9636 | M36: 0 | N36: 8130.442388 | O36: 277.5576121 | P36: 8130.442388 | Q36: 0 | R36: 0 | S36: 967348.4059 | T36: 0
F37: 26 | G37: 2020-04-30 | H37: 30 | I37: =VLOOKUP(G37,'Прогноз переменной ставки'!$B$5:$E$304,4,1) -> 0.099 | J37: 8408 | K37: 967348.4059 | L37: 967348.4059 | M37: 0 | N37: 7865.913116 | O37: 542.0868839 | P37: 7865.913116 | Q37: 0 | R37: 0 | S37: 966806.3191 | T37: 0
F38: 27 | G38: 2020-05-31 | H38: 31 | I38: =VLOOKUP(G38,'Прогноз переменной ставки'!$B$5:$E$304,4,1) -> 0.099 | J38: 8408 | K38: 966806.3191 | L38: 966806.3191 | M38: 0 | N38: 8123.555354 | O38: 284.4446455 | P38: 8123.555354 | Q38: 0 | R38: 0 | S38: 966521.8744 | T38: 0
F39: 28 | G39: 2020-06-30 | H39: 30 | I39: =VLOOKUP(G39,'Прогноз переменной ставки'!$B$5:$E$304,4,1) -> 0.099 | J39: 8408 | K39: 966521.8744 | L39: 966521.8744 | M39: 0 | N39: 7859.192244 | O39: 548.8077563 | P39: 7859.192244 | Q39: 0 | R39: 0 | S39: 965973.0667 | T39: 0
F40: 29 | G40: 2020-07-31 | H40: 31 | I40: =VLOOKUP(G40,'Прогноз переменной ставки'!$B$5:$E$304,4,1) -> 0.099 | J40: 8408 | K40: 965973.0667 | L40: 965973.0667 | M40: 0 | N40: 8116.553981 | O40: 291.4460189 | P40: 8116.553981 | Q40: 0 | R40: 0 | S40: 965681.6206 | T40: 0
F41: 30 | G41: 2020-08-31 | H41: 31 | I41: =VLOOKUP(G41,'Прогноз переменной ставки'!$B$5:$E$304,4,1) -> 0.099 | J41: 8408 | K41: 965681.6206 | L41: 965681.6206 | M41: 0 | N41: 8114.105116 | O41: 293.8948836 | P41: 8114.105116 | Q41: 0 | R41: 0 | S41: 965387.7258 | T41: 0
F42: 31 | G42: 2020-09-30 | H42: 30 | I42: =VLOOKUP(G42,'Прогноз переменной ставки'!$B$5:$E$304,4,1) -> 0.099 | J42: 8408 | K42: 965387.7258 | L42: 965387.7258 | M42: 0 | N42: 7849.970008 | O42: 558.0299918 | P42: 7849.970008 | Q42: 0 | R42: 0 | S42: 964829.6958 | T42: 0
F43: 32 | G43: 2020-10-31 | H43: 31 | I43: =VLOOKUP(G43,'Прогноз переменной ставки'!$B$5:$E$304,4,1) -> 0.099 | J43: 8408 | K43: 964829.6958 | L43: 964829.6958 | M43: 0 | N43: 8106.946848 | O43: 301.0531518 | P43: 8106.946848 | Q43: 0 | R43: 0 | S43: 964528.6426 | T43: 0
F44: 33 | G44: 2020-11-30 | H44: 30 | I44: =VLOOKUP(G44,'Прогноз переменной ставки'!$B$5:$E$304,4,1) -> 0.099 | J44: 8408 | K44: 964528.6426 | L44: 964528.6426 | M44: 0 | N44: 7842.984445 | O44: 565.0155549 | P44: 7842.984445 | Q44: 0 | R44: 0 | S44: 963963.6271 | T44: 0
F45: 34 | G45: 2020-12-31 | H45: 31 | I45: =VLOOKUP(G45,'Прогноз переменной ставки'!$B$5:$E$304,4,1) -> 0.099 | J45: 8408 | K45: 963963.6271 | L45: 963963.6271 | M45: 0 | N45: 8099.669737 | O45: 308.330263 | P45: 8099.669737 | Q45: 0 | R45: 0 | S45: 963655.2968 | T45: 0
F46: 35 | G46: 2021-01-31 | H46: 31 | I46: =VLOOKUP(G46,'Прогноз переменной ставки'!$B$5:$E$304,4,1) -> 0.099 | J46: 8408 | K46: 963655.2968 | L46: 963655.2968 | M46: 0 | N46: 8097.079003 | O46: 310.9209969 | P46: 8097.079003 | Q46: 0 | R46: 0 | S46: 963344.3758 | T46: 0
F47: 36 | G47: 2021-02-28 | H47: 28 | I47: =VLOOKUP(G47,'Прогноз переменной ставки'!$B$5:$E$304,4,1) -> 0.099 | J47: 8408 | K47: 963344.3758 | L47: 963344.3758 | M47: 0 | N47: 7311.131033 | O47: 1096.868967 | P47: 7311.131033 | Q47: 0 | R47: 0 | S47: 962247.5068 | T47: 0
F48: 37 | G48: 2021-03-31 | H48: 31 | I48: =VLOOKUP(G48,'Прогноз переменной ставки'!$B$5:$E$304,4,1) -> 0.099 | J48: 8408 | K48: 962247.5068 | L48: 962247.5068 | M48: 0 | N48: 8085.250099 | O48: 322.7499015 | P48: 8085.250099 | Q48: 0 | R48: 0 | S48: 961924.7569 | T48: 0
F49: 38 | G49: 2021-04-30 | H49: 30 | I49: =VLOOKUP(G49,'Прогноз переменной ставки'!$B$5:$E$304,4,1) -> 0.099 | J49: 8408 | K49: 961924.7569 | L49: 961924.7569 | M49: 0 | N49: 7821.811165 | O49: 586.1888348 | P49: 7821.811165 | Q49: 0 | R49: 0 | S49: 961338.5681 | T49: 0
F50: 39 | G50: 2021-05-31 | H50: 31 | I50: =VLOOKUP(G50,'Прогноз переменной ставки'!$B$5:$E$304,4,1) -> 0.099 | J50: 8408 | K50: 961338.5681 | L50: 961338.5681 | M50: 0 | N50: 8077.612773 | O50: 330.3872266 | P50: 8077.612773 | Q50: 0 | R50: 0 | S50: 961008.1809 | T50: 0
F51: 40 | G51: 2021-06-30 | H51: 30 | I51: =VLOOKUP(G51,'Прогноз переменной ставки'!$B$5:$E$304,4,1) -> 0.099 | J51: 8408 | K51: 961008.1809 | L51: 961008.1809 | M51: 0 | N51: 7814.358103 | O51: 593.6418968 | P51: 7814.358103 | Q51: 0 | R51: 0 | S51: 960414.539 | T51: 0
F52: 41 | G52: 2021-07-31 | H52: 31 | I52: =VLOOKUP(G52,'Прогноз переменной ставки'!$B$5:$E$304,4,1) -> 0.099 | J52: 8408 | K52: 960414.539 | L52: 960414.539 | M52: 0 | N52: 8069.848652 | O52: 338.1513481 | P52: 8069.848652 | Q52: 0 | R52: 0 | S52: 960076.3876 | T52: 0
F53: 42 | G53: 2021-08-31 | H53: 31 | I53: =VLOOKUP(G53,'Прогноз переменной ставки'!$B$5:$E$304,4,1) -> 0.099 | J53: 8408 | K53: 960076.3876 | L53: 960076.3876 | M53: 0 | N53: 8067.007347 | O53: 340.9926526 | P53: 8067.007347 | Q53: 0 | R53: 0 | S53: 959735.395 | T53: 0
F54: 43 | G54: 2021-09-30 | H54: 30 | I54: =VLOOKUP(G54,'Прогноз переменной ставки'!$B$5:$E$304,4,1) -> 0.099 | J54: 8408 | K54: 959735.395 | L54: 959735.395 | M54: 0 | N54: 7804.008551 | O54: 603.9914495 | P54: 7804.008551 | Q54: 0 | R54: 0 | S54: 959131.4035 | T54: 0
F55: 44 | G55: 2021-10-31 | H55: 31 | I55: =VLOOKUP(G55,'Прогноз переменной ставки'!$B$5:$E$304,4,1) -> 0.099 | J55: 8408 | K55: 959131.4035 | L55: 959131.4035 | M55: 0 | N55: 8059.067152 | O55: 348.9328476 | P55: 8059.067152 | Q55: 0 | R55: 0 | S55: 958782.4707 | T55: 0
